Workbook

Sheet MainPage
D11: Teenage Parent Outcomes Modelling Tool - local authority selection
D14: Please select your local authority, then choose an option from the top right. | J14: How to use this tool
J15: Select your local authority from the list on this page.
J16: To view a summary of pregnancy-related population statistics, select the 'demographic summary' option above.
J18: The main part of the tool is on the 'outcome modelling' page.
J19: A guide on how to use this tool is available using the 'How to guide' button
J20: Detail on the modelling methods and data sources is available using the 'Methods' button
D28: Public Health England exists to protect and improve the nation's health and wellbeing, and reduce health inequalities.
D29: It does this through world-class science, knowledge and intelligence, advocacy, partnerships and the delivery of specialist public
D30: health services. PHE is an operationally autonomous executive agency of the Department of Health.
D32: © Crown copyright 2014
D33: You may re-use this information (excluding logos) free of charge in any format or medium, under the terms of the Open
D34: Government Licence v3.0. To view this licence, visit:
D35: https://www.nationalarchives.gov.uk/doc/open-government-licence/version/3/
D36: or email: psi@nationalarchives.gsi.gov.uk.
D37: Where we have identified any third party copyright information you will need to obtain permission from the copyright holders concerned.
D39: Published February 2016
D40: PHE publications gateway number: 2015699

Sheet Summary
B8: Teenage Parent Outcomes Modelling Tool - demographic summary
B9: =B13 -> Barking and Dagenham
B11: Conception and birth data for 2013
B12: Area | C12: Indicator | D12: Under 16 conceptions | E12: Under 18 conceptions | F12: Births to mothers aged under 18 | G12: Under 18 abortions | H12: Births to mothers aged 15-19* | I12: Births to all mothers (general fertility rate)*
B13: =Settings!$C$2 -> Barking and Dagenham | C13: Number | D13: =INDEX('2013 ONS Conception Data'!$E$9:$E$200,MATCH(Settings!$C$2,'2013 ONS Conception Data'!$A$9:$A$200,0),1) -> 35 | E13: =INDEX('2013 ONS U18 conceptions'!$B$10:$B$438,MATCH(Settings!$C$2,'2013 ONS U18 conceptions'!$A$10:$A$438,0),1) -> 154 | F13: =INDEX('2013 ONS Birth Data'!$D$15:$D$474,MATCH(Settings!$C$2,'2013 ONS Birth Data'!$B$15:$B$474,0),1) -> 31 | G13: =L16*(INDEX('2013 ONS U18 conceptions'!$G$14:$G$463,MATCH(Settings!$C$2,'2013 ONS U18 conceptions'!$A$14:$A$463,0),1)/1000) -> 92.16 | H13: =INDEX('2013 ONS Birth Data'!$E$15:$E$474,MATCH(Settings!$C$2,'2013 ONS Birth Data'!$B$15:$B$474,0),1) -> 116 | I13: =INDEX('2013 ONS Birth Data'!$C$15:$C$474,MATCH(Settings!$C$2,'2013 ONS Birth Data'!$B$15:$B$474,0),1) -> 3796
C14: Rate per 1,000 female population | D14: =INDEX('2013 ONS Conception Data'!$F$9:$F$200,MATCH(Settings!$C$2,'2013 ONS Conception Data'!$A$9:$A$200,0),1) -> 9.2 | E14: =INDEX('2013 ONS U18 conceptions'!$C$10:$C$438,MATCH(Settings!$C$2,'2013 ONS U18 conceptions'!$A$10:$A$438,0),1) -> 40.1 | F14: =INDEX('2013 ONS Birth Data'!$N$16:$N$475,MATCH(Settings!$C$2,'2013 ONS Birth Data'!$B$16:$B$475,0),1) -> 8.1 | G14: =INDEX('2013 ONS U18 conceptions'!$G$14:$G$463,MATCH(Settings!$C$2,'2013 ONS U18 conceptions'!$A$14:$A$463,0),1) -> 24 | H14: =INDEX('2013 ONS Birth Data'!$P$16:$P$475,MATCH(Settings!$C$2,'2013 ONS Birth Data'!$B$16:$B$475,0),1) -> 18.7 | I14: =INDEX('2013 ONS Birth Data'!$L$16:$L$475,MATCH(Settings!$C$2,'2013 ONS Birth Data'!$B$16:$B$475,0),1) -> 85.5 | K14: =Settings!$C$2 &" population data for 2013" -> Barking and Dagenham population data for 2013
B15: =INDEX(Lookups!$E$2:$E$151,MATCH(Settings!$B$2,Lookups!$B$2:$B$151,0),1) -> London | C15: Rate per 1,000 female population | D15: =INDEX('2013 ONS Conception Data'!$F$9:$F$200,MATCH(Settings!$C$3,'2013 ONS Conception Data'!$A$9:$A$200,0),1) -> 4.3 | E15: =INDEX('2013 ONS U18 conceptions'!$C$10:$C$438,MATCH(Settings!$C$3,'2013 ONS U18 conceptions'!$A$10:$A$438,0),1) -> 21.8 | F15: =INDEX('2013 ONS Birth Data'!$N$16:$N$475,MATCH(Settings!$C$3,'2013 ONS Birth Data'!$B$16:$B$475,0),1) -> 5.1 | G15: =INDEX('2013 ONS U18 conceptions'!$G$14:$G$463,MATCH(Settings!$C$3,'2013 ONS U18 conceptions'!$A$14:$A$463,0),1) -> 14 | H15: =INDEX('2013 ONS Birth Data'!$P$16:$P$475,MATCH(Settings!$C$3,'2013 ONS Birth Data'!$B$16:$B$475,0),1) -> 12.3 | I15: =INDEX('2013 ONS Birth Data'!$L$16:$L$475,MATCH(Settings!$C$3,'2013 ONS Birth Data'!$B$16:$B$475,0),1) -> 64 | K15: Females aged 13-15 | L15: =INDEX('2013 Population Data'!$A$3:$J$152,MATCH(Settings!$B$2,'2013 Population Data'!$A$3:$A$152,0),7) -> 3792
B16: England | C16: Rate per 1,000 female population | D16: ='2013 ONS Conception Data'!$F$9 -> 4.9 | E16: ='2013 ONS U18 conceptions'!$C$16 -> 24.3 | F16: ='2013 ONS Birth Data'!$N$17 -> 7.8 | G16: =INDEX('2013 ONS U18 conceptions'!$G$14:$G$463,MATCH(Settings!$C$8,'2013 ONS U18 conceptions'!$A$14:$A$463,0),1) -> 12.4 | H16: ='2013 ONS Birth Data'!$P$17 -> 17.2 | I16: ='2013 ONS Birth Data'!$L$17 -> 62.4 | K16: Females aged 15-17 | L16: =INDEX('2013 Population Data'!$A$3:$J$152,MATCH(Settings!$B$2,'2013 Population Data'!$A$3:$A$152,0),8) -> 3840
B17: ="Statistical neighbour 1: " &Settings!$C$4 -> Statistical neighbour 1: Greenwich | C17: Rate per 1,000 female population | D17: =INDEX('2013 ONS Conception Data'!$F$9:$F$200,MATCH(Settings!$C$4,'2013 ONS Conception Data'!$A$9:$A$200,0),1) -> 5.6 | E17: =INDEX('2013 ONS U18 conceptions'!$C$10:$C$438,MATCH(Settings!$C$4,'2013 ONS U18 conceptions'!$A$10:$A$438,0),1) -> 24.5 | F17: =INDEX('2013 ONS Birth Data'!$N$16:$N$475,MATCH(Settings!$C$4,'2013 ONS Birth Data'!$B$16:$B$475,0),1) -> 5.9 | G17: =INDEX('2013 ONS U18 conceptions'!$G$14:$G$463,MATCH(Settings!$C$4,'2013 ONS U18 conceptions'!$A$14:$A$463,0),1) -> 15.9 | H17: =INDEX('2013 ONS Birth Data'!$P$16:$P$475,MATCH(Settings!$C$4,'2013 ONS Birth Data'!$B$16:$B$475,0),1) -> 17 | I17: =INDEX('2013 ONS Birth Data'!$L$16:$L$475,MATCH(Settings!$C$4,'2013 ONS Birth Data'!$B$16:$B$475,0),1) -> 71.1 | K17: Females aged 15-19 | L17: =INDEX('2013 Population Data'!$A$3:$J$152,MATCH(Settings!$B$2,'2013 Population Data'!$A$3:$A$152,0),9) -> 6189
B18: ="Statistical neighbour 2: " &Settings!$C$5 -> Statistical neighbour 2: Enfield | C18: Rate per 1,000 female population | D18: =INDEX('2013 ONS Conception Data'!$F$9:$F$200,MATCH(Settings!$C$5,'2013 ONS Conception Data'!$A$9:$A$200,0),1) -> 4 | E18: =INDEX('2013 ONS U18 conceptions'!$C$10:$C$438,MATCH(Settings!$C$5,'2013 ONS U18 conceptions'!$A$10:$A$438,0),1) -> 23 | F18: =INDEX('2013 ONS Birth Data'!$N$16:$N$475,MATCH(Settings!$C$5,'2013 ONS Birth Data'!$B$16:$B$475,0),1) -> 8 | G18: =INDEX('2013 ONS U18 conceptions'!$G$14:$G$463,MATCH(Settings!$C$5,'2013 ONS U18 conceptions'!$A$14:$A$463,0),1) -> 11.4 | H18: =INDEX('2013 ONS Birth Data'!$P$16:$P$475,MATCH(Settings!$C$5,'2013 ONS Birth Data'!$B$16:$B$475,0),1) -> 15.2 | I18: =INDEX('2013 ONS Birth Data'!$L$16:$L$475,MATCH(Settings!$C$5,'2013 ONS Birth Data'!$B$16:$B$475,0),1) -> 69.5 | K18: Females aged 15-44 | L18: =INDEX('2013 Population Data'!$A$3:$J$152,MATCH(Settings!$B$2,'2013 Population Data'!$A$3:$A$152,0),10) -> 44414
B19: ="Statistical neighbour 3: " &Settings!$C$6 -> Statistical neighbour 3: Manchester | C19: Rate per 1,000 female population | D19: =INDEX('2013 ONS Conception Data'!$F$9:$F$200,MATCH(Settings!$C$6,'2013 ONS Conception Data'!$A$9:$A$200,0),1) -> 8.6 | E19: =INDEX('2013 ONS U18 conceptions'!$C$10:$C$438,MATCH(Settings!$C$6,'2013 ONS U18 conceptions'!$A$10:$A$438,0),1) -> 36.5 | F19: =INDEX('2013 ONS Birth Data'!$N$16:$N$475,MATCH(Settings!$C$6,'2013 ONS Birth Data'!$B$16:$B$475,0),1) -> 13.3 | G19: =INDEX('2013 ONS U18 conceptions'!$G$14:$G$463,MATCH(Settings!$C$6,'2013 ONS U18 conceptions'!$A$14:$A$463,0),1) -> 17.6 | H19: =INDEX('2013 ONS Birth Data'!$P$16:$P$475,MATCH(Settings!$C$6,'2013 ONS Birth Data'!$B$16:$B$475,0),1) -> 21.4 | I19: =INDEX('2013 ONS Birth Data'!$L$16:$L$475,MATCH(Settings!$C$6,'2013 ONS Birth Data'!$B$16:$B$475,0),1) -> 60
B20: ="Statistical neighbour 4: " &Settings!$C$7 -> Statistical neighbour 4: Birmingham | C20: Rate per 1,000 female population | D20: =INDEX('2013 ONS Conception Data'!$F$9:$F$200,MATCH(Settings!$C$7,'2013 ONS Conception Data'!$A$9:$A$200,0),1) -> 5 | E20: =INDEX('2013 ONS U18 conceptions'!$C$10:$C$438,MATCH(Settings!$C$7,'2013 ONS U18 conceptions'!$A$10:$A$438,0),1) -> 25.9 | F20: =INDEX('2013 ONS Birth Data'!$N$16:$N$475,MATCH(Settings!$C$7,'2013 ONS Birth Data'!$B$16:$B$475,0),1) -> 8.7 | G20: =INDEX('2013 ONS U18 conceptions'!$G$14:$G$463,MATCH(Settings!$C$7,'2013 ONS U18 conceptions'!$A$14:$A$463,0),1) -> 12.3 | H20: =INDEX('2013 ONS Birth Data'!$P$16:$P$475,MATCH(Settings!$C$7,'2013 ONS Birth Data'!$B$16:$B$475,0),1) -> 17.5 | I20: =INDEX('2013 ONS Birth Data'!$L$16:$L$475,MATCH(Settings!$C$7,'2013 ONS Birth Data'!$B$16:$B$475,0),1) -> 71.2
B21: * this data is displayed in the Outcomes Modelling section in percentage format for ease of display

Sheet Detail
B8: ="Teenage Parent Outcomes Modelling Tool - outcome modelling for "&Summary!B13 -> Teenage Parent Outcomes Modelling Tool - outcome modelling for Barking and Dagenham
B10: Pregnancy data for 2013 | F10: =IF(Settings!$B$12="","Outcome data for 2013",Settings!$B$11&" data for 2013") -> Outcome data for 2013
B11: Indicator | C11: Original figure | D11: Modified figure | F11: Outcome | G11: Original figure | H11: Modified figure | J11: Chart Options
B12: Births to mothers aged 15-19 | C12: =INDEX('TP2013'!$E$4:$E$153,MATCH(Settings!$B$2,'TP2013'!$A$4:$A$153,0),1) -> 116 | D12: 116 | F12: =IFERROR(INDEX(IndicatorDesc!$B$2:$B$8,MATCH(Settings!$B$11,IndicatorDesc!$A$2:$A$8,0),1),"No selection made") -> No selection made | G12: =IF(Settings!$B$12<>"",IF(Settings!B17=FALSE,"Not available",INDEX(INDIRECT(Settings!$B$12&"!$E$"&INDIRECT(Settings!$B$12&"!D1")&":$E$"&INDIRECT(Settings!$B$12&"!D2")),MATCH(Settings!$B$2,INDIRECT(Settings!$B$12&"!$A$"&INDIRECT(Settings!$B$12&"!D1")&":$A$"&INDIRECT(Settings!$B$12&"!D2")),0),1)),"") ->  | J12: Comparator set
B13: Proportion of females aged 15-19 who gave birth | C13: =$C$12/INDEX('TP2013'!$F$4:$F$153,MATCH(Settings!$B$2,'TP2013'!$A$4:$A$153,0),1) -> 0.01874293101 | D13: 0.01874293101 | F13: =IFERROR(INDEX(IndicatorDesc!$C$2:$C$8,MATCH(Settings!$B$11,IndicatorDesc!$A$2:$A$8,0),1),"No selection made") -> No selection made | G13: =IF(Settings!$B$12="","",IFERROR(ROUND($G$12/$C$12,4),"Not available")) ->  | J13: Outcome
B14: Births to all mothers | C14: =INDEX('2013 ONS Birth Data'!$C$15:$C$474,MATCH(Settings!$C$2,'2013 ONS Birth Data'!$B$15:$B$474,0),1) -> 3796 | D14: =$C$14-$C$12+$D$12 -> 3796 | F14: =IFERROR(INDEX(IndicatorDesc!$B$11:$B$17,MATCH(Settings!$B$11,IndicatorDesc!$A$11:$A$17,0),1),"No selection made") -> No selection made | G14: =IF(Settings!$B$12="","",IF(Settings!$B$12="NEET",INDEX(NEET!$T$4:$T$153,MATCH(Settings!$B$2,NEET!$A$4:$A$153,0),1),IFERROR($G$15*$C$14,"Not available"))) ->  | H14: =IFERROR(IF(Settings!$B$12="","",$G$14-$G$12+$H$12),"Not available") ->  | J14: Match to
B15: Proportion of females who gave birth | C15: =$C$14/INDEX('2013 Population Data'!$J$3:$J$152,MATCH(Settings!$B$2,'2013 Population Data'!$A$3:$A$152,0),1) -> 0.08546854595 | D15: =$D$14/INDEX('2013 Population Data'!$J$3:$J$152,MATCH(Settings!$B$2,'2013 Population Data'!$A$3:$A$152,0),1) -> 0.08546854595 | F15: =IFERROR(INDEX(IndicatorDesc!$C$11:$C$17,MATCH(Settings!$B$11,IndicatorDesc!$A$11:$A$17,0),1),"No selection made") -> No selection made | G15: =IF(Settings!$B$12="","",IFERROR(IF(INDEX(SummaryChartData!$D$4:$D$10,MATCH(Settings!$B$11,SummaryChartData!$A$4:$A$10,0),1)=0,"Not available",INDEX(SummaryChartData!$D$4:$D$10,MATCH(Settings!$B$11,SummaryChartData!$A$4:$A$10,0),1)),"Not available")) ->  | H15: =IFERROR(IF(Settings!$B$12="","",IF(Settings!$B$12="NEET",$H$14/INDEX('2013 ONS Pop Data Females'!$E$4:$E$460,MATCH(Settings!$B$2,'2013 ONS Pop Data Females'!$A$4:$A$460,0),1),H14/D14)),"Not available") -> 
B23: Teenage mothers
B32: All mothers

Sheet ClosestCCGs
B8: ="Teenage Parent Outcomes Modelling Tool - statistical neighbours for "&Summary!B13 -> Teenage Parent Outcomes Modelling Tool - statistical neighbours for Barking and Dagenham
B10: Status | C10: Area code | D10: Area name
B11: Most similar | C11: =Settings!B4 -> E09000011 | D11: =Settings!C4 -> Greenwich
B12: 2nd most similar | C12: =Settings!B5 -> E09000010 | D12: =Settings!C5 -> Enfield
B13: 3rd most similar | C13: =Settings!B6 -> E08000003 | D13: =Settings!C6 -> Manchester
B14: 4th most similar | C14: =Settings!B7 -> E08000025 | D14: =Settings!C7 -> Birmingham
B16: The statistical neighbours used have been drawn from the Children's Services statistical neighbour benchmarking tool which was updated in October 2014. While the Children's Services statistical neighbour benchmarking tool defines ten neighbours, this has been limited to the four closest statistical neighbours in this tool as space on the charts is limited. Further information about this tool is available:
B19: www.gov.uk/government/publications/local-authority-interactive-tool-lait

Sheet HowTo

Sheet Methods

Sheet Useful Links
A8: Teenage Parent Outcomes Modelling Tool - Useful Links
A10: Data Source | B10: Notes | C10: Link
A11: Public Health Outcomes Framework | C11: http://www.phoutcomes.info/
A12: Child and Maternal Health Intelligence Network profiles | C12: www.chimat.org.uk/profiles
A13: What About YOUth? Survey | C13: http://fingertips.phe.org.uk/profile/what-about-youth
A14: Personal tax credits: Children in low-income families local measure | C14: https://www.gov.uk/government/statistics/personal-tax-credits-children-in-low-income-families-local-measure-2013-snapshot-as-at-31-august-2013
A15: Mid-year Population Estimates | B15: includes revised data for 2013 | C15: http://www.ons.gov.uk/ons/rel/pop-estimate/population-estimates-for-uk--england-and-wales--scotland-and-northern-ireland/mid-2014/stb---mid-2014-uk-population-estimates.html
A16: Low Birthweight Births | B16: Search for "low birthweight births" | C16: https://indicators.ic.nhs.uk/webview/
A17: Infant Mortality Profiles | C17: http://atlas.chimat.org.uk/IAS/dataviews/infantmortalityprofile
A18: Birth Summary Tables | C18: http://www.ons.gov.uk/ons/rel/vsob1/birth-summary-tables--england-and-wales/index.html
A19: Death Registrations Summary Tables | C19: http://www.ons.gov.uk/ons/rel/vsob1/death-reg-sum-tables/index.html
A20: Conception Statistics | C20: http://www.ons.gov.uk/ons/rel/vsob1/conception-statistics--england-and-wales/index.html
A21: Births by Area of Usual Residence of Mother | C21: http://www.ons.gov.uk/ons/rel/vsob1/births-by-area-of-usual-residence-of-mother--england-and-wales/index.html
A22: Audit Commission. Against the odds: targeted briefing: teenage parents | C22: http://webarchive.nationalarchives.gov.uk/20150421134146/http://www.audit-commission.gov.uk/2010/07/against-the-odds-re-engaging-young-people-in-education-employment-or-training/

Sheet Settings
B1: Code | C1: Name | D1: Local Authority value
A2: Selected LA | B2: =INDEX(Lookups!$B$2:$B$151,MATCH(Settings!$D$2,Lookups!$A$2:$A$151,0),1) -> E09000002 | C2: =INDEX(Lookups!$C$2:$C$151,MATCH(Settings!$D$2,Lookups!$A$2:$A$151,0),1) -> Barking and Dagenham | D2: 1
A3: Region | B3: =INDEX(Lookups!$B$2:$E$151,MATCH($B$2,Lookups!$B$2:$B$151,0),3) -> E12000007 | C3: =INDEX(Lookups!E2:E151,MATCH(Settings!B3,Lookups!D2:D151,0),1) -> London
A4: Comparator 1 | B4: =INDEX(Lookups!$B$2:$B$151,MATCH(INDEX(StatisticalNeighbours!$C$1:$C$150,MATCH($B$2,StatisticalNeighbours!$A$1:$A$150,0),1),Lookups!$C$2:$C$151,0),1) -> E09000011 | C4: =INDEX(Lookups!$C$2:$C$151,MATCH(Settings!$B4,Lookups!$B$2:$B$151,0),1) -> Greenwich
A5: Comparator 2 | B5: =INDEX(Lookups!$B$2:$B$151,MATCH(INDEX(StatisticalNeighbours!$D$1:$D$150,MATCH($B$2,StatisticalNeighbours!$A$1:$A$150,0),1),Lookups!$C$2:$C$151,0),1) -> E09000010 | C5: =INDEX(Lookups!$C$2:$C$151,MATCH(Settings!$B5,Lookups!$B$2:$B$151,0),1) -> Enfield
A6: Comparator 3 | B6: =INDEX(Lookups!$B$2:$B$151,MATCH(INDEX(StatisticalNeighbours!$E$1:$E$150,MATCH($B$2,StatisticalNeighbours!$A$1:$A$150,0),1),Lookups!$C$2:$C$151,0),1) -> E08000003 | C6: =INDEX(Lookups!$C$2:$C$151,MATCH(Settings!$B6,Lookups!$B$2:$B$151,0),1) -> Manchester
A7: Comparator 4 | B7: =INDEX(Lookups!$B$2:$B$151,MATCH(INDEX(StatisticalNeighbours!$F$1:$F$150,MATCH($B$2,StatisticalNeighbours!$A$1:$A$150,0),1),Lookups!$C$2:$C$151,0),1) -> E08000025 | C7: =INDEX(Lookups!$C$2:$C$151,MATCH(Settings!$B7,Lookups!$B$2:$B$151,0),1) -> Birmingham
A8: England | B8: E92000001 | C8: England
A9: Selected population | B9: =INDEX(Lookups!G3:G4,Settings!$C$9,1) -> Births to mothers aged 15-19 | C9: 2
A10: Selected comparators | B10: =INDEX(Lookups!$J$2:$J$4,Settings!$C$10,1) -> Region and England | C10: 2
A11: Primary factor | B11: =IF(C9=1,INDEX(Lookups!#REF!,$C$11,1),INDEX(Lookups!$L1:$L$8,$C$11,1)) -> 0 | C11: 1
A12: Primary sheet | B12: =IF(C9=2,IFERROR(INDEX(Lookups!$M$1:$M$8,MATCH(Settings!$B$11,Lookups!$L$1:$L$8,0),1),""),IFERROR(INDEX(Lookups!#REF!,MATCH(Settings!$B$11,Lookups!#REF!,0),1),"")) -> 
A13: ResetTPSheet | B13: TRUE
A14: ResetPrimarySheet | B14: TRUE
A15: TPScroll | B15: FALSE
A16: PrimaryScroll | B16: FALSE
A17: LA primary factor check | B17: =IF(IFERROR(MATCH($B$2,INDIRECT($B$12&"!$A$"&INDIRECT($B$12&"!D1")&":$A$"&INDIRECT($B$12&"!D2")),0),0)>0,TRUE,FALSE) -> FALSE
A18: C1 primary factor check | B18: =IF(IFERROR(MATCH($B$4,INDIRECT($B$12&"!$A$"&INDIRECT(B12&"!D1")&":$A$"&INDIRECT($B$12&"!D2")),0),0)>0,TRUE,FALSE) -> FALSE
A19: C2 primary factor check | B19: =IF(IFERROR(MATCH($B$5,INDIRECT($B$12&"!$A$"&INDIRECT(B12&"!D1")&":$A$"&INDIRECT($B$12&"!D2")),0),0)>0,TRUE,FALSE) -> FALSE
A20: C3 primary factor check | B20: =IF(IFERROR(MATCH($B$6,INDIRECT($B$12&"!$A$"&INDIRECT(B12&"!D1")&":$A$"&INDIRECT($B$12&"!D2")),0),0)>0,TRUE,FALSE) -> FALSE
A21: C4 primary factor check | B21: =IF(IFERROR(MATCH($B$7,INDIRECT($B$12&"!$A$"&INDIRECT(B12&"!D1")&":$A$"&INDIRECT($B$12&"!D2")),0),0)>0,TRUE,FALSE) -> FALSE
A22: Folder | B22: C:\Users\zachary.gleisner\AppData\Local\Temp\Excel8.0
A23: SelectedComparator | B23: =IF(B10="Statistical neighbours",INDEX(Lookups!$N$1:$N$5,Settings!$C$23,1),IF(B10="Region and England",INDEX(Lookups!$O$1:$O$3,Settings!$C$23,1),INDEX(Lookups!$P$1:$P$3,Settings!$C$23,1))) -> Barking and Dagenham | C23: 1
A24: SelectedComparatorCode | B24: =IF(OR($B$23="Top 5%",B23="Top 25%"),$B$23,IF($B$23="Default",$B$2,INDEX($B$3:$B$8,MATCH($B$23,$C$3:$C$8,0),1))) -> 
A25: LastSheet | B25: Summary
A26: Scrollbars | B26: TP | C26: Primary
A27: Min | B27: 0 | C27: 0
A28: Max | B28: 3740 | C28: =IF(B12="BFI",10000,INDIRECT(B12&"!$B$2")) -> 
A29: Value | B29: 1865.706899 | C29: 6582
A30: New Value | B30: =B28-B29 -> 1874.293101 | C30: =C28-C29 -> 

Sheet Scrollbars
B1: TPScrollBar | C1: PrimaryScrollBar | D1: TPScrollBar orig | E1: PrimaryScrollBar orig
A2: Width | B2: =D2 -> 11.25 | C2: =E2 -> 11.25 | D2: 11.25 | E2: 11.25 | F2: =D2*Settings!$G$4 -> 0 | G2: =E2*Settings!$G$4 -> 0
A3: Height | B3: =D3 -> 129.75 | C3: =E3 -> 129.75 | D3: 129.75 | E3: 129.75 | F3: =D3*Settings!$F$4 -> 0 | G3: =E3*Settings!$F$4 -> 0
A4: Top | B4: 134.25 | C4: =E4 -> 269.25 | D4: 134.25 | E4: 269.25 | F4: =D4*Settings!$F$4 -> 0 | G4: =E4*Settings!$F$4 -> 0
A5: Left | B5: 313.5 | C5: =E5 -> 313.5 | D5: 313.5 | E5: 313.5 | F5: =D5*Settings!$G$4 -> 0 | G5: =E5*Settings!$G$4 -> 0
A6: Max | B6: 0 | C6: =E6 -> 0 | D6: 0 | E6: 0 | F6: 0 | G6: 0
A7: Min | B7: 3741 | C7: =E7 -> 6601 | D7: 3741 | E7: 6601 | F7: 3741 | G7: 6601
A8: SmallChange | B8: 10 | D8: 10 | F8: 10
A9: LargeChange | B9: 5 | D9: 5 | F9: 5

Sheet Lookups
A1: Index | B1: TTLA Code | C1: TTLA Name | D1: Region Code | E1: Region Name | G1: Populations | J1: Comparators | N1: =Settings!$C$2 -> Barking and Dagenham | O1: =Settings!$C$2 -> Barking and Dagenham | P1: =Settings!$C$2 -> Barking and Dagenham
A2: 1 | B2: E09000002 | C2: Barking and Dagenham | D2: E12000007 | E2: London | J2: Statistical neighbours | L2: Smoking at delivery | M2: SSATOD | N2: =Settings!C4 -> Greenwich | O2: =Settings!C3 -> London | P2: Top 5%
A3: 2 | B3: E09000003 | C3: Barnet | D3: E12000007 | E3: London | G3: Conceptions to women aged 15-17 | H3: Conceptions2013 | J3: Region and England | L3: Child poverty | M3: ChildPoverty | N3: =Settings!C5 -> Enfield | O3: England | P3: Top 25%
A4: 3 | B4: E08000016 | C4: Barnsley | D4: E12000003 | E4: Yorkshire and The Humber | G4: Births to mothers aged 15-19 | H4: TP2013 | J4: Top 5% or Top 25% | L4: Low birth weight | M4: LBW | N4: =Settings!C6 -> Manchester
A5: 4 | B5: E06000022 | C5: Bath and North East Somerset | D5: E12000009 | E5: South West | J5: Percentiles | L5: Stillbirths | M5: Stillbirths | N5: =Settings!C7 -> Birmingham
A6: 5 | B6: E06000055 | C6: Bedford | D6: E12000006 | E6: East of England | L6: Infant mortality | M6: IM
A7: 6 | B7: E09000004 | C7: Bexley | D7: E12000007 | E7: London | L7: Breastfeeding initiation | M7: BFI
A8: 7 | B8: E08000025 | C8: Birmingham | D8: E12000005 | E8: West Midlands | L8: NEET | M8: NEET
A9: 8 | B9: E06000008 | C9: Blackburn with Darwen | D9: E12000002 | E9: North West
A10: 9 | B10: E06000009 | C10: Blackpool | D10: E12000002 | E10: North West
A11: 10 | B11: E08000001 | C11: Bolton | D11: E12000002 | E11: North West
A12: 11 | B12: E06000028 | C12: Bournemouth | D12: E12000009 | E12: South West
A13: 12 | B13: E06000036 | C13: Bracknell Forest | D13: E12000008 | E13: South East
A14: 13 | B14: E08000032 | C14: Bradford | D14: E12000003 | E14: Yorkshire and The Humber
A15: 14 | B15: E09000005 | C15: Brent | D15: E12000007 | E15: London
A16: 15 | B16: E06000043 | C16: Brighton and Hove | D16: E12000008 | E16: South East
A17: 16 | B17: E06000023 | C17: Bristol | D17: E12000009 | E17: South West
A18: 17 | B18: E09000006 | C18: Bromley | D18: E12000007 | E18: London
A19: 18 | B19: E10000002 | C19: Buckinghamshire | D19: E12000008 | E19: South East
A20: 19 | B20: E08000002 | C20: Bury | D20: E12000002 | E20: North West
A21: 20 | B21: E08000033 | C21: Calderdale | D21: E12000003 | E21: Yorkshire and The Humber
A22: 21 | B22: E10000003 | C22: Cambridgeshire | D22: E12000006 | E22: East of England
A23: 22 | B23: E09000007 | C23: Camden | D23: E12000007 | E23: London
A24: 23 | B24: E06000056 | C24: Central Bedfordshire | D24: E12000006 | E24: East of England
A25: 24 | B25: E06000049 | C25: Cheshire East | D25: E12000002 | E25: North West
A26: 25 | B26: E06000050 | C26: Cheshire West and Chester | D26: E12000002 | E26: North West
A27: 26 | B27: E06000052 | C27: Cornwall and Isles of Scilly | D27: E12000009 | E27: South West
A28: 27 | B28: E06000047 | C28: County Durham | D28: E12000001 | E28: North East
A29: 28 | B29: E08000026 | C29: Coventry | D29: E12000005 | E29: West Midlands
A30: 29 | B30: E09000008 | C30: Croydon | D30: E12000007 | E30: London
A31: 30 | B31: E10000006 | C31: Cumbria | D31: E12000002 | E31: North West
A32: 31 | B32: E06000005 | C32: Darlington | D32: E12000001 | E32: North East
A33: 32 | B33: E06000015 | C33: Derby | D33: E12000004 | E33: East Midlands
A34: 33 | B34: E10000007 | C34: Derbyshire | D34: E12000004 | E34: East Midlands
A35: 34 | B35: E10000008 | C35: Devon | D35: E12000009 | E35: South West
A36: 35 | B36: E08000017 | C36: Doncaster | D36: E12000003 | E36: Yorkshire and The Humber
A37: 36 | B37: E10000009 | C37: Dorset | D37: E12000009 | E37: South West
A38: 37 | B38: E08000027 | C38: Dudley | D38: E12000005 | E38: West Midlands
A39: 38 | B39: E09000009 | C39: Ealing | D39: E12000007 | E39: London
A40: 39 | B40: E06000011 | C40: East Riding of Yorkshire | D40: E12000003 | E40: Yorkshire and The Humber
A41: 40 | B41: E10000011 | C41: East Sussex | D41: E12000008 | E41: South East
A42: 41 | B42: E09000010 | C42: Enfield | D42: E12000007 | E42: London
A43: 42 | B43: E10000012 | C43: Essex | D43: E12000006 | E43: East of England
A44: 43 | B44: E08000037 | C44: Gateshead | D44: E12000001 | E44: North East
A45: 44 | B45: E10000013 | C45: Gloucestershire | D45: E12000009 | E45: South West
A46: 45 | B46: E09000011 | C46: Greenwich | D46: E12000007 | E46: London
A47: 46 | B47: E09000012 | C47: Hackney and City of London | D47: E12000007 | E47: London
A48: 47 | B48: E06000006 | C48: Halton | D48: E12000002 | E48: North West
A49: 48 | B49: E09000013 | C49: Hammersmith and Fulham | D49: E12000007 | E49: London
A50: 49 | B50: E10000014 | C50: Hampshire | D50: E12000008 | E50: South East
A51: 50 | B51: E09000014 | C51: Haringey | D51: E12000007 | E51: London
A52: 51 | B52: E09000015 | C52: Harrow | D52: E12000007 | E52: London
A53: 52 | B53: E06000001 | C53: Hartlepool | D53: E12000001 | E53: North East
A54: 53 | B54: E09000016 | C54: Havering | D54: E12000007 | E54: London
A55: 54 | B55: E06000019 | C55: Herefordshire | D55: E12000005 | E55: West Midlands
A56: 55 | B56: E10000015 | C56: Hertfordshire | D56: E12000006 | E56: East of England
A57: 56 | B57: E09000017 | C57: Hillingdon | D57: E12000007 | E57: London
A58: 57 | B58: E09000018 | C58: Hounslow | D58: E12000007 | E58: London
A59: 58 | B59: E06000046 | C59: Isle of Wight | D59: E12000008 | E59: South East
A60: 59 | B60: E09000019 | C60: Islington | D60: E12000007 | E60: London
A61: 60 | B61: E09000020 | C61: Kensington and Chelsea | D61: E12000007 | E61: London
A62: 61 | B62: E10000016 | C62: Kent | D62: E12000008 | E62: South East
A63: 62 | B63: E06000010 | C63: Kingston upon Hull | D63: E12000003 | E63: Yorkshire and The Humber
A64: 63 | B64: E09000021 | C64: Kingston upon Thames | D64: E12000007 | E64: London
A65: 64 | B65: E08000034 | C65: Kirklees | D65: E12000003 | E65: Yorkshire and The Humber
A66: 65 | B66: E08000011 | C66: Knowsley | D66: E12000002 | E66: North West
A67: 66 | B67: E09000022 | C67: Lambeth | D67: E12000007 | E67: London
A68: 67 | B68: E10000017 | C68: Lancashire | D68: E12000002 | E68: North West
A69: 68 | B69: E08000035 | C69: Leeds | D69: E12000003 | E69: Yorkshire and The Humber
A70: 69 | B70: E06000016 | C70: Leicester | D70: E12000004 | E70: East Midlands
A71: 70 | B71: E10000018 | C71: Leicestershire | D71: E12000004 | E71: East Midlands
A72: 71 | B72: E09000023 | C72: Lewisham | D72: E12000007 | E72: London
A73: 72 | B73: E10000019 | C73: Lincolnshire | D73: E12000004 | E73: East Midlands
A74: 73 | B74: E08000012 | C74: Liverpool | D74: E12000002 | E74: North West
A75: 74 | B75: E06000032 | C75: Luton | D75: E12000006 | E75: East of England
A76: 75 | B76: E08000003 | C76: Manchester | D76: E12000002 | E76: North West
A77: 76 | B77: E06000035 | C77: Medway | D77: E12000008 | E77: South East
A78: 77 | B78: E09000024 | C78: Merton | D78: E12000007 | E78: London
A79: 78 | B79: E06000002 | C79: Middlesbrough | D79: E12000001 | E79: North East
A80: 79 | B80: E06000042 | C80: Milton Keynes | D80: E12000008 | E80: South East
A81: 80 | B81: E08000021 | C81: Newcastle upon Tyne | D81: E12000001 | E81: North East
A82: 81 | B82: E09000025 | C82: Newham | D82: E12000007 | E82: London
A83: 82 | B83: E10000020 | C83: Norfolk | D83: E12000006 | E83: East of England
A84: 83 | B84: E06000012 | C84: North East Lincolnshire | D84: E12000003 | E84: Yorkshire and The Humber
A85: 84 | B85: E06000013 | C85: North Lincolnshire | D85: E12000003 | E85: Yorkshire and The Humber
A86: 85 | B86: E06000024 | C86: North Somerset | D86: E12000009 | E86: South West
A87: 86 | B87: E08000022 | C87: North Tyneside | D87: E12000001 | E87: North East
A88: 87 | B88: E10000023 | C88: North Yorkshire | D88: E12000003 | E88: Yorkshire and The Humber
A89: 88 | B89: E10000021 | C89: Northamptonshire | D89: E12000004 | E89: East Midlands
A90: 89 | B90: E06000057 | C90: Northumberland | D90: E12000001 | E90: North East
A91: 90 | B91: E06000018 | C91: Nottingham | D91: E12000004 | E91: East Midlands
A92: 91 | B92: E10000024 | C92: Nottinghamshire | D92: E12000004 | E92: East Midlands
A93: 92 | B93: E08000004 | C93: Oldham | D93: E12000002 | E93: North West
A94: 93 | B94: E10000025 | C94: Oxfordshire | D94: E12000008 | E94: South East
A95: 94 | B95: E06000031 | C95: Peterborough | D95: E12000006 | E95: East of England
A96: 95 | B96: E06000026 | C96: Plymouth | D96: E12000009 | E96: South West
A97: 96 | B97: E06000029 | C97: Poole | D97: E12000009 | E97: South West
A98: 97 | B98: E06000044 | C98: Portsmouth | D98: E12000008 | E98: South East
A99: 98 | B99: E06000038 | C99: Reading | D99: E12000008 | E99: South East
A100: 99 | B100: E09000026 | C100: Redbridge | D100: E12000007 | E100: London
A101: 100 | B101: E06000003 | C101: Redcar and Cleveland | D101: E12000001 | E101: North East
A102: 101 | B102: E09000027 | C102: Richmond upon Thames | D102: E12000007 | E102: London
A103: 102 | B103: E08000005 | C103: Rochdale | D103: E12000002 | E103: North West
A104: 103 | B104: E08000018 | C104: Rotherham | D104: E12000003 | E104: Yorkshire and The Humber
A105: 104 | B105: E06000017 | C105: Rutland | D105: E12000004 | E105: East Midlands
A106: 105 | B106: E08000006 | C106: Salford | D106: E12000002 | E106: North West
A107: 106 | B107: E08000028 | C107: Sandwell | D107: E12000005 | E107: West Midlands
A108: 107 | B108: E08000014 | C108: Sefton | D108: E12000002 | E108: North West
A109: 108 | B109: E08000019 | C109: Sheffield | D109: E12000003 | E109: Yorkshire and The Humber
A110: 109 | B110: E06000051 | C110: Shropshire | D110: E12000005 | E110: West Midlands
A111: 110 | B111: E06000039 | C111: Slough | D111: E12000008 | E111: South East
A112: 111 | B112: E08000029 | C112: Solihull | D112: E12000005 | E112: West Midlands
A113: 112 | B113: E10000027 | C113: Somerset | D113: E12000009 | E113: South West
A114: 113 | B114: E06000025 | C114: South Gloucestershire | D114: E12000009 | E114: South West
A115: 114 | B115: E08000023 | C115: South Tyneside | D115: E12000001 | E115: North East
A116: 115 | B116: E06000045 | C116: Southampton | D116: E12000008 | E116: South East
A117: 116 | B117: E06000033 | C117: Southend-on-Sea | D117: E12000006 | E117: East of England
A118: 117 | B118: E09000028 | C118: Southwark | D118: E12000007 | E118: London
A119: 118 | B119: E08000013 | C119: St Helens | D119: E12000002 | E119: North West
A120: 119 | B120: E10000028 | C120: Staffordshire | D120: E12000005 | E120: West Midlands
A121: 120 | B121: E08000007 | C121: Stockport | D121: E12000002 | E121: North West
A122: 121 | B122: E06000004 | C122: Stockton-on-Tees | D122: E12000001 | E122: North East
A123: 122 | B123: E06000021 | C123: Stoke-on-Trent | D123: E12000005 | E123: West Midlands
A124: 123 | B124: E10000029 | C124: Suffolk | D124: E12000006 | E124: East of England
A125: 124 | B125: E08000024 | C125: Sunderland | D125: E12000001 | E125: North East
A126: 125 | B126: E10000030 | C126: Surrey | D126: E12000008 | E126: South East
A127: 126 | B127: E09000029 | C127: Sutton | D127: E12000007 | E127: London
A128: 127 | B128: E06000030 | C128: Swindon | D128: E12000009 | E128: South West
A129: 128 | B129: E08000008 | C129: Tameside | D129: E12000002 | E129: North West
A130: 129 | B130: E06000020 | C130: Telford and Wrekin | D130: E12000005 | E130: West Midlands
A131: 130 | B131: E06000034 | C131: Thurrock | D131: E12000006 | E131: East of England
A132: 131 | B132: E06000027 | C132: Torbay | D132: E12000009 | E132: South West
A133: 132 | B133: E09000030 | C133: Tower Hamlets | D133: E12000007 | E133: London
A134: 133 | B134: E08000009 | C134: Trafford | D134: E12000002 | E134: North West
A135: 134 | B135: E08000036 | C135: Wakefield | D135: E12000003 | E135: Yorkshire and The Humber
A136: 135 | B136: E08000030 | C136: Walsall | D136: E12000005 | E136: West Midlands
A137: 136 | B137: E09000031 | C137: Waltham Forest | D137: E12000007 | E137: London
A138: 137 | B138: E09000032 | C138: Wandsworth | D138: E12000007 | E138: London
A139: 138 | B139: E06000007 | C139: Warrington | D139: E12000002 | E139: North West
A140: 139 | B140: E10000031 | C140: Warwickshire | D140: E12000005 | E140: West Midlands
A141: 140 | B141: E06000037 | C141: West Berkshire | D141: E12000008 | E141: South East
A142: 141 | B142: E10000032 | C142: West Sussex | D142: E12000008 | E142: South East
A143: 142 | B143: E09000033 | C143: Westminster | D143: E12000007 | E143: London
A144: 143 | B144: E08000010 | C144: Wigan | D144: E12000002 | E144: North West
A145: 144 | B145: E06000054 | C145: Wiltshire | D145: E12000009 | E145: South West
A146: 145 | B146: E06000040 | C146: Windsor and Maidenhead | D146: E12000008 | E146: South East
A147: 146 | B147: E08000015 | C147: Wirral | D147: E12000002 | E147: North West
A148: 147 | B148: E06000041 | C148: Wokingham | D148: E12000008 | E148: South East
A149: 148 | B149: E08000031 | C149: Wolverhampton | D149: E12000005 | E149: West Midlands
A150: 149 | B150: E10000034 | C150: Worcestershire | D150: E12000005 | E150: West Midlands
A151: 150 | B151: E06000014 | C151: York | D151: E12000003 | E151: Yorkshire and The Humber

Sheet IndicatorDesc
B1: Number description | C1: Percentage description
A2: Smoking at delivery | B2: Births to teenage mothers who smoked at delivery | C2: Proportion of births to teenage mothers who smoked at delivery
A3: Child poverty | B3: Births to teenage mothers where the child lives in poverty | C3: Proportion of births to teenage mothers where the child lives in poverty
A4: Low birth weight | B4: Births to teenage mothers where the baby has a low birth weight | C4: Proportion of births to teenage mothers where the baby has a low birth weight
A5: Stillbirths | B5: Stillbirths to teenage mothers | C5: Proportion of stillbirths to teenage mothers
A6: Infant mortality | B6: Births to teenage mothers where the child dies in the first year of life | C6: Proportion of births to teenage mothers where the child dies in the first year of life
A7: Breastfeeding initiation | B7: Births to teenage mothers where breastfeeding is initiated | C7: Proportion of children of teenage mothers where breastfeeding is initiated
A8: NEET | B8: Births to teenage mothers who are NEET | C8: Proportion of births to teenage mothers who are NEET
B10: Number description | C10: Percentage description
A11: Smoking at delivery | B11: Births to all mothers who smoked at delivery | C11: Proportion of births to all mothers who smoked at delivery
A12: Child poverty | B12: Births to all mothers where the child lives in poverty | C12: Proportion of births to all mothers where the child lives in poverty
A13: Low birth weight | B13: Births to all mothers where the baby has a low birth weight | C13: Proportion of births to all mothers where the baby has a low birth weight
A14: Stillbirths | B14: Stillbirths to all mothers | C14: Proportion of stillbirths to all mothers
A15: Infant mortality | B15: Births to all mothers where the child dies in the first year of life | C15: Proportion of births to all mothers where the child dies in the first year of life
A16: Breastfeeding initiation | B16: Births to all mothers where breastfeeding is initiated | C16: Proportion of children of all mothers where breastfeeding is initiated
A17: NEET | B17: Females aged 15-19 who are NEET | C17: Proportion of females aged 15-19 who are NEET

Sheet StatisticalNeighbours
A1: E09000002 | B1: Barking and Dagenham | C1: Greenwich | D1: Enfield | E1: Manchester | F1: Birmingham
A2: E09000003 | B2: Barnet | C2: Merton | D2: Kingston upon Thames | E2: Reading | F2: Hillingdon
A3: E08000016 | B3: Barnsley | C3: Redcar and Cleveland | D3: Doncaster | E3: Wakefield | F3: Wigan
A4: E06000022 | B4: Bath and North East Somerset | C4: Gloucestershire | D4: Cambridgeshire | E4: Oxfordshire | F4: Wiltshire
A5: E06000055 | B5: Bedford | C5: Kent | D5: Northamptonshire | E5: Swindon | F5: Derby
A6: E09000004 | B6: Bexley | C6: Havering | D6: Thurrock | E6: Medway | F6: Milton Keynes
A7: E08000025 | B7: Birmingham | C7: Luton | D7: Sandwell | E7: Nottingham | F7: Wolverhampton
A8: E06000008 | B8: Blackburn with Darwen | C8: Walsall | D8: Bradford | E8: Bolton | F8: Rochdale
A9: E06000009 | B9: Blackpool | C9: Hartlepool | D9: Redcar and Cleveland | E9: North East Lincolnshire | F9: Tameside
A10: E08000001 | B10: Bolton | C10: Kirklees | D10: Derby | E10: Dudley | F10: Tameside
A11: E06000028 | B11: Bournemouth | C11: Southend-on-Sea | D11: Plymouth | E11: Poole | F11: Swindon
A12: E06000036 | B12: Bracknell Forest | C12: Hertfordshire | D12: Hampshire | E12: Central Bedfordshire | F12: West Berkshire
A13: E08000032 | B13: Bradford | C13: Rochdale | D13: Blackburn with Darwen | E13: Oldham | F13: Kirklees
A14: E09000005 | B14: Brent | C14: Ealing | D14: Waltham Forest | E14: Croydon | F14: Haringey
A15: E06000043 | B15: Brighton and Hove | C15: Bournemouth | D15: Bristol | E15: Reading | F15: Bath and North East Somerset
A16: E06000023 | B16: Bristol | C16: Portsmouth | D16: Reading | E16: Southampton | F16: Sheffield
A17: E09000006 | B17: Bromley | C17: Trafford | D17: Hertfordshire | E17: Sutton | F17: Bracknell Forest
A18: E10000002 | B18: Buckinghamshire | C18: Surrey | D18: West Berkshire | E18: Windsor and Maidenhead | F18: Hertfordshire
A19: E08000002 | B19: Bury | C19: Calderdale | D19: Lancashire | E19: Stockton-on-Tees | F19: Stockport
A20: E08000033 | B20: Calderdale | C20: Lancashire | D20: Bury | E20: Stockton-on-Tees | F20: Darlington
A21: E10000003 | B21: Cambridgeshire | C21: Oxfordshire | D21: Gloucestershire | E21: Hampshire | F21: Wiltshire
A22: E09000007 | B22: Camden | C22: Westminster | D22: Hammersmith and Fulham | E22: Islington | F22: Kensington and Chelsea
A23: E06000056 | B23: Central Bedfordshire | C23: Hampshire | D23: Warwickshire | E23: Essex | F23: Leicestershire
A24: E06000049 | B24: Cheshire East | C24: Cheshire West and Chester | D24: Warwickshire | E24: Central Bedfordshire | F24: Warrington
A25: E06000050 | B25: Cheshire West and Chester | C25: Warrington | D25: Warwickshire | E25: Cheshire East | F25: Worcestershire
A26: E06000052 | B26: Cornwall and Isles of Scilly | C26: Somerset | D26: Norfolk | E26: Devon | F26: Herefordshire
A27: E06000047 | B27: County Durham | C27: St Helens | D27: Wakefield | E27: Gateshead | F27: Sunderland
A28: E08000026 | B28: Coventry | C28: Derby | D28: Bolton | E28: Sheffield | F28: Peterborough
A29: E09000008 | B29: Croydon | C29: Enfield | D29: Waltham Forest | E29: Lewisham | F29: Haringey
A30: E10000006 | B30: Cumbria | C30: Lincolnshire | D30: Derbyshire | E30: Norfolk | F30: Nottinghamshire
A31: E06000005 | B31: Darlington | C31: Stockton-on-Tees | D31: North Tyneside | E31: St Helens | F31: Calderdale
A32: E06000015 | B32: Derby | C32: Sheffield | D32: Peterborough | E32: Bolton | F32: Telford and Wrekin
A33: E10000007 | B33: Derbyshire | C33: Nottinghamshire | D33: Staffordshire | E33: Lancashire | F33: Cumbria
A34: E10000008 | B34: Devon | C34: Somerset | D34: Shropshire | E34: Dorset | F34: Cornwall and Isles of Scilly
A35: E08000017 | B35: Doncaster | C35: Rotherham | D35: Barnsley | E35: North East Lincolnshire | F35: Wigan
A36: E10000009 | B36: Dorset | C36: Shropshire | D36: Devon | E36: Gloucestershire | F36: Worcestershire
A37: E08000027 | B37: Dudley | C37: Rotherham | D37: Medway | E37: Doncaster | F37: Wigan
A38: E09000009 | B38: Ealing | C38: Hounslow | D38: Merton | E38: Redbridge | F38: Hillingdon
A39: E06000011 | B39: East Riding of Yorkshire | C39: Staffordshire | D39: Cheshire West and Chester | E39: North Yorkshire | F39: Warrington
A40: E10000011 | B40: East Sussex | C40: Kent | D40: Worcestershire | E40: North Somerset | F40: Essex
A41: E09000010 | B41: Enfield | C41: Waltham Forest | D41: Croydon | E41: Greenwich | F41: Birmingham
A42: E10000012 | B42: Essex | C42: Kent | D42: Worcestershire | E42: Central Bedfordshire | F42: Staffordshire
A43: E08000037 | B43: Gateshead | C43: Sunderland | D43: County Durham | E43: St Helens | F43: Darlington
A44: E10000013 | B44: Gloucestershire | C44: Wiltshire | D44: Bath and North East Somerset | E44: West Sussex | F44: Dorset
A45: E09000011 | B45: Greenwich | C45: Enfield | D45: Barking and Dagenham | E45: Manchester | F45: Haringey
A46: E09000012 | B46: Hackney and City of London | C46: Haringey | D46: Southwark | E46: Lambeth | F46: Lewisham
A47: E06000006 | B47: Halton | C47: Hartlepool | D47: St Helens | E47: North East Lincolnshire | F47: Redcar and Cleveland
A48: E09000013 | B48: Hammersmith and Fulham | C48: Camden | D48: Wandsworth | E48: Westminster | F48: Islington
A49: E10000014 | B49: Hampshire | C49: West Sussex | D49: Central Bedfordshire | E49: South Gloucestershire | F49: Cambridgeshire
A50: E09000014 | B50: Haringey | C50: Hackney and City of London | D50: Waltham Forest | E50: Southwark | F50: Lambeth
A51: E09000015 | B51: Harrow | C51: Redbridge | D51: Hounslow | E51: Ealing | F51: Hillingdon
A52: E06000001 | B52: Hartlepool | C52: Redcar and Cleveland | D52: Halton | E52: North East Lincolnshire | F52: South Tyneside
A53: E09000016 | B53: Havering | C53: Bexley | D53: Medway | E53: Essex | F53: Bury
A54: E06000019 | B54: Herefordshire | C54: Shropshire | D54: Somerset | E54: Devon | F54: Cornwall and Isles of Scilly
A55: E10000015 | B55: Hertfordshire | C55: Bracknell Forest | D55: Hampshire | E55: Oxfordshire | F55: Central Bedfordshire
A56: E09000017 | B56: Hillingdon | C56: Hounslow | D56: Redbridge | E56: Slough | F56: Barnet
A57: E09000018 | B57: Hounslow | C57: Ealing | D57: Hillingdon | E57: Slough | F57: Redbridge
A58: E06000046 | B58: Isle of Wight | C58: Torbay | D58: Norfolk | E58: East Sussex | F58: Southend-on-Sea
A59: E09000019 | B59: Islington | C59: Hammersmith and Fulham | D59: Camden | E59: Westminster | F59: Haringey
A60: E09000020 | B60: Kensington and Chelsea | C60: Westminster | D60: Camden | E60: Hammersmith and Fulham | F60: Wandsworth
A61: E10000016 | B61: Kent | C61: Essex | D61: East Sussex | E61: Swindon | F61: Worcestershire
A62: E06000010 | B62: Kingston upon Hull | C62: Stoke-on-Trent | D62: Middlesbrough | E62: Blackpool | F62: Hartlepool
A63: E09000021 | B63: Kingston upon Thames | C63: Sutton | D63: Barnet | E63: Merton | F63: Reading
A64: E08000034 | B64: Kirklees | C64: Bolton | D64: Calderdale | E64: Bury | F64: Dudley
A65: E08000011 | B65: Knowsley | C65: South Tyneside | D65: Halton | E65: Middlesbrough | F65: Hartlepool
A66: E09000022 | B66: Lambeth | C66: Hackney and City of London | D66: Lewisham | E66: Southwark | F66: Haringey
A67: E10000017 | B67: Lancashire | C67: Nottinghamshire | D67: Calderdale | E67: Derbyshire | F67: Bury
A68: E08000035 | B68: Leeds | C68: Sheffield | D68: Darlington | E68: Calderdale | F68: Stockton-on-Tees
A69: E06000016 | B69: Leicester | C69: Slough | D69: Hounslow | E69: Wolverhampton | F69: Sandwell
A70: E10000018 | B70: Leicestershire | C70: South Gloucestershire | D70: Worcestershire | E70: Warwickshire | F70: Central Bedfordshire
A71: E09000023 | B71: Lewisham | C71: Lambeth | D71: Croydon | E71: Haringey | F71: Hackney and City of London
A72: E10000019 | B72: Lincolnshire | C72: Cumbria | D72: Norfolk | E72: Derbyshire | F72: Suffolk
A73: E08000012 | B73: Liverpool | C73: Salford | D73: South Tyneside | E73: Knowsley | F73: Newcastle upon Tyne
A74: E06000032 | B74: Luton | C74: Birmingham | D74: Sandwell | E74: Slough | F74: Bradford
A75: E08000003 | B75: Manchester | C75: Nottingham | D75: Bristol | E75: Birmingham | F75: Greenwich
A76: E06000035 | B76: Medway | C76: Swindon | D76: Telford and Wrekin | E76: Dudley | F76: Northamptonshire
A77: E09000024 | B77: Merton | C77: Barnet | D77: Ealing | E77: Kingston upon Thames | F77: Reading
A78: E06000002 | B78: Middlesbrough | C78: Salford | D78: Stoke-on-Trent | E78: Hartlepool | F78: Rochdale
A79: E06000042 | B79: Milton Keynes | C79: Bedford | D79: Leeds | E79: Sheffield | F79: Bexley
A80: E08000021 | B80: Newcastle upon Tyne | C80: Salford | D80: Leeds | E80: Gateshead | F80: Liverpool
A81: E09000025 | B81: Newham | C81: Brent | D81: Waltham Forest | E81: Barking and Dagenham | F81: Greenwich
A82: E10000020 | B82: Norfolk | C82: Suffolk | D82: Cornwall and Isles of Scilly | E82: Lincolnshire | F82: Cumbria
A83: E06000012 | B83: North East Lincolnshire | C83: Doncaster | D83: Redcar and Cleveland | E83: Halton | F83: Hartlepool
A84: E06000013 | B84: North Lincolnshire | C84: Doncaster | D84: Rotherham | E84: Telford and Wrekin | F84: Derbyshire
A85: E06000024 | B85: North Somerset | C85: Worcestershire | D85: South Gloucestershire | E85: West Sussex | F85: Hampshire
A86: E08000022 | B86: North Tyneside | C86: Darlington | D86: Stockton-on-Tees | E86: St Helens | F86: Sefton
A87: E10000023 | B87: North Yorkshire | C87: East Riding of Yorkshire | D87: Warwickshire | E87: Cheshire East | F87: Cheshire West and Chester
A88: E10000021 | B88: Northamptonshire | C88: Kent | D88: Nottinghamshire | E88: Swindon | F88: Staffordshire
A89: E06000057 | B89: Northumberland | C89: East Riding of Yorkshire | D89: Cheshire West and Chester | E89: Warrington | F89: North Tyneside
A90: E06000018 | B90: Nottingham | C90: Manchester | D90: Wolverhampton | E90: Sandwell | F90: Bristol
A91: E10000024 | B91: Nottinghamshire | C91: Derbyshire | D91: Staffordshire | E91: Lancashire | F91: Worcestershire
A92: E08000004 | B92: Oldham | C92: Rochdale | D92: Bradford | E92: Walsall | F92: Tameside
A93: E10000025 | B93: Oxfordshire | C93: Cambridgeshire | D93: Bath and North East Somerset | E93: Hertfordshire | F93: Hampshire
A94: E06000031 | B94: Peterborough | C94: Derby | D94: Telford and Wrekin | E94: Walsall | F94: Sheffield
A95: E06000026 | B95: Plymouth | C95: Torbay | D95: Portsmouth | E95: Southend-on-Sea | F95: Telford and Wrekin
A96: E06000029 | B96: Poole | C96: West Sussex | D96: South Gloucestershire | E96: Worcestershire | F96: East Sussex
A97: E06000044 | B97: Portsmouth | C97: Southampton | D97: Plymouth | E97: Sheffield | F97: Peterborough
A98: E06000038 | B98: Reading | C98: Sutton | D98: Bristol | E98: Milton Keynes | F98: Bedford
A99: E09000026 | B99: Redbridge | C99: Hillingdon | D99: Hounslow | E99: Ealing | F99: Barnet
A100: E06000003 | B100: Redcar and Cleveland | C100: Barnsley | D100: Hartlepool | E100: St Helens | F100: North East Lincolnshire
A101: E09000027 | B101: Richmond upon Thames | C101: Windsor and Maidenhead | D101: Surrey | E101: Wokingham | F101: Oxfordshire
A102: E08000005 | B102: Rochdale | C102: Oldham | D102: Middlesbrough | E102: Tameside | F102: Bolton
A103: E08000018 | B103: Rotherham | C103: Doncaster | D103: Wigan | E103: Dudley | F103: Barnsley
A104: E06000017 | B104: Rutland | C104: North Yorkshire | D104: West Berkshire | E104: Cheshire East | F104: Wiltshire
A105: E08000006 | B105: Salford | C105: Liverpool | D105: Middlesbrough | E105: Newcastle upon Tyne | F105: South Tyneside
A106: E08000028 | B106: Sandwell | C106: Wolverhampton | D106: Walsall | E106: Derby | F106: Birmingham
A107: E08000014 | B107: Sefton | C107: Lancashire | D107: Wirral | E107: Stockton-on-Tees | F107: North Tyneside
A108: E08000019 | B108: Sheffield | C108: Derby | D108: Leeds | E108: Southend-on-Sea | F108: Telford and Wrekin
A109: E06000051 | B109: Shropshire | C109: Devon | D109: Dorset | E109: Herefordshire | F109: Somerset
A110: E06000039 | B110: Slough | C110: Hillingdon | D110: Hounslow | E110: Redbridge | F110: Luton
A111: E08000029 | B111: Solihull | C111: Stockport | D111: Warrington | E111: Trafford | F111: Cheshire West and Chester
A112: E10000027 | B112: Somerset | C112: Devon | D112: Cornwall and Isles of Scilly | E112: Suffolk | F112: Shropshire
A113: E06000025 | B113: South Gloucestershire | C113: Hampshire | D113: West Sussex | E113: Leicestershire | F113: North Somerset
A114: E08000023 | B114: South Tyneside | C114: Hartlepool | D114: Sunderland | E114: Knowsley | F114: Gateshead
A115: E06000045 | B115: Southampton | C115: Portsmouth | D115: Peterborough | E115: Plymouth | F115: Derby
A116: E06000033 | B116: Southend-on-Sea | C116: Swindon | D116: Plymouth | E116: Medway | F116: Bournemouth
A117: E09000028 | B117: Southwark | C117: Hackney and City of London | D117: Lambeth | E117: Haringey | F117: Islington
A118: E08000013 | B118: St Helens | C118: Wigan | D118: County Durham | E118: Darlington | F118: Halton
A119: E10000028 | B119: Staffordshire | C119: Derbyshire | D119: Nottinghamshire | E119: Worcestershire | F119: Warwickshire
A120: E08000007 | B120: Stockport | C120: Solihull | D120: Cheshire West and Chester | E120: Warrington | F120: Bury
A121: E06000004 | B121: Stockton-on-Tees | C121: Darlington | D121: Calderdale | E121: Lancashire | F121: Bury
A122: E06000021 | B122: Stoke-on-Trent | C122: Kingston Upon Hull | D122: Middlesbrough | E122: Doncaster | F122: North East Lincolnshire
A123: E10000029 | B123: Suffolk | C123: Somerset | D123: Norfolk | E123: Devon | F123: Cornwall and Isles of Scilly
A124: E08000024 | B124: Sunderland | C124: Gateshead | D124: Wakefield | E124: County Durham | F124: St Helens
A125: E10000030 | B125: Surrey | C125: Windsor and Maidenhead | D125: Buckinghamshire | E125: West Berkshire | F125: Wokingham
A126: E09000029 | B126: Sutton | C126: Bromley | D126: Reading | E126: Hertfordshire | F126: Bedford
A127: E06000030 | B127: Swindon | C127: Kent | D127: Medway | E127: Northamptonshire | F127: Southend-on-Sea
A128: E08000008 | B128: Tameside | C128: Rotherham | D128: Doncaster | E128: St Helens | F128: North East Lincolnshire
A129: E06000020 | B129: Telford and Wrekin | C129: Rotherham | D129: Medway | E129: Dudley | F129: Doncaster
A130: E06000034 | B130: Thurrock | C130: Medway | D130: Bexley | E130: Havering | F130: Dudley
A131: E06000027 | B131: Torbay | C131: Isle of Wight | D131: Plymouth | E131: Southend-on-Sea | F131: Rotherham
A132: E09000030 | B132: Tower Hamlets | C132: Newham | D132: Camden | E132: Westminster | F132: Islington
A133: E08000009 | B133: Trafford | C133: Solihull | D133: Hertfordshire | E133: Bromley | F133: Stockport
A134: E08000036 | B134: Wakefield | C134: Barnsley | D134: Doncaster | E134: County Durham | F134: Sunderland
A135: E08000030 | B135: Walsall | C135: Derby | D135: Peterborough | E135: Bolton | F135: Rochdale
A136: E09000031 | B136: Waltham Forest | C136: Enfield | D136: Croydon | E136: Haringey | F136: Birmingham
A137: E09000032 | B137: Wandsworth | C137: Hammersmith and Fulham | D137: Kensington and Chelsea | E137: Camden | F137: Westminster
A138: E06000007 | B138: Warrington | C138: Cheshire West and Chester | D138: Warwickshire | E138: Solihull | F138: Cheshire East
A139: E10000031 | B139: Warwickshire | C139: Cheshire West and Chester | D139: Worcestershire | E139: Central Bedfordshire | F139: Leicestershire
A140: E06000037 | B140: West Berkshire | C140: Hampshire | D140: Buckinghamshire | E140: Central Bedfordshire | F140: Cambridgeshire
A141: E10000032 | B141: West Sussex | C141: Hampshire | D141: South Gloucestershire | E141: Gloucestershire | F141: Worcestershire
A142: E09000033 | B142: Westminster | C142: Camden | D142: Hammersmith and Fulham | E142: Kensington and Chelsea | F142: Islington
A143: E08000010 | B143: Wigan | C143: St Helens | D143: Rotherham | E143: Barnsley | F143: Doncaster
A144: E06000054 | B144: Wiltshire | C144: Gloucestershire | D144: Shropshire | E144: Cambridgeshire | F144: Dorset
A145: E06000040 | B145: Windsor and Maidenhead | C145: Surrey | D145: Buckinghamshire | E145: Hertfordshire | F145: Wokingham
A146: E08000015 | B146: Wirral | C146: Sefton | D146: Darlington | E146: Stockton-on-Tees | F146: Redcar and Cleveland
A147: E06000041 | B147: Wokingham | C147: Surrey | D147: Windsor and Maidenhead | E147: Buckinghamshire | F147: West Berkshire
A148: E08000031 | B148: Wolverhampton | C148: Sandwell | D148: Coventry | E148: Nottingham | F148: Walsall
A149: E10000034 | B149: Worcestershire | C149: North Somerset | D149: Warwickshire | E149: Essex | F149: West Sussex
A150: E06000014 | B150: York | C150: Cheshire West and Chester | D150: Warwickshire | E150: Warrington | F150: Stockport

Sheet TPData
A1: ScrollBarMin | B1: =ROUNDDOWN(MIN($D$4:$D$153),4)*100000 -> 490 | C1: First Record | D1: 4 | E1: ScrollBarValue
A2: ScrollBarMax | B2: =ROUNDUP(MAX($D$4:$D$153),4)*100000 -> 3740 | C2: LastRecord | D2: =$D$1+COUNTA($D$4:$D$152) -> 153 | E2: Value | G2: =_xlfn.PERCENTILE.INC(D4:D153,0.05)*100000 -> 793.5
A3: TTLA Code | B3: TTLA Name | C3: Region Code | D3: All LAs | E3: Numerator | F3: Denominator | G3: =Settings!C2 -> Barking and Dagenham | H3: =Settings!C4 -> Greenwich | I3: =Settings!C5 -> Enfield | J3: =Settings!C6 -> Manchester | K3: =Settings!C7 -> Birmingham | L3: =Settings!C3 -> London | M3: England | N3: Top 5% | O3: Top 25% | P3: National Minimum | Q3: National 25th Percentile | R3: National Average | S3: National 75th Percentile | T3: National Maximum | U3: Region
A4: E09000021 | B4: Kingston upon Thames | C4: E12000007 | D4: 0.0049 | E4: 23 | F4: 4705 | H4: =IF($A4=Settings!$B$4,$D4,"") ->  | I4: =IF($A4=Settings!$B$5,$D4,"") ->  | J4: =IF($A4=Settings!$B$6,$D4,"") ->  | K4: =IF($A4=Settings!$B$7,$D4,"") ->  | N4: 0.007935 | O4: 0.01335 | P4: 0.0049 | Q4: 0.0134 | R4: 0.0172 | S4: 0.0218 | T4: 0.0374 | U4: =INDEX($T$7:$T$15,MATCH(Settings!$B$3,$P$7:$P$15,0),1) -> 0.01232969936
A5: E09000033 | B5: Westminster | C5: E12000007 | D5: 0.0051 | E5: 23 | F5: 4495 | H5: =IF($A5=Settings!$B$4,$D5,"") ->  | I5: =IF($A5=Settings!$B$5,$D5,"") ->  | J5: =IF($A5=Settings!$B$6,$D5,"") ->  | K5: =IF($A5=Settings!$B$7,$D5,"") ->  | N5: 0.007935 | O5: 0.01335
A6: E06000040 | B6: Windsor and Maidenhead | C6: E12000008 | D6: 0.0059 | E6: 24 | F6: 4063 | H6: =IF($A6=Settings!$B$4,$D6,"") ->  | I6: =IF($A6=Settings!$B$5,$D6,"") ->  | J6: =IF($A6=Settings!$B$6,$D6,"") ->  | K6: =IF($A6=Settings!$B$7,$D6,"") ->  | N6: 0.007935 | O6: 0.01335 | R6: Regional best | S6: Regional Worst | T6: Regional average
A7: E09000027 | B7: Richmond upon Thames | C7: E12000007 | D7: 0.0059 | E7: 26 | F7: 4388 | H7: =IF($A7=Settings!$B$4,$D7,"") ->  | I7: =IF($A7=Settings!$B$5,$D7,"") ->  | J7: =IF($A7=Settings!$B$6,$D7,"") ->  | K7: =IF($A7=Settings!$B$7,$D7,"") ->  | N7: 0.007935 | O7: 0.01335 | P7: E12000001 | Q7: North East | R7: =MIN(IF(INDIRECT("$C$"&$D$1&":$C$"&$D$2)=$P7,INDIRECT("$D$"&$D$1&":$D$"&$D$2))) -> 0.0149 | S7: =MAX(IF(INDIRECT("$C$"&$D$1&":$C$"&$D$2)=$P7,INDIRECT("$D$"&$D$1&":$D$"&$D$2))) -> 0.0323 | T7: =SUMIFS(INDIRECT("$E$"&$D$1&":$E$"&$D$2),INDIRECT("$C$"&$D$1&":$C$"&$D$2),$P7)/SUMIFS(INDIRECT("$F$"&$D$1&":$F$"&$D$2),INDIRECT("$C$"&$D$1&":$C$"&$D$2),$P7) -> 0.02260182293
A8: E09000007 | B8: Camden | C8: E12000007 | D8: 0.0068 | E8: 39 | F8: 5762 | H8: =IF($A8=Settings!$B$4,$D8,"") ->  | I8: =IF($A8=Settings!$B$5,$D8,"") ->  | J8: =IF($A8=Settings!$B$6,$D8,"") ->  | K8: =IF($A8=Settings!$B$7,$D8,"") ->  | N8: 0.007935 | O8: 0.01335 | P8: E12000002 | Q8: North West | R8: =MIN(IF(INDIRECT("$C$"&$D$1&":$C$"&$D$2)=$P8,INDIRECT("$D$"&$D$1&":$D$"&$D$2))) -> 0.0115 | S8: =MAX(IF(INDIRECT("$C$"&$D$1&":$C$"&$D$2)=$P8,INDIRECT("$D$"&$D$1&":$D$"&$D$2))) -> 0.031 | T8: =SUMIFS(INDIRECT("$E$"&$D$1&":$E$"&$D$2),INDIRECT("$C$"&$D$1&":$C$"&$D$2),$P8)/SUMIFS(INDIRECT("$F$"&$D$1&":$F$"&$D$2),INDIRECT("$C$"&$D$1&":$C$"&$D$2),$P8) -> 0.01934361788
A9: E09000003 | B9: Barnet | C9: E12000007 | D9: 0.0068 | E9: 68 | F9: 10008 | H9: =IF($A9=Settings!$B$4,$D9,"") ->  | I9: =IF($A9=Settings!$B$5,$D9,"") ->  | J9: =IF($A9=Settings!$B$6,$D9,"") ->  | K9: =IF($A9=Settings!$B$7,$D9,"") ->  | N9: 0.007935 | O9: 0.01335 | P9: E12000003 | Q9: Yorkshire and the Humber | R9: =MIN(IF(INDIRECT("$C$"&$D$1&":$C$"&$D$2)=$P9,INDIRECT("$D$"&$D$1&":$D$"&$D$2))) -> 0.0131 | S9: =MAX(IF(INDIRECT("$C$"&$D$1&":$C$"&$D$2)=$P9,INDIRECT("$D$"&$D$1&":$D$"&$D$2))) -> 0.0374 | T9: =SUMIFS(INDIRECT("$E$"&$D$1&":$E$"&$D$2),INDIRECT("$C$"&$D$1&":$C$"&$D$2),$P9)/SUMIFS(INDIRECT("$F$"&$D$1&":$F$"&$D$2),INDIRECT("$C$"&$D$1&":$C$"&$D$2),$P9) -> 0.02171788733
A10: E09000020 | B10: Kensington and Chelsea | C10: E12000007 | D10: 0.0072 | E10: 21 | F10: 2897 | H10: =IF($A10=Settings!$B$4,$D10,"") ->  | I10: =IF($A10=Settings!$B$5,$D10,"") ->  | J10: =IF($A10=Settings!$B$6,$D10,"") ->  | K10: =IF($A10=Settings!$B$7,$D10,"") ->  | N10: 0.007935 | O10: 0.01335 | P10: E12000004 | Q10: East Midlands | R10: =MIN(IF(INDIRECT("$C$"&$D$1&":$C$"&$D$2)=$P10,INDIRECT("$D$"&$D$1&":$D$"&$D$2))) -> 0.0099 | S10: =MAX(IF(INDIRECT("$C$"&$D$1&":$C$"&$D$2)=$P10,INDIRECT("$D$"&$D$1&":$D$"&$D$2))) -> 0.0227 | T10: =SUMIFS(INDIRECT("$E$"&$D$1&":$E$"&$D$2),INDIRECT("$C$"&$D$1&":$C$"&$D$2),$P10)/SUMIFS(INDIRECT("$F$"&$D$1&":$F$"&$D$2),INDIRECT("$C$"&$D$1&":$C$"&$D$2),$P10) -> 0.01855153403
A11: E06000022 | B11: Bath and North East Somerset | C11: E12000009 | D11: 0.0078 | E11: 50 | F11: 6387 | H11: =IF($A11=Settings!$B$4,$D11,"") ->  | I11: =IF($A11=Settings!$B$5,$D11,"") ->  | J11: =IF($A11=Settings!$B$6,$D11,"") ->  | K11: =IF($A11=Settings!$B$7,$D11,"") ->  | N11: 0.007935 | O11: 0.01335 | P11: E12000005 | Q11: West Midlands | R11: =MIN(IF(INDIRECT("$C$"&$D$1&":$C$"&$D$2)=$P11,INDIRECT("$D$"&$D$1&":$D$"&$D$2))) -> 0.0139 | S11: =MAX(IF(INDIRECT("$C$"&$D$1&":$C$"&$D$2)=$P11,INDIRECT("$D$"&$D$1&":$D$"&$D$2))) -> 0.0332 | T11: =SUMIFS(INDIRECT("$E$"&$D$1&":$E$"&$D$2),INDIRECT("$C$"&$D$1&":$C$"&$D$2),$P11)/SUMIFS(INDIRECT("$F$"&$D$1&":$F$"&$D$2),INDIRECT("$C$"&$D$1&":$C$"&$D$2),$P11) -> 0.02054681593
A12: E09000015 | B12: Harrow | C12: E12000007 | D12: 0.0081 | E12: 56 | F12: 6896 | H12: =IF($A12=Settings!$B$4,$D12,"") ->  | I12: =IF($A12=Settings!$B$5,$D12,"") ->  | J12: =IF($A12=Settings!$B$6,$D12,"") ->  | K12: =IF($A12=Settings!$B$7,$D12,"") ->  | N12: 0.007935 | O12: 0.01335 | P12: E12000006 | Q12: East of England | R12: =MIN(IF(INDIRECT("$C$"&$D$1&":$C$"&$D$2)=$P12,INDIRECT("$D$"&$D$1&":$D$"&$D$2))) -> 0.0093 | S12: =MAX(IF(INDIRECT("$C$"&$D$1&":$C$"&$D$2)=$P12,INDIRECT("$D$"&$D$1&":$D$"&$D$2))) -> 0.0309 | T12: =SUMIFS(INDIRECT("$E$"&$D$1&":$E$"&$D$2),INDIRECT("$C$"&$D$1&":$C$"&$D$2),$P12)/SUMIFS(INDIRECT("$F$"&$D$1&":$F$"&$D$2),INDIRECT("$C$"&$D$1&":$C$"&$D$2),$P12) -> 0.01514527992
A13: E06000041 | B13: Wokingham | C13: E12000008 | D13: 0.0082 | E13: 39 | F13: 4737 | H13: =IF($A13=Settings!$B$4,$D13,"") ->  | I13: =IF($A13=Settings!$B$5,$D13,"") ->  | J13: =IF($A13=Settings!$B$6,$D13,"") ->  | K13: =IF($A13=Settings!$B$7,$D13,"") ->  | N13: 0.007935 | O13: 0.01335 | P13: E12000007 | Q13: London | R13: =MIN(IF(INDIRECT("$C$"&$D$1&":$C$"&$D$2)=$P13,INDIRECT("$D$"&$D$1&":$D$"&$D$2))) -> 0.0049 | S13: =MAX(IF(INDIRECT("$C$"&$D$1&":$C$"&$D$2)=$P13,INDIRECT("$D$"&$D$1&":$D$"&$D$2))) -> 0.01874293101 | T13: =SUMIFS(INDIRECT("$E$"&$D$1&":$E$"&$D$2),INDIRECT("$C$"&$D$1&":$C$"&$D$2),$P13)/SUMIFS(INDIRECT("$F$"&$D$1&":$F$"&$D$2),INDIRECT("$C$"&$D$1&":$C$"&$D$2),$P13) -> 0.01232969936
A14: E09000026 | B14: Redbridge | C14: E12000007 | D14: 0.0088 | E14: 77 | F14: 8763 | H14: =IF($A14=Settings!$B$4,$D14,"") ->  | I14: =IF($A14=Settings!$B$5,$D14,"") ->  | J14: =IF($A14=Settings!$B$6,$D14,"") ->  | K14: =IF($A14=Settings!$B$7,$D14,"") ->  | N14: 0.007935 | O14: 0.01335 | P14: E12000008 | Q14: South East | R14: =MIN(IF(INDIRECT("$C$"&$D$1&":$C$"&$D$2)=$P14,INDIRECT("$D$"&$D$1&":$D$"&$D$2))) -> 0.0059 | S14: =MAX(IF(INDIRECT("$C$"&$D$1&":$C$"&$D$2)=$P14,INDIRECT("$D$"&$D$1&":$D$"&$D$2))) -> 0.0272 | T14: =SUMIFS(INDIRECT("$E$"&$D$1&":$E$"&$D$2),INDIRECT("$C$"&$D$1&":$C$"&$D$2),$P14)/SUMIFS(INDIRECT("$F$"&$D$1&":$F$"&$D$2),INDIRECT("$C$"&$D$1&":$C$"&$D$2),$P14) -> 0.01421004341
A15: E10000030 | B15: Surrey | C15: E12000008 | D15: 0.0088 | E15: 288 | F15: 32638 | H15: =IF($A15=Settings!$B$4,$D15,"") ->  | I15: =IF($A15=Settings!$B$5,$D15,"") ->  | J15: =IF($A15=Settings!$B$6,$D15,"") ->  | K15: =IF($A15=Settings!$B$7,$D15,"") ->  | N15: 0.007935 | O15: 0.01335 | P15: E12000009 | Q15: South West | R15: =MIN(IF(INDIRECT("$C$"&$D$1&":$C$"&$D$2)=$P15,INDIRECT("$D$"&$D$1&":$D$"&$D$2))) -> 0.0078 | S15: =MAX(IF(INDIRECT("$C$"&$D$1&":$C$"&$D$2)=$P15,INDIRECT("$D$"&$D$1&":$D$"&$D$2))) -> 0.0273 | T15: =SUMIFS(INDIRECT("$E$"&$D$1&":$E$"&$D$2),INDIRECT("$C$"&$D$1&":$C$"&$D$2),$P15)/SUMIFS(INDIRECT("$F$"&$D$1&":$F$"&$D$2),INDIRECT("$C$"&$D$1&":$C$"&$D$2),$P15) -> 0.01590426951
A16: E06000036 | B16: Bracknell Forest | C16: E12000008 | D16: 0.009 | E16: 32 | F16: 3545 | H16: =IF($A16=Settings!$B$4,$D16,"") ->  | I16: =IF($A16=Settings!$B$5,$D16,"") ->  | J16: =IF($A16=Settings!$B$6,$D16,"") ->  | K16: =IF($A16=Settings!$B$7,$D16,"") ->  | N16: 0.007935 | O16: 0.01335
A17: E06000025 | B17: South Gloucestershire | C17: E12000009 | D17: 0.0091 | E17: 76 | F17: 8387 | H17: =IF($A17=Settings!$B$4,$D17,"") ->  | I17: =IF($A17=Settings!$B$5,$D17,"") ->  | J17: =IF($A17=Settings!$B$6,$D17,"") ->  | K17: =IF($A17=Settings!$B$7,$D17,"") ->  | N17: 0.007935 | O17: 0.01335
A18: E10000015 | B18: Hertfordshire | C18: E12000006 | D18: 0.0093 | E18: 309 | F18: 33337 | H18: =IF($A18=Settings!$B$4,$D18,"") ->  | I18: =IF($A18=Settings!$B$5,$D18,"") ->  | J18: =IF($A18=Settings!$B$6,$D18,"") ->  | K18: =IF($A18=Settings!$B$7,$D18,"") ->  | N18: 0.007935 | O18: 0.01335
A19: E06000043 | B19: Brighton and Hove | C19: E12000008 | D19: 0.0095 | E19: 79 | F19: 8291 | H19: =IF($A19=Settings!$B$4,$D19,"") ->  | I19: =IF($A19=Settings!$B$5,$D19,"") ->  | J19: =IF($A19=Settings!$B$6,$D19,"") ->  | K19: =IF($A19=Settings!$B$7,$D19,"") ->  | N19: 0.007935 | O19: 0.01335
A20: E09000006 | B20: Bromley | C20: E12000007 | D20: 0.0098 | E20: 86 | F20: 8768 | H20: =IF($A20=Settings!$B$4,$D20,"") ->  | I20: =IF($A20=Settings!$B$5,$D20,"") ->  | J20: =IF($A20=Settings!$B$6,$D20,"") ->  | K20: =IF($A20=Settings!$B$7,$D20,"") ->  | N20: 0.007935 | O20: 0.01335
A21: E06000017 | B21: Rutland | C21: E12000004 | D21: 0.0099 | E21: 13 | F21: 1318 | H21: =IF($A21=Settings!$B$4,$D21,"") ->  | I21: =IF($A21=Settings!$B$5,$D21,"") ->  | J21: =IF($A21=Settings!$B$6,$D21,"") ->  | K21: =IF($A21=Settings!$B$7,$D21,"") ->  | N21: 0.007935 | O21: 0.01335
A22: E09000004 | B22: Bexley | C22: E12000007 | D22: 0.0099 | E22: 75 | F22: 7575 | H22: =IF($A22=Settings!$B$4,$D22,"") ->  | I22: =IF($A22=Settings!$B$5,$D22,"") ->  | J22: =IF($A22=Settings!$B$6,$D22,"") ->  | K22: =IF($A22=Settings!$B$7,$D22,"") ->  | N22: 0.007935 | O22: 0.01335
A23: E09000009 | B23: Ealing | C23: E12000007 | D23: 0.01 | E23: 90 | F23: 9021 | H23: =IF($A23=Settings!$B$4,$D23,"") ->  | I23: =IF($A23=Settings!$B$5,$D23,"") ->  | J23: =IF($A23=Settings!$B$6,$D23,"") ->  | K23: =IF($A23=Settings!$B$7,$D23,"") ->  | N23: 0.007935 | O23: 0.01335
A24: E10000002 | B24: Buckinghamshire | C24: E12000008 | D24: 0.0104 | E24: 159 | F24: 15265 | H24: =IF($A24=Settings!$B$4,$D24,"") ->  | I24: =IF($A24=Settings!$B$5,$D24,"") ->  | J24: =IF($A24=Settings!$B$6,$D24,"") ->  | K24: =IF($A24=Settings!$B$7,$D24,"") ->  | N24: 0.007935 | O24: 0.01335
A25: E09000030 | B25: Tower Hamlets | C25: E12000007 | D25: 0.0113 | E25: 79 | F25: 6978 | H25: =IF($A25=Settings!$B$4,$D25,"") ->  | I25: =IF($A25=Settings!$B$5,$D25,"") ->  | J25: =IF($A25=Settings!$B$6,$D25,"") ->  | K25: =IF($A25=Settings!$B$7,$D25,"") ->  | N25: 0.007935 | O25: 0.01335
A26: E08000009 | B26: Trafford | C26: E12000002 | D26: 0.0115 | E26: 74 | F26: 6456 | H26: =IF($A26=Settings!$B$4,$D26,"") ->  | I26: =IF($A26=Settings!$B$5,$D26,"") ->  | J26: =IF($A26=Settings!$B$6,$D26,"") ->  | K26: =IF($A26=Settings!$B$7,$D26,"") ->  | N26: 0.007935 | O26: 0.01335
A27: E09000005 | B27: Brent | C27: E12000007 | D27: 0.0115 | E27: 100 | F27: 8712 | H27: =IF($A27=Settings!$B$4,$D27,"") ->  | I27: =IF($A27=Settings!$B$5,$D27,"") ->  | J27: =IF($A27=Settings!$B$6,$D27,"") ->  | K27: =IF($A27=Settings!$B$7,$D27,"") ->  | N27: 0.007935 | O27: 0.01335
A28: E10000018 | B28: Leicestershire | C28: E12000004 | D28: 0.0115 | E28: 230 | F28: 19938 | H28: =IF($A28=Settings!$B$4,$D28,"") ->  | I28: =IF($A28=Settings!$B$5,$D28,"") ->  | J28: =IF($A28=Settings!$B$6,$D28,"") ->  | K28: =IF($A28=Settings!$B$7,$D28,"") ->  | N28: 0.007935 | O28: 0.01335
A29: E09000024 | B29: Merton | C29: E12000007 | D29: 0.0116 | E29: 56 | F29: 4824 | H29: =IF($A29=Settings!$B$4,$D29,"") ->  | I29: =IF($A29=Settings!$B$5,$D29,"") ->  | J29: =IF($A29=Settings!$B$6,$D29,"") ->  | K29: =IF($A29=Settings!$B$7,$D29,"") ->  | N29: 0.007935 | O29: 0.01335
A30: E10000003 | B30: Cambridgeshire | C30: E12000006 | D30: 0.0117 | E30: 221 | F30: 18889 | H30: =IF($A30=Settings!$B$4,$D30,"") ->  | I30: =IF($A30=Settings!$B$5,$D30,"") ->  | J30: =IF($A30=Settings!$B$6,$D30,"") ->  | K30: =IF($A30=Settings!$B$7,$D30,"") ->  | N30: 0.007935 | O30: 0.01335
A31: E09000029 | B31: Sutton | C31: E12000007 | D31: 0.0119 | E31: 68 | F31: 5719 | H31: =IF($A31=Settings!$B$4,$D31,"") ->  | I31: =IF($A31=Settings!$B$5,$D31,"") ->  | J31: =IF($A31=Settings!$B$6,$D31,"") ->  | K31: =IF($A31=Settings!$B$7,$D31,"") ->  | N31: 0.007935 | O31: 0.01335
A32: E09000016 | B32: Havering | C32: E12000007 | D32: 0.0119 | E32: 88 | F32: 7378 | H32: =IF($A32=Settings!$B$4,$D32,"") ->  | I32: =IF($A32=Settings!$B$5,$D32,"") ->  | J32: =IF($A32=Settings!$B$6,$D32,"") ->  | K32: =IF($A32=Settings!$B$7,$D32,"") ->  | N32: 0.007935 | O32: 0.01335
A33: E09000017 | B33: Hillingdon | C33: E12000007 | D33: 0.0122 | E33: 107 | F33: 8736 | H33: =IF($A33=Settings!$B$4,$D33,"") ->  | I33: =IF($A33=Settings!$B$5,$D33,"") ->  | J33: =IF($A33=Settings!$B$6,$D33,"") ->  | K33: =IF($A33=Settings!$B$7,$D33,"") ->  | L33: 0.0123 | N33: 0.007935 | O33: 0.01335
A34: E09000019 | B34: Islington | C34: E12000007 | D34: 0.0124 | E34: 63 | F34: 5086 | H34: =IF($A34=Settings!$B$4,$D34,"") ->  | I34: =IF($A34=Settings!$B$5,$D34,"") ->  | J34: =IF($A34=Settings!$B$6,$D34,"") ->  | K34: =IF($A34=Settings!$B$7,$D34,"") ->  | N34: 0.007935 | O34: 0.01335
A35: E10000013 | B35: Gloucestershire | C35: E12000009 | D35: 0.0125 | E35: 224 | F35: 17925 | H35: =IF($A35=Settings!$B$4,$D35,"") ->  | I35: =IF($A35=Settings!$B$5,$D35,"") ->  | J35: =IF($A35=Settings!$B$6,$D35,"") ->  | K35: =IF($A35=Settings!$B$7,$D35,"") ->  | N35: 0.007935 | O35: 0.01335
A36: E06000037 | B36: West Berkshire | C36: E12000008 | D36: 0.0126 | E36: 59 | F36: 4668 | H36: =IF($A36=Settings!$B$4,$D36,"") ->  | I36: =IF($A36=Settings!$B$5,$D36,"") ->  | J36: =IF($A36=Settings!$B$6,$D36,"") ->  | K36: =IF($A36=Settings!$B$7,$D36,"") ->  | N36: 0.007935 | O36: 0.01335
A37: E10000025 | B37: Oxfordshire | C37: E12000008 | D37: 0.0129 | E37: 257 | F37: 19917 | H37: =IF($A37=Settings!$B$4,$D37,"") ->  | I37: =IF($A37=Settings!$B$5,$D37,"") ->  | J37: =IF($A37=Settings!$B$6,$D37,"") ->  | K37: =IF($A37=Settings!$B$7,$D37,"") ->  | N37: 0.007935 | O37: 0.01335
A38: E09000032 | B38: Wandsworth | C38: E12000007 | D38: 0.0129 | E38: 76 | F38: 5889 | H38: =IF($A38=Settings!$B$4,$D38,"") ->  | I38: =IF($A38=Settings!$B$5,$D38,"") ->  | J38: =IF($A38=Settings!$B$6,$D38,"") ->  | K38: =IF($A38=Settings!$B$7,$D38,"") ->  | N38: 0.007935 | O38: 0.01335
A39: E09000013 | B39: Hammersmith and Fulham | C39: E12000007 | D39: 0.013 | E39: 46 | F39: 3545 | H39: =IF($A39=Settings!$B$4,$D39,"") ->  | I39: =IF($A39=Settings!$B$5,$D39,"") ->  | J39: =IF($A39=Settings!$B$6,$D39,"") ->  | K39: =IF($A39=Settings!$B$7,$D39,"") ->  | N39: 0.007935 | O39: 0.01335
A40: E06000014 | B40: York | C40: E12000003 | D40: 0.0131 | E40: 92 | F40: 7029 | H40: =IF($A40=Settings!$B$4,$D40,"") ->  | I40: =IF($A40=Settings!$B$5,$D40,"") ->  | J40: =IF($A40=Settings!$B$6,$D40,"") ->  | K40: =IF($A40=Settings!$B$7,$D40,"") ->  | N40: 0.007935 | O40: 0.01335
A41: E10000014 | B41: Hampshire | C41: E12000008 | D41: 0.0133 | E41: 513 | F41: 38453 | H41: =IF($A41=Settings!$B$4,$D41,"") ->  | I41: =IF($A41=Settings!$B$5,$D41,"") ->  | J41: =IF($A41=Settings!$B$6,$D41,"") ->  | K41: =IF($A41=Settings!$B$7,$D41,"") ->  | N41: 0.007935 | O41: 0.01335
A42: E06000024 | B42: North Somerset | C42: E12000009 | D42: 0.0135 | E42: 74 | F42: 5496 | H42: =IF($A42=Settings!$B$4,$D42,"") ->  | I42: =IF($A42=Settings!$B$5,$D42,"") ->  | J42: =IF($A42=Settings!$B$6,$D42,"") ->  | K42: =IF($A42=Settings!$B$7,$D42,"") ->  | N42: 0.007935 | O42: 0.01335
A43: E09000028 | B43: Southwark | C43: E12000007 | D43: 0.0135 | E43: 99 | F43: 7311 | H43: =IF($A43=Settings!$B$4,$D43,"") ->  | I43: =IF($A43=Settings!$B$5,$D43,"") ->  | J43: =IF($A43=Settings!$B$6,$D43,"") ->  | K43: =IF($A43=Settings!$B$7,$D43,"") ->  | N43: 0.007935 | O43: 0.01335
A44: E06000051 | B44: Shropshire | C44: E12000005 | D44: 0.0139 | E44: 124 | F44: 8932 | H44: =IF($A44=Settings!$B$4,$D44,"") ->  | I44: =IF($A44=Settings!$B$5,$D44,"") ->  | J44: =IF($A44=Settings!$B$6,$D44,"") ->  | K44: =IF($A44=Settings!$B$7,$D44,"") ->  | N44: 0.007935 | O44: 0.01335
A45: E10000009 | B45: Dorset | C45: E12000009 | D45: 0.0139 | E45: 156 | F45: 11233 | H45: =IF($A45=Settings!$B$4,$D45,"") ->  | I45: =IF($A45=Settings!$B$5,$D45,"") ->  | J45: =IF($A45=Settings!$B$6,$D45,"") ->  | K45: =IF($A45=Settings!$B$7,$D45,"") ->  | N45: 0.007935 | O45: 0.01335
A46: E10000023 | B46: North Yorkshire | C46: E12000003 | D46: 0.014 | E46: 231 | F46: 16554 | H46: =IF($A46=Settings!$B$4,$D46,"") ->  | I46: =IF($A46=Settings!$B$5,$D46,"") ->  | J46: =IF($A46=Settings!$B$6,$D46,"") ->  | K46: =IF($A46=Settings!$B$7,$D46,"") ->  | N46: 0.007935 | O46: 0.01335
A47: E06000049 | B47: Cheshire East | C47: E12000002 | D47: 0.0142 | E47: 145 | F47: 10239 | H47: =IF($A47=Settings!$B$4,$D47,"") ->  | I47: =IF($A47=Settings!$B$5,$D47,"") ->  | J47: =IF($A47=Settings!$B$6,$D47,"") ->  | K47: =IF($A47=Settings!$B$7,$D47,"") ->  | N47: 0.007935 | O47: 0.01335
A48: E09000025 | B48: Newham | C48: E12000007 | D48: 0.0145 | E48: 147 | F48: 10134 | H48: =IF($A48=Settings!$B$4,$D48,"") ->  | I48: =IF($A48=Settings!$B$5,$D48,"") ->  | J48: =IF($A48=Settings!$B$6,$D48,"") ->  | K48: =IF($A48=Settings!$B$7,$D48,"") ->  | N48: 0.007935 | O48: 0.01335
A49: E09000014 | B49: Haringey | C49: E12000007 | D49: 0.0146 | E49: 102 | F49: 6987 | H49: =IF($A49=Settings!$B$4,$D49,"") ->  | I49: =IF($A49=Settings!$B$5,$D49,"") ->  | J49: =IF($A49=Settings!$B$6,$D49,"") ->  | K49: =IF($A49=Settings!$B$7,$D49,"") ->  | N49: 0.007935 | O49: 0.01335
A50: E09000012 | B50: Hackney and City of London | C50: E12000007 | D50: 0.0147 | E50: 100 | F50: 6808 | H50: =IF($A50=Settings!$B$4,$D50,"") ->  | I50: =IF($A50=Settings!$B$5,$D50,"") ->  | J50: =IF($A50=Settings!$B$6,$D50,"") ->  | K50: =IF($A50=Settings!$B$7,$D50,"") ->  | N50: 0.007935 | O50: 0.01335
A51: E08000012 | B51: Liverpool | C51: E12000002 | D51: 0.0148 | E51: 231 | F51: 15648 | H51: =IF($A51=Settings!$B$4,$D51,"") ->  | I51: =IF($A51=Settings!$B$5,$D51,"") ->  | J51: =IF($A51=Settings!$B$6,$D51,"") ->  | K51: =IF($A51=Settings!$B$7,$D51,"") ->  | N51: 0.007935 | O51: 0.01335
A52: E10000032 | B52: West Sussex | C52: E12000008 | D52: 0.0149 | E52: 331 | F52: 22182 | H52: =IF($A52=Settings!$B$4,$D52,"") ->  | I52: =IF($A52=Settings!$B$5,$D52,"") ->  | J52: =IF($A52=Settings!$B$6,$D52,"") ->  | K52: =IF($A52=Settings!$B$7,$D52,"") ->  | N52: 0.007935 | O52: 0.01335
A53: E08000021 | B53: Newcastle upon Tyne | C53: E12000001 | D53: 0.0149 | E53: 156 | F53: 10439 | H53: =IF($A53=Settings!$B$4,$D53,"") ->  | I53: =IF($A53=Settings!$B$5,$D53,"") ->  | J53: =IF($A53=Settings!$B$6,$D53,"") ->  | K53: =IF($A53=Settings!$B$7,$D53,"") ->  | N53: 0.007935 | O53: 0.01335
A54: E10000012 | B54: Essex | C54: E12000006 | D54: 0.015 | E54: 609 | F54: 40708 | H54: =IF($A54=Settings!$B$4,$D54,"") ->  | I54: =IF($A54=Settings!$B$5,$D54,"") ->  | J54: =IF($A54=Settings!$B$6,$D54,"") ->  | K54: =IF($A54=Settings!$B$7,$D54,"") ->  | N54: 0.007935 | O54: 0.01335
A55: E09000018 | B55: Hounslow | C55: E12000007 | D55: 0.015 | E55: 105 | F55: 7005 | H55: =IF($A55=Settings!$B$4,$D55,"") ->  | I55: =IF($A55=Settings!$B$5,$D55,"") ->  | J55: =IF($A55=Settings!$B$6,$D55,"") ->  | K55: =IF($A55=Settings!$B$7,$D55,"") ->  | N55: 0.007935 | O55: 0.01335
A56: E08000029 | B56: Solihull | C56: E12000005 | D56: 0.015 | E56: 97 | F56: 6466 | H56: =IF($A56=Settings!$B$4,$D56,"") ->  | I56: =IF($A56=Settings!$B$5,$D56,"") ->  | J56: =IF($A56=Settings!$B$6,$D56,"") ->  | K56: =IF($A56=Settings!$B$7,$D56,"") ->  | N56: 0.007935 | O56: 0.01335
A57: E08000007 | B57: Stockport | C57: E12000002 | D57: 0.015 | E57: 120 | F57: 7982 | H57: =IF($A57=Settings!$B$4,$D57,"") ->  | I57: =IF($A57=Settings!$B$5,$D57,"") ->  | J57: =IF($A57=Settings!$B$6,$D57,"") ->  | K57: =IF($A57=Settings!$B$7,$D57,"") ->  | N57: 0.007935 | O57: 0.01335
A58: E10000008 | B58: Devon | C58: E12000009 | D58: 0.0151 | E58: 324 | F58: 21499 | H58: =IF($A58=Settings!$B$4,$D58,"") ->  | I58: =IF($A58=Settings!$B$5,$D58,"") ->  | J58: =IF($A58=Settings!$B$6,$D58,"") ->  | K58: =IF($A58=Settings!$B$7,$D58,"") ->  | N58: 0.007935 | O58: 0.01335
A59: E06000019 | B59: Herefordshire | C59: E12000005 | D59: 0.0152 | E59: 78 | F59: 5141 | H59: =IF($A59=Settings!$B$4,$D59,"") ->  | I59: =IF($A59=Settings!$B$5,$D59,"") ->  | J59: =IF($A59=Settings!$B$6,$D59,"") ->  | K59: =IF($A59=Settings!$B$7,$D59,"") ->  | N59: 0.007935 | O59: 0.01335
A60: E09000010 | B60: Enfield | C60: E12000007 | D60: 0.0152 | E60: 148 | F60: 9717 | H60: =IF($A60=Settings!$B$4,$D60,"") ->  | I60: =IF($A60=Settings!$B$5,$D60,"") -> 0.0152 | J60: =IF($A60=Settings!$B$6,$D60,"") ->  | K60: =IF($A60=Settings!$B$7,$D60,"") ->  | N60: 0.007935 | O60: 0.01335
A61: E06000056 | B61: Central Bedfordshire | C61: E12000006 | D61: 0.0152 | E61: 110 | F61: 7217 | H61: =IF($A61=Settings!$B$4,$D61,"") ->  | I61: =IF($A61=Settings!$B$5,$D61,"") ->  | J61: =IF($A61=Settings!$B$6,$D61,"") ->  | K61: =IF($A61=Settings!$B$7,$D61,"") ->  | N61: 0.007935 | O61: 0.01335
A62: E06000054 | B62: Wiltshire | C62: E12000009 | D62: 0.0155 | E62: 222 | F62: 14325 | H62: =IF($A62=Settings!$B$4,$D62,"") ->  | I62: =IF($A62=Settings!$B$5,$D62,"") ->  | J62: =IF($A62=Settings!$B$6,$D62,"") ->  | K62: =IF($A62=Settings!$B$7,$D62,"") ->  | N62: 0.007935 | O62: 0.01335
A63: E09000022 | B63: Lambeth | C63: E12000007 | D63: 0.0157 | E63: 109 | F63: 6939 | H63: =IF($A63=Settings!$B$4,$D63,"") ->  | I63: =IF($A63=Settings!$B$5,$D63,"") ->  | J63: =IF($A63=Settings!$B$6,$D63,"") ->  | K63: =IF($A63=Settings!$B$7,$D63,"") ->  | N63: 0.007935 | O63: 0.01335
A64: E06000050 | B64: Cheshire West and Chester | C64: E12000002 | D64: 0.016 | E64: 153 | F64: 9582 | H64: =IF($A64=Settings!$B$4,$D64,"") ->  | I64: =IF($A64=Settings!$B$5,$D64,"") ->  | J64: =IF($A64=Settings!$B$6,$D64,"") ->  | K64: =IF($A64=Settings!$B$7,$D64,"") ->  | N64: 0.007935 | O64: 0.01335
A65: E10000011 | B65: East Sussex | C65: E12000008 | D65: 0.0161 | E65: 246 | F65: 15258 | H65: =IF($A65=Settings!$B$4,$D65,"") ->  | I65: =IF($A65=Settings!$B$5,$D65,"") ->  | J65: =IF($A65=Settings!$B$6,$D65,"") ->  | K65: =IF($A65=Settings!$B$7,$D65,"") ->  | N65: 0.007935 | O65: 0.01335
A66: E10000031 | B66: Warwickshire | C66: E12000005 | D66: 0.0161 | E66: 246 | F66: 15256 | H66: =IF($A66=Settings!$B$4,$D66,"") ->  | I66: =IF($A66=Settings!$B$5,$D66,"") ->  | J66: =IF($A66=Settings!$B$6,$D66,"") ->  | K66: =IF($A66=Settings!$B$7,$D66,"") ->  | N66: 0.007935 | O66: 0.01335
A67: E09000031 | B67: Waltham Forest | C67: E12000007 | D67: 0.0161 | E67: 117 | F67: 7253 | H67: =IF($A67=Settings!$B$4,$D67,"") ->  | I67: =IF($A67=Settings!$B$5,$D67,"") ->  | J67: =IF($A67=Settings!$B$6,$D67,"") ->  | K67: =IF($A67=Settings!$B$7,$D67,"") ->  | N67: 0.007935 | O67: 0.01335
A68: E08000014 | B68: Sefton | C68: E12000002 | D68: 0.0164 | E68: 130 | F68: 7918 | H68: =IF($A68=Settings!$B$4,$D68,"") ->  | I68: =IF($A68=Settings!$B$5,$D68,"") ->  | J68: =IF($A68=Settings!$B$6,$D68,"") ->  | K68: =IF($A68=Settings!$B$7,$D68,"") ->  | N68: 0.007935 | O68: 0.01335
A69: E06000032 | B69: Luton | C69: E12000006 | D69: 0.0165 | E69: 110 | F69: 6683 | H69: =IF($A69=Settings!$B$4,$D69,"") ->  | I69: =IF($A69=Settings!$B$5,$D69,"") ->  | J69: =IF($A69=Settings!$B$6,$D69,"") ->  | K69: =IF($A69=Settings!$B$7,$D69,"") ->  | N69: 0.007935 | O69: 0.01335
A70: E10000029 | B70: Suffolk | C70: E12000006 | D70: 0.0165 | E70: 339 | F70: 20543 | H70: =IF($A70=Settings!$B$4,$D70,"") ->  | I70: =IF($A70=Settings!$B$5,$D70,"") ->  | J70: =IF($A70=Settings!$B$6,$D70,"") ->  | K70: =IF($A70=Settings!$B$7,$D70,"") ->  | N70: 0.007935 | O70: 0.01335
A71: E06000028 | B71: Bournemouth | C71: E12000009 | D71: 0.0166 | E71: 90 | F71: 5420 | H71: =IF($A71=Settings!$B$4,$D71,"") ->  | I71: =IF($A71=Settings!$B$5,$D71,"") ->  | J71: =IF($A71=Settings!$B$6,$D71,"") ->  | K71: =IF($A71=Settings!$B$7,$D71,"") ->  | N71: 0.007935 | O71: 0.01335
A72: E06000039 | B72: Slough | C72: E12000008 | D72: 0.0166 | E72: 69 | F72: 4145 | H72: =IF($A72=Settings!$B$4,$D72,"") ->  | I72: =IF($A72=Settings!$B$5,$D72,"") ->  | J72: =IF($A72=Settings!$B$6,$D72,"") ->  | K72: =IF($A72=Settings!$B$7,$D72,"") ->  | N72: 0.007935 | O72: 0.01335
A73: E06000007 | B73: Warrington | C73: E12000002 | D73: 0.0167 | E73: 97 | F73: 5813 | H73: =IF($A73=Settings!$B$4,$D73,"") ->  | I73: =IF($A73=Settings!$B$5,$D73,"") ->  | J73: =IF($A73=Settings!$B$6,$D73,"") ->  | K73: =IF($A73=Settings!$B$7,$D73,"") ->  | N73: 0.007935 | O73: 0.01335
A74: E10000016 | B74: Kent | C74: E12000008 | D74: 0.0168 | E74: 789 | F74: 46883 | H74: =IF($A74=Settings!$B$4,$D74,"") ->  | I74: =IF($A74=Settings!$B$5,$D74,"") ->  | J74: =IF($A74=Settings!$B$6,$D74,"") ->  | K74: =IF($A74=Settings!$B$7,$D74,"") ->  | N74: 0.007935 | O74: 0.01335
A75: E09000011 | B75: Greenwich | C75: E12000007 | D75: 0.017 | E75: 126 | F75: 7394 | H75: =IF($A75=Settings!$B$4,$D75,"") -> 0.017 | I75: =IF($A75=Settings!$B$5,$D75,"") ->  | J75: =IF($A75=Settings!$B$6,$D75,"") ->  | K75: =IF($A75=Settings!$B$7,$D75,"") ->  | N75: 0.007935 | O75: 0.01335
A76: E06000011 | B76: East Riding of Yorkshire | C76: E12000003 | D76: 0.0172 | E76: 166 | F76: 9670 | H76: =IF($A76=Settings!$B$4,$D76,"") ->  | I76: =IF($A76=Settings!$B$5,$D76,"") ->  | J76: =IF($A76=Settings!$B$6,$D76,"") ->  | K76: =IF($A76=Settings!$B$7,$D76,"") ->  | M76: 0.0172 | N76: 0.007935 | O76: 0.01335
A77: E09000008 | B77: Croydon | C77: E12000007 | D77: 0.0172 | E77: 196 | F77: 11391 | H77: =IF($A77=Settings!$B$4,$D77,"") ->  | I77: =IF($A77=Settings!$B$5,$D77,"") ->  | J77: =IF($A77=Settings!$B$6,$D77,"") ->  | K77: =IF($A77=Settings!$B$7,$D77,"") ->  | N77: 0.007935 | O77: 0.01335
A78: E06000023 | B78: Bristol | C78: E12000009 | D78: 0.0172 | E78: 227 | F78: 13188 | H78: =IF($A78=Settings!$B$4,$D78,"") ->  | I78: =IF($A78=Settings!$B$5,$D78,"") ->  | J78: =IF($A78=Settings!$B$6,$D78,"") ->  | K78: =IF($A78=Settings!$B$7,$D78,"") ->  | N78: 0.007935 | O78: 0.01335
A79: E10000007 | B79: Derbyshire | C79: E12000004 | D79: 0.0172 | E79: 388 | F79: 22539 | H79: =IF($A79=Settings!$B$4,$D79,"") ->  | I79: =IF($A79=Settings!$B$5,$D79,"") ->  | J79: =IF($A79=Settings!$B$6,$D79,"") ->  | K79: =IF($A79=Settings!$B$7,$D79,"") ->  | N79: 0.007935 | O79: 0.01335
A80: E06000038 | B80: Reading | C80: E12000008 | D80: 0.0173 | E80: 82 | F80: 4745 | H80: =IF($A80=Settings!$B$4,$D80,"") ->  | I80: =IF($A80=Settings!$B$5,$D80,"") ->  | J80: =IF($A80=Settings!$B$6,$D80,"") ->  | K80: =IF($A80=Settings!$B$7,$D80,"") ->  | N80: 0.007935 | O80: 0.01335
A81: E10000006 | B81: Cumbria | C81: E12000002 | D81: 0.0173 | E81: 237 | F81: 13705 | H81: =IF($A81=Settings!$B$4,$D81,"") ->  | I81: =IF($A81=Settings!$B$5,$D81,"") ->  | J81: =IF($A81=Settings!$B$6,$D81,"") ->  | K81: =IF($A81=Settings!$B$7,$D81,"") ->  | N81: 0.007935 | O81: 0.01335
A82: E06000029 | B82: Poole | C82: E12000009 | D82: 0.0175 | E82: 74 | F82: 4237 | H82: =IF($A82=Settings!$B$4,$D82,"") ->  | I82: =IF($A82=Settings!$B$5,$D82,"") ->  | J82: =IF($A82=Settings!$B$6,$D82,"") ->  | K82: =IF($A82=Settings!$B$7,$D82,"") ->  | N82: 0.007935 | O82: 0.01335
A83: E08000025 | B83: Birmingham | C83: E12000005 | D83: 0.0175 | E83: 688 | F83: 39384 | H83: =IF($A83=Settings!$B$4,$D83,"") ->  | I83: =IF($A83=Settings!$B$5,$D83,"") ->  | J83: =IF($A83=Settings!$B$6,$D83,"") ->  | K83: =IF($A83=Settings!$B$7,$D83,"") -> 0.0175 | N83: 0.007935 | O83: 0.01335
A84: E10000017 | B84: Lancashire | C84: E12000002 | D84: 0.0179 | E84: 639 | F84: 35794 | H84: =IF($A84=Settings!$B$4,$D84,"") ->  | I84: =IF($A84=Settings!$B$5,$D84,"") ->  | J84: =IF($A84=Settings!$B$6,$D84,"") ->  | K84: =IF($A84=Settings!$B$7,$D84,"") ->  | N84: 0.007935 | O84: 0.01335
A85: E10000027 | B85: Somerset | C85: E12000009 | D85: 0.0179 | E85: 283 | F85: 15845 | H85: =IF($A85=Settings!$B$4,$D85,"") ->  | I85: =IF($A85=Settings!$B$5,$D85,"") ->  | J85: =IF($A85=Settings!$B$6,$D85,"") ->  | K85: =IF($A85=Settings!$B$7,$D85,"") ->  | N85: 0.007935 | O85: 0.01335
A86: E10000034 | B86: Worcestershire | C86: E12000005 | D86: 0.0179 | E86: 295 | F86: 16440 | H86: =IF($A86=Settings!$B$4,$D86,"") ->  | I86: =IF($A86=Settings!$B$5,$D86,"") ->  | J86: =IF($A86=Settings!$B$6,$D86,"") ->  | K86: =IF($A86=Settings!$B$7,$D86,"") ->  | N86: 0.007935 | O86: 0.01335
A87: E06000057 | B87: Northumberland | C87: E12000001 | D87: 0.0181 | E87: 154 | F87: 8495 | H87: =IF($A87=Settings!$B$4,$D87,"") ->  | I87: =IF($A87=Settings!$B$5,$D87,"") ->  | J87: =IF($A87=Settings!$B$6,$D87,"") ->  | K87: =IF($A87=Settings!$B$7,$D87,"") ->  | N87: 0.007935 | O87: 0.01335
A88: E08000011 | B88: Knowsley | C88: E12000002 | D88: 0.0182 | E88: 87 | F88: 4788 | H88: =IF($A88=Settings!$B$4,$D88,"") ->  | I88: =IF($A88=Settings!$B$5,$D88,"") ->  | J88: =IF($A88=Settings!$B$6,$D88,"") ->  | K88: =IF($A88=Settings!$B$7,$D88,"") ->  | N88: 0.007935 | O88: 0.01335
A89: E10000028 | B89: Staffordshire | C89: E12000005 | D89: 0.0182 | E89: 448 | F89: 24623 | H89: =IF($A89=Settings!$B$4,$D89,"") ->  | I89: =IF($A89=Settings!$B$5,$D89,"") ->  | J89: =IF($A89=Settings!$B$6,$D89,"") ->  | K89: =IF($A89=Settings!$B$7,$D89,"") ->  | N89: 0.007935 | O89: 0.01335
A90: E08000019 | B90: Sheffield | C90: E12000003 | D90: 0.0184 | E90: 342 | F90: 18574 | H90: =IF($A90=Settings!$B$4,$D90,"") ->  | I90: =IF($A90=Settings!$B$5,$D90,"") ->  | J90: =IF($A90=Settings!$B$6,$D90,"") ->  | K90: =IF($A90=Settings!$B$7,$D90,"") ->  | N90: 0.007935 | O90: 0.01335
A91: E08000022 | B91: North Tyneside | C91: E12000001 | D91: 0.0185 | E91: 101 | F91: 5448 | H91: =IF($A91=Settings!$B$4,$D91,"") ->  | I91: =IF($A91=Settings!$B$5,$D91,"") ->  | J91: =IF($A91=Settings!$B$6,$D91,"") ->  | K91: =IF($A91=Settings!$B$7,$D91,"") ->  | N91: 0.007935 | O91: 0.01335
A92: E09000023 | B92: Lewisham | C92: E12000007 | D92: 0.0185 | E92: 140 | F92: 7550 | H92: =IF($A92=Settings!$B$4,$D92,"") ->  | I92: =IF($A92=Settings!$B$5,$D92,"") ->  | J92: =IF($A92=Settings!$B$6,$D92,"") ->  | K92: =IF($A92=Settings!$B$7,$D92,"") ->  | N92: 0.007935 | O92: 0.01335
A93: E10000020 | B93: Norfolk | C93: E12000006 | D93: 0.0186 | E93: 463 | F93: 24863 | H93: =IF($A93=Settings!$B$4,$D93,"") ->  | I93: =IF($A93=Settings!$B$5,$D93,"") ->  | J93: =IF($A93=Settings!$B$6,$D93,"") ->  | K93: =IF($A93=Settings!$B$7,$D93,"") ->  | N93: 0.007935 | O93: 0.01335
A94: E06000052 | B94: Cornwall and Isles of Scilly | C94: E12000009 | D94: 0.0186 | E94: 287 | F94: 15391 | H94: =IF($A94=Settings!$B$4,$D94,"") ->  | I94: =IF($A94=Settings!$B$5,$D94,"") ->  | J94: =IF($A94=Settings!$B$6,$D94,"") ->  | K94: =IF($A94=Settings!$B$7,$D94,"") ->  | N94: 0.007935 | O94: 0.01335
A95: E06000034 | B95: Thurrock | C95: E12000006 | D95: 0.0187 | E95: 91 | F95: 4872 | H95: =IF($A95=Settings!$B$4,$D95,"") ->  | I95: =IF($A95=Settings!$B$5,$D95,"") ->  | J95: =IF($A95=Settings!$B$6,$D95,"") ->  | K95: =IF($A95=Settings!$B$7,$D95,"") ->  | N95: 0.007935 | O95: 0.01335
A96: E09000002 | B96: Barking and Dagenham | C96: E12000007 | D96: 0.01874293101 | E96: 116 | F96: 6189 | G96: 0.01874293101 | H96: =IF($A96=Settings!$B$4,$D96,"") ->  | I96: =IF($A96=Settings!$B$5,$D96,"") ->  | J96: =IF($A96=Settings!$B$6,$D96,"") ->  | K96: =IF($A96=Settings!$B$7,$D96,"") ->  | N96: 0.007935 | O96: 0.01335
A97: E06000042 | B97: Milton Keynes | C97: E12000008 | D97: 0.0188 | E97: 134 | F97: 7139 | H97: =IF($A97=Settings!$B$4,$D97,"") ->  | I97: =IF($A97=Settings!$B$5,$D97,"") ->  | J97: =IF($A97=Settings!$B$6,$D97,"") ->  | K97: =IF($A97=Settings!$B$7,$D97,"") ->  | N97: 0.007935 | O97: 0.01335
A98: E06000045 | B98: Southampton | C98: E12000008 | D98: 0.0188 | E98: 153 | F98: 8127 | H98: =IF($A98=Settings!$B$4,$D98,"") ->  | I98: =IF($A98=Settings!$B$5,$D98,"") ->  | J98: =IF($A98=Settings!$B$6,$D98,"") ->  | K98: =IF($A98=Settings!$B$7,$D98,"") ->  | N98: 0.007935 | O98: 0.01335
A99: E08000035 | B99: Leeds | C99: E12000003 | D99: 0.0191 | E99: 479 | F99: 25029 | H99: =IF($A99=Settings!$B$4,$D99,"") ->  | I99: =IF($A99=Settings!$B$5,$D99,"") ->  | J99: =IF($A99=Settings!$B$6,$D99,"") ->  | K99: =IF($A99=Settings!$B$7,$D99,"") ->  | N99: 0.007935 | O99: 0.01335
A100: E06000055 | B100: Bedford | C100: E12000006 | D100: 0.0192 | E100: 94 | F100: 4904 | H100: =IF($A100=Settings!$B$4,$D100,"") ->  | I100: =IF($A100=Settings!$B$5,$D100,"") ->  | J100: =IF($A100=Settings!$B$6,$D100,"") ->  | K100: =IF($A100=Settings!$B$7,$D100,"") ->  | N100: 0.007935 | O100: 0.01335
A101: E06000044 | B101: Portsmouth | C101: E12000008 | D101: 0.0193 | E101: 132 | F101: 6856 | H101: =IF($A101=Settings!$B$4,$D101,"") ->  | I101: =IF($A101=Settings!$B$5,$D101,"") ->  | J101: =IF($A101=Settings!$B$6,$D101,"") ->  | K101: =IF($A101=Settings!$B$7,$D101,"") ->  | N101: 0.007935 | O101: 0.01335
A102: E08000026 | B102: Coventry | C102: E12000005 | D102: 0.0193 | E102: 218 | F102: 11312 | H102: =IF($A102=Settings!$B$4,$D102,"") ->  | I102: =IF($A102=Settings!$B$5,$D102,"") ->  | J102: =IF($A102=Settings!$B$6,$D102,"") ->  | K102: =IF($A102=Settings!$B$7,$D102,"") ->  | N102: 0.007935 | O102: 0.01335
A103: E06000033 | B103: Southend-on-Sea | C103: E12000006 | D103: 0.0193 | E103: 96 | F103: 4979 | H103: =IF($A103=Settings!$B$4,$D103,"") ->  | I103: =IF($A103=Settings!$B$5,$D103,"") ->  | J103: =IF($A103=Settings!$B$6,$D103,"") ->  | K103: =IF($A103=Settings!$B$7,$D103,"") ->  | N103: 0.007935 | O103: 0.01335
A104: E08000034 | B104: Kirklees | C104: E12000003 | D104: 0.0195 | E104: 259 | F104: 13289 | H104: =IF($A104=Settings!$B$4,$D104,"") ->  | I104: =IF($A104=Settings!$B$5,$D104,"") ->  | J104: =IF($A104=Settings!$B$6,$D104,"") ->  | K104: =IF($A104=Settings!$B$7,$D104,"") ->  | N104: 0.007935 | O104: 0.01335
A105: E10000024 | B105: Nottinghamshire | C105: E12000004 | D105: 0.0197 | E105: 449 | F105: 22831 | H105: =IF($A105=Settings!$B$4,$D105,"") ->  | I105: =IF($A105=Settings!$B$5,$D105,"") ->  | J105: =IF($A105=Settings!$B$6,$D105,"") ->  | K105: =IF($A105=Settings!$B$7,$D105,"") ->  | N105: 0.007935 | O105: 0.01335
A106: E06000016 | B106: Leicester | C106: E12000004 | D106: 0.02 | E106: 229 | F106: 11455 | H106: =IF($A106=Settings!$B$4,$D106,"") ->  | I106: =IF($A106=Settings!$B$5,$D106,"") ->  | J106: =IF($A106=Settings!$B$6,$D106,"") ->  | K106: =IF($A106=Settings!$B$7,$D106,"") ->  | N106: 0.007935 | O106: 0.01335
A107: E10000021 | B107: Northamptonshire | C107: E12000004 | D107: 0.0201 | E107: 410 | F107: 20435 | H107: =IF($A107=Settings!$B$4,$D107,"") ->  | I107: =IF($A107=Settings!$B$5,$D107,"") ->  | J107: =IF($A107=Settings!$B$6,$D107,"") ->  | K107: =IF($A107=Settings!$B$7,$D107,"") ->  | N107: 0.007935 | O107: 0.01335
A108: E08000015 | B108: Wirral | C108: E12000002 | D108: 0.0202 | E108: 186 | F108: 9221 | H108: =IF($A108=Settings!$B$4,$D108,"") ->  | I108: =IF($A108=Settings!$B$5,$D108,"") ->  | J108: =IF($A108=Settings!$B$6,$D108,"") ->  | K108: =IF($A108=Settings!$B$7,$D108,"") ->  | N108: 0.007935 | O108: 0.01335
A109: E06000018 | B109: Nottingham | C109: E12000004 | D109: 0.0203 | E109: 252 | F109: 12387 | H109: =IF($A109=Settings!$B$4,$D109,"") ->  | I109: =IF($A109=Settings!$B$5,$D109,"") ->  | J109: =IF($A109=Settings!$B$6,$D109,"") ->  | K109: =IF($A109=Settings!$B$7,$D109,"") ->  | N109: 0.007935 | O109: 0.01335
A110: E08000037 | B110: Gateshead | C110: E12000001 | D110: 0.0207 | E110: 120 | F110: 5795 | H110: =IF($A110=Settings!$B$4,$D110,"") ->  | I110: =IF($A110=Settings!$B$5,$D110,"") ->  | J110: =IF($A110=Settings!$B$6,$D110,"") ->  | K110: =IF($A110=Settings!$B$7,$D110,"") ->  | N110: 0.007935 | O110: 0.01335
A111: E06000030 | B111: Swindon | C111: E12000009 | D111: 0.021 | E111: 130 | F111: 6190 | H111: =IF($A111=Settings!$B$4,$D111,"") ->  | I111: =IF($A111=Settings!$B$5,$D111,"") ->  | J111: =IF($A111=Settings!$B$6,$D111,"") ->  | K111: =IF($A111=Settings!$B$7,$D111,"") ->  | N111: 0.007935 | O111: 0.01335
A112: E10000019 | B112: Lincolnshire | C112: E12000004 | D112: 0.0211 | E112: 447 | F112: 21155 | H112: =IF($A112=Settings!$B$4,$D112,"") ->  | I112: =IF($A112=Settings!$B$5,$D112,"") ->  | J112: =IF($A112=Settings!$B$6,$D112,"") ->  | K112: =IF($A112=Settings!$B$7,$D112,"") ->  | N112: 0.007935 | O112: 0.01335
A113: E08000032 | B113: Bradford | C113: E12000003 | D113: 0.0213 | E113: 368 | F113: 17281 | H113: =IF($A113=Settings!$B$4,$D113,"") ->  | I113: =IF($A113=Settings!$B$5,$D113,"") ->  | J113: =IF($A113=Settings!$B$6,$D113,"") ->  | K113: =IF($A113=Settings!$B$7,$D113,"") ->  | N113: 0.007935 | O113: 0.01335
A114: E08000003 | B114: Manchester | C114: E12000002 | D114: 0.0214 | E114: 352 | F114: 16482 | H114: =IF($A114=Settings!$B$4,$D114,"") ->  | I114: =IF($A114=Settings!$B$5,$D114,"") ->  | J114: =IF($A114=Settings!$B$6,$D114,"") -> 0.0214 | K114: =IF($A114=Settings!$B$7,$D114,"") ->  | N114: 0.007935 | O114: 0.01335
A115: E08000001 | B115: Bolton | C115: E12000002 | D115: 0.0214 | E115: 183 | F115: 8556 | H115: =IF($A115=Settings!$B$4,$D115,"") ->  | I115: =IF($A115=Settings!$B$5,$D115,"") ->  | J115: =IF($A115=Settings!$B$6,$D115,"") ->  | K115: =IF($A115=Settings!$B$7,$D115,"") ->  | N115: 0.007935 | O115: 0.01335
A116: E06000047 | B116: County Durham | C116: E12000001 | D116: 0.0219 | E116: 338 | F116: 15407 | H116: =IF($A116=Settings!$B$4,$D116,"") ->  | I116: =IF($A116=Settings!$B$5,$D116,"") ->  | J116: =IF($A116=Settings!$B$6,$D116,"") ->  | K116: =IF($A116=Settings!$B$7,$D116,"") ->  | N116: 0.007935 | O116: 0.01335
A117: E08000010 | B117: Wigan | C117: E12000002 | D117: 0.0226 | E117: 207 | F117: 9167 | H117: =IF($A117=Settings!$B$4,$D117,"") ->  | I117: =IF($A117=Settings!$B$5,$D117,"") ->  | J117: =IF($A117=Settings!$B$6,$D117,"") ->  | K117: =IF($A117=Settings!$B$7,$D117,"") ->  | N117: 0.007935 | O117: 0.01335
A118: E06000035 | B118: Medway | C118: E12000008 | D118: 0.0226 | E118: 195 | F118: 8620 | H118: =IF($A118=Settings!$B$4,$D118,"") ->  | I118: =IF($A118=Settings!$B$5,$D118,"") ->  | J118: =IF($A118=Settings!$B$6,$D118,"") ->  | K118: =IF($A118=Settings!$B$7,$D118,"") ->  | N118: 0.007935 | O118: 0.01335
A119: E06000026 | B119: Plymouth | C119: E12000009 | D119: 0.0227 | E119: 189 | F119: 8331 | H119: =IF($A119=Settings!$B$4,$D119,"") ->  | I119: =IF($A119=Settings!$B$5,$D119,"") ->  | J119: =IF($A119=Settings!$B$6,$D119,"") ->  | K119: =IF($A119=Settings!$B$7,$D119,"") ->  | N119: 0.007935 | O119: 0.01335
A120: E08000002 | B120: Bury | C120: E12000002 | D120: 0.0227 | E120: 123 | F120: 5411 | H120: =IF($A120=Settings!$B$4,$D120,"") ->  | I120: =IF($A120=Settings!$B$5,$D120,"") ->  | J120: =IF($A120=Settings!$B$6,$D120,"") ->  | K120: =IF($A120=Settings!$B$7,$D120,"") ->  | N120: 0.007935 | O120: 0.01335
A121: E06000015 | B121: Derby | C121: E12000004 | D121: 0.0227 | E121: 173 | F121: 7607 | H121: =IF($A121=Settings!$B$4,$D121,"") ->  | I121: =IF($A121=Settings!$B$5,$D121,"") ->  | J121: =IF($A121=Settings!$B$6,$D121,"") ->  | K121: =IF($A121=Settings!$B$7,$D121,"") ->  | N121: 0.007935 | O121: 0.01335
A122: E08000033 | B122: Calderdale | C122: E12000003 | D122: 0.0229 | E122: 138 | F122: 6034 | H122: =IF($A122=Settings!$B$4,$D122,"") ->  | I122: =IF($A122=Settings!$B$5,$D122,"") ->  | J122: =IF($A122=Settings!$B$6,$D122,"") ->  | K122: =IF($A122=Settings!$B$7,$D122,"") ->  | N122: 0.007935 | O122: 0.01335
A123: E08000004 | B123: Oldham | C123: E12000002 | D123: 0.0232 | E123: 170 | F123: 7341 | H123: =IF($A123=Settings!$B$4,$D123,"") ->  | I123: =IF($A123=Settings!$B$5,$D123,"") ->  | J123: =IF($A123=Settings!$B$6,$D123,"") ->  | K123: =IF($A123=Settings!$B$7,$D123,"") ->  | N123: 0.007935 | O123: 0.01335
A124: E08000005 | B124: Rochdale | C124: E12000002 | D124: 0.0234 | E124: 159 | F124: 6809 | H124: =IF($A124=Settings!$B$4,$D124,"") ->  | I124: =IF($A124=Settings!$B$5,$D124,"") ->  | J124: =IF($A124=Settings!$B$6,$D124,"") ->  | K124: =IF($A124=Settings!$B$7,$D124,"") ->  | N124: 0.007935 | O124: 0.01335
A125: E06000008 | B125: Blackburn with Darwen | C125: E12000002 | D125: 0.0235 | E125: 116 | F125: 4933 | H125: =IF($A125=Settings!$B$4,$D125,"") ->  | I125: =IF($A125=Settings!$B$5,$D125,"") ->  | J125: =IF($A125=Settings!$B$6,$D125,"") ->  | K125: =IF($A125=Settings!$B$7,$D125,"") ->  | N125: 0.007935 | O125: 0.01335
A126: E08000006 | B126: Salford | C126: E12000002 | D126: 0.0237 | E126: 163 | F126: 6872 | H126: =IF($A126=Settings!$B$4,$D126,"") ->  | I126: =IF($A126=Settings!$B$5,$D126,"") ->  | J126: =IF($A126=Settings!$B$6,$D126,"") ->  | K126: =IF($A126=Settings!$B$7,$D126,"") ->  | N126: 0.007935 | O126: 0.01335
A127: E08000018 | B127: Rotherham | C127: E12000003 | D127: 0.0239 | E127: 182 | F127: 7621 | H127: =IF($A127=Settings!$B$4,$D127,"") ->  | I127: =IF($A127=Settings!$B$5,$D127,"") ->  | J127: =IF($A127=Settings!$B$6,$D127,"") ->  | K127: =IF($A127=Settings!$B$7,$D127,"") ->  | N127: 0.007935 | O127: 0.01335
A128: E08000023 | B128: South Tyneside | C128: E12000001 | D128: 0.0242 | E128: 107 | F128: 4418 | H128: =IF($A128=Settings!$B$4,$D128,"") ->  | I128: =IF($A128=Settings!$B$5,$D128,"") ->  | J128: =IF($A128=Settings!$B$6,$D128,"") ->  | K128: =IF($A128=Settings!$B$7,$D128,"") ->  | N128: 0.007935 | O128: 0.01335
A129: E08000027 | B129: Dudley | C129: E12000005 | D129: 0.0247 | E129: 231 | F129: 9364 | H129: =IF($A129=Settings!$B$4,$D129,"") ->  | I129: =IF($A129=Settings!$B$5,$D129,"") ->  | J129: =IF($A129=Settings!$B$6,$D129,"") ->  | K129: =IF($A129=Settings!$B$7,$D129,"") ->  | N129: 0.007935 | O129: 0.01335
A130: E06000005 | B130: Darlington | C130: E12000001 | D130: 0.025 | E130: 76 | F130: 3036 | H130: =IF($A130=Settings!$B$4,$D130,"") ->  | I130: =IF($A130=Settings!$B$5,$D130,"") ->  | J130: =IF($A130=Settings!$B$6,$D130,"") ->  | K130: =IF($A130=Settings!$B$7,$D130,"") ->  | N130: 0.007935 | O130: 0.01335
A131: E08000008 | B131: Tameside | C131: E12000002 | D131: 0.0251 | E131: 162 | F131: 6447 | H131: =IF($A131=Settings!$B$4,$D131,"") ->  | I131: =IF($A131=Settings!$B$5,$D131,"") ->  | J131: =IF($A131=Settings!$B$6,$D131,"") ->  | K131: =IF($A131=Settings!$B$7,$D131,"") ->  | N131: 0.007935 | O131: 0.01335
A132: E06000006 | B132: Halton | C132: E12000002 | D132: 0.0258 | E132: 97 | F132: 3756 | H132: =IF($A132=Settings!$B$4,$D132,"") ->  | I132: =IF($A132=Settings!$B$5,$D132,"") ->  | J132: =IF($A132=Settings!$B$6,$D132,"") ->  | K132: =IF($A132=Settings!$B$7,$D132,"") ->  | N132: 0.007935 | O132: 0.01335
A133: E08000024 | B133: Sunderland | C133: E12000001 | D133: 0.0263 | E133: 216 | F133: 8222 | H133: =IF($A133=Settings!$B$4,$D133,"") ->  | I133: =IF($A133=Settings!$B$5,$D133,"") ->  | J133: =IF($A133=Settings!$B$6,$D133,"") ->  | K133: =IF($A133=Settings!$B$7,$D133,"") ->  | N133: 0.007935 | O133: 0.01335
A134: E06000013 | B134: North Lincolnshire | C134: E12000003 | D134: 0.0268 | E134: 127 | F134: 4745 | H134: =IF($A134=Settings!$B$4,$D134,"") ->  | I134: =IF($A134=Settings!$B$5,$D134,"") ->  | J134: =IF($A134=Settings!$B$6,$D134,"") ->  | K134: =IF($A134=Settings!$B$7,$D134,"") ->  | N134: 0.007935 | O134: 0.01335
A135: E08000031 | B135: Wolverhampton | C135: E12000005 | D135: 0.0269 | E135: 207 | F135: 7709 | H135: =IF($A135=Settings!$B$4,$D135,"") ->  | I135: =IF($A135=Settings!$B$5,$D135,"") ->  | J135: =IF($A135=Settings!$B$6,$D135,"") ->  | K135: =IF($A135=Settings!$B$7,$D135,"") ->  | N135: 0.007935 | O135: 0.01335
A136: E08000036 | B136: Wakefield | C136: E12000003 | D136: 0.0269 | E136: 253 | F136: 9419 | H136: =IF($A136=Settings!$B$4,$D136,"") ->  | I136: =IF($A136=Settings!$B$5,$D136,"") ->  | J136: =IF($A136=Settings!$B$6,$D136,"") ->  | K136: =IF($A136=Settings!$B$7,$D136,"") ->  | N136: 0.007935 | O136: 0.01335
A137: E06000046 | B137: Isle of Wight | C137: E12000008 | D137: 0.0272 | E137: 105 | F137: 3862 | H137: =IF($A137=Settings!$B$4,$D137,"") ->  | I137: =IF($A137=Settings!$B$5,$D137,"") ->  | J137: =IF($A137=Settings!$B$6,$D137,"") ->  | K137: =IF($A137=Settings!$B$7,$D137,"") ->  | N137: 0.007935 | O137: 0.01335
A138: E06000003 | B138: Redcar and Cleveland | C138: E12000001 | D138: 0.0272 | E138: 107 | F138: 3932 | H138: =IF($A138=Settings!$B$4,$D138,"") ->  | I138: =IF($A138=Settings!$B$5,$D138,"") ->  | J138: =IF($A138=Settings!$B$6,$D138,"") ->  | K138: =IF($A138=Settings!$B$7,$D138,"") ->  | N138: 0.007935 | O138: 0.01335
A139: E06000027 | B139: Torbay | C139: E12000009 | D139: 0.0273 | E139: 98 | F139: 3588 | H139: =IF($A139=Settings!$B$4,$D139,"") ->  | I139: =IF($A139=Settings!$B$5,$D139,"") ->  | J139: =IF($A139=Settings!$B$6,$D139,"") ->  | K139: =IF($A139=Settings!$B$7,$D139,"") ->  | N139: 0.007935 | O139: 0.01335
A140: E06000020 | B140: Telford and Wrekin | C140: E12000005 | D140: 0.0274 | E140: 153 | F140: 5583 | H140: =IF($A140=Settings!$B$4,$D140,"") ->  | I140: =IF($A140=Settings!$B$5,$D140,"") ->  | J140: =IF($A140=Settings!$B$6,$D140,"") ->  | K140: =IF($A140=Settings!$B$7,$D140,"") ->  | N140: 0.007935 | O140: 0.01335
A141: E08000013 | B141: St Helens | C141: E12000002 | D141: 0.0283 | E141: 142 | F141: 5020 | H141: =IF($A141=Settings!$B$4,$D141,"") ->  | I141: =IF($A141=Settings!$B$5,$D141,"") ->  | J141: =IF($A141=Settings!$B$6,$D141,"") ->  | K141: =IF($A141=Settings!$B$7,$D141,"") ->  | N141: 0.007935 | O141: 0.01335
A142: E06000001 | B142: Hartlepool | C142: E12000001 | D142: 0.0288 | E142: 84 | F142: 2918 | H142: =IF($A142=Settings!$B$4,$D142,"") ->  | I142: =IF($A142=Settings!$B$5,$D142,"") ->  | J142: =IF($A142=Settings!$B$6,$D142,"") ->  | K142: =IF($A142=Settings!$B$7,$D142,"") ->  | N142: 0.007935 | O142: 0.01335
A143: E06000004 | B143: Stockton-on-Tees | C143: E12000001 | D143: 0.0289 | E143: 164 | F143: 5684 | H143: =IF($A143=Settings!$B$4,$D143,"") ->  | I143: =IF($A143=Settings!$B$5,$D143,"") ->  | J143: =IF($A143=Settings!$B$6,$D143,"") ->  | K143: =IF($A143=Settings!$B$7,$D143,"") ->  | N143: 0.007935 | O143: 0.01335
A144: E08000017 | B144: Doncaster | C144: E12000003 | D144: 0.0294 | E144: 263 | F144: 8956 | H144: =IF($A144=Settings!$B$4,$D144,"") ->  | I144: =IF($A144=Settings!$B$5,$D144,"") ->  | J144: =IF($A144=Settings!$B$6,$D144,"") ->  | K144: =IF($A144=Settings!$B$7,$D144,"") ->  | N144: 0.007935 | O144: 0.01335
A145: E08000016 | B145: Barnsley | C145: E12000003 | D145: 0.0304 | E145: 214 | F145: 7038 | H145: =IF($A145=Settings!$B$4,$D145,"") ->  | I145: =IF($A145=Settings!$B$5,$D145,"") ->  | J145: =IF($A145=Settings!$B$6,$D145,"") ->  | K145: =IF($A145=Settings!$B$7,$D145,"") ->  | N145: 0.007935 | O145: 0.01335
A146: E06000031 | B146: Peterborough | C146: E12000006 | D146: 0.0309 | E146: 171 | F146: 5534 | H146: =IF($A146=Settings!$B$4,$D146,"") ->  | I146: =IF($A146=Settings!$B$5,$D146,"") ->  | J146: =IF($A146=Settings!$B$6,$D146,"") ->  | K146: =IF($A146=Settings!$B$7,$D146,"") ->  | N146: 0.007935 | O146: 0.01335
A147: E06000009 | B147: Blackpool | C147: E12000002 | D147: 0.031 | E147: 131 | F147: 4223 | H147: =IF($A147=Settings!$B$4,$D147,"") ->  | I147: =IF($A147=Settings!$B$5,$D147,"") ->  | J147: =IF($A147=Settings!$B$6,$D147,"") ->  | K147: =IF($A147=Settings!$B$7,$D147,"") ->  | N147: 0.007935 | O147: 0.01335
A148: E08000030 | B148: Walsall | C148: E12000005 | D148: 0.0314 | E148: 270 | F148: 8590 | H148: =IF($A148=Settings!$B$4,$D148,"") ->  | I148: =IF($A148=Settings!$B$5,$D148,"") ->  | J148: =IF($A148=Settings!$B$6,$D148,"") ->  | K148: =IF($A148=Settings!$B$7,$D148,"") ->  | N148: 0.007935 | O148: 0.01335
A149: E06000002 | B149: Middlesbrough | C149: E12000001 | D149: 0.0323 | E149: 150 | F149: 4651 | H149: =IF($A149=Settings!$B$4,$D149,"") ->  | I149: =IF($A149=Settings!$B$5,$D149,"") ->  | J149: =IF($A149=Settings!$B$6,$D149,"") ->  | K149: =IF($A149=Settings!$B$7,$D149,"") ->  | N149: 0.007935 | O149: 0.01335
A150: E08000028 | B150: Sandwell | C150: E12000005 | D150: 0.0323 | E150: 313 | F150: 9677 | H150: =IF($A150=Settings!$B$4,$D150,"") ->  | I150: =IF($A150=Settings!$B$5,$D150,"") ->  | J150: =IF($A150=Settings!$B$6,$D150,"") ->  | K150: =IF($A150=Settings!$B$7,$D150,"") ->  | N150: 0.007935 | O150: 0.01335
A151: E06000021 | B151: Stoke-on-Trent | C151: E12000005 | D151: 0.0332 | E151: 246 | F151: 7414 | H151: =IF($A151=Settings!$B$4,$D151,"") ->  | I151: =IF($A151=Settings!$B$5,$D151,"") ->  | J151: =IF($A151=Settings!$B$6,$D151,"") ->  | K151: =IF($A151=Settings!$B$7,$D151,"") ->  | N151: 0.007935 | O151: 0.01335
A152: E06000010 | B152: Kingston upon Hull | C152: E12000003 | D152: 0.0341 | E152: 264 | F152: 7738 | H152: =IF($A152=Settings!$B$4,$D152,"") ->  | I152: =IF($A152=Settings!$B$5,$D152,"") ->  | J152: =IF($A152=Settings!$B$6,$D152,"") ->  | K152: =IF($A152=Settings!$B$7,$D152,"") ->  | N152: 0.007935 | O152: 0.01335
A153: E06000012 | B153: North East Lincolnshire | C153: E12000003 | D153: 0.0374 | E153: 178 | F153: 4759 | H153: =IF($A153=Settings!$B$4,$D153,"") ->  | I153: =IF($A153=Settings!$B$5,$D153,"") ->  | J153: =IF($A153=Settings!$B$6,$D153,"") ->  | K153: =IF($A153=Settings!$B$7,$D153,"") ->  | N153: 0.007935 | O153: 0.01335

Sheet PrimaryData
A1: ScrollBarMax | C1: First Record | E1: ScrollBarValue | G1: SmallChange | I1: RAG
A2: ScrollBarMin | C2: LastRecord | E2: Value | G2: LargeChange
A3: TTLA Code | B3: TTLA Name | C3: Region Code | D3: All LAs | E3: Numerator | F3: Denominator | G3: =Settings!C2 -> Barking and Dagenham | H3: =Settings!C4 -> Greenwich | I3: =Settings!C5 -> Enfield | J3: =Settings!C6 -> Manchester | K3: =Settings!C7 -> Birmingham | L3: =Settings!C3 -> London | M3: England | N3: Top 5% | O3: Top 25% | P3: National Minimum | Q3: National 25th Percentile | R3: National Average | S3: National 75th Percentile | T3: National Maximum | U3: Region
H4: =IF($A4=Settings!$B$4,$D4,"") ->  | I4: =IF($A4=Settings!$B$5,$D4,"") ->  | J4: =IF($A4=Settings!$B$6,$D4,"") ->  | K4: =IF($A4=Settings!$B$7,$D4,"") ->  | N4: 0.2139890555 | O4: 0.3456310073 | P4: 0.159 | Q4: 0.3456 | R4: 0.4262 | S4: 0.5168 | T4: 0.8746 | U4: =INDEX($T$7:$T$15,MATCH(Settings!$B$3,$P$7:$P$15,0),1) -> 
H5: =IF($A5=Settings!$B$4,$D5,"") ->  | I5: =IF($A5=Settings!$B$5,$D5,"") ->  | J5: =IF($A5=Settings!$B$6,$D5,"") ->  | K5: =IF($A5=Settings!$B$7,$D5,"") ->  | N5: 0.2139890555 | O5: 0.3456310073
H6: =IF($A6=Settings!$B$4,$D6,"") ->  | I6: =IF($A6=Settings!$B$5,$D6,"") ->  | J6: =IF($A6=Settings!$B$6,$D6,"") ->  | K6: =IF($A6=Settings!$B$7,$D6,"") ->  | N6: 0.2139890555 | O6: 0.3456310073 | R6: Regional best | S6: Regional Worst | T6: Regional rate
H7: =IF($A7=Settings!$B$4,$D7,"") ->  | I7: =IF($A7=Settings!$B$5,$D7,"") ->  | J7: =IF($A7=Settings!$B$6,$D7,"") ->  | K7: =IF($A7=Settings!$B$7,$D7,"") ->  | N7: 0.2139890555 | O7: 0.3456310073 | P7: E12000001 | Q7: North East | R7: =MIN(IF(INDIRECT("$C$"&$D$1&":$C$"&$D$2)=$P7,INDIRECT("$D$"&$D$1&":$D$"&$D$2))) ->  | S7: =MAX(IF(INDIRECT("$C$"&$D$1&":$C$"&$D$2)=$P7,INDIRECT("$D$"&$D$1&":$D$"&$D$2))) ->  | T7: =SUMIFS(INDIRECT("$E$"&$D$1&":$E$"&$D$2),INDIRECT("$C$"&$D$1&":$C$"&$D$2),$P7)/SUMIFS(INDIRECT("$F$"&$D$1&":$F$"&$D$2),INDIRECT("$C$"&$D$1&":$C$"&$D$2),$P7) -> 
H8: =IF($A8=Settings!$B$4,$D8,"") ->  | I8: =IF($A8=Settings!$B$5,$D8,"") ->  | J8: =IF($A8=Settings!$B$6,$D8,"") ->  | K8: =IF($A8=Settings!$B$7,$D8,"") ->  | N8: 0.2139890555 | O8: 0.3456310073 | P8: E12000002 | Q8: North West | R8: =MIN(IF(INDIRECT("$C$"&$D$1&":$C$"&$D$2)=$P8,INDIRECT("$D$"&$D$1&":$D$"&$D$2))) ->  | S8: =MAX(IF(INDIRECT("$C$"&$D$1&":$C$"&$D$2)=$P8,INDIRECT("$D$"&$D$1&":$D$"&$D$2))) ->  | T8: =SUMIFS(INDIRECT("$E$"&$D$1&":$E$"&$D$2),INDIRECT("$C$"&$D$1&":$C$"&$D$2),$P8)/SUMIFS(INDIRECT("$F$"&$D$1&":$F$"&$D$2),INDIRECT("$C$"&$D$1&":$C$"&$D$2),$P8) -> 
H9: =IF($A9=Settings!$B$4,$D9,"") ->  | I9: =IF($A9=Settings!$B$5,$D9,"") ->  | J9: =IF($A9=Settings!$B$6,$D9,"") ->  | K9: =IF($A9=Settings!$B$7,$D9,"") ->  | N9: 0.2139890555 | O9: 0.3456310073 | P9: E12000003 | Q9: Yorkshire and the Humber | R9: =MIN(IF(INDIRECT("$C$"&$D$1&":$C$"&$D$2)=$P9,INDIRECT("$D$"&$D$1&":$D$"&$D$2))) ->  | S9: =MAX(IF(INDIRECT("$C$"&$D$1&":$C$"&$D$2)=$P9,INDIRECT("$D$"&$D$1&":$D$"&$D$2))) ->  | T9: =SUMIFS(INDIRECT("$E$"&$D$1&":$E$"&$D$2),INDIRECT("$C$"&$D$1&":$C$"&$D$2),$P9)/SUMIFS(INDIRECT("$F$"&$D$1&":$F$"&$D$2),INDIRECT("$C$"&$D$1&":$C$"&$D$2),$P9) -> 
H10: =IF($A10=Settings!$B$4,$D10,"") ->  | I10: =IF($A10=Settings!$B$5,$D10,"") ->  | J10: =IF($A10=Settings!$B$6,$D10,"") ->  | K10: =IF($A10=Settings!$B$7,$D10,"") ->  | N10: 0.2139890555 | O10: 0.3456310073 | P10: E12000004 | Q10: East Midlands | R10: =MIN(IF(INDIRECT("$C$"&$D$1&":$C$"&$D$2)=$P10,INDIRECT("$D$"&$D$1&":$D$"&$D$2))) ->  | S10: =MAX(IF(INDIRECT("$C$"&$D$1&":$C$"&$D$2)=$P10,INDIRECT("$D$"&$D$1&":$D$"&$D$2))) ->  | T10: =SUMIFS(INDIRECT("$E$"&$D$1&":$E$"&$D$2),INDIRECT("$C$"&$D$1&":$C$"&$D$2),$P10)/SUMIFS(INDIRECT("$F$"&$D$1&":$F$"&$D$2),INDIRECT("$C$"&$D$1&":$C$"&$D$2),$P10) -> 
H11: =IF($A11=Settings!$B$4,$D11,"") ->  | I11: =IF($A11=Settings!$B$5,$D11,"") ->  | J11: =IF($A11=Settings!$B$6,$D11,"") ->  | K11: =IF($A11=Settings!$B$7,$D11,"") ->  | N11: 0.2139890555 | O11: 0.3456310073 | P11: E12000005 | Q11: West Midlands | R11: =MIN(IF(INDIRECT("$C$"&$D$1&":$C$"&$D$2)=$P11,INDIRECT("$D$"&$D$1&":$D$"&$D$2))) ->  | S11: =MAX(IF(INDIRECT("$C$"&$D$1&":$C$"&$D$2)=$P11,INDIRECT("$D$"&$D$1&":$D$"&$D$2))) ->  | T11: =SUMIFS(INDIRECT("$E$"&$D$1&":$E$"&$D$2),INDIRECT("$C$"&$D$1&":$C$"&$D$2),$P11)/SUMIFS(INDIRECT("$F$"&$D$1&":$F$"&$D$2),INDIRECT("$C$"&$D$1&":$C$"&$D$2),$P11) -> 
H12: =IF($A12=Settings!$B$4,$D12,"") ->  | I12: =IF($A12=Settings!$B$5,$D12,"") ->  | J12: =IF($A12=Settings!$B$6,$D12,"") ->  | K12: =IF($A12=Settings!$B$7,$D12,"") ->  | N12: 0.2139890555 | O12: 0.3456310073 | P12: E12000006 | Q12: East of England | R12: =MIN(IF(INDIRECT("$C$"&$D$1&":$C$"&$D$2)=$P12,INDIRECT("$D$"&$D$1&":$D$"&$D$2))) ->  | S12: =MAX(IF(INDIRECT("$C$"&$D$1&":$C$"&$D$2)=$P12,INDIRECT("$D$"&$D$1&":$D$"&$D$2))) ->  | T12: =SUMIFS(INDIRECT("$E$"&$D$1&":$E$"&$D$2),INDIRECT("$C$"&$D$1&":$C$"&$D$2),$P12)/SUMIFS(INDIRECT("$F$"&$D$1&":$F$"&$D$2),INDIRECT("$C$"&$D$1&":$C$"&$D$2),$P12) -> 
H13: =IF($A13=Settings!$B$4,$D13,"") ->  | I13: =IF($A13=Settings!$B$5,$D13,"") ->  | J13: =IF($A13=Settings!$B$6,$D13,"") ->  | K13: =IF($A13=Settings!$B$7,$D13,"") ->  | N13: 0.2139890555 | O13: 0.3456310073 | P13: E12000007 | Q13: London | R13: =MIN(IF(INDIRECT("$C$"&$D$1&":$C$"&$D$2)=$P13,INDIRECT("$D$"&$D$1&":$D$"&$D$2))) ->  | S13: =MAX(IF(INDIRECT("$C$"&$D$1&":$C$"&$D$2)=$P13,INDIRECT("$D$"&$D$1&":$D$"&$D$2))) ->  | T13: =SUMIFS(INDIRECT("$E$"&$D$1&":$E$"&$D$2),INDIRECT("$C$"&$D$1&":$C$"&$D$2),$P13)/SUMIFS(INDIRECT("$F$"&$D$1&":$F$"&$D$2),INDIRECT("$C$"&$D$1&":$C$"&$D$2),$P13) -> 
H14: =IF($A14=Settings!$B$4,$D14,"") ->  | I14: =IF($A14=Settings!$B$5,$D14,"") ->  | J14: =IF($A14=Settings!$B$6,$D14,"") ->  | K14: =IF($A14=Settings!$B$7,$D14,"") ->  | N14: 0.2139890555 | O14: 0.3456310073 | P14: E12000008 | Q14: South East | R14: =MIN(IF(INDIRECT("$C$"&$D$1&":$C$"&$D$2)=$P14,INDIRECT("$D$"&$D$1&":$D$"&$D$2))) ->  | S14: =MAX(IF(INDIRECT("$C$"&$D$1&":$C$"&$D$2)=$P14,INDIRECT("$D$"&$D$1&":$D$"&$D$2))) ->  | T14: =SUMIFS(INDIRECT("$E$"&$D$1&":$E$"&$D$2),INDIRECT("$C$"&$D$1&":$C$"&$D$2),$P14)/SUMIFS(INDIRECT("$F$"&$D$1&":$F$"&$D$2),INDIRECT("$C$"&$D$1&":$C$"&$D$2),$P14) -> 
H15: =IF($A15=Settings!$B$4,$D15,"") ->  | I15: =IF($A15=Settings!$B$5,$D15,"") ->  | J15: =IF($A15=Settings!$B$6,$D15,"") ->  | K15: =IF($A15=Settings!$B$7,$D15,"") ->  | N15: 0.2139890555 | O15: 0.3456310073 | P15: E12000009 | Q15: South West | R15: =MIN(IF(INDIRECT("$C$"&$D$1&":$C$"&$D$2)=$P15,INDIRECT("$D$"&$D$1&":$D$"&$D$2))) ->  | S15: =MAX(IF(INDIRECT("$C$"&$D$1&":$C$"&$D$2)=$P15,INDIRECT("$D$"&$D$1&":$D$"&$D$2))) ->  | T15: =SUMIFS(INDIRECT("$E$"&$D$1&":$E$"&$D$2),INDIRECT("$C$"&$D$1&":$C$"&$D$2),$P15)/SUMIFS(INDIRECT("$F$"&$D$1&":$F$"&$D$2),INDIRECT("$C$"&$D$1&":$C$"&$D$2),$P15) -> 
H16: =IF($A16=Settings!$B$4,$D16,"") ->  | I16: =IF($A16=Settings!$B$5,$D16,"") ->  | J16: =IF($A16=Settings!$B$6,$D16,"") ->  | K16: =IF($A16=Settings!$B$7,$D16,"") ->  | N16: 0.2139890555 | O16: 0.3456310073
H17: =IF($A17=Settings!$B$4,$D17,"") ->  | I17: =IF($A17=Settings!$B$5,$D17,"") ->  | J17: =IF($A17=Settings!$B$6,$D17,"") ->  | K17: =IF($A17=Settings!$B$7,$D17,"") ->  | N17: 0.2139890555 | O17: 0.3456310073
H18: =IF($A18=Settings!$B$4,$D18,"") ->  | I18: =IF($A18=Settings!$B$5,$D18,"") ->  | J18: =IF($A18=Settings!$B$6,$D18,"") ->  | K18: =IF($A18=Settings!$B$7,$D18,"") ->  | N18: 0.2139890555 | O18: 0.3456310073
H19: =IF($A19=Settings!$B$4,$D19,"") ->  | I19: =IF($A19=Settings!$B$5,$D19,"") ->  | J19: =IF($A19=Settings!$B$6,$D19,"") ->  | K19: =IF($A19=Settings!$B$7,$D19,"") ->  | N19: 0.2139890555 | O19: 0.3456310073
H20: =IF($A20=Settings!$B$4,$D20,"") ->  | I20: =IF($A20=Settings!$B$5,$D20,"") ->  | J20: =IF($A20=Settings!$B$6,$D20,"") ->  | K20: =IF($A20=Settings!$B$7,$D20,"") ->  | N20: 0.2139890555 | O20: 0.3456310073
H21: =IF($A21=Settings!$B$4,$D21,"") ->  | I21: =IF($A21=Settings!$B$5,$D21,"") ->  | J21: =IF($A21=Settings!$B$6,$D21,"") ->  | K21: =IF($A21=Settings!$B$7,$D21,"") ->  | N21: 0.2139890555 | O21: 0.3456310073
H22: =IF($A22=Settings!$B$4,$D22,"") ->  | I22: =IF($A22=Settings!$B$5,$D22,"") ->  | J22: =IF($A22=Settings!$B$6,$D22,"") ->  | K22: =IF($A22=Settings!$B$7,$D22,"") ->  | N22: 0.2139890555 | O22: 0.3456310073
H23: =IF($A23=Settings!$B$4,$D23,"") ->  | I23: =IF($A23=Settings!$B$5,$D23,"") ->  | J23: =IF($A23=Settings!$B$6,$D23,"") ->  | K23: =IF($A23=Settings!$B$7,$D23,"") ->  | N23: 0.2139890555 | O23: 0.3456310073
H24: =IF($A24=Settings!$B$4,$D24,"") ->  | I24: =IF($A24=Settings!$B$5,$D24,"") ->  | J24: =IF($A24=Settings!$B$6,$D24,"") ->  | K24: =IF($A24=Settings!$B$7,$D24,"") ->  | N24: 0.2139890555 | O24: 0.3456310073
H25: =IF($A25=Settings!$B$4,$D25,"") ->  | I25: =IF($A25=Settings!$B$5,$D25,"") ->  | J25: =IF($A25=Settings!$B$6,$D25,"") ->  | K25: =IF($A25=Settings!$B$7,$D25,"") ->  | N25: 0.2139890555 | O25: 0.3456310073
H26: =IF($A26=Settings!$B$4,$D26,"") ->  | I26: =IF($A26=Settings!$B$5,$D26,"") ->  | J26: =IF($A26=Settings!$B$6,$D26,"") ->  | K26: =IF($A26=Settings!$B$7,$D26,"") ->  | N26: 0.2139890555 | O26: 0.3456310073
H27: =IF($A27=Settings!$B$4,$D27,"") ->  | I27: =IF($A27=Settings!$B$5,$D27,"") ->  | J27: =IF($A27=Settings!$B$6,$D27,"") ->  | K27: =IF($A27=Settings!$B$7,$D27,"") ->  | N27: 0.2139890555 | O27: 0.3456310073
H28: =IF($A28=Settings!$B$4,$D28,"") ->  | I28: =IF($A28=Settings!$B$5,$D28,"") ->  | J28: =IF($A28=Settings!$B$6,$D28,"") ->  | K28: =IF($A28=Settings!$B$7,$D28,"") ->  | N28: 0.2139890555 | O28: 0.3456310073
H29: =IF($A29=Settings!$B$4,$D29,"") ->  | I29: =IF($A29=Settings!$B$5,$D29,"") ->  | J29: =IF($A29=Settings!$B$6,$D29,"") ->  | K29: =IF($A29=Settings!$B$7,$D29,"") ->  | N29: 0.2139890555 | O29: 0.3456310073
H30: =IF($A30=Settings!$B$4,$D30,"") ->  | I30: =IF($A30=Settings!$B$5,$D30,"") ->  | J30: =IF($A30=Settings!$B$6,$D30,"") ->  | K30: =IF($A30=Settings!$B$7,$D30,"") ->  | N30: 0.2139890555 | O30: 0.3456310073
H31: =IF($A31=Settings!$B$4,$D31,"") ->  | I31: =IF($A31=Settings!$B$5,$D31,"") ->  | J31: =IF($A31=Settings!$B$6,$D31,"") ->  | K31: =IF($A31=Settings!$B$7,$D31,"") ->  | N31: 0.2139890555 | O31: 0.3456310073
H32: =IF($A32=Settings!$B$4,$D32,"") ->  | I32: =IF($A32=Settings!$B$5,$D32,"") ->  | J32: =IF($A32=Settings!$B$6,$D32,"") ->  | K32: =IF($A32=Settings!$B$7,$D32,"") ->  | N32: 0.2139890555 | O32: 0.3456310073
H33: =IF($A33=Settings!$B$4,$D33,"") ->  | I33: =IF($A33=Settings!$B$5,$D33,"") ->  | J33: =IF($A33=Settings!$B$6,$D33,"") ->  | K33: =IF($A33=Settings!$B$7,$D33,"") ->  | N33: 0.2139890555 | O33: 0.3456310073
H34: =IF($A34=Settings!$B$4,$D34,"") ->  | I34: =IF($A34=Settings!$B$5,$D34,"") ->  | J34: =IF($A34=Settings!$B$6,$D34,"") ->  | K34: =IF($A34=Settings!$B$7,$D34,"") ->  | N34: 0.2139890555 | O34: 0.3456310073
H35: =IF($A35=Settings!$B$4,$D35,"") ->  | I35: =IF($A35=Settings!$B$5,$D35,"") ->  | J35: =IF($A35=Settings!$B$6,$D35,"") ->  | K35: =IF($A35=Settings!$B$7,$D35,"") ->  | N35: 0.2139890555 | O35: 0.3456310073
H36: =IF($A36=Settings!$B$4,$D36,"") ->  | I36: =IF($A36=Settings!$B$5,$D36,"") ->  | J36: =IF($A36=Settings!$B$6,$D36,"") ->  | K36: =IF($A36=Settings!$B$7,$D36,"") ->  | N36: 0.2139890555 | O36: 0.3456310073
H37: =IF($A37=Settings!$B$4,$D37,"") ->  | I37: =IF($A37=Settings!$B$5,$D37,"") ->  | J37: =IF($A37=Settings!$B$6,$D37,"") ->  | K37: =IF($A37=Settings!$B$7,$D37,"") ->  | N37: 0.2139890555 | O37: 0.3456310073
H38: =IF($A38=Settings!$B$4,$D38,"") ->  | I38: =IF($A38=Settings!$B$5,$D38,"") ->  | J38: =IF($A38=Settings!$B$6,$D38,"") ->  | K38: =IF($A38=Settings!$B$7,$D38,"") ->  | N38: 0.2139890555 | O38: 0.3456310073
H39: =IF($A39=Settings!$B$4,$D39,"") ->  | I39: =IF($A39=Settings!$B$5,$D39,"") ->  | J39: =IF($A39=Settings!$B$6,$D39,"") ->  | K39: =IF($A39=Settings!$B$7,$D39,"") ->  | L39: 0.3344 | N39: 0.2139890555 | O39: 0.3456310073
H40: =IF($A40=Settings!$B$4,$D40,"") ->  | I40: =IF($A40=Settings!$B$5,$D40,"") ->  | J40: =IF($A40=Settings!$B$6,$D40,"") ->  | K40: =IF($A40=Settings!$B$7,$D40,"") ->  | N40: 0.2139890555 | O40: 0.3456310073
H41: =IF($A41=Settings!$B$4,$D41,"") ->  | I41: =IF($A41=Settings!$B$5,$D41,"") ->  | J41: =IF($A41=Settings!$B$6,$D41,"") ->  | K41: =IF($A41=Settings!$B$7,$D41,"") ->  | N41: 0.2139890555 | O41: 0.3456310073
H42: =IF($A42=Settings!$B$4,$D42,"") ->  | I42: =IF($A42=Settings!$B$5,$D42,"") ->  | J42: =IF($A42=Settings!$B$6,$D42,"") ->  | K42: =IF($A42=Settings!$B$7,$D42,"") ->  | N42: 0.2139890555 | O42: 0.3456310073
H43: =IF($A43=Settings!$B$4,$D43,"") ->  | I43: =IF($A43=Settings!$B$5,$D43,"") ->  | J43: =IF($A43=Settings!$B$6,$D43,"") ->  | K43: =IF($A43=Settings!$B$7,$D43,"") ->  | N43: 0.2139890555 | O43: 0.3456310073
H44: =IF($A44=Settings!$B$4,$D44,"") ->  | I44: =IF($A44=Settings!$B$5,$D44,"") ->  | J44: =IF($A44=Settings!$B$6,$D44,"") ->  | K44: =IF($A44=Settings!$B$7,$D44,"") ->  | N44: 0.2139890555 | O44: 0.3456310073
H45: =IF($A45=Settings!$B$4,$D45,"") ->  | I45: =IF($A45=Settings!$B$5,$D45,"") ->  | J45: =IF($A45=Settings!$B$6,$D45,"") ->  | K45: =IF($A45=Settings!$B$7,$D45,"") ->  | N45: 0.2139890555 | O45: 0.3456310073
H46: =IF($A46=Settings!$B$4,$D46,"") ->  | I46: =IF($A46=Settings!$B$5,$D46,"") ->  | J46: =IF($A46=Settings!$B$6,$D46,"") ->  | K46: =IF($A46=Settings!$B$7,$D46,"") ->  | N46: 0.2139890555 | O46: 0.3456310073
H47: =IF($A47=Settings!$B$4,$D47,"") ->  | I47: =IF($A47=Settings!$B$5,$D47,"") ->  | J47: =IF($A47=Settings!$B$6,$D47,"") ->  | K47: =IF($A47=Settings!$B$7,$D47,"") ->  | N47: 0.2139890555 | O47: 0.3456310073
H48: =IF($A48=Settings!$B$4,$D48,"") ->  | I48: =IF($A48=Settings!$B$5,$D48,"") ->  | J48: =IF($A48=Settings!$B$6,$D48,"") ->  | K48: =IF($A48=Settings!$B$7,$D48,"") ->  | N48: 0.2139890555 | O48: 0.3456310073
H49: =IF($A49=Settings!$B$4,$D49,"") ->  | I49: =IF($A49=Settings!$B$5,$D49,"") ->  | J49: =IF($A49=Settings!$B$6,$D49,"") ->  | K49: =IF($A49=Settings!$B$7,$D49,"") ->  | N49: 0.2139890555 | O49: 0.3456310073
H50: =IF($A50=Settings!$B$4,$D50,"") ->  | I50: =IF($A50=Settings!$B$5,$D50,"") ->  | J50: =IF($A50=Settings!$B$6,$D50,"") ->  | K50: =IF($A50=Settings!$B$7,$D50,"") ->  | N50: 0.2139890555 | O50: 0.3456310073
H51: =IF($A51=Settings!$B$4,$D51,"") ->  | I51: =IF($A51=Settings!$B$5,$D51,"") ->  | J51: =IF($A51=Settings!$B$6,$D51,"") ->  | K51: =IF($A51=Settings!$B$7,$D51,"") ->  | N51: 0.2139890555 | O51: 0.3456310073
H52: =IF($A52=Settings!$B$4,$D52,"") ->  | I52: =IF($A52=Settings!$B$5,$D52,"") ->  | J52: =IF($A52=Settings!$B$6,$D52,"") ->  | K52: =IF($A52=Settings!$B$7,$D52,"") ->  | N52: 0.2139890555 | O52: 0.3456310073
H53: =IF($A53=Settings!$B$4,$D53,"") ->  | I53: =IF($A53=Settings!$B$5,$D53,"") ->  | J53: =IF($A53=Settings!$B$6,$D53,"") ->  | K53: =IF($A53=Settings!$B$7,$D53,"") ->  | N53: 0.2139890555 | O53: 0.3456310073
H54: =IF($A54=Settings!$B$4,$D54,"") ->  | I54: =IF($A54=Settings!$B$5,$D54,"") ->  | J54: =IF($A54=Settings!$B$6,$D54,"") ->  | K54: =IF($A54=Settings!$B$7,$D54,"") ->  | N54: 0.2139890555 | O54: 0.3456310073
H55: =IF($A55=Settings!$B$4,$D55,"") ->  | I55: =IF($A55=Settings!$B$5,$D55,"") ->  | J55: =IF($A55=Settings!$B$6,$D55,"") ->  | K55: =IF($A55=Settings!$B$7,$D55,"") ->  | N55: 0.2139890555 | O55: 0.3456310073
H56: =IF($A56=Settings!$B$4,$D56,"") ->  | I56: =IF($A56=Settings!$B$5,$D56,"") ->  | J56: =IF($A56=Settings!$B$6,$D56,"") ->  | K56: =IF($A56=Settings!$B$7,$D56,"") ->  | N56: 0.2139890555 | O56: 0.3456310073
H57: =IF($A57=Settings!$B$4,$D57,"") ->  | I57: =IF($A57=Settings!$B$5,$D57,"") ->  | J57: =IF($A57=Settings!$B$6,$D57,"") ->  | K57: =IF($A57=Settings!$B$7,$D57,"") ->  | N57: 0.2139890555 | O57: 0.3456310073
H58: =IF($A58=Settings!$B$4,$D58,"") ->  | I58: =IF($A58=Settings!$B$5,$D58,"") ->  | J58: =IF($A58=Settings!$B$6,$D58,"") ->  | K58: =IF($A58=Settings!$B$7,$D58,"") ->  | N58: 0.2139890555 | O58: 0.3456310073
H59: =IF($A59=Settings!$B$4,$D59,"") ->  | I59: =IF($A59=Settings!$B$5,$D59,"") ->  | J59: =IF($A59=Settings!$B$6,$D59,"") ->  | K59: =IF($A59=Settings!$B$7,$D59,"") ->  | N59: 0.2139890555 | O59: 0.3456310073
H60: =IF($A60=Settings!$B$4,$D60,"") ->  | I60: =IF($A60=Settings!$B$5,$D60,"") ->  | J60: =IF($A60=Settings!$B$6,$D60,"") ->  | K60: =IF($A60=Settings!$B$7,$D60,"") ->  | N60: 0.2139890555 | O60: 0.3456310073
H61: =IF($A61=Settings!$B$4,$D61,"") ->  | I61: =IF($A61=Settings!$B$5,$D61,"") ->  | J61: =IF($A61=Settings!$B$6,$D61,"") ->  | K61: =IF($A61=Settings!$B$7,$D61,"") ->  | N61: 0.2139890555 | O61: 0.3456310073
H62: =IF($A62=Settings!$B$4,$D62,"") ->  | I62: =IF($A62=Settings!$B$5,$D62,"") ->  | J62: =IF($A62=Settings!$B$6,$D62,"") ->  | K62: =IF($A62=Settings!$B$7,$D62,"") ->  | N62: 0.2139890555 | O62: 0.3456310073
H63: =IF($A63=Settings!$B$4,$D63,"") ->  | I63: =IF($A63=Settings!$B$5,$D63,"") ->  | J63: =IF($A63=Settings!$B$6,$D63,"") ->  | K63: =IF($A63=Settings!$B$7,$D63,"") ->  | N63: 0.2139890555 | O63: 0.3456310073
H64: =IF($A64=Settings!$B$4,$D64,"") ->  | I64: =IF($A64=Settings!$B$5,$D64,"") ->  | J64: =IF($A64=Settings!$B$6,$D64,"") ->  | K64: =IF($A64=Settings!$B$7,$D64,"") ->  | N64: 0.2139890555 | O64: 0.3456310073
H65: =IF($A65=Settings!$B$4,$D65,"") ->  | I65: =IF($A65=Settings!$B$5,$D65,"") ->  | J65: =IF($A65=Settings!$B$6,$D65,"") ->  | K65: =IF($A65=Settings!$B$7,$D65,"") ->  | N65: 0.2139890555 | O65: 0.3456310073
H66: =IF($A66=Settings!$B$4,$D66,"") ->  | I66: =IF($A66=Settings!$B$5,$D66,"") ->  | J66: =IF($A66=Settings!$B$6,$D66,"") ->  | K66: =IF($A66=Settings!$B$7,$D66,"") ->  | N66: 0.2139890555 | O66: 0.3456310073
H67: =IF($A67=Settings!$B$4,$D67,"") ->  | I67: =IF($A67=Settings!$B$5,$D67,"") ->  | J67: =IF($A67=Settings!$B$6,$D67,"") ->  | K67: =IF($A67=Settings!$B$7,$D67,"") ->  | N67: 0.2139890555 | O67: 0.3456310073
H68: =IF($A68=Settings!$B$4,$D68,"") ->  | I68: =IF($A68=Settings!$B$5,$D68,"") ->  | J68: =IF($A68=Settings!$B$6,$D68,"") ->  | K68: =IF($A68=Settings!$B$7,$D68,"") ->  | N68: 0.2139890555 | O68: 0.3456310073
H69: =IF($A69=Settings!$B$4,$D69,"") ->  | I69: =IF($A69=Settings!$B$5,$D69,"") ->  | J69: =IF($A69=Settings!$B$6,$D69,"") ->  | K69: =IF($A69=Settings!$B$7,$D69,"") ->  | N69: 0.2139890555 | O69: 0.3456310073
H70: =IF($A70=Settings!$B$4,$D70,"") ->  | I70: =IF($A70=Settings!$B$5,$D70,"") ->  | J70: =IF($A70=Settings!$B$6,$D70,"") ->  | K70: =IF($A70=Settings!$B$7,$D70,"") ->  | N70: 0.2139890555 | O70: 0.3456310073
H71: =IF($A71=Settings!$B$4,$D71,"") ->  | I71: =IF($A71=Settings!$B$5,$D71,"") ->  | J71: =IF($A71=Settings!$B$6,$D71,"") ->  | K71: =IF($A71=Settings!$B$7,$D71,"") ->  | N71: 0.2139890555 | O71: 0.3456310073
H72: =IF($A72=Settings!$B$4,$D72,"") ->  | I72: =IF($A72=Settings!$B$5,$D72,"") ->  | J72: =IF($A72=Settings!$B$6,$D72,"") ->  | K72: =IF($A72=Settings!$B$7,$D72,"") ->  | N72: 0.2139890555 | O72: 0.3456310073
H73: =IF($A73=Settings!$B$4,$D73,"") ->  | I73: =IF($A73=Settings!$B$5,$D73,"") ->  | J73: =IF($A73=Settings!$B$6,$D73,"") ->  | K73: =IF($A73=Settings!$B$7,$D73,"") ->  | N73: 0.2139890555 | O73: 0.3456310073
H74: =IF($A74=Settings!$B$4,$D74,"") ->  | I74: =IF($A74=Settings!$B$5,$D74,"") ->  | J74: =IF($A74=Settings!$B$6,$D74,"") ->  | K74: =IF($A74=Settings!$B$7,$D74,"") ->  | N74: 0.2139890555 | O74: 0.3456310073
H75: =IF($A75=Settings!$B$4,$D75,"") ->  | I75: =IF($A75=Settings!$B$5,$D75,"") ->  | J75: =IF($A75=Settings!$B$6,$D75,"") ->  | K75: =IF($A75=Settings!$B$7,$D75,"") ->  | N75: 0.2139890555 | O75: 0.3456310073
H76: =IF($A76=Settings!$B$4,$D76,"") ->  | I76: =IF($A76=Settings!$B$5,$D76,"") ->  | J76: =IF($A76=Settings!$B$6,$D76,"") ->  | K76: =IF($A76=Settings!$B$7,$D76,"") ->  | N76: 0.2139890555 | O76: 0.3456310073
H77: =IF($A77=Settings!$B$4,$D77,"") ->  | I77: =IF($A77=Settings!$B$5,$D77,"") ->  | J77: =IF($A77=Settings!$B$6,$D77,"") ->  | K77: =IF($A77=Settings!$B$7,$D77,"") ->  | N77: 0.2139890555 | O77: 0.3456310073
H78: =IF($A78=Settings!$B$4,$D78,"") ->  | I78: =IF($A78=Settings!$B$5,$D78,"") ->  | J78: =IF($A78=Settings!$B$6,$D78,"") ->  | K78: =IF($A78=Settings!$B$7,$D78,"") ->  | M78: 0.4262 | N78: 0.2139890555 | O78: 0.3456310073 | P78: 0.3603
H79: =IF($A79=Settings!$B$4,$D79,"") ->  | I79: =IF($A79=Settings!$B$5,$D79,"") ->  | J79: =IF($A79=Settings!$B$6,$D79,"") ->  | K79: =IF($A79=Settings!$B$7,$D79,"") ->  | N79: 0.2139890555 | O79: 0.3456310073
H80: =IF($A80=Settings!$B$4,$D80,"") ->  | I80: =IF($A80=Settings!$B$5,$D80,"") ->  | J80: =IF($A80=Settings!$B$6,$D80,"") ->  | K80: =IF($A80=Settings!$B$7,$D80,"") ->  | N80: 0.2139890555 | O80: 0.3456310073
H81: =IF($A81=Settings!$B$4,$D81,"") ->  | I81: =IF($A81=Settings!$B$5,$D81,"") ->  | J81: =IF($A81=Settings!$B$6,$D81,"") ->  | K81: =IF($A81=Settings!$B$7,$D81,"") ->  | N81: 0.2139890555 | O81: 0.3456310073
H82: =IF($A82=Settings!$B$4,$D82,"") ->  | I82: =IF($A82=Settings!$B$5,$D82,"") ->  | J82: =IF($A82=Settings!$B$6,$D82,"") ->  | K82: =IF($A82=Settings!$B$7,$D82,"") ->  | N82: 0.2139890555 | O82: 0.3456310073
H83: =IF($A83=Settings!$B$4,$D83,"") ->  | I83: =IF($A83=Settings!$B$5,$D83,"") ->  | J83: =IF($A83=Settings!$B$6,$D83,"") ->  | K83: =IF($A83=Settings!$B$7,$D83,"") ->  | N83: 0.2139890555 | O83: 0.3456310073
H84: =IF($A84=Settings!$B$4,$D84,"") ->  | I84: =IF($A84=Settings!$B$5,$D84,"") ->  | J84: =IF($A84=Settings!$B$6,$D84,"") ->  | K84: =IF($A84=Settings!$B$7,$D84,"") ->  | N84: 0.2139890555 | O84: 0.3456310073
H85: =IF($A85=Settings!$B$4,$D85,"") ->  | I85: =IF($A85=Settings!$B$5,$D85,"") ->  | J85: =IF($A85=Settings!$B$6,$D85,"") ->  | K85: =IF($A85=Settings!$B$7,$D85,"") ->  | N85: 0.2139890555 | O85: 0.3456310073
H86: =IF($A86=Settings!$B$4,$D86,"") ->  | I86: =IF($A86=Settings!$B$5,$D86,"") ->  | J86: =IF($A86=Settings!$B$6,$D86,"") ->  | K86: =IF($A86=Settings!$B$7,$D86,"") ->  | N86: 0.2139890555 | O86: 0.3456310073
H87: =IF($A87=Settings!$B$4,$D87,"") ->  | I87: =IF($A87=Settings!$B$5,$D87,"") ->  | J87: =IF($A87=Settings!$B$6,$D87,"") ->  | K87: =IF($A87=Settings!$B$7,$D87,"") ->  | N87: 0.2139890555 | O87: 0.3456310073
H88: =IF($A88=Settings!$B$4,$D88,"") ->  | I88: =IF($A88=Settings!$B$5,$D88,"") ->  | J88: =IF($A88=Settings!$B$6,$D88,"") ->  | K88: =IF($A88=Settings!$B$7,$D88,"") ->  | N88: 0.2139890555 | O88: 0.3456310073
H89: =IF($A89=Settings!$B$4,$D89,"") ->  | I89: =IF($A89=Settings!$B$5,$D89,"") ->  | J89: =IF($A89=Settings!$B$6,$D89,"") ->  | K89: =IF($A89=Settings!$B$7,$D89,"") ->  | N89: 0.2139890555 | O89: 0.3456310073
H90: =IF($A90=Settings!$B$4,$D90,"") ->  | I90: =IF($A90=Settings!$B$5,$D90,"") ->  | J90: =IF($A90=Settings!$B$6,$D90,"") ->  | K90: =IF($A90=Settings!$B$7,$D90,"") ->  | N90: 0.2139890555 | O90: 0.3456310073
H91: =IF($A91=Settings!$B$4,$D91,"") ->  | I91: =IF($A91=Settings!$B$5,$D91,"") ->  | J91: =IF($A91=Settings!$B$6,$D91,"") ->  | K91: =IF($A91=Settings!$B$7,$D91,"") ->  | N91: 0.2139890555 | O91: 0.3456310073
H92: =IF($A92=Settings!$B$4,$D92,"") ->  | I92: =IF($A92=Settings!$B$5,$D92,"") ->  | J92: =IF($A92=Settings!$B$6,$D92,"") ->  | K92: =IF($A92=Settings!$B$7,$D92,"") ->  | N92: 0.2139890555 | O92: 0.3456310073
H93: =IF($A93=Settings!$B$4,$D93,"") ->  | I93: =IF($A93=Settings!$B$5,$D93,"") ->  | J93: =IF($A93=Settings!$B$6,$D93,"") ->  | K93: =IF($A93=Settings!$B$7,$D93,"") ->  | N93: 0.2139890555 | O93: 0.3456310073
H94: =IF($A94=Settings!$B$4,$D94,"") ->  | I94: =IF($A94=Settings!$B$5,$D94,"") ->  | J94: =IF($A94=Settings!$B$6,$D94,"") ->  | K94: =IF($A94=Settings!$B$7,$D94,"") ->  | N94: 0.2139890555 | O94: 0.3456310073
H95: =IF($A95=Settings!$B$4,$D95,"") ->  | I95: =IF($A95=Settings!$B$5,$D95,"") ->  | J95: =IF($A95=Settings!$B$6,$D95,"") ->  | K95: =IF($A95=Settings!$B$7,$D95,"") ->  | N95: 0.2139890555 | O95: 0.3456310073
H96: =IF($A96=Settings!$B$4,$D96,"") ->  | I96: =IF($A96=Settings!$B$5,$D96,"") ->  | J96: =IF($A96=Settings!$B$6,$D96,"") ->  | K96: =IF($A96=Settings!$B$7,$D96,"") ->  | N96: 0.2139890555 | O96: 0.3456310073
H97: =IF($A97=Settings!$B$4,$D97,"") ->  | I97: =IF($A97=Settings!$B$5,$D97,"") ->  | J97: =IF($A97=Settings!$B$6,$D97,"") ->  | K97: =IF($A97=Settings!$B$7,$D97,"") ->  | N97: 0.2139890555 | O97: 0.3456310073
H98: =IF($A98=Settings!$B$4,$D98,"") ->  | I98: =IF($A98=Settings!$B$5,$D98,"") ->  | J98: =IF($A98=Settings!$B$6,$D98,"") ->  | K98: =IF($A98=Settings!$B$7,$D98,"") ->  | N98: 0.2139890555 | O98: 0.3456310073
H99: =IF($A99=Settings!$B$4,$D99,"") ->  | I99: =IF($A99=Settings!$B$5,$D99,"") ->  | J99: =IF($A99=Settings!$B$6,$D99,"") ->  | K99: =IF($A99=Settings!$B$7,$D99,"") ->  | N99: 0.2139890555 | O99: 0.3456310073
H100: =IF($A100=Settings!$B$4,$D100,"") ->  | I100: =IF($A100=Settings!$B$5,$D100,"") ->  | J100: =IF($A100=Settings!$B$6,$D100,"") ->  | K100: =IF($A100=Settings!$B$7,$D100,"") ->  | N100: 0.2139890555 | O100: 0.3456310073
H101: =IF($A101=Settings!$B$4,$D101,"") ->  | I101: =IF($A101=Settings!$B$5,$D101,"") ->  | J101: =IF($A101=Settings!$B$6,$D101,"") ->  | K101: =IF($A101=Settings!$B$7,$D101,"") ->  | N101: 0.2139890555 | O101: 0.3456310073
H102: =IF($A102=Settings!$B$4,$D102,"") ->  | I102: =IF($A102=Settings!$B$5,$D102,"") ->  | J102: =IF($A102=Settings!$B$6,$D102,"") ->  | K102: =IF($A102=Settings!$B$7,$D102,"") ->  | N102: 0.2139890555 | O102: 0.3456310073
H103: =IF($A103=Settings!$B$4,$D103,"") ->  | I103: =IF($A103=Settings!$B$5,$D103,"") ->  | J103: =IF($A103=Settings!$B$6,$D103,"") ->  | K103: =IF($A103=Settings!$B$7,$D103,"") ->  | N103: 0.2139890555 | O103: 0.3456310073
H104: =IF($A104=Settings!$B$4,$D104,"") ->  | I104: =IF($A104=Settings!$B$5,$D104,"") ->  | J104: =IF($A104=Settings!$B$6,$D104,"") ->  | K104: =IF($A104=Settings!$B$7,$D104,"") ->  | N104: 0.2139890555 | O104: 0.3456310073
H105: =IF($A105=Settings!$B$4,$D105,"") ->  | I105: =IF($A105=Settings!$B$5,$D105,"") ->  | J105: =IF($A105=Settings!$B$6,$D105,"") ->  | K105: =IF($A105=Settings!$B$7,$D105,"") ->  | N105: 0.2139890555 | O105: 0.3456310073
H106: =IF($A106=Settings!$B$4,$D106,"") ->  | I106: =IF($A106=Settings!$B$5,$D106,"") ->  | J106: =IF($A106=Settings!$B$6,$D106,"") ->  | K106: =IF($A106=Settings!$B$7,$D106,"") ->  | N106: 0.2139890555 | O106: 0.3456310073
H107: =IF($A107=Settings!$B$4,$D107,"") ->  | I107: =IF($A107=Settings!$B$5,$D107,"") ->  | J107: =IF($A107=Settings!$B$6,$D107,"") ->  | K107: =IF($A107=Settings!$B$7,$D107,"") ->  | N107: 0.2139890555 | O107: 0.3456310073
H108: =IF($A108=Settings!$B$4,$D108,"") ->  | I108: =IF($A108=Settings!$B$5,$D108,"") ->  | J108: =IF($A108=Settings!$B$6,$D108,"") ->  | K108: =IF($A108=Settings!$B$7,$D108,"") ->  | N108: 0.2139890555 | O108: 0.3456310073
H109: =IF($A109=Settings!$B$4,$D109,"") ->  | I109: =IF($A109=Settings!$B$5,$D109,"") ->  | J109: =IF($A109=Settings!$B$6,$D109,"") ->  | K109: =IF($A109=Settings!$B$7,$D109,"") ->  | N109: 0.2139890555 | O109: 0.3456310073
H110: =IF($A110=Settings!$B$4,$D110,"") ->  | I110: =IF($A110=Settings!$B$5,$D110,"") ->  | J110: =IF($A110=Settings!$B$6,$D110,"") ->  | K110: =IF($A110=Settings!$B$7,$D110,"") ->  | N110: 0.2139890555 | O110: 0.3456310073
H111: =IF($A111=Settings!$B$4,$D111,"") ->  | I111: =IF($A111=Settings!$B$5,$D111,"") ->  | J111: =IF($A111=Settings!$B$6,$D111,"") ->  | K111: =IF($A111=Settings!$B$7,$D111,"") ->  | N111: 0.2139890555 | O111: 0.3456310073
H112: =IF($A112=Settings!$B$4,$D112,"") ->  | I112: =IF($A112=Settings!$B$5,$D112,"") ->  | J112: =IF($A112=Settings!$B$6,$D112,"") ->  | K112: =IF($A112=Settings!$B$7,$D112,"") ->  | N112: 0.2139890555 | O112: 0.3456310073
H113: =IF($A113=Settings!$B$4,$D113,"") ->  | I113: =IF($A113=Settings!$B$5,$D113,"") ->  | J113: =IF($A113=Settings!$B$6,$D113,"") ->  | K113: =IF($A113=Settings!$B$7,$D113,"") ->  | N113: 0.2139890555 | O113: 0.3456310073
H114: =IF($A114=Settings!$B$4,$D114,"") ->  | I114: =IF($A114=Settings!$B$5,$D114,"") ->  | J114: =IF($A114=Settings!$B$6,$D114,"") ->  | K114: =IF($A114=Settings!$B$7,$D114,"") ->  | N114: 0.2139890555 | O114: 0.3456310073
H115: =IF($A115=Settings!$B$4,$D115,"") ->  | I115: =IF($A115=Settings!$B$5,$D115,"") ->  | J115: =IF($A115=Settings!$B$6,$D115,"") ->  | K115: =IF($A115=Settings!$B$7,$D115,"") ->  | N115: 0.2139890555 | O115: 0.3456310073
H116: =IF($A116=Settings!$B$4,$D116,"") ->  | I116: =IF($A116=Settings!$B$5,$D116,"") ->  | J116: =IF($A116=Settings!$B$6,$D116,"") ->  | K116: =IF($A116=Settings!$B$7,$D116,"") ->  | N116: 0.2139890555 | O116: 0.3456310073
H117: =IF($A117=Settings!$B$4,$D117,"") ->  | I117: =IF($A117=Settings!$B$5,$D117,"") ->  | J117: =IF($A117=Settings!$B$6,$D117,"") ->  | K117: =IF($A117=Settings!$B$7,$D117,"") ->  | N117: 0.2139890555 | O117: 0.3456310073
H118: =IF($A118=Settings!$B$4,$D118,"") ->  | I118: =IF($A118=Settings!$B$5,$D118,"") ->  | J118: =IF($A118=Settings!$B$6,$D118,"") ->  | K118: =IF($A118=Settings!$B$7,$D118,"") ->  | N118: 0.2139890555 | O118: 0.3456310073
H119: =IF($A119=Settings!$B$4,$D119,"") ->  | I119: =IF($A119=Settings!$B$5,$D119,"") ->  | J119: =IF($A119=Settings!$B$6,$D119,"") ->  | K119: =IF($A119=Settings!$B$7,$D119,"") ->  | N119: 0.2139890555 | O119: 0.3456310073
H120: =IF($A120=Settings!$B$4,$D120,"") ->  | I120: =IF($A120=Settings!$B$5,$D120,"") ->  | J120: =IF($A120=Settings!$B$6,$D120,"") ->  | K120: =IF($A120=Settings!$B$7,$D120,"") ->  | N120: 0.2139890555 | O120: 0.3456310073
H121: =IF($A121=Settings!$B$4,$D121,"") ->  | I121: =IF($A121=Settings!$B$5,$D121,"") ->  | J121: =IF($A121=Settings!$B$6,$D121,"") ->  | K121: =IF($A121=Settings!$B$7,$D121,"") ->  | N121: 0.2139890555 | O121: 0.3456310073
H122: =IF($A122=Settings!$B$4,$D122,"") ->  | I122: =IF($A122=Settings!$B$5,$D122,"") ->  | J122: =IF($A122=Settings!$B$6,$D122,"") ->  | K122: =IF($A122=Settings!$B$7,$D122,"") ->  | N122: 0.2139890555 | O122: 0.3456310073
H123: =IF($A123=Settings!$B$4,$D123,"") ->  | I123: =IF($A123=Settings!$B$5,$D123,"") ->  | J123: =IF($A123=Settings!$B$6,$D123,"") ->  | K123: =IF($A123=Settings!$B$7,$D123,"") ->  | N123: 0.2139890555 | O123: 0.3456310073
H124: =IF($A124=Settings!$B$4,$D124,"") ->  | I124: =IF($A124=Settings!$B$5,$D124,"") ->  | J124: =IF($A124=Settings!$B$6,$D124,"") ->  | K124: =IF($A124=Settings!$B$7,$D124,"") ->  | N124: 0.2139890555 | O124: 0.3456310073
H125: =IF($A125=Settings!$B$4,$D125,"") ->  | I125: =IF($A125=Settings!$B$5,$D125,"") ->  | J125: =IF($A125=Settings!$B$6,$D125,"") ->  | K125: =IF($A125=Settings!$B$7,$D125,"") ->  | N125: 0.2139890555 | O125: 0.3456310073 | P125: 0.196015 | Q125: 0.297275
H126: =IF($A126=Settings!$B$4,$D126,"") ->  | I126: =IF($A126=Settings!$B$5,$D126,"") ->  | J126: =IF($A126=Settings!$B$6,$D126,"") ->  | K126: =IF($A126=Settings!$B$7,$D126,"") ->  | N126: 0.2139890555 | O126: 0.3456310073 | P126: 0.196015 | Q126: 0.297275
H127: =IF($A127=Settings!$B$4,$D127,"") ->  | I127: =IF($A127=Settings!$B$5,$D127,"") ->  | J127: =IF($A127=Settings!$B$6,$D127,"") ->  | K127: =IF($A127=Settings!$B$7,$D127,"") ->  | N127: 0.2139890555 | O127: 0.3456310073 | P127: 0.196015 | Q127: 0.297275
H128: =IF($A128=Settings!$B$4,$D128,"") ->  | I128: =IF($A128=Settings!$B$5,$D128,"") ->  | J128: =IF($A128=Settings!$B$6,$D128,"") ->  | K128: =IF($A128=Settings!$B$7,$D128,"") ->  | N128: 0.2139890555 | O128: 0.3456310073 | P128: 0.196015 | Q128: 0.297275
H129: =IF($A129=Settings!$B$4,$D129,"") ->  | I129: =IF($A129=Settings!$B$5,$D129,"") ->  | J129: =IF($A129=Settings!$B$6,$D129,"") ->  | K129: =IF($A129=Settings!$B$7,$D129,"") ->  | N129: 0.2139890555 | O129: 0.3456310073 | P129: 0.196015 | Q129: 0.297275
H130: =IF($A130=Settings!$B$4,$D130,"") ->  | I130: =IF($A130=Settings!$B$5,$D130,"") ->  | J130: =IF($A130=Settings!$B$6,$D130,"") ->  | K130: =IF($A130=Settings!$B$7,$D130,"") ->  | N130: 0.2139890555 | O130: 0.3456310073 | P130: 0.196015 | Q130: 0.297275
H131: =IF($A131=Settings!$B$4,$D131,"") ->  | I131: =IF($A131=Settings!$B$5,$D131,"") ->  | J131: =IF($A131=Settings!$B$6,$D131,"") ->  | K131: =IF($A131=Settings!$B$7,$D131,"") ->  | N131: 0.2139890555 | O131: 0.3456310073 | P131: 0.196015 | Q131: 0.297275
H132: =IF($A132=Settings!$B$4,$D132,"") ->  | I132: =IF($A132=Settings!$B$5,$D132,"") ->  | J132: =IF($A132=Settings!$B$6,$D132,"") ->  | K132: =IF($A132=Settings!$B$7,$D132,"") ->  | N132: 0.2139890555 | O132: 0.3456310073 | P132: 0.196015 | Q132: 0.297275
H133: =IF($A133=Settings!$B$4,$D133,"") ->  | I133: =IF($A133=Settings!$B$5,$D133,"") ->  | J133: =IF($A133=Settings!$B$6,$D133,"") ->  | K133: =IF($A133=Settings!$B$7,$D133,"") ->  | N133: 0.2139890555 | O133: 0.3456310073 | P133: 0.196015 | Q133: 0.297275
H134: =IF($A134=Settings!$B$4,$D134,"") ->  | I134: =IF($A134=Settings!$B$5,$D134,"") ->  | J134: =IF($A134=Settings!$B$6,$D134,"") ->  | K134: =IF($A134=Settings!$B$7,$D134,"") ->  | N134: 0.2139890555 | O134: 0.3456310073 | P134: 0.196015 | Q134: 0.297275
H135: =IF($A135=Settings!$B$4,$D135,"") ->  | I135: =IF($A135=Settings!$B$5,$D135,"") ->  | J135: =IF($A135=Settings!$B$6,$D135,"") ->  | K135: =IF($A135=Settings!$B$7,$D135,"") ->  | N135: 0.2139890555 | O135: 0.3456310073 | P135: 0.196015 | Q135: 0.297275
H136: =IF($A136=Settings!$B$4,$D136,"") ->  | I136: =IF($A136=Settings!$B$5,$D136,"") ->  | J136: =IF($A136=Settings!$B$6,$D136,"") ->  | K136: =IF($A136=Settings!$B$7,$D136,"") ->  | N136: 0.2139890555 | O136: 0.3456310073 | P136: 0.196015 | Q136: 0.297275
H137: =IF($A137=Settings!$B$4,$D137,"") ->  | I137: =IF($A137=Settings!$B$5,$D137,"") ->  | J137: =IF($A137=Settings!$B$6,$D137,"") ->  | K137: =IF($A137=Settings!$B$7,$D137,"") ->  | N137: 0.2139890555 | O137: 0.3456310073 | P137: 0.196015 | Q137: 0.297275
H138: =IF($A138=Settings!$B$4,$D138,"") ->  | I138: =IF($A138=Settings!$B$5,$D138,"") ->  | J138: =IF($A138=Settings!$B$6,$D138,"") ->  | K138: =IF($A138=Settings!$B$7,$D138,"") ->  | N138: 0.2139890555 | O138: 0.3456310073 | P138: 0.196015 | Q138: 0.297275
H139: =IF($A139=Settings!$B$4,$D139,"") ->  | I139: =IF($A139=Settings!$B$5,$D139,"") ->  | J139: =IF($A139=Settings!$B$6,$D139,"") ->  | K139: =IF($A139=Settings!$B$7,$D139,"") ->  | N139: 0.2139890555 | O139: 0.3456310073 | P139: 0.196015 | Q139: 0.297275
H140: =IF($A140=Settings!$B$4,$D140,"") ->  | I140: =IF($A140=Settings!$B$5,$D140,"") ->  | J140: =IF($A140=Settings!$B$6,$D140,"") ->  | K140: =IF($A140=Settings!$B$7,$D140,"") ->  | N140: 0.2139890555 | O140: 0.3456310073 | P140: 0.196015 | Q140: 0.297275
H141: =IF($A141=Settings!$B$4,$D141,"") ->  | I141: =IF($A141=Settings!$B$5,$D141,"") ->  | J141: =IF($A141=Settings!$B$6,$D141,"") ->  | K141: =IF($A141=Settings!$B$7,$D141,"") ->  | N141: 0.2139890555 | O141: 0.3456310073 | P141: 0.196015 | Q141: 0.297275
H142: =IF($A142=Settings!$B$4,$D142,"") ->  | I142: =IF($A142=Settings!$B$5,$D142,"") ->  | J142: =IF($A142=Settings!$B$6,$D142,"") ->  | K142: =IF($A142=Settings!$B$7,$D142,"") ->  | N142: 0.2139890555 | O142: 0.3456310073 | P142: 0.196015 | Q142: 0.297275
H143: =IF($A143=Settings!$B$4,$D143,"") ->  | I143: =IF($A143=Settings!$B$5,$D143,"") ->  | J143: =IF($A143=Settings!$B$6,$D143,"") ->  | K143: =IF($A143=Settings!$B$7,$D143,"") ->  | N143: 0.2139890555 | O143: 0.3456310073 | P143: 0.196015 | Q143: 0.297275
H144: =IF($A144=Settings!$B$4,$D144,"") ->  | I144: =IF($A144=Settings!$B$5,$D144,"") ->  | J144: =IF($A144=Settings!$B$6,$D144,"") ->  | K144: =IF($A144=Settings!$B$7,$D144,"") ->  | N144: 0.2139890555 | O144: 0.3456310073 | P144: 0.196015 | Q144: 0.297275
H145: =IF($A145=Settings!$B$4,$D145,"") ->  | I145: =IF($A145=Settings!$B$5,$D145,"") ->  | J145: =IF($A145=Settings!$B$6,$D145,"") ->  | K145: =IF($A145=Settings!$B$7,$D145,"") ->  | N145: 0.2139890555 | O145: 0.3456310073 | P145: 0.196015 | Q145: 0.297275
H146: =IF($A146=Settings!$B$4,$D146,"") ->  | I146: =IF($A146=Settings!$B$5,$D146,"") ->  | J146: =IF($A146=Settings!$B$6,$D146,"") ->  | K146: =IF($A146=Settings!$B$7,$D146,"") ->  | N146: 0.2139890555 | O146: 0.3456310073 | P146: 0.196015 | Q146: 0.297275
H147: =IF($A147=Settings!$B$4,$D147,"") ->  | I147: =IF($A147=Settings!$B$5,$D147,"") ->  | J147: =IF($A147=Settings!$B$6,$D147,"") ->  | K147: =IF($A147=Settings!$B$7,$D147,"") ->  | N147: 0.2139890555 | O147: 0.3456310073 | P147: 0.196015 | Q147: 0.297275
H148: =IF($A148=Settings!$B$4,$D148,"") ->  | I148: =IF($A148=Settings!$B$5,$D148,"") ->  | J148: =IF($A148=Settings!$B$6,$D148,"") ->  | K148: =IF($A148=Settings!$B$7,$D148,"") ->  | N148: 0.2139890555 | O148: 0.3456310073 | P148: 0.196015 | Q148: 0.297275
H149: =IF($A149=Settings!$B$4,$D149,"") ->  | I149: =IF($A149=Settings!$B$5,$D149,"") ->  | J149: =IF($A149=Settings!$B$6,$D149,"") ->  | K149: =IF($A149=Settings!$B$7,$D149,"") ->  | N149: 0.2139890555 | O149: 0.3456310073 | P149: 0.196015 | Q149: 0.297275
H150: =IF($A150=Settings!$B$4,$D150,"") ->  | I150: =IF($A150=Settings!$B$5,$D150,"") ->  | J150: =IF($A150=Settings!$B$6,$D150,"") ->  | K150: =IF($A150=Settings!$B$7,$D150,"") ->  | N150: 0.2139890555 | O150: 0.3456310073 | P150: 0.196015 | Q150: 0.297275
H151: =IF($A151=Settings!$B$4,$D151,"") ->  | I151: =IF($A151=Settings!$B$5,$D151,"") ->  | J151: =IF($A151=Settings!$B$6,$D151,"") ->  | K151: =IF($A151=Settings!$B$7,$D151,"") ->  | N151: 0.2139890555 | O151: 0.3456310073 | P151: 0.196015 | Q151: 0.297275
H152: =IF($A152=Settings!$B$4,$D152,"") ->  | I152: =IF($A152=Settings!$B$5,$D152,"") ->  | J152: =IF($A152=Settings!$B$6,$D152,"") ->  | K152: =IF($A152=Settings!$B$7,$D152,"") ->  | N152: 0.2139890555 | O152: 0.3456310073 | P152: 0.196015 | Q152: 0.297275
H153: =IF($A153=Settings!$B$4,$D153,"") ->  | I153: =IF($A153=Settings!$B$5,$D153,"") ->  | J153: =IF($A153=Settings!$B$6,$D153,"") ->  | K153: =IF($A153=Settings!$B$7,$D153,"") ->  | N153: 0.2139890555 | O153: 0.3456310073 | P153: 0.196015 | Q153: 0.297275

Sheet SpineChartData
D1: 9 | E1: 11 | F1: 12 | G1: 13 | H1: 14 | I1: 15 | J1: 16 | K1: 17 | L1: 18 | N1: 20
A2: =INDEX($C$5:$C$11,MATCH(Settings!$B$11,SpineChartData!$O$5:$O$11,0)) ->  | B2: 1=high | C2: 95 | D2: Local data | H2: Comparison data
A3: Indicator Name | B3: Best | C3: Stat Sig | D3: Number | E3: Statistic | F3: Lower Limit 95% | G3: Upper Limit 95% | H3: National Minimum | I3: National 25th Percentile | J3: National Average | K3: National 75th Percentile | L3: National Maximum | M3: Regional | N3: Significance
A4: 1 Teenage pregnancy | B4: 2 | C4: =IF(OR(ISBLANK(F4),ISBLANK(G4)), 4,IF(F4>J4,IF(B4=1,1,3),IF(G4<J4,IF(B4=1,3,1),2))) -> 2 | D4: =ROUNDDOWN(Detail!$D$12,0) -> 116 | E4: =D4/INDEX('TP2013'!$F$4:$F$153,MATCH(Settings!$B$2,'TP2013'!$A$4:$A$153,0),1)*1000 -> 18.74293101 | F4: =IF(D4=0,0,IF(D4<389,CHIINV(0.5+95/200,2*D4)/2,D4*(1-1/(9*D4)-NORMSINV(0.5+95/200)/3/SQRT(D4))^3))/INDEX('TP2013'!$F$4:$F$153,MATCH(Settings!$B$2,'TP2013'!$A$4:$A$153,0),1)*1000 -> 15.48764655 | G4: =IF(D4<389,CHIINV(0.5-95/200,2*D4+2)/2,(D4+1)*(1-1/(9*(D4+1))+NORMSINV(0.5+95/200)/3/SQRT(D4+1))^3)/INDEX('TP2013'!$F$4:$F$153,MATCH(Settings!$B$2,'TP2013'!$A$4:$A$153,0),1)*1000 -> 22.48036039 | H4: =TPData!P4*1000 -> 4.9 | I4: =TPData!Q4*1000 -> 13.4 | J4: =TPData!R4*1000 -> 17.2 | K4: =TPData!S4*1000 -> 21.8 | L4: =TPData!T4*1000 -> 37.4 | M4: =TPData!U4*1000 -> 12.32969936 | N4: =INDEX($Q$4:$R$7,MATCH($C4,$Q$4:$Q$7,0),2) -> No Sig Diff | Q4: 1 | R4: better
A5: 2 SSATOD | B5: 2 | C5: =IF(OR(ISBLANK(F5),ISBLANK(G5)), 4,IF(F5>J5,IF(B5=1,1,3),IF(G5<J5,IF(B5=1,3,1),2))) -> 1 | D5: =IF(Settings!$B$11="Smoking at delivery",Detail!$H$12,INDEX(SSATOD!$E$4:$E$153,MATCH(Settings!$B$2,SSATOD!$A$4:$A$153,0),1)) -> 25.10628301 | E5: =D5/Detail!$D$12*100 -> 21.64334742 | F5: =(2*D5+NORMSINV((100+$C$2)/200)^2-NORMSINV((100+$C$2)/200)*SQRT(NORMSINV((100+$C$2)/200)^2+4*$D5*(1-($E5/100))))/2/(Detail!$D$12+NORMSINV((100+$C$2)/200)^2)*100 -> 15.12348022 | G5: =(2*D5+NORMSINV((100+$C$2)/200)^2+NORMSINV((100+$C$2)/200)*SQRT(NORMSINV((100+$C$2)/200)^2+4*$D5*(1-($E5/100))))/2/(Detail!$D$12+NORMSINV((100+$C$2)/200)^2)*100 -> 29.98113163 | H5: =IF(Settings!$B$11="Smoking at delivery",PrimaryData!$P$4,SSATOD!$H$4)*100 -> 15.90123484 | I5: =IF(Settings!$B$11="Smoking at delivery",PrimaryData!$Q$4,SSATOD!$I$4)*100 -> 34.56310073 | J5: =IF(Settings!$B$11="Smoking at delivery",PrimaryData!$R$4,SSATOD!$J$4)*100 -> 42.62414339 | K5: =IF(Settings!$B$11="Smoking at delivery",PrimaryData!$S$4,SSATOD!$K$4)*100 -> 51.67901323 | L5: =IF(Settings!$B$11="Smoking at delivery",PrimaryData!$T$4,SSATOD!$L$4)*100 -> 87.45679162 | M5: =IF(Settings!$B$11="Smoking at delivery",PrimaryData!$U$4,INDEX(SSATOD!$Q$4:$Q$12,MATCH(Settings!$B$3,SSATOD!$M$4:$M$12,0),1))*100 -> 36.04003834 | N5: =INDEX($Q$4:$R$7,MATCH($C5,$Q$4:$Q$7,0),2) -> better | O5: Smoking at delivery | Q5: 2 | R5: No Sig Diff
A6: 3 Child poverty | B6: 2 | C6: 3 | D6: =IF(Settings!$B$11="Child poverty",Detail!$H$12,INDEX(ChildPoverty!$E$4:$E$153,MATCH(Settings!$B$2,ChildPoverty!$A$4:$A$153,0),1)) -> 53.80716139 | E6: =D6/Detail!$D$12*100 -> 46.38548395 | F6: =(2*D6+NORMSINV((100+$C$2)/200)^2-NORMSINV((100+$C$2)/200)*SQRT(NORMSINV((100+$C$2)/200)^2+4*$D6*(1-($E6/100))))/2/(Detail!$D$12+NORMSINV((100+$C$2)/200)^2)*100 -> 37.57212901 | G6: =(2*D6+NORMSINV((100+$C$2)/200)^2+NORMSINV((100+$C$2)/200)*SQRT(NORMSINV((100+$C$2)/200)^2+4*$D6*(1-($E6/100))))/2/(Detail!$D$12+NORMSINV((100+$C$2)/200)^2)*100 -> 55.43056195 | H6: =IF(Settings!$B$11="Child poverty",PrimaryData!$P$4,ChildPoverty!$H$4)*100 -> 10.44668868 | I6: =IF(Settings!$B$11="Child poverty",PrimaryData!$Q$4,ChildPoverty!$I$4)*100 -> 25.35355218 | J6: =IF(Settings!$B$11="Child poverty",PrimaryData!$R$4,ChildPoverty!$J$4)*100 -> 32.93708131 | K6: =IF(Settings!$B$11="Child poverty",PrimaryData!$S$4,ChildPoverty!$K$4)*100 -> 41.54737137 | L6: =IF(Settings!$B$11="Child poverty",PrimaryData!$T$4,ChildPoverty!$L$4)*100 -> 61.47221942 | M6: =IF(Settings!$B$11="Child poverty",PrimaryData!$U$4,INDEX(ChildPoverty!$Q$4:$Q$12,MATCH(Settings!$B$3,ChildPoverty!$M$4:$M$12,0),1))*100 -> 34.2637579 | N6: =INDEX($Q$4:$R$7,MATCH($C6,$Q$4:$Q$7,0),2) -> worse | O6: Child poverty | Q6: 3 | R6: worse
A7: 4 Low birth weight | B7: 2 | C7: 2 | D7: =IF(Settings!$B$11="Low birth weight",Detail!$H$12,INDEX(LBW!$E$4:$E$153,MATCH(Settings!$B$2,LBW!$A$4:$A$153,0),1)) -> 11.0816424 | E7: =D7/Detail!$D$12*100 -> 9.55314 | F7: =(2*D7+NORMSINV((100+$C$2)/200)^2-NORMSINV((100+$C$2)/200)*SQRT(NORMSINV((100+$C$2)/200)^2+4*$D7*(1-($E7/100))))/2/(Detail!$D$12+NORMSINV((100+$C$2)/200)^2)*100 -> 5.429527172 | G7: =(2*D7+NORMSINV((100+$C$2)/200)^2+NORMSINV((100+$C$2)/200)*SQRT(NORMSINV((100+$C$2)/200)^2+4*$D7*(1-($E7/100))))/2/(Detail!$D$12+NORMSINV((100+$C$2)/200)^2)*100 -> 16.2697611 | H7: =IF(Settings!$B$11="Low birth weight",PrimaryData!$P$4,LBW!$H$4)*100 -> 5.42524 | I7: =IF(Settings!$B$11="Low birth weight",PrimaryData!$Q$4,LBW!$I$4)*100 -> 7.78404 | J7: =IF(Settings!$B$11="Low birth weight",PrimaryData!$R$4,LBW!$J$4)*100 -> 8.60962 | K7: =IF(Settings!$B$11="Low birth weight",PrimaryData!$S$4,LBW!$K$4)*100 -> 9.405715 | L7: =IF(Settings!$B$11="Low birth weight",PrimaryData!$T$4,LBW!$L$4)*100 -> 12.26576 | M7: =IF(Settings!$B$11="Low birth weight",PrimaryData!$U$4,INDEX(LBW!$Q$4:$Q$12,MATCH(Settings!$B$3,LBW!$M$4:$M$12,0),1))*100 -> 9.400056263 | N7: No Sig Diff | O7: Low birth weight | Q7: 4 | R7: not tested
A8: 5 Stillbirths | B8: 2 | C8: 2 | D8: =IF(Settings!$B$11="Stillbirths",Detail!$H$12,INDEX(Stillbirths!$E$4:$E$153,MATCH(Settings!$B$2,Stillbirths!$A$4:$A$153,0),1)) -> 0.9615936 | E8: =D8/Detail!$D$12*100 -> 0.82896 | F8: =(2*D8+NORMSINV((100+$C$2)/200)^2-NORMSINV((100+$C$2)/200)*SQRT(NORMSINV((100+$C$2)/200)^2+4*$D8*(1-($E8/100))))/2/(Detail!$D$12+NORMSINV((100+$C$2)/200)^2)*100 -> 0.1424992401 | G8: =(2*D8+NORMSINV((100+$C$2)/200)^2+NORMSINV((100+$C$2)/200)*SQRT(NORMSINV((100+$C$2)/200)^2+4*$D8*(1-($E8/100))))/2/(Detail!$D$12+NORMSINV((100+$C$2)/200)^2)*100 -> 4.667727602 | H8: =IF(Settings!$B$11="Stillbirths",PrimaryData!$P$4,Stillbirths!$H$4)*100 -> 0.314 | I8: =IF(Settings!$B$11="Stillbirths",PrimaryData!$Q$4,Stillbirths!$I$4)*100 -> 0.52752 | J8: =IF(Settings!$B$11="Stillbirths",PrimaryData!$R$4,Stillbirths!$J$4)*100 -> 0.5966 | K8: =IF(Settings!$B$11="Stillbirths",PrimaryData!$S$4,Stillbirths!$K$4)*100 -> 0.6908 | L8: =IF(Settings!$B$11="Stillbirths",PrimaryData!$T$4,Stillbirths!$L$4)*100 -> 1.05504 | M8: =IF(Settings!$B$11="Stillbirths",PrimaryData!$U$4,INDEX(Stillbirths!$Q$4:$Q$12,MATCH(Settings!$B$3,Stillbirths!$M$4:$M$12,0),1))*100 -> 0.7110038384 | N8: No Sig Diff | O8: Stillbirths
A9: 6 Breastfeeding initiation | B9: 1 | C9: =IF(OR(ISBLANK(F9),ISBLANK(G9)), 4,IF(F9>J9,IF(B9=1,1,3),IF(G9<J9,IF(B9=1,3,1),2))) -> 3 | D9: =IF(Settings!$B$11="Breastfeeding initiation",Detail!$H$12,INDEX(BFI!$E$4:$E$153,MATCH(Settings!$B$2,BFI!$A$4:$A$153,0),1)) -> 0 | E9: =D9/Detail!$D$12*100 -> 0 | F9: =(2*D9+NORMSINV((100+$C$2)/200)^2-NORMSINV((100+$C$2)/200)*SQRT(NORMSINV((100+$C$2)/200)^2+4*$D9*(1-($E9/100))))/2/(Detail!$D$12+NORMSINV((100+$C$2)/200)^2)*100 -> 0 | G9: =(2*D9+NORMSINV((100+$C$2)/200)^2+NORMSINV((100+$C$2)/200)*SQRT(NORMSINV((100+$C$2)/200)^2+4*$D9*(1-($E9/100))))/2/(Detail!$D$12+NORMSINV((100+$C$2)/200)^2)*100 -> 3.20545065 | H9: =IF(Settings!$B$11="Breastfeeding initiation",PrimaryData!$P$4,BFI!$H$4)*100 -> 26.89879518 | I9: =IF(Settings!$B$11="Breastfeeding initiation",PrimaryData!$Q$4,BFI!$I$4)*100 -> 48.35903614 | J9: =IF(Settings!$B$11="Breastfeeding initiation",PrimaryData!$R$4,BFI!$J$4)*100 -> 53.61385542 | K9: =IF(Settings!$B$11="Breastfeeding initiation",PrimaryData!$S$4,BFI!$K$4)*100 -> 58.96054217 | L9: =IF(Settings!$B$11="Breastfeeding initiation",PrimaryData!$T$4,BFI!$L$4)*100 -> 68.34939759 | M9: =IF(Settings!$B$11="Breastfeeding initiation",PrimaryData!$U$4,INDEX(BFI!$Q$4:$Q$12,MATCH(Settings!$B$3,BFI!$M$4:$M$12,0),1))*100 -> 63.30922106 | N9: =INDEX($Q$4:$R$7,MATCH($C9,$Q$4:$Q$7,0),2) -> worse | O9: Infant mortality
A10: 7 Infant mortality | B10: 2 | C10: 2 | D10: =IF(Settings!$B$11="Infant mortality",Detail!$H$12,INDEX(IM!$E$4:$E$153,MATCH(Settings!$B$2,IM!$A$4:$A$153,0),1)) -> 0.8319940565 | E10: =D10/Detail!$D$12*100 -> 0.7172362556 | F10: =(2*D10+NORMSINV((100+$C$2)/200)^2-NORMSINV((100+$C$2)/200)*SQRT(NORMSINV((100+$C$2)/200)^2+4*$D10*(1-($E10/100))))/2/(Detail!$D$12+NORMSINV((100+$C$2)/200)^2)*100 -> 0.1110758417 | G10: =(2*D10+NORMSINV((100+$C$2)/200)^2+NORMSINV((100+$C$2)/200)*SQRT(NORMSINV((100+$C$2)/200)^2+4*$D10*(1-($E10/100))))/2/(Detail!$D$12+NORMSINV((100+$C$2)/200)^2)*100 -> 4.482866011 | H10: =IF(Settings!$B$11="Infant mortality",PrimaryData!$P$4,IM!$H$4)*100 -> 0.2774137931 | I10: =IF(Settings!$B$11="Infant mortality",PrimaryData!$Q$4,IM!$I$4)*100 -> 0.5409012322 | J10: =IF(Settings!$B$11="Infant mortality",PrimaryData!$R$4,IM!$J$4)*100 -> 0.6311716326 | K10: =IF(Settings!$B$11="Infant mortality",PrimaryData!$S$4,IM!$K$4)*100 -> 0.7567483751 | L10: =IF(Settings!$B$11="Infant mortality",PrimaryData!$T$4,IM!$L$4)*100 -> 1.2080498 | M10: =IF(Settings!$B$11="Infant mortality",PrimaryData!$U$4,INDEX(IM!$Q$4:$Q$12,MATCH(Settings!$B$3,IM!$M$4:$M$12,0),1))*100 -> 0.643562931 | N10: No Sig Diff | O10: Breastfeeding initiation
A11: 8 NEETs | B11: 2 | C11: 2 | D11: =IF(Settings!$B$11="NEET",Detail!$H$12,INDEX(NEET!$E$4:$E$153,MATCH(Settings!$B$2,NEET!$A$4:$A$153,0),1)) -> 25.5664 | E11: =D11/Detail!$D$12*100 -> 22.04 | F11: =(2*D11+NORMSINV((100+$C$2)/200)^2-NORMSINV((100+$C$2)/200)*SQRT(NORMSINV((100+$C$2)/200)^2+4*$D11*(1-($E11/100))))/2/(Detail!$D$12+NORMSINV((100+$C$2)/200)^2)*100 -> 15.46091543 | G11: =(2*D11+NORMSINV((100+$C$2)/200)^2+NORMSINV((100+$C$2)/200)*SQRT(NORMSINV((100+$C$2)/200)^2+4*$D11*(1-($E11/100))))/2/(Detail!$D$12+NORMSINV((100+$C$2)/200)^2)*100 -> 30.41157257 | H11: =IF(Settings!$B$11="NEET",PrimaryData!$P$4,NEET!$H$4)*100 -> 6.84 | I11: =IF(Settings!$B$11="NEET",PrimaryData!$Q$4,NEET!$I$4)*100 -> 15.96 | J11: =IF(Settings!$B$11="NEET",PrimaryData!$R$4,NEET!$J$4)*100 -> 20.52 | K11: =IF(Settings!$B$11="NEET",PrimaryData!$S$4,NEET!$K$4)*100 -> 23.845 | L11: =IF(Settings!$B$11="NEET",PrimaryData!$T$4,NEET!$L$4)*100 -> 37.24 | M11: =IF(Settings!$B$11="NEET",PrimaryData!$U$4,INDEX(NEET!$Q$4:$Q$12,MATCH(Settings!$B$3,NEET!$M$4:$M$12,0),1))*100 -> 14.72466244 | N11: No Sig Diff | O11: NEET

Sheet SummaryChartData
B1: TP | D1: Overall
B2: Original | C2: New | D2: Original | E2: New
A3: Pregnancies | B3: =INDEX('TP2013'!$D$4:$D$153,MATCH(Settings!$B$2,'TP2013'!$A$4:$A$153,0),1) -> 0.0187 | C3: =INDEX(TPData!$D$4:$D$153,MATCH(Settings!$B$2,TPData!$A$4:$A$153,0),1) -> 0.01874293101 | D3: =Detail!$C$15 -> 0.08546854595 | E3: =Detail!$D$14/INDEX('2013 Population Data'!$A$3:$J$152,MATCH(Settings!$B$2,'2013 Population Data'!$A$3:$A$152,0),10) -> 0.08546854595 | F3: Pregnancies
A4: Smoking at delivery | B4: =INDEX(SSATOD!$D$4:$D$153,MATCH(Settings!$B$2,SSATOD!$A$4:$A$153,0),1) -> 0.2164334742 | C4: =IF(Settings!$B$11="Smoking at delivery",INDEX(PrimaryData!$D$4:$D$153,MATCH(Settings!$B$2,PrimaryData!$A$4:$A$153,0),1),INDEX(SSATOD!$D$4:$D$153,MATCH(Settings!$B$2,SSATOD!$A$4:$A$153,0),1)) -> 0.2164334742 | D4: =INDEX(SSATOD!$R$4:$R$153,MATCH(Settings!$B$2,SSATOD!$A$4:$A$153,0),1) -> 0.0995423341 | E4: =(INDEX(SSATOD!$T$4:$T$153,MATCH(Settings!$B$2,SSATOD!$A$4:$A$153,0),1)-INDEX(SSATOD!$E$4:$E$153,MATCH(Settings!$B$2,SSATOD!$A$4:$A$153,0),1)+IF(Settings!$B$12="SSATOD",Detail!$H$12,Detail!$D$12*$B4))/Detail!$D$14 -> 0.0995423341 | F4: Smoking at delivery
A5: Child poverty | B5: =INDEX(ChildPoverty!$D$4:$D$153,MATCH(Settings!$B$2,ChildPoverty!$A$4:$A$153,0),1) -> 0.4639 | C5: =IF(Settings!$B$11="Child poverty",INDEX(PrimaryData!$D$4:$D$153,MATCH(Settings!$B$2,PrimaryData!$A$4:$A$153,0),1),INDEX(ChildPoverty!$D$4:$D$153,MATCH(Settings!$B$2,ChildPoverty!$A$4:$A$153,0),1)) -> 0.4639 | D5: =INDEX(ChildPoverty!$R$4:$R$153,MATCH(Settings!$B$2,ChildPoverty!$A$4:$A$153,0),1) -> 0.2845735212 | E5: =(INDEX(ChildPoverty!$T$4:$T$153,MATCH(Settings!$B$2,ChildPoverty!$A$4:$A$153,0),1)-INDEX(ChildPoverty!$E$4:$E$153,MATCH(Settings!$B$2,ChildPoverty!$A$4:$A$153,0),1)+IF(Settings!$B$12="ChildPoverty",Detail!$H$12,Detail!$D$12*$B5))/Detail!$D$14 -> 0.2845749012 | F5: Child poverty
A6: Low birth weight | B6: =INDEX(LBW!$D$4:$D$153,MATCH(Settings!$B$2,LBW!$A$4:$A$153,0),1) -> 0.0955314 | C6: =IF(Settings!$B$11="Low birth weight",INDEX(PrimaryData!$D$4:$D$153,MATCH(Settings!$B$2,PrimaryData!$A$4:$A$153,0),1),INDEX(LBW!$D$4:$D$153,MATCH(Settings!$B$2,LBW!$A$4:$A$153,0),1)) -> 0.0955314 | D6: =INDEX(LBW!$R$4:$R$153,MATCH(Settings!$B$2,LBW!$A$4:$A$153,0),1) -> 0.081 | E6: =(INDEX(LBW!$T$4:$T$153,MATCH(Settings!$B$2,LBW!$A$4:$A$153,0),1)-INDEX(LBW!$E$4:$E$153,MATCH(Settings!$B$2,LBW!$A$4:$A$153,0),1)+IF(Settings!$B$12="LBW",Detail!$H$12,Detail!$D$12*$B6))/Detail!$D$14 -> 0.081 | F6: Low birth weight
A7: Stillbirths | B7: =INDEX(Stillbirths!$D$4:$D$153,MATCH(Settings!$B$2,Stillbirths!$A$4:$A$153,0),1) -> 0.0082896 | C7: =IF(Settings!$B$11="Stillbirths",INDEX(PrimaryData!$D$4:$D$153,MATCH(Settings!$B$2,PrimaryData!$A$4:$A$153,0),1),INDEX(Stillbirths!$D$4:$D$153,MATCH(Settings!$B$2,Stillbirths!$A$4:$A$153,0),1)) -> 0.0082896 | D7: =INDEX(Stillbirths!$R$4:$R$153,MATCH(Settings!$B$2,Stillbirths!$A$4:$A$153,0),1) -> 0.0066 | E7: =(INDEX(Stillbirths!$T$4:$T$153,MATCH(Settings!$B$2,Stillbirths!$A$4:$A$153,0),1)-INDEX(Stillbirths!$E$4:$E$153,MATCH(Settings!$B$2,Stillbirths!$A$4:$A$153,0),1)+IF(Settings!$B$12="Stillbirths",Detail!$H$12,Detail!$D$12*$B7))/Detail!$D$14 -> 0.0066 | F7: Stillbirths
A8: Infant mortality | B8: =INDEX(IM!$D$4:$D$153,MATCH(Settings!$B$2,IM!$A$4:$A$153,0),1) -> 0.007172362556 | C8: =IF(Settings!$B$11="Infant mortality",INDEX(PrimaryData!$D$4:$D$153,MATCH(Settings!$B$2,PrimaryData!$A$4:$A$153,0),1),INDEX(IM!$D$4:$D$153,MATCH(Settings!$B$2,IM!$A$4:$A$153,0),1)) -> 0.007172362556 | D8: =INDEX(IM!$R$4:$R$153,MATCH(Settings!$B$2,IM!$A$4:$A$153,0),1) -> 0.004457652303 | E8: =(INDEX(IM!$T$4:$T$153,MATCH(Settings!$B$2,IM!$A$4:$A$153,0),1)-INDEX(IM!$E$4:$E$153,MATCH(Settings!$B$2,IM!$A$4:$A$153,0),1)+IF(Settings!$B$12="IM",Detail!$H$12,Detail!$D$12*$B8))/Detail!$D$14 -> 0.004457652303 | F8: Infant mortality
A9: Breastfeeding initiation | B9: =INDEX(BFI!$D$4:$D$115,MATCH(Settings!$B$2,BFI!$A$4:$A$115,0),1) ->  | C9: =IF(Settings!$B$11="Breastfeeding initiation",INDEX(PrimaryData!$D$4:$D$115,MATCH(Settings!$B$2,PrimaryData!$A$4:$A$115,0),1),INDEX(BFI!$D$4:$D$115,MATCH(Settings!$B$2,BFI!$A$4:$A$115,0),1)) ->  | D9: =INDEX(BFI!$R$4:$R$153,MATCH(Settings!$B$2,BFI!$A$4:$A$153,0),1) ->  | E9: =(INDEX(BFI!$T$4:$T$153,MATCH(Settings!$B$2,BFI!$A$4:$A$153,0),1)-INDEX(BFI!$E$4:$E$153,MATCH(Settings!$B$2,BFI!$A$4:$A$153,0),1)+IF(Settings!$B$12="BFI",Detail!$H$12,Detail!$D$12*$B9))/Detail!$D$14 ->  | F9: Breastfeeding initiation
A10: NEET | B10: =INDEX(NEET!$D$4:$D$153,MATCH(Settings!$B$2,NEET!$A$4:$A$153,0),1) -> 0.2204 | C10: =IF(Settings!$B$11="NEET",INDEX(PrimaryData!$D$4:$D$153,MATCH(Settings!$B$2,PrimaryData!$A$4:$A$153,0),1),INDEX(NEET!$D$4:$D$153,MATCH(Settings!$B$2,NEET!$A$4:$A$153,0),1)) -> 0.2204 | D10: =INDEX(NEET!$R$4:$R$153,MATCH(Settings!$B$2,NEET!$A$4:$A$153,0),1) -> 0.058 | E10: =(INDEX(NEET!$T$4:$T$153,MATCH(Settings!$B$2,NEET!$A$4:$A$153,0),1)-INDEX(NEET!$E$4:$E$153,MATCH(Settings!$B$2,NEET!$A$4:$A$153,0),1)+IF(Settings!$B$12="NEET",Detail!$H$12,Detail!$D$12*$B10))/INDEX(NEET!$U$4:$U$153,MATCH(Settings!$B$2,NEET!$A$4:$A$153,0),1) -> 0.058 | F10: NEET

Sheet TP2013
A1: ScrollBarMin | B1: =MIN(D4:D153)*100000-1 -> 489 | C1: First Record | D1: 4 | E1: ScrollBarValue | F1: =INDEX($T$4:$T$153,MATCH(Settings!$B$2,$A$4:$A$153,0),1)*100000 -> 1874.293101 | G1: SmallChange | H1: 50 | I1: RAG | J1: 2
A2: ScrollBarMax | B2: =MAX(D4:D153)*100000+1 -> 3741 | C2: LastRecord | D2: =D1+COUNTA(D4:D152) -> 153 | E2: Value | F2: =INDEX($U$4:$U$153,MATCH(Settings!$B$2,$A$4:$A$153,0),1) -> 116 | G2: LargeChange | H2: 100
A3: TTLA Code | B3: TTLA Name | C3: Region Code | D3: Percentage | E3: Numerator | F3: Denominator | G3: Indicator value | H3: Lower 95% CI | I3: Upper 95% CI | J3: National Minimum | K3: National 25th Percentile | L3: National Average | M3: National 75th Percentile | N3: National Maximum | Q3: Regional best | R3: Regional Worst | S3: Regional rate | T3: Original percentage | U3: Original number
A4: E09000021 | B4: Kingston upon Thames | C4: E12000007 | D4: =ROUND(E4/F4,4) -> 0.0049 | E4: =INDEX('2013 ONS Birth Data'!$E$15:$E$474,MATCH($B4,'2013 ONS Birth Data'!$B$15:$B$474,0),1) -> 23 | F4: =INDEX('2013 ONS Pop Data Females'!$E$4:$E$460,MATCH($B4,'2013 ONS Pop Data Females'!$B$4:$B$460,0),1) -> 4705 | G4: =ROUND($E4/$F4,4) -> 0.0049 | H4: =(2*E4+NORMSINV((100+95)/200)^2-NORMSINV((100+95)/200)*SQRT(NORMSINV((100+95)/200)^2+4*E4*(1-G4)))/2/(F4+NORMSINV((100+95)/200)^2) -> 0.003259703591 | I4: =(2*E4+NORMSINV((100+95)/200)^2+NORMSINV((100+95)/200)*SQRT(NORMSINV((100+95)/200)^2+4*E4*(1-G4)))/2/(F4+NORMSINV((100+95)/200)^2) -> 0.007324950672 | J4: =MIN($G$4:$G$153) -> 0.0049 | K4: =_xlfn.QUARTILE.INC($G$4:$G$153,1) -> 0.01335 | L4: =_xlfn.QUARTILE.INC($G$4:$G$153,2) -> 0.0172 | M4: =_xlfn.QUARTILE.INC($G$4:$G$153,3) -> 0.021775 | N4: =MAX($G$4:$G$153) -> 0.0374 | O4: E12000001 | P4: North East | Q4: =MIN(IF($C$4:$C$153=$O4,$G$4:$G$153)) -> 0.0149 | R4: =MAX(IF($C$4:$C$153=$O4,$G$4:$G$153)) -> 0.0323 | S4: =SUMIFS($E$4:$E$153,$C$4:$C$153,$O4)/SUMIFS($F$4:$F$153,$C$4:$C$153,$O4) -> 0.02260182293 | T4: =U4/F4 -> 0.004888416578 | U4: =INDEX('2013 ONS Birth Data'!$E$15:$E$474,MATCH($B4,'2013 ONS Birth Data'!$B$15:$B$474,0),1) -> 23
A5: E09000033 | B5: Westminster | C5: E12000007 | D5: =ROUND(E5/F5,4) -> 0.0051 | E5: =INDEX('2013 ONS Birth Data'!$E$15:$E$474,MATCH($B5,'2013 ONS Birth Data'!$B$15:$B$474,0),1) -> 23 | F5: =INDEX('2013 ONS Pop Data Females'!$E$4:$E$460,MATCH($B5,'2013 ONS Pop Data Females'!$B$4:$B$460,0),1) -> 4495 | G5: =ROUND($E5/$F5,4) -> 0.0051 | H5: 0.003412067464 | I5: 0.007666664534 | O5: E12000002 | P5: North West | Q5: =MIN(IF($C$4:$C$153=$O5,$G$4:$G$153)) -> 0.0115 | R5: =MAX(IF($C$4:$C$153=$O5,$G$4:$G$153)) -> 0.031 | S5: =SUMIFS($E$4:$E$153,$C$4:$C$153,$O5)/SUMIFS($F$4:$F$153,$C$4:$C$153,$O5) -> 0.01934361788 | T5: =U5/F5 -> 0.00511679644 | U5: =INDEX('2013 ONS Birth Data'!$E$15:$E$474,MATCH($B5,'2013 ONS Birth Data'!$B$15:$B$474,0),1) -> 23
A6: E06000040 | B6: Windsor and Maidenhead | C6: E12000008 | D6: 0.0059 | E6: =INDEX('2013 ONS Birth Data'!$E$15:$E$474,MATCH($B6,'2013 ONS Birth Data'!$B$15:$B$474,0),1) -> 24 | F6: =INDEX('2013 ONS Pop Data Females'!$E$4:$E$460,MATCH($B6,'2013 ONS Pop Data Females'!$B$4:$B$460,0),1) -> 4063 | G6: 0.0059 | H6: 0.00397273799 | I6: 0.008774613817 | O6: E12000003 | P6: Yorkshire and the Humber | Q6: =MIN(IF($C$4:$C$153=$O6,$G$4:$G$153)) -> 0.0131 | R6: =MAX(IF($C$4:$C$153=$O6,$G$4:$G$153)) -> 0.0374 | S6: 0.02171788733 | T6: 0.005906965297 | U6: =INDEX('2013 ONS Birth Data'!$E$15:$E$474,MATCH($B6,'2013 ONS Birth Data'!$B$15:$B$474,0),1) -> 24
A7: E09000027 | B7: Richmond upon Thames | C7: E12000007 | D7: 0.0059 | E7: =INDEX('2013 ONS Birth Data'!$E$15:$E$474,MATCH($B7,'2013 ONS Birth Data'!$B$15:$B$474,0),1) -> 26 | F7: =INDEX('2013 ONS Pop Data Females'!$E$4:$E$460,MATCH($B7,'2013 ONS Pop Data Females'!$B$4:$B$460,0),1) -> 4388 | G7: 0.0059 | H7: 0.004046805713 | I7: 0.008668010918 | O7: E12000004 | P7: East Midlands | Q7: =MIN(IF($C$4:$C$153=$O7,$G$4:$G$153)) -> 0.0099 | R7: =MAX(IF($C$4:$C$153=$O7,$G$4:$G$153)) -> 0.0227 | S7: 0.01855153403 | T7: 0.005925250684 | U7: =INDEX('2013 ONS Birth Data'!$E$15:$E$474,MATCH($B7,'2013 ONS Birth Data'!$B$15:$B$474,0),1) -> 26
A8: E09000007 | B8: Camden | C8: E12000007 | D8: 0.0068 | E8: =INDEX('2013 ONS Birth Data'!$E$15:$E$474,MATCH($B8,'2013 ONS Birth Data'!$B$15:$B$474,0),1) -> 39 | F8: =INDEX('2013 ONS Pop Data Females'!$E$4:$E$460,MATCH($B8,'2013 ONS Pop Data Females'!$B$4:$B$460,0),1) -> 5762 | G8: 0.0068 | H8: 0.004955417722 | I8: 0.00923877395 | O8: E12000005 | P8: West Midlands | Q8: =MIN(IF($C$4:$C$153=$O8,$G$4:$G$153)) -> 0.0139 | R8: =MAX(IF($C$4:$C$153=$O8,$G$4:$G$153)) -> 0.0332 | S8: 0.02054681593 | T8: 0.006768483166 | U8: =INDEX('2013 ONS Birth Data'!$E$15:$E$474,MATCH($B8,'2013 ONS Birth Data'!$B$15:$B$474,0),1) -> 39
A9: E09000003 | B9: Barnet | C9: E12000007 | D9: 0.0068 | E9: =INDEX('2013 ONS Birth Data'!$E$15:$E$474,MATCH($B9,'2013 ONS Birth Data'!$B$15:$B$474,0),1) -> 68 | F9: =INDEX('2013 ONS Pop Data Females'!$E$4:$E$460,MATCH($B9,'2013 ONS Pop Data Females'!$B$4:$B$460,0),1) -> 10008 | G9: 0.0068 | H9: 0.005363586934 | I9: 0.008604019265 | O9: E12000006 | P9: East of England | Q9: =MIN(IF($C$4:$C$153=$O9,$G$4:$G$153)) -> 0.0093 | R9: =MAX(IF($C$4:$C$153=$O9,$G$4:$G$153)) -> 0.0309 | S9: 0.01514527992 | T9: 0.006794564349 | U9: =INDEX('2013 ONS Birth Data'!$E$15:$E$474,MATCH($B9,'2013 ONS Birth Data'!$B$15:$B$474,0),1) -> 68
A10: E09000020 | B10: Kensington and Chelsea | C10: E12000007 | D10: 0.0072 | E10: =INDEX('2013 ONS Birth Data'!$E$15:$E$474,MATCH($B10,'2013 ONS Birth Data'!$B$15:$B$474,0),1) -> 21 | F10: =INDEX('2013 ONS Pop Data Females'!$E$4:$E$460,MATCH($B10,'2013 ONS Pop Data Females'!$B$4:$B$460,0),1) -> 2897 | G10: 0.0072 | H10: 0.004746085662 | I10: 0.01105672862 | O10: E12000007 | P10: London | Q10: =MIN(IF($C$4:$C$153=$O10,$G$4:$G$153)) -> 0.0049 | R10: =MAX(IF($C$4:$C$153=$O10,$G$4:$G$153)) -> 0.0187 | S10: 0.01232969936 | T10: 0.00724887815 | U10: =INDEX('2013 ONS Birth Data'!$E$15:$E$474,MATCH($B10,'2013 ONS Birth Data'!$B$15:$B$474,0),1) -> 21
A11: E06000022 | B11: Bath and North East Somerset | C11: E12000009 | D11: 0.0078 | E11: =INDEX('2013 ONS Birth Data'!$E$15:$E$474,MATCH($B11,'2013 ONS Birth Data'!$B$15:$B$474,0),1) -> 50 | F11: =INDEX('2013 ONS Pop Data Females'!$E$4:$E$460,MATCH($B11,'2013 ONS Pop Data Females'!$B$4:$B$460,0),1) -> 6387 | G11: 0.0078 | H11: 0.005943328199 | I11: 0.01030515168 | O11: E12000008 | P11: South East | Q11: =MIN(IF($C$4:$C$153=$O11,$G$4:$G$153)) -> 0.0059 | R11: =MAX(IF($C$4:$C$153=$O11,$G$4:$G$153)) -> 0.0272 | S11: 0.01421004341 | T11: 0.00782840144 | U11: =INDEX('2013 ONS Birth Data'!$E$15:$E$474,MATCH($B11,'2013 ONS Birth Data'!$B$15:$B$474,0),1) -> 50
A12: E09000015 | B12: Harrow | C12: E12000007 | D12: 0.0081 | E12: =INDEX('2013 ONS Birth Data'!$E$15:$E$474,MATCH($B12,'2013 ONS Birth Data'!$B$15:$B$474,0),1) -> 56 | F12: =INDEX('2013 ONS Pop Data Females'!$E$4:$E$460,MATCH($B12,'2013 ONS Pop Data Females'!$B$4:$B$460,0),1) -> 6896 | G12: 0.0081 | H12: 0.006259200014 | I12: 0.01052980297 | O12: E12000009 | P12: South West | Q12: =MIN(IF($C$4:$C$153=$O12,$G$4:$G$153)) -> 0.0078 | R12: =MAX(IF($C$4:$C$153=$O12,$G$4:$G$153)) -> 0.0273 | S12: 0.01590426951 | T12: 0.008120649652 | U12: =INDEX('2013 ONS Birth Data'!$E$15:$E$474,MATCH($B12,'2013 ONS Birth Data'!$B$15:$B$474,0),1) -> 56
A13: E06000041 | B13: Wokingham | C13: E12000008 | D13: 0.0082 | E13: =INDEX('2013 ONS Birth Data'!$E$15:$E$474,MATCH($B13,'2013 ONS Birth Data'!$B$15:$B$474,0),1) -> 39 | F13: =INDEX('2013 ONS Pop Data Females'!$E$4:$E$460,MATCH($B13,'2013 ONS Pop Data Females'!$B$4:$B$460,0),1) -> 4737 | G13: 0.0082 | H13: 0.006028602463 | I13: 0.0112344635 | T13: 0.008233058898 | U13: =INDEX('2013 ONS Birth Data'!$E$15:$E$474,MATCH($B13,'2013 ONS Birth Data'!$B$15:$B$474,0),1) -> 39
A14: E09000026 | B14: Redbridge | C14: E12000007 | D14: 0.0088 | E14: =INDEX('2013 ONS Birth Data'!$E$15:$E$474,MATCH($B14,'2013 ONS Birth Data'!$B$15:$B$474,0),1) -> 77 | F14: =INDEX('2013 ONS Pop Data Females'!$E$4:$E$460,MATCH($B14,'2013 ONS Pop Data Females'!$B$4:$B$460,0),1) -> 8763 | G14: 0.0088 | H14: 0.007036806301 | I14: 0.01096756387 | T14: 0.00878694511 | U14: =INDEX('2013 ONS Birth Data'!$E$15:$E$474,MATCH($B14,'2013 ONS Birth Data'!$B$15:$B$474,0),1) -> 77
A15: E10000030 | B15: Surrey | C15: E12000008 | D15: 0.0088 | E15: =INDEX('2013 ONS Birth Data'!$E$15:$E$474,MATCH($B15,'2013 ONS Birth Data'!$B$15:$B$474,0),1) -> 288 | F15: =INDEX('2013 ONS Pop Data Females'!$E$4:$E$460,MATCH($B15,'2013 ONS Pop Data Females'!$B$4:$B$460,0),1) -> 32638 | G15: 0.0088 | H15: 0.007865673164 | I15: 0.009898075231 | T15: 0.008824070102 | U15: =INDEX('2013 ONS Birth Data'!$E$15:$E$474,MATCH($B15,'2013 ONS Birth Data'!$B$15:$B$474,0),1) -> 288
A16: E06000036 | B16: Bracknell Forest | C16: E12000008 | D16: 0.009 | E16: =INDEX('2013 ONS Birth Data'!$E$15:$E$474,MATCH($B16,'2013 ONS Birth Data'!$B$15:$B$474,0),1) -> 32 | F16: =INDEX('2013 ONS Pop Data Females'!$E$4:$E$460,MATCH($B16,'2013 ONS Pop Data Females'!$B$4:$B$460,0),1) -> 3545 | G16: 0.009 | H16: 0.006401420148 | I16: 0.01271508861 | T16: 0.009026798307 | U16: =INDEX('2013 ONS Birth Data'!$E$15:$E$474,MATCH($B16,'2013 ONS Birth Data'!$B$15:$B$474,0),1) -> 32
A17: E06000025 | B17: South Gloucestershire | C17: E12000009 | D17: 0.0091 | E17: =INDEX('2013 ONS Birth Data'!$E$15:$E$474,MATCH($B17,'2013 ONS Birth Data'!$B$15:$B$474,0),1) -> 76 | F17: =INDEX('2013 ONS Pop Data Females'!$E$4:$E$460,MATCH($B17,'2013 ONS Pop Data Females'!$B$4:$B$460,0),1) -> 8387 | G17: 0.0091 | H17: 0.007246469166 | I17: 0.01132633543 | T17: 0.009061643019 | U17: =INDEX('2013 ONS Birth Data'!$E$15:$E$474,MATCH($B17,'2013 ONS Birth Data'!$B$15:$B$474,0),1) -> 76
A18: E10000015 | B18: Hertfordshire | C18: E12000006 | D18: 0.0093 | E18: =INDEX('2013 ONS Birth Data'!$E$15:$E$474,MATCH($B18,'2013 ONS Birth Data'!$B$15:$B$474,0),1) -> 309 | F18: =INDEX('2013 ONS Pop Data Females'!$E$4:$E$460,MATCH($B18,'2013 ONS Pop Data Females'!$B$4:$B$460,0),1) -> 33337 | G18: 0.0093 | H18: 0.008295367698 | I18: 0.01035567504 | T18: 0.009268980412 | U18: =INDEX('2013 ONS Birth Data'!$E$15:$E$474,MATCH($B18,'2013 ONS Birth Data'!$B$15:$B$474,0),1) -> 309
A19: E06000043 | B19: Brighton and Hove | C19: E12000008 | D19: 0.0095 | E19: =INDEX('2013 ONS Birth Data'!$E$15:$E$474,MATCH($B19,'2013 ONS Birth Data'!$B$15:$B$474,0),1) -> 79 | F19: =INDEX('2013 ONS Pop Data Females'!$E$4:$E$460,MATCH($B19,'2013 ONS Pop Data Females'!$B$4:$B$460,0),1) -> 8291 | G19: 0.0095 | H19: 0.00765259531 | I19: 0.01185850199 | T19: 0.009528404294 | U19: =INDEX('2013 ONS Birth Data'!$E$15:$E$474,MATCH($B19,'2013 ONS Birth Data'!$B$15:$B$474,0),1) -> 79
A20: E09000006 | B20: Bromley | C20: E12000007 | D20: 0.0098 | E20: =INDEX('2013 ONS Birth Data'!$E$15:$E$474,MATCH($B20,'2013 ONS Birth Data'!$B$15:$B$474,0),1) -> 86 | F20: =INDEX('2013 ONS Pop Data Females'!$E$4:$E$460,MATCH($B20,'2013 ONS Pop Data Females'!$B$4:$B$460,0),1) -> 8768 | G20: 0.0098 | H20: 0.007949568192 | I20: 0.01209656005 | T20: 0.009808394161 | U20: =INDEX('2013 ONS Birth Data'!$E$15:$E$474,MATCH($B20,'2013 ONS Birth Data'!$B$15:$B$474,0),1) -> 86
A21: E06000017 | B21: Rutland | C21: E12000004 | D21: 0.0099 | E21: =INDEX('2013 ONS Birth Data'!$E$15:$E$474,MATCH($B21,'2013 ONS Birth Data'!$B$15:$B$474,0),1) -> 13 | F21: =INDEX('2013 ONS Pop Data Females'!$E$4:$E$460,MATCH($B21,'2013 ONS Pop Data Females'!$B$4:$B$460,0),1) -> 1318 | G21: 0.0099 | H21: 0.005773338302 | I21: 0.0168023334 | T21: 0.009863429439 | U21: =INDEX('2013 ONS Birth Data'!$E$15:$E$474,MATCH($B21,'2013 ONS Birth Data'!$B$15:$B$474,0),1) -> 13
A22: E09000004 | B22: Bexley | C22: E12000007 | D22: 0.0099 | E22: =INDEX('2013 ONS Birth Data'!$E$15:$E$474,MATCH($B22,'2013 ONS Birth Data'!$B$15:$B$474,0),1) -> 75 | F22: =INDEX('2013 ONS Pop Data Females'!$E$4:$E$460,MATCH($B22,'2013 ONS Pop Data Females'!$B$4:$B$460,0),1) -> 7575 | G22: 0.0099 | H22: 0.007906526128 | I22: 0.01239228335 | T22: 0.009900990099 | U22: =INDEX('2013 ONS Birth Data'!$E$15:$E$474,MATCH($B22,'2013 ONS Birth Data'!$B$15:$B$474,0),1) -> 75
A23: E09000009 | B23: Ealing | C23: E12000007 | D23: 0.01 | E23: =INDEX('2013 ONS Birth Data'!$E$15:$E$474,MATCH($B23,'2013 ONS Birth Data'!$B$15:$B$474,0),1) -> 90 | F23: =INDEX('2013 ONS Pop Data Females'!$E$4:$E$460,MATCH($B23,'2013 ONS Pop Data Females'!$B$4:$B$460,0),1) -> 9021 | G23: 0.01 | H23: 0.008124313784 | I23: 0.01224628881 | T23: 0.009976720984 | U23: =INDEX('2013 ONS Birth Data'!$E$15:$E$474,MATCH($B23,'2013 ONS Birth Data'!$B$15:$B$474,0),1) -> 90
A24: E10000002 | B24: Buckinghamshire | C24: E12000008 | D24: 0.0104 | E24: =INDEX('2013 ONS Birth Data'!$E$15:$E$474,MATCH($B24,'2013 ONS Birth Data'!$B$15:$B$474,0),1) -> 159 | F24: =INDEX('2013 ONS Pop Data Females'!$E$4:$E$460,MATCH($B24,'2013 ONS Pop Data Females'!$B$4:$B$460,0),1) -> 15265 | G24: 0.0104 | H24: 0.008924086333 | I24: 0.01215422925 | T24: 0.01041598428 | U24: =INDEX('2013 ONS Birth Data'!$E$15:$E$474,MATCH($B24,'2013 ONS Birth Data'!$B$15:$B$474,0),1) -> 159
A25: E09000030 | B25: Tower Hamlets | C25: E12000007 | D25: 0.0113 | E25: =INDEX('2013 ONS Birth Data'!$E$15:$E$474,MATCH($B25,'2013 ONS Birth Data'!$B$15:$B$474,0),1) -> 79 | F25: =INDEX('2013 ONS Pop Data Females'!$E$4:$E$460,MATCH($B25,'2013 ONS Pop Data Females'!$B$4:$B$460,0),1) -> 6978 | G25: 0.0113 | H25: 0.009093980429 | I25: 0.01408635957 | T25: 0.0113212955 | U25: =INDEX('2013 ONS Birth Data'!$E$15:$E$474,MATCH($B25,'2013 ONS Birth Data'!$B$15:$B$474,0),1) -> 79
A26: E08000009 | B26: Trafford | C26: E12000002 | D26: 0.0115 | E26: =INDEX('2013 ONS Birth Data'!$E$15:$E$474,MATCH($B26,'2013 ONS Birth Data'!$B$15:$B$474,0),1) -> 74 | F26: =INDEX('2013 ONS Pop Data Females'!$E$4:$E$460,MATCH($B26,'2013 ONS Pop Data Females'!$B$4:$B$460,0),1) -> 6456 | G26: 0.0115 | H26: 0.009140785852 | I26: 0.0143646608 | T26: 0.0114622057 | U26: =INDEX('2013 ONS Birth Data'!$E$15:$E$474,MATCH($B26,'2013 ONS Birth Data'!$B$15:$B$474,0),1) -> 74
A27: E09000005 | B27: Brent | C27: E12000007 | D27: 0.0115 | E27: =INDEX('2013 ONS Birth Data'!$E$15:$E$474,MATCH($B27,'2013 ONS Birth Data'!$B$15:$B$474,0),1) -> 100 | F27: =INDEX('2013 ONS Pop Data Females'!$E$4:$E$460,MATCH($B27,'2013 ONS Pop Data Females'!$B$4:$B$460,0),1) -> 8712 | G27: 0.0115 | H27: 0.009447129424 | I27: 0.01394033807 | T27: 0.01147842057 | U27: =INDEX('2013 ONS Birth Data'!$E$15:$E$474,MATCH($B27,'2013 ONS Birth Data'!$B$15:$B$474,0),1) -> 100
A28: E10000018 | B28: Leicestershire | C28: E12000004 | D28: 0.0115 | E28: =INDEX('2013 ONS Birth Data'!$E$15:$E$474,MATCH($B28,'2013 ONS Birth Data'!$B$15:$B$474,0),1) -> 230 | F28: =INDEX('2013 ONS Pop Data Females'!$E$4:$E$460,MATCH($B28,'2013 ONS Pop Data Females'!$B$4:$B$460,0),1) -> 19938 | G28: 0.0115 | H28: 0.01014477335 | I28: 0.01311493713 | T28: 0.01153576086 | U28: =INDEX('2013 ONS Birth Data'!$E$15:$E$474,MATCH($B28,'2013 ONS Birth Data'!$B$15:$B$474,0),1) -> 230
A29: E09000024 | B29: Merton | C29: E12000007 | D29: 0.0116 | E29: =INDEX('2013 ONS Birth Data'!$E$15:$E$474,MATCH($B29,'2013 ONS Birth Data'!$B$15:$B$474,0),1) -> 56 | F29: =INDEX('2013 ONS Pop Data Females'!$E$4:$E$460,MATCH($B29,'2013 ONS Pop Data Females'!$B$4:$B$460,0),1) -> 4824 | G29: 0.0116 | H29: 0.008950803845 | I29: 0.01504365824 | T29: 0.01160862355 | U29: =INDEX('2013 ONS Birth Data'!$E$15:$E$474,MATCH($B29,'2013 ONS Birth Data'!$B$15:$B$474,0),1) -> 56
A30: E10000003 | B30: Cambridgeshire | C30: E12000006 | D30: 0.0117 | E30: =INDEX('2013 ONS Birth Data'!$E$15:$E$474,MATCH($B30,'2013 ONS Birth Data'!$B$15:$B$474,0),1) -> 221 | F30: =INDEX('2013 ONS Pop Data Females'!$E$4:$E$460,MATCH($B30,'2013 ONS Pop Data Females'!$B$4:$B$460,0),1) -> 18889 | G30: 0.0117 | H30: 0.01026267602 | I30: 0.01333575727 | T30: 0.01169993118 | U30: =INDEX('2013 ONS Birth Data'!$E$15:$E$474,MATCH($B30,'2013 ONS Birth Data'!$B$15:$B$474,0),1) -> 221
A31: E09000029 | B31: Sutton | C31: E12000007 | D31: 0.0119 | E31: =INDEX('2013 ONS Birth Data'!$E$15:$E$474,MATCH($B31,'2013 ONS Birth Data'!$B$15:$B$474,0),1) -> 68 | F31: =INDEX('2013 ONS Pop Data Females'!$E$4:$E$460,MATCH($B31,'2013 ONS Pop Data Females'!$B$4:$B$460,0),1) -> 5719 | G31: 0.0119 | H31: 0.00939052711 | I31: 0.01504514175 | T31: 0.01189019059 | U31: =INDEX('2013 ONS Birth Data'!$E$15:$E$474,MATCH($B31,'2013 ONS Birth Data'!$B$15:$B$474,0),1) -> 68
A32: E09000016 | B32: Havering | C32: E12000007 | D32: 0.0119 | E32: =INDEX('2013 ONS Birth Data'!$E$15:$E$474,MATCH($B32,'2013 ONS Birth Data'!$B$15:$B$474,0),1) -> 88 | F32: =INDEX('2013 ONS Pop Data Females'!$E$4:$E$460,MATCH($B32,'2013 ONS Pop Data Females'!$B$4:$B$460,0),1) -> 7378 | G32: 0.0119 | H32: 0.009691851484 | I32: 0.01467083089 | T32: 0.01192735159 | U32: =INDEX('2013 ONS Birth Data'!$E$15:$E$474,MATCH($B32,'2013 ONS Birth Data'!$B$15:$B$474,0),1) -> 88
A33: E09000017 | B33: Hillingdon | C33: E12000007 | D33: 0.0122 | E33: =INDEX('2013 ONS Birth Data'!$E$15:$E$474,MATCH($B33,'2013 ONS Birth Data'!$B$15:$B$474,0),1) -> 107 | F33: =INDEX('2013 ONS Pop Data Females'!$E$4:$E$460,MATCH($B33,'2013 ONS Pop Data Females'!$B$4:$B$460,0),1) -> 8736 | G33: 0.0122 | H33: 0.01014657065 | I33: 0.01477853353 | T33: 0.0122481685 | U33: =INDEX('2013 ONS Birth Data'!$E$15:$E$474,MATCH($B33,'2013 ONS Birth Data'!$B$15:$B$474,0),1) -> 107
A34: E09000019 | B34: Islington | C34: E12000007 | D34: 0.0124 | E34: =INDEX('2013 ONS Birth Data'!$E$15:$E$474,MATCH($B34,'2013 ONS Birth Data'!$B$15:$B$474,0),1) -> 63 | F34: =INDEX('2013 ONS Pop Data Females'!$E$4:$E$460,MATCH($B34,'2013 ONS Pop Data Females'!$B$4:$B$460,0),1) -> 5086 | G34: 0.0124 | H34: 0.009694190457 | I34: 0.01581573158 | T34: 0.01238694455 | U34: =INDEX('2013 ONS Birth Data'!$E$15:$E$474,MATCH($B34,'2013 ONS Birth Data'!$B$15:$B$474,0),1) -> 63
A35: E10000013 | B35: Gloucestershire | C35: E12000009 | D35: 0.0125 | E35: =INDEX('2013 ONS Birth Data'!$E$15:$E$474,MATCH($B35,'2013 ONS Birth Data'!$B$15:$B$474,0),1) -> 224 | F35: =INDEX('2013 ONS Pop Data Females'!$E$4:$E$460,MATCH($B35,'2013 ONS Pop Data Females'!$B$4:$B$460,0),1) -> 17925 | G35: 0.0125 | H35: 0.01097156102 | I35: 0.01423037184 | T35: 0.01249651325 | U35: =INDEX('2013 ONS Birth Data'!$E$15:$E$474,MATCH($B35,'2013 ONS Birth Data'!$B$15:$B$474,0),1) -> 224
A36: E06000037 | B36: West Berkshire | C36: E12000008 | D36: 0.0126 | E36: =INDEX('2013 ONS Birth Data'!$E$15:$E$474,MATCH($B36,'2013 ONS Birth Data'!$B$15:$B$474,0),1) -> 59 | F36: =INDEX('2013 ONS Pop Data Females'!$E$4:$E$460,MATCH($B36,'2013 ONS Pop Data Females'!$B$4:$B$460,0),1) -> 4668 | G36: 0.0126 | H36: =(2*E36+NORMSINV((100+95)/200)^2-NORMSINV((100+95)/200)*SQRT(NORMSINV((100+95)/200)^2+4*E36*(1-G36)))/2/(F36+NORMSINV((100+95)/200)^2) -> 0.009811613949 | I36: =(2*E36+NORMSINV((100+95)/200)^2+NORMSINV((100+95)/200)*SQRT(NORMSINV((100+95)/200)^2+4*E36*(1-G36)))/2/(F36+NORMSINV((100+95)/200)^2) -> 0.01626835043 | T36: =U36/F36 -> 0.01263924593 | U36: =INDEX('2013 ONS Birth Data'!$E$15:$E$474,MATCH($B36,'2013 ONS Birth Data'!$B$15:$B$474,0),1) -> 59
A37: E10000025 | B37: Oxfordshire | C37: E12000008 | D37: 0.0129 | E37: =INDEX('2013 ONS Birth Data'!$E$15:$E$474,MATCH($B37,'2013 ONS Birth Data'!$B$15:$B$474,0),1) -> 257 | F37: =INDEX('2013 ONS Pop Data Females'!$E$4:$E$460,MATCH($B37,'2013 ONS Pop Data Females'!$B$4:$B$460,0),1) -> 19917 | G37: 0.0129 | H37: 0.01142744921 | I37: 0.01456750988 | T37: 0.01290354973 | U37: =INDEX('2013 ONS Birth Data'!$E$15:$E$474,MATCH($B37,'2013 ONS Birth Data'!$B$15:$B$474,0),1) -> 257
A38: E09000032 | B38: Wandsworth | C38: E12000007 | D38: 0.0129 | E38: =INDEX('2013 ONS Birth Data'!$E$15:$E$474,MATCH($B38,'2013 ONS Birth Data'!$B$15:$B$474,0),1) -> 76 | F38: =INDEX('2013 ONS Pop Data Females'!$E$4:$E$460,MATCH($B38,'2013 ONS Pop Data Females'!$B$4:$B$460,0),1) -> 5889 | G38: 0.0129 | H38: 0.01032378222 | I38: 0.01612211148 | T38: 0.01290541688 | U38: =INDEX('2013 ONS Birth Data'!$E$15:$E$474,MATCH($B38,'2013 ONS Birth Data'!$B$15:$B$474,0),1) -> 76
A39: E09000013 | B39: Hammersmith and Fulham | C39: E12000007 | D39: 0.013 | E39: =INDEX('2013 ONS Birth Data'!$E$15:$E$474,MATCH($B39,'2013 ONS Birth Data'!$B$15:$B$474,0),1) -> 46 | F39: =INDEX('2013 ONS Pop Data Females'!$E$4:$E$460,MATCH($B39,'2013 ONS Pop Data Females'!$B$4:$B$460,0),1) -> 3545 | G39: 0.013 | H39: 0.009742715131 | I39: 0.01726369243 | T39: 0.01297602257 | U39: =INDEX('2013 ONS Birth Data'!$E$15:$E$474,MATCH($B39,'2013 ONS Birth Data'!$B$15:$B$474,0),1) -> 46
A40: E06000014 | B40: York | C40: E12000003 | D40: 0.0131 | E40: =INDEX('2013 ONS Birth Data'!$E$15:$E$474,MATCH($B40,'2013 ONS Birth Data'!$B$15:$B$474,0),1) -> 92 | F40: =INDEX('2013 ONS Pop Data Females'!$E$4:$E$460,MATCH($B40,'2013 ONS Pop Data Females'!$B$4:$B$460,0),1) -> 7029 | G40: 0.0131 | H40: 0.01068507619 | I40: 0.01602410813 | T40: 0.01308863281 | U40: =INDEX('2013 ONS Birth Data'!$E$15:$E$474,MATCH($B40,'2013 ONS Birth Data'!$B$15:$B$474,0),1) -> 92
A41: E10000014 | B41: Hampshire | C41: E12000008 | D41: 0.0133 | E41: =INDEX('2013 ONS Birth Data'!$E$15:$E$474,MATCH($B41,'2013 ONS Birth Data'!$B$15:$B$474,0),1) -> 513 | F41: =INDEX('2013 ONS Pop Data Females'!$E$4:$E$460,MATCH($B41,'2013 ONS Pop Data Females'!$B$4:$B$460,0),1) -> 38453 | G41: 0.0133 | H41: 0.01224185049 | I41: 0.01453729777 | T41: 0.01334096169 | U41: =INDEX('2013 ONS Birth Data'!$E$15:$E$474,MATCH($B41,'2013 ONS Birth Data'!$B$15:$B$474,0),1) -> 513
A42: E06000024 | B42: North Somerset | C42: E12000009 | D42: 0.0135 | E42: =INDEX('2013 ONS Birth Data'!$E$15:$E$474,MATCH($B42,'2013 ONS Birth Data'!$B$15:$B$474,0),1) -> 74 | F42: =INDEX('2013 ONS Pop Data Females'!$E$4:$E$460,MATCH($B42,'2013 ONS Pop Data Females'!$B$4:$B$460,0),1) -> 5496 | G42: 0.0135 | H42: 0.01073937932 | I42: 0.01686895447 | T42: 0.0134643377 | U42: =INDEX('2013 ONS Birth Data'!$E$15:$E$474,MATCH($B42,'2013 ONS Birth Data'!$B$15:$B$474,0),1) -> 74
A43: E09000028 | B43: Southwark | C43: E12000007 | D43: 0.0135 | E43: =INDEX('2013 ONS Birth Data'!$E$15:$E$474,MATCH($B43,'2013 ONS Birth Data'!$B$15:$B$474,0),1) -> 99 | F43: =INDEX('2013 ONS Pop Data Females'!$E$4:$E$460,MATCH($B43,'2013 ONS Pop Data Females'!$B$4:$B$460,0),1) -> 7311 | G43: 0.0135 | H43: 0.01113577321 | I43: 0.01645764217 | T43: 0.01354123923 | U43: =INDEX('2013 ONS Birth Data'!$E$15:$E$474,MATCH($B43,'2013 ONS Birth Data'!$B$15:$B$474,0),1) -> 99
A44: E06000051 | B44: Shropshire | C44: E12000005 | D44: 0.0139 | E44: =INDEX('2013 ONS Birth Data'!$E$15:$E$474,MATCH($B44,'2013 ONS Birth Data'!$B$15:$B$474,0),1) -> 124 | F44: =INDEX('2013 ONS Pop Data Females'!$E$4:$E$460,MATCH($B44,'2013 ONS Pop Data Females'!$B$4:$B$460,0),1) -> 8932 | G44: 0.0139 | H44: 0.01165673841 | I44: 0.01652655692 | T44: 0.01388266906 | U44: =INDEX('2013 ONS Birth Data'!$E$15:$E$474,MATCH($B44,'2013 ONS Birth Data'!$B$15:$B$474,0),1) -> 124
A45: E10000009 | B45: Dorset | C45: E12000009 | D45: 0.0139 | E45: =INDEX('2013 ONS Birth Data'!$E$15:$E$474,MATCH($B45,'2013 ONS Birth Data'!$B$15:$B$474,0),1) -> 156 | F45: =INDEX('2013 ONS Pop Data Females'!$E$4:$E$460,MATCH($B45,'2013 ONS Pop Data Females'!$B$4:$B$460,0),1) -> 11233 | G45: 0.0139 | H45: 0.01188374472 | I45: 0.0162239277 | T45: 0.01388765245 | U45: =INDEX('2013 ONS Birth Data'!$E$15:$E$474,MATCH($B45,'2013 ONS Birth Data'!$B$15:$B$474,0),1) -> 156
A46: E10000023 | B46: North Yorkshire | C46: E12000003 | D46: 0.014 | E46: =INDEX('2013 ONS Birth Data'!$E$15:$E$474,MATCH($B46,'2013 ONS Birth Data'!$B$15:$B$474,0),1) -> 231 | F46: =INDEX('2013 ONS Pop Data Females'!$E$4:$E$460,MATCH($B46,'2013 ONS Pop Data Females'!$B$4:$B$460,0),1) -> 16554 | G46: 0.014 | H46: 0.0122768912 | I46: 0.01585729888 | T46: 0.01395433128 | U46: =INDEX('2013 ONS Birth Data'!$E$15:$E$474,MATCH($B46,'2013 ONS Birth Data'!$B$15:$B$474,0),1) -> 231
A47: E06000049 | B47: Cheshire East | C47: E12000002 | D47: 0.0142 | E47: =INDEX('2013 ONS Birth Data'!$E$15:$E$474,MATCH($B47,'2013 ONS Birth Data'!$B$15:$B$474,0),1) -> 145 | F47: =INDEX('2013 ONS Pop Data Females'!$E$4:$E$460,MATCH($B47,'2013 ONS Pop Data Females'!$B$4:$B$460,0),1) -> 10239 | G47: 0.0142 | H47: 0.0120483382 | I47: 0.01663915638 | T47: 0.01416153921 | U47: =INDEX('2013 ONS Birth Data'!$E$15:$E$474,MATCH($B47,'2013 ONS Birth Data'!$B$15:$B$474,0),1) -> 145
A48: E09000025 | B48: Newham | C48: E12000007 | D48: 0.0145 | E48: =INDEX('2013 ONS Birth Data'!$E$15:$E$474,MATCH($B48,'2013 ONS Birth Data'!$B$15:$B$474,0),1) -> 147 | F48: =INDEX('2013 ONS Pop Data Females'!$E$4:$E$460,MATCH($B48,'2013 ONS Pop Data Females'!$B$4:$B$460,0),1) -> 10134 | G48: 0.0145 | H48: 0.01235492573 | I48: 0.01702425326 | T48: 0.01450562463 | U48: =INDEX('2013 ONS Birth Data'!$E$15:$E$474,MATCH($B48,'2013 ONS Birth Data'!$B$15:$B$474,0),1) -> 147
A49: E09000014 | B49: Haringey | C49: E12000007 | D49: 0.0146 | E49: =INDEX('2013 ONS Birth Data'!$E$15:$E$474,MATCH($B49,'2013 ONS Birth Data'!$B$15:$B$474,0),1) -> 102 | F49: =INDEX('2013 ONS Pop Data Females'!$E$4:$E$460,MATCH($B49,'2013 ONS Pop Data Females'!$B$4:$B$460,0),1) -> 6987 | G49: 0.0146 | H49: 0.01204110334 | I49: 0.01768943196 | T49: 0.01459854015 | U49: =INDEX('2013 ONS Birth Data'!$E$15:$E$474,MATCH($B49,'2013 ONS Birth Data'!$B$15:$B$474,0),1) -> 102
A50: E09000012 | B50: Hackney and City of London | C50: E12000007 | D50: 0.0147 | E50: =INDEX('2013 ONS Birth Data'!$E$15:$E$474,MATCH($B50,'2013 ONS Birth Data'!$B$15:$B$474,0),1) -> 100 | F50: =INDEX('2013 ONS Pop Data Females'!$E$4:$E$460,MATCH($B50,'2013 ONS Pop Data Females'!$B$4:$B$460,0),1) -> 6808 | G50: 0.0147 | H50: 0.01209233908 | I50: 0.01783223565 | T50: 0.01468860165 | U50: =INDEX('2013 ONS Birth Data'!$E$15:$E$474,MATCH($B50,'2013 ONS Birth Data'!$B$15:$B$474,0),1) -> 100
A51: E08000012 | B51: Liverpool | C51: E12000002 | D51: 0.0148 | E51: =INDEX('2013 ONS Birth Data'!$E$15:$E$474,MATCH($B51,'2013 ONS Birth Data'!$B$15:$B$474,0),1) -> 231 | F51: =INDEX('2013 ONS Pop Data Females'!$E$4:$E$460,MATCH($B51,'2013 ONS Pop Data Females'!$B$4:$B$460,0),1) -> 15648 | G51: 0.0148 | H51: 0.01298829889 | I51: 0.01677442648 | T51: 0.01476226994 | U51: =INDEX('2013 ONS Birth Data'!$E$15:$E$474,MATCH($B51,'2013 ONS Birth Data'!$B$15:$B$474,0),1) -> 231
A52: E10000032 | B52: West Sussex | C52: E12000008 | D52: 0.0149 | E52: =INDEX('2013 ONS Birth Data'!$E$15:$E$474,MATCH($B52,'2013 ONS Birth Data'!$B$15:$B$474,0),1) -> 331 | F52: =INDEX('2013 ONS Pop Data Females'!$E$4:$E$460,MATCH($B52,'2013 ONS Pop Data Females'!$B$4:$B$460,0),1) -> 22182 | G52: 0.0149 | H52: 0.01340841102 | I52: 0.0166035883 | T52: 0.01492200884 | U52: =INDEX('2013 ONS Birth Data'!$E$15:$E$474,MATCH($B52,'2013 ONS Birth Data'!$B$15:$B$474,0),1) -> 331
A53: E08000021 | B53: Newcastle upon Tyne | C53: E12000001 | D53: 0.0149 | E53: =INDEX('2013 ONS Birth Data'!$E$15:$E$474,MATCH($B53,'2013 ONS Birth Data'!$B$15:$B$474,0),1) -> 156 | F53: =INDEX('2013 ONS Pop Data Females'!$E$4:$E$460,MATCH($B53,'2013 ONS Pop Data Females'!$B$4:$B$460,0),1) -> 10439 | G53: 0.0149 | H53: 0.0127884778 | I53: 0.01745630377 | T53: 0.01494396015 | U53: =INDEX('2013 ONS Birth Data'!$E$15:$E$474,MATCH($B53,'2013 ONS Birth Data'!$B$15:$B$474,0),1) -> 156
A54: E10000012 | B54: Essex | C54: E12000006 | D54: 0.015 | E54: =INDEX('2013 ONS Birth Data'!$E$15:$E$474,MATCH($B54,'2013 ONS Birth Data'!$B$15:$B$474,0),1) -> 609 | F54: =INDEX('2013 ONS Pop Data Females'!$E$4:$E$460,MATCH($B54,'2013 ONS Pop Data Females'!$B$4:$B$460,0),1) -> 40708 | G54: 0.015 | H54: 0.01382591853 | I54: 0.01618602431 | T54: 0.01496020438 | U54: =INDEX('2013 ONS Birth Data'!$E$15:$E$474,MATCH($B54,'2013 ONS Birth Data'!$B$15:$B$474,0),1) -> 609
A55: E09000018 | B55: Hounslow | C55: E12000007 | D55: 0.015 | E55: =INDEX('2013 ONS Birth Data'!$E$15:$E$474,MATCH($B55,'2013 ONS Birth Data'!$B$15:$B$474,0),1) -> 105 | F55: =INDEX('2013 ONS Pop Data Females'!$E$4:$E$460,MATCH($B55,'2013 ONS Pop Data Females'!$B$4:$B$460,0),1) -> 7005 | G55: 0.015 | H55: 0.01239804656 | I55: 0.01811219683 | T55: 0.01498929336 | U55: =INDEX('2013 ONS Birth Data'!$E$15:$E$474,MATCH($B55,'2013 ONS Birth Data'!$B$15:$B$474,0),1) -> 105
A56: E08000029 | B56: Solihull | C56: E12000005 | D56: 0.015 | E56: =INDEX('2013 ONS Birth Data'!$E$15:$E$474,MATCH($B56,'2013 ONS Birth Data'!$B$15:$B$474,0),1) -> 97 | F56: =INDEX('2013 ONS Pop Data Females'!$E$4:$E$460,MATCH($B56,'2013 ONS Pop Data Females'!$B$4:$B$460,0),1) -> 6466 | G56: 0.015 | H56: 0.01231353249 | I56: 0.01826549485 | T56: 0.01500154655 | U56: =INDEX('2013 ONS Birth Data'!$E$15:$E$474,MATCH($B56,'2013 ONS Birth Data'!$B$15:$B$474,0),1) -> 97
A57: E08000007 | B57: Stockport | C57: E12000002 | D57: 0.015 | E57: =INDEX('2013 ONS Birth Data'!$E$15:$E$474,MATCH($B57,'2013 ONS Birth Data'!$B$15:$B$474,0),1) -> 120 | F57: =INDEX('2013 ONS Pop Data Females'!$E$4:$E$460,MATCH($B57,'2013 ONS Pop Data Females'!$B$4:$B$460,0),1) -> 7982 | G57: 0.015 | H57: 0.01258798407 | I57: 0.01794623829 | T57: 0.01503382611 | U57: =INDEX('2013 ONS Birth Data'!$E$15:$E$474,MATCH($B57,'2013 ONS Birth Data'!$B$15:$B$474,0),1) -> 120
A58: E10000008 | B58: Devon | C58: E12000009 | D58: 0.0151 | E58: =INDEX('2013 ONS Birth Data'!$E$15:$E$474,MATCH($B58,'2013 ONS Birth Data'!$B$15:$B$474,0),1) -> 324 | F58: =INDEX('2013 ONS Pop Data Females'!$E$4:$E$460,MATCH($B58,'2013 ONS Pop Data Females'!$B$4:$B$460,0),1) -> 21499 | G58: 0.0151 | H58: 0.01352640325 | I58: 0.01678779778 | T58: 0.01507046839 | U58: =INDEX('2013 ONS Birth Data'!$E$15:$E$474,MATCH($B58,'2013 ONS Birth Data'!$B$15:$B$474,0),1) -> 324
A59: E06000019 | B59: Herefordshire | C59: E12000005 | D59: 0.0152 | E59: =INDEX('2013 ONS Birth Data'!$E$15:$E$474,MATCH($B59,'2013 ONS Birth Data'!$B$15:$B$474,0),1) -> 78 | F59: =INDEX('2013 ONS Pop Data Females'!$E$4:$E$460,MATCH($B59,'2013 ONS Pop Data Females'!$B$4:$B$460,0),1) -> 5141 | G59: 0.0152 | H59: 0.01217448723 | I59: 0.01889380907 | T59: 0.0151721455 | U59: =INDEX('2013 ONS Birth Data'!$E$15:$E$474,MATCH($B59,'2013 ONS Birth Data'!$B$15:$B$474,0),1) -> 78
A60: E09000010 | B60: Enfield | C60: E12000007 | D60: 0.0152 | E60: =INDEX('2013 ONS Birth Data'!$E$15:$E$474,MATCH($B60,'2013 ONS Birth Data'!$B$15:$B$474,0),1) -> 148 | F60: =INDEX('2013 ONS Pop Data Females'!$E$4:$E$460,MATCH($B60,'2013 ONS Pop Data Females'!$B$4:$B$460,0),1) -> 9717 | G60: 0.0152 | H60: 0.01298044199 | I60: 0.01786477445 | T60: 0.01523103839 | U60: =INDEX('2013 ONS Birth Data'!$E$15:$E$474,MATCH($B60,'2013 ONS Birth Data'!$B$15:$B$474,0),1) -> 148
A61: E06000056 | B61: Central Bedfordshire | C61: E12000006 | D61: 0.0152 | E61: =INDEX('2013 ONS Birth Data'!$E$15:$E$474,MATCH($B61,'2013 ONS Birth Data'!$B$15:$B$474,0),1) -> 110 | F61: =INDEX('2013 ONS Pop Data Females'!$E$4:$E$460,MATCH($B61,'2013 ONS Pop Data Females'!$B$4:$B$460,0),1) -> 7217 | G61: 0.0152 | H61: 0.01266210533 | I61: 0.01833725397 | T61: 0.01524179022 | U61: =INDEX('2013 ONS Birth Data'!$E$15:$E$474,MATCH($B61,'2013 ONS Birth Data'!$B$15:$B$474,0),1) -> 110
A62: E06000054 | B62: Wiltshire | C62: E12000009 | D62: 0.0155 | E62: =INDEX('2013 ONS Birth Data'!$E$15:$E$474,MATCH($B62,'2013 ONS Birth Data'!$B$15:$B$474,0),1) -> 222 | F62: =INDEX('2013 ONS Pop Data Females'!$E$4:$E$460,MATCH($B62,'2013 ONS Pop Data Females'!$B$4:$B$460,0),1) -> 14325 | G62: 0.0155 | H62: 0.01360064868 | I62: 0.01765389902 | T62: 0.0154973822 | U62: =INDEX('2013 ONS Birth Data'!$E$15:$E$474,MATCH($B62,'2013 ONS Birth Data'!$B$15:$B$474,0),1) -> 222
A63: E09000022 | B63: Lambeth | C63: E12000007 | D63: 0.0157 | E63: =INDEX('2013 ONS Birth Data'!$E$15:$E$474,MATCH($B63,'2013 ONS Birth Data'!$B$15:$B$474,0),1) -> 109 | F63: =INDEX('2013 ONS Pop Data Females'!$E$4:$E$460,MATCH($B63,'2013 ONS Pop Data Females'!$B$4:$B$460,0),1) -> 6939 | G63: 0.0157 | H63: 0.01303914453 | I63: 0.01891340115 | T63: 0.01570831532 | U63: =INDEX('2013 ONS Birth Data'!$E$15:$E$474,MATCH($B63,'2013 ONS Birth Data'!$B$15:$B$474,0),1) -> 109
A64: E06000050 | B64: Cheshire West and Chester | C64: E12000002 | D64: 0.016 | E64: =INDEX('2013 ONS Birth Data'!$E$15:$E$474,MATCH($B64,'2013 ONS Birth Data'!$B$15:$B$474,0),1) -> 153 | F64: =INDEX('2013 ONS Pop Data Females'!$E$4:$E$460,MATCH($B64,'2013 ONS Pop Data Females'!$B$4:$B$460,0),1) -> 9582 | G64: 0.016 | H64: 0.01364465112 | I64: 0.0186781721 | T64: 0.01596743895 | U64: =INDEX('2013 ONS Birth Data'!$E$15:$E$474,MATCH($B64,'2013 ONS Birth Data'!$B$15:$B$474,0),1) -> 153
A65: E10000011 | B65: East Sussex | C65: E12000008 | D65: 0.0161 | E65: =INDEX('2013 ONS Birth Data'!$E$15:$E$474,MATCH($B65,'2013 ONS Birth Data'!$B$15:$B$474,0),1) -> 246 | F65: =INDEX('2013 ONS Pop Data Females'!$E$4:$E$460,MATCH($B65,'2013 ONS Pop Data Females'!$B$4:$B$460,0),1) -> 15258 | G65: 0.0161 | H65: 0.01424257551 | I65: 0.01824639118 | T65: 0.01612268974 | U65: =INDEX('2013 ONS Birth Data'!$E$15:$E$474,MATCH($B65,'2013 ONS Birth Data'!$B$15:$B$474,0),1) -> 246
A66: E10000031 | B66: Warwickshire | C66: E12000005 | D66: 0.0161 | E66: =INDEX('2013 ONS Birth Data'!$E$15:$E$474,MATCH($B66,'2013 ONS Birth Data'!$B$15:$B$474,0),1) -> 246 | F66: =INDEX('2013 ONS Pop Data Females'!$E$4:$E$460,MATCH($B66,'2013 ONS Pop Data Females'!$B$4:$B$460,0),1) -> 15256 | G66: 0.0161 | H66: 0.01424444218 | I66: 0.01824878261 | T66: 0.01612480336 | U66: =INDEX('2013 ONS Birth Data'!$E$15:$E$474,MATCH($B66,'2013 ONS Birth Data'!$B$15:$B$474,0),1) -> 246
A67: E09000031 | B67: Waltham Forest | C67: E12000007 | D67: 0.0161 | E67: =INDEX('2013 ONS Birth Data'!$E$15:$E$474,MATCH($B67,'2013 ONS Birth Data'!$B$15:$B$474,0),1) -> 117 | F67: =INDEX('2013 ONS Pop Data Females'!$E$4:$E$460,MATCH($B67,'2013 ONS Pop Data Females'!$B$4:$B$460,0),1) -> 7253 | G67: 0.0161 | H67: 0.01347752977 | I67: 0.01929726078 | T67: 0.01613125603 | U67: =INDEX('2013 ONS Birth Data'!$E$15:$E$474,MATCH($B67,'2013 ONS Birth Data'!$B$15:$B$474,0),1) -> 117
A68: E08000014 | B68: Sefton | C68: E12000002 | D68: 0.0164 | E68: =INDEX('2013 ONS Birth Data'!$E$15:$E$474,MATCH($B68,'2013 ONS Birth Data'!$B$15:$B$474,0),1) -> 130 | F68: =INDEX('2013 ONS Pop Data Females'!$E$4:$E$460,MATCH($B68,'2013 ONS Pop Data Females'!$B$4:$B$460,0),1) -> 7918 | G68: 0.0164 | H68: =(2*E68+NORMSINV((100+95)/200)^2-NORMSINV((100+95)/200)*SQRT(NORMSINV((100+95)/200)^2+4*E68*(1-G68)))/2/(F68+NORMSINV((100+95)/200)^2) -> 0.01384458808 | I68: =(2*E68+NORMSINV((100+95)/200)^2+NORMSINV((100+95)/200)*SQRT(NORMSINV((100+95)/200)^2+4*E68*(1-G68)))/2/(F68+NORMSINV((100+95)/200)^2) -> 0.01946098364 | T68: =U68/F68 -> 0.01641828745 | U68: =INDEX('2013 ONS Birth Data'!$E$15:$E$474,MATCH($B68,'2013 ONS Birth Data'!$B$15:$B$474,0),1) -> 130
A69: E06000032 | B69: Luton | C69: E12000006 | D69: =ROUND(E69/F69,4) -> 0.0165 | E69: =INDEX('2013 ONS Birth Data'!$E$15:$E$474,MATCH($B69,'2013 ONS Birth Data'!$B$15:$B$474,0),1) -> 110 | F69: =INDEX('2013 ONS Pop Data Females'!$E$4:$E$460,MATCH($B69,'2013 ONS Pop Data Females'!$B$4:$B$460,0),1) -> 6683 | G69: =ROUND($E69/$F69,4) -> 0.0165 | H69: 0.01367528527 | I69: 0.01979963113 | T69: 0.0164596738 | U69: =INDEX('2013 ONS Birth Data'!$E$15:$E$474,MATCH($B69,'2013 ONS Birth Data'!$B$15:$B$474,0),1) -> 110
A70: E10000029 | B70: Suffolk | C70: E12000006 | D70: 0.0165 | E70: =INDEX('2013 ONS Birth Data'!$E$15:$E$474,MATCH($B70,'2013 ONS Birth Data'!$B$15:$B$474,0),1) -> 339 | F70: =INDEX('2013 ONS Pop Data Females'!$E$4:$E$460,MATCH($B70,'2013 ONS Pop Data Females'!$B$4:$B$460,0),1) -> 20543 | G70: 0.0165 | H70: 0.01484809305 | I70: 0.01833664049 | T70: 0.01650197147 | U70: =INDEX('2013 ONS Birth Data'!$E$15:$E$474,MATCH($B70,'2013 ONS Birth Data'!$B$15:$B$474,0),1) -> 339
A71: E06000028 | B71: Bournemouth | C71: E12000009 | D71: 0.0166 | E71: =INDEX('2013 ONS Birth Data'!$E$15:$E$474,MATCH($B71,'2013 ONS Birth Data'!$B$15:$B$474,0),1) -> 90 | F71: =INDEX('2013 ONS Pop Data Females'!$E$4:$E$460,MATCH($B71,'2013 ONS Pop Data Females'!$B$4:$B$460,0),1) -> 5420 | G71: 0.0166 | H71: 0.01352954083 | I71: 0.02036552417 | T71: 0.01660516605 | U71: =INDEX('2013 ONS Birth Data'!$E$15:$E$474,MATCH($B71,'2013 ONS Birth Data'!$B$15:$B$474,0),1) -> 90
A72: E06000039 | B72: Slough | C72: E12000008 | D72: 0.0166 | E72: =INDEX('2013 ONS Birth Data'!$E$15:$E$474,MATCH($B72,'2013 ONS Birth Data'!$B$15:$B$474,0),1) -> 69 | F72: =INDEX('2013 ONS Pop Data Females'!$E$4:$E$460,MATCH($B72,'2013 ONS Pop Data Females'!$B$4:$B$460,0),1) -> 4145 | G72: 0.0166 | H72: 0.01317521788 | I72: 0.0210129911 | T72: 0.01664656212 | U72: =INDEX('2013 ONS Birth Data'!$E$15:$E$474,MATCH($B72,'2013 ONS Birth Data'!$B$15:$B$474,0),1) -> 69
A73: E06000007 | B73: Warrington | C73: E12000002 | D73: 0.0167 | E73: =INDEX('2013 ONS Birth Data'!$E$15:$E$474,MATCH($B73,'2013 ONS Birth Data'!$B$15:$B$474,0),1) -> 97 | F73: =INDEX('2013 ONS Pop Data Females'!$E$4:$E$460,MATCH($B73,'2013 ONS Pop Data Females'!$B$4:$B$460,0),1) -> 5813 | G73: 0.0167 | H73: 0.01369868175 | I73: 0.02031315444 | T73: 0.01668673662 | U73: =INDEX('2013 ONS Birth Data'!$E$15:$E$474,MATCH($B73,'2013 ONS Birth Data'!$B$15:$B$474,0),1) -> 97
A74: E10000016 | B74: Kent | C74: E12000008 | D74: 0.0168 | E74: =INDEX('2013 ONS Birth Data'!$E$15:$E$474,MATCH($B74,'2013 ONS Birth Data'!$B$15:$B$474,0),1) -> 789 | F74: =INDEX('2013 ONS Pop Data Females'!$E$4:$E$460,MATCH($B74,'2013 ONS Pop Data Females'!$B$4:$B$460,0),1) -> 46883 | G74: 0.0168 | H74: 0.01570371614 | I74: 0.0180337123 | T74: 0.01682912783 | U74: =INDEX('2013 ONS Birth Data'!$E$15:$E$474,MATCH($B74,'2013 ONS Birth Data'!$B$15:$B$474,0),1) -> 789
A75: E09000011 | B75: Greenwich | C75: E12000007 | D75: 0.017 | E75: =INDEX('2013 ONS Birth Data'!$E$15:$E$474,MATCH($B75,'2013 ONS Birth Data'!$B$15:$B$474,0),1) -> 126 | F75: =INDEX('2013 ONS Pop Data Females'!$E$4:$E$460,MATCH($B75,'2013 ONS Pop Data Females'!$B$4:$B$460,0),1) -> 7394 | G75: 0.017 | H75: 0.01433169297 | I75: 0.0202515649 | T75: 0.01704084393 | U75: =INDEX('2013 ONS Birth Data'!$E$15:$E$474,MATCH($B75,'2013 ONS Birth Data'!$B$15:$B$474,0),1) -> 126
A76: E06000011 | B76: East Riding of Yorkshire | C76: E12000003 | D76: 0.0172 | E76: =INDEX('2013 ONS Birth Data'!$E$15:$E$474,MATCH($B76,'2013 ONS Birth Data'!$B$15:$B$474,0),1) -> 166 | F76: =INDEX('2013 ONS Pop Data Females'!$E$4:$E$460,MATCH($B76,'2013 ONS Pop Data Females'!$B$4:$B$460,0),1) -> 9670 | G76: 0.0172 | H76: 0.01476279076 | I76: 0.01995366188 | T76: 0.01716649431 | U76: =INDEX('2013 ONS Birth Data'!$E$15:$E$474,MATCH($B76,'2013 ONS Birth Data'!$B$15:$B$474,0),1) -> 166
A77: E09000008 | B77: Croydon | C77: E12000007 | D77: 0.0172 | E77: =INDEX('2013 ONS Birth Data'!$E$15:$E$474,MATCH($B77,'2013 ONS Birth Data'!$B$15:$B$474,0),1) -> 196 | F77: =INDEX('2013 ONS Pop Data Females'!$E$4:$E$460,MATCH($B77,'2013 ONS Pop Data Females'!$B$4:$B$460,0),1) -> 11391 | G77: 0.0172 | H77: 0.01497611983 | I77: 0.01976253452 | T77: 0.01720656659 | U77: =INDEX('2013 ONS Birth Data'!$E$15:$E$474,MATCH($B77,'2013 ONS Birth Data'!$B$15:$B$474,0),1) -> 196
A78: E06000023 | B78: Bristol | C78: E12000009 | D78: 0.0172 | E78: =INDEX('2013 ONS Birth Data'!$E$15:$E$474,MATCH($B78,'2013 ONS Birth Data'!$B$15:$B$474,0),1) -> 227 | F78: =INDEX('2013 ONS Pop Data Females'!$E$4:$E$460,MATCH($B78,'2013 ONS Pop Data Females'!$B$4:$B$460,0),1) -> 13188 | G78: 0.0172 | H78: 0.01512927599 | I78: 0.01957713404 | T78: 0.01721261753 | U78: =INDEX('2013 ONS Birth Data'!$E$15:$E$474,MATCH($B78,'2013 ONS Birth Data'!$B$15:$B$474,0),1) -> 227
A79: E10000007 | B79: Derbyshire | C79: E12000004 | D79: 0.0172 | E79: =INDEX('2013 ONS Birth Data'!$E$15:$E$474,MATCH($B79,'2013 ONS Birth Data'!$B$15:$B$474,0),1) -> 388 | F79: =INDEX('2013 ONS Pop Data Females'!$E$4:$E$460,MATCH($B79,'2013 ONS Pop Data Females'!$B$4:$B$460,0),1) -> 22539 | G79: 0.0172 | H79: 0.01559693397 | I79: 0.01899681767 | T79: 0.01721460579 | U79: =INDEX('2013 ONS Birth Data'!$E$15:$E$474,MATCH($B79,'2013 ONS Birth Data'!$B$15:$B$474,0),1) -> 388
A80: E06000038 | B80: Reading | C80: E12000008 | D80: 0.0173 | E80: =INDEX('2013 ONS Birth Data'!$E$15:$E$474,MATCH($B80,'2013 ONS Birth Data'!$B$15:$B$474,0),1) -> 82 | F80: =INDEX('2013 ONS Pop Data Females'!$E$4:$E$460,MATCH($B80,'2013 ONS Pop Data Females'!$B$4:$B$460,0),1) -> 4745 | G80: 0.0173 | H80: 0.01394490875 | I80: 0.02139875566 | T80: 0.01728134879 | U80: =INDEX('2013 ONS Birth Data'!$E$15:$E$474,MATCH($B80,'2013 ONS Birth Data'!$B$15:$B$474,0),1) -> 82
A81: E10000006 | B81: Cumbria | C81: E12000002 | D81: 0.0173 | E81: =INDEX('2013 ONS Birth Data'!$E$15:$E$474,MATCH($B81,'2013 ONS Birth Data'!$B$15:$B$474,0),1) -> 237 | F81: =INDEX('2013 ONS Pop Data Females'!$E$4:$E$460,MATCH($B81,'2013 ONS Pop Data Females'!$B$4:$B$460,0),1) -> 13705 | G81: 0.0173 | H81: 0.01524184224 | I81: 0.01961460133 | T81: 0.01729295877 | U81: =INDEX('2013 ONS Birth Data'!$E$15:$E$474,MATCH($B81,'2013 ONS Birth Data'!$B$15:$B$474,0),1) -> 237
A82: E06000029 | B82: Poole | C82: E12000009 | D82: 0.0175 | E82: =INDEX('2013 ONS Birth Data'!$E$15:$E$474,MATCH($B82,'2013 ONS Birth Data'!$B$15:$B$474,0),1) -> 74 | F82: =INDEX('2013 ONS Pop Data Females'!$E$4:$E$460,MATCH($B82,'2013 ONS Pop Data Females'!$B$4:$B$460,0),1) -> 4237 | G82: 0.0175 | H82: 0.01393559446 | I82: 0.02186896468 | T82: 0.01746518763 | U82: =INDEX('2013 ONS Birth Data'!$E$15:$E$474,MATCH($B82,'2013 ONS Birth Data'!$B$15:$B$474,0),1) -> 74
A83: E08000025 | B83: Birmingham | C83: E12000005 | D83: 0.0175 | E83: =INDEX('2013 ONS Birth Data'!$E$15:$E$474,MATCH($B83,'2013 ONS Birth Data'!$B$15:$B$474,0),1) -> 688 | F83: =INDEX('2013 ONS Pop Data Females'!$E$4:$E$460,MATCH($B83,'2013 ONS Pop Data Females'!$B$4:$B$460,0),1) -> 39384 | G83: 0.0175 | H83: 0.01622142681 | I83: 0.01881074067 | T83: 0.01746902295 | U83: =INDEX('2013 ONS Birth Data'!$E$15:$E$474,MATCH($B83,'2013 ONS Birth Data'!$B$15:$B$474,0),1) -> 688
A84: E10000017 | B84: Lancashire | C84: E12000002 | D84: 0.0179 | E84: =INDEX('2013 ONS Birth Data'!$E$15:$E$474,MATCH($B84,'2013 ONS Birth Data'!$B$15:$B$474,0),1) -> 639 | F84: =INDEX('2013 ONS Pop Data Females'!$E$4:$E$460,MATCH($B84,'2013 ONS Pop Data Females'!$B$4:$B$460,0),1) -> 35794 | G84: 0.0179 | H84: 0.01653126919 | I84: 0.01927651716 | T84: 0.01785215399 | U84: =INDEX('2013 ONS Birth Data'!$E$15:$E$474,MATCH($B84,'2013 ONS Birth Data'!$B$15:$B$474,0),1) -> 639
A85: E10000027 | B85: Somerset | C85: E12000009 | D85: 0.0179 | E85: =INDEX('2013 ONS Birth Data'!$E$15:$E$474,MATCH($B85,'2013 ONS Birth Data'!$B$15:$B$474,0),1) -> 283 | F85: =INDEX('2013 ONS Pop Data Females'!$E$4:$E$460,MATCH($B85,'2013 ONS Pop Data Females'!$B$4:$B$460,0),1) -> 15845 | G85: 0.0179 | H85: 0.01591214461 | I85: 0.02004262599 | T85: 0.01786052382 | U85: =INDEX('2013 ONS Birth Data'!$E$15:$E$474,MATCH($B85,'2013 ONS Birth Data'!$B$15:$B$474,0),1) -> 283
A86: E10000034 | B86: Worcestershire | C86: E12000005 | D86: 0.0179 | E86: =INDEX('2013 ONS Birth Data'!$E$15:$E$474,MATCH($B86,'2013 ONS Birth Data'!$B$15:$B$474,0),1) -> 295 | F86: =INDEX('2013 ONS Pop Data Females'!$E$4:$E$460,MATCH($B86,'2013 ONS Pop Data Females'!$B$4:$B$460,0),1) -> 16440 | G86: 0.0179 | H86: 0.01602451867 | I86: 0.02008878614 | T86: 0.01794403893 | U86: =INDEX('2013 ONS Birth Data'!$E$15:$E$474,MATCH($B86,'2013 ONS Birth Data'!$B$15:$B$474,0),1) -> 295
A87: E06000057 | B87: Northumberland | C87: E12000001 | D87: 0.0181 | E87: =INDEX('2013 ONS Birth Data'!$E$15:$E$474,MATCH($B87,'2013 ONS Birth Data'!$B$15:$B$474,0),1) -> 154 | F87: =INDEX('2013 ONS Pop Data Females'!$E$4:$E$460,MATCH($B87,'2013 ONS Pop Data Females'!$B$4:$B$460,0),1) -> 8495 | G87: 0.0181 | H87: 0.01550128057 | I87: 0.02119095099 | T87: 0.01812831077 | U87: =INDEX('2013 ONS Birth Data'!$E$15:$E$474,MATCH($B87,'2013 ONS Birth Data'!$B$15:$B$474,0),1) -> 154
A88: E08000011 | B88: Knowsley | C88: E12000002 | D88: 0.0182 | E88: =INDEX('2013 ONS Birth Data'!$E$15:$E$474,MATCH($B88,'2013 ONS Birth Data'!$B$15:$B$474,0),1) -> 87 | F88: =INDEX('2013 ONS Pop Data Females'!$E$4:$E$460,MATCH($B88,'2013 ONS Pop Data Females'!$B$4:$B$460,0),1) -> 4788 | G88: 0.0182 | H88: 0.01475528351 | I88: 0.02235810188 | T88: 0.01817042607 | U88: =INDEX('2013 ONS Birth Data'!$E$15:$E$474,MATCH($B88,'2013 ONS Birth Data'!$B$15:$B$474,0),1) -> 87
A89: E10000028 | B89: Staffordshire | C89: E12000005 | D89: 0.0182 | E89: =INDEX('2013 ONS Birth Data'!$E$15:$E$474,MATCH($B89,'2013 ONS Birth Data'!$B$15:$B$474,0),1) -> 448 | F89: =INDEX('2013 ONS Pop Data Females'!$E$4:$E$460,MATCH($B89,'2013 ONS Pop Data Females'!$B$4:$B$460,0),1) -> 24623 | G89: 0.0182 | H89: 0.01659857619 | I89: 0.01994047655 | T89: 0.01819437112 | U89: =INDEX('2013 ONS Birth Data'!$E$15:$E$474,MATCH($B89,'2013 ONS Birth Data'!$B$15:$B$474,0),1) -> 448
A90: E08000019 | B90: Sheffield | C90: E12000003 | D90: 0.0184 | E90: =INDEX('2013 ONS Birth Data'!$E$15:$E$474,MATCH($B90,'2013 ONS Birth Data'!$B$15:$B$474,0),1) -> 342 | F90: =INDEX('2013 ONS Pop Data Females'!$E$4:$E$460,MATCH($B90,'2013 ONS Pop Data Females'!$B$4:$B$460,0),1) -> 18574 | G90: 0.0184 | H90: 0.01657664723 | I90: 0.02044818476 | T90: 0.01841283515 | U90: =INDEX('2013 ONS Birth Data'!$E$15:$E$474,MATCH($B90,'2013 ONS Birth Data'!$B$15:$B$474,0),1) -> 342
A91: E08000022 | B91: North Tyneside | C91: E12000001 | D91: 0.0185 | E91: =INDEX('2013 ONS Birth Data'!$E$15:$E$474,MATCH($B91,'2013 ONS Birth Data'!$B$15:$B$474,0),1) -> 101 | F91: =INDEX('2013 ONS Pop Data Females'!$E$4:$E$460,MATCH($B91,'2013 ONS Pop Data Females'!$B$4:$B$460,0),1) -> 5448 | G91: 0.0185 | H91: 0.01528145851 | I91: 0.02247485931 | T91: 0.01853891336 | U91: =INDEX('2013 ONS Birth Data'!$E$15:$E$474,MATCH($B91,'2013 ONS Birth Data'!$B$15:$B$474,0),1) -> 101
A92: E09000023 | B92: Lewisham | C92: E12000007 | D92: 0.0185 | E92: =INDEX('2013 ONS Birth Data'!$E$15:$E$474,MATCH($B92,'2013 ONS Birth Data'!$B$15:$B$474,0),1) -> 140 | F92: =INDEX('2013 ONS Pop Data Females'!$E$4:$E$460,MATCH($B92,'2013 ONS Pop Data Females'!$B$4:$B$460,0),1) -> 7550 | G92: 0.0185 | H92: 0.01573576713 | I92: 0.02184000943 | T92: 0.01854304636 | U92: =INDEX('2013 ONS Birth Data'!$E$15:$E$474,MATCH($B92,'2013 ONS Birth Data'!$B$15:$B$474,0),1) -> 140
A93: E10000020 | B93: Norfolk | C93: E12000006 | D93: 0.0186 | E93: =INDEX('2013 ONS Birth Data'!$E$15:$E$474,MATCH($B93,'2013 ONS Birth Data'!$B$15:$B$474,0),1) -> 463 | F93: =INDEX('2013 ONS Pop Data Females'!$E$4:$E$460,MATCH($B93,'2013 ONS Pop Data Females'!$B$4:$B$460,0),1) -> 24863 | G93: 0.0186 | H93: 0.01701451544 | I93: 0.02037830987 | T93: 0.01862204883 | U93: =INDEX('2013 ONS Birth Data'!$E$15:$E$474,MATCH($B93,'2013 ONS Birth Data'!$B$15:$B$474,0),1) -> 463
A94: E06000052 | B94: Cornwall and Isles of Scilly | C94: E12000009 | D94: 0.0186 | E94: =INDEX('2013 ONS Birth Data'!$E$15:$E$474,MATCH($B94,'2013 ONS Birth Data'!$B$15:$B$474,0),1) -> 287 | F94: =INDEX('2013 ONS Pop Data Females'!$E$4:$E$460,MATCH($B94,'2013 ONS Pop Data Females'!$B$4:$B$460,0),1) -> 15391 | G94: 0.0186 | H94: 0.01662706629 | I94: 0.02090767938 | T94: 0.01864726139 | U94: =INDEX('2013 ONS Birth Data'!$E$15:$E$474,MATCH($B94,'2013 ONS Birth Data'!$B$15:$B$474,0),1) -> 287
A95: E06000034 | B95: Thurrock | C95: E12000006 | D95: 0.0187 | E95: =INDEX('2013 ONS Birth Data'!$E$15:$E$474,MATCH($B95,'2013 ONS Birth Data'!$B$15:$B$474,0),1) -> 91 | F95: =INDEX('2013 ONS Pop Data Females'!$E$4:$E$460,MATCH($B95,'2013 ONS Pop Data Females'!$B$4:$B$460,0),1) -> 4872 | G95: 0.0187 | H95: 0.01523843185 | I95: 0.02287631417 | T95: 0.01867816092 | U95: =INDEX('2013 ONS Birth Data'!$E$15:$E$474,MATCH($B95,'2013 ONS Birth Data'!$B$15:$B$474,0),1) -> 91
A96: E09000002 | B96: Barking and Dagenham | C96: E12000007 | D96: 0.0187 | E96: =INDEX('2013 ONS Birth Data'!$E$15:$E$474,MATCH($B96,'2013 ONS Birth Data'!$B$15:$B$474,0),1) -> 116 | F96: =INDEX('2013 ONS Pop Data Females'!$E$4:$E$460,MATCH($B96,'2013 ONS Pop Data Females'!$B$4:$B$460,0),1) -> 6189 | G96: 0.0187 | H96: 0.01565057829 | I96: 0.02243233735 | T96: 0.01874293101 | U96: =INDEX('2013 ONS Birth Data'!$E$15:$E$474,MATCH($B96,'2013 ONS Birth Data'!$B$15:$B$474,0),1) -> 116
A97: E06000042 | B97: Milton Keynes | C97: E12000008 | D97: 0.0188 | E97: =INDEX('2013 ONS Birth Data'!$E$15:$E$474,MATCH($B97,'2013 ONS Birth Data'!$B$15:$B$474,0),1) -> 134 | F97: =INDEX('2013 ONS Pop Data Females'!$E$4:$E$460,MATCH($B97,'2013 ONS Pop Data Females'!$B$4:$B$460,0),1) -> 7139 | G97: 0.0188 | H97: 0.01587111514 | I97: 0.02218677266 | T97: 0.01877013587 | U97: =INDEX('2013 ONS Birth Data'!$E$15:$E$474,MATCH($B97,'2013 ONS Birth Data'!$B$15:$B$474,0),1) -> 134
A98: E06000045 | B98: Southampton | C98: E12000008 | D98: 0.0188 | E98: =INDEX('2013 ONS Birth Data'!$E$15:$E$474,MATCH($B98,'2013 ONS Birth Data'!$B$15:$B$474,0),1) -> 153 | F98: =INDEX('2013 ONS Pop Data Females'!$E$4:$E$460,MATCH($B98,'2013 ONS Pop Data Females'!$B$4:$B$460,0),1) -> 8127 | G98: 0.0188 | H98: 0.01609053555 | I98: 0.02201640091 | T98: 0.01882613511 | U98: =INDEX('2013 ONS Birth Data'!$E$15:$E$474,MATCH($B98,'2013 ONS Birth Data'!$B$15:$B$474,0),1) -> 153
A99: E08000035 | B99: Leeds | C99: E12000003 | D99: 0.0191 | E99: =INDEX('2013 ONS Birth Data'!$E$15:$E$474,MATCH($B99,'2013 ONS Birth Data'!$B$15:$B$474,0),1) -> 479 | F99: =INDEX('2013 ONS Pop Data Females'!$E$4:$E$460,MATCH($B99,'2013 ONS Pop Data Females'!$B$4:$B$460,0),1) -> 25029 | G99: 0.0191 | H99: 0.01751271658 | I99: 0.02091046683 | T99: 0.01913780015 | U99: =INDEX('2013 ONS Birth Data'!$E$15:$E$474,MATCH($B99,'2013 ONS Birth Data'!$B$15:$B$474,0),1) -> 479
A100: E06000055 | B100: Bedford | C100: E12000006 | D100: 0.0192 | E100: =INDEX('2013 ONS Birth Data'!$E$15:$E$474,MATCH($B100,'2013 ONS Birth Data'!$B$15:$B$474,0),1) -> 94 | F100: =INDEX('2013 ONS Pop Data Females'!$E$4:$E$460,MATCH($B100,'2013 ONS Pop Data Females'!$B$4:$B$460,0),1) -> 4904 | G100: 0.0192 | H100: =(2*E100+NORMSINV((100+95)/200)^2-NORMSINV((100+95)/200)*SQRT(NORMSINV((100+95)/200)^2+4*E100*(1-G100)))/2/(F100+NORMSINV((100+95)/200)^2) -> 0.01568993622 | I100: =(2*E100+NORMSINV((100+95)/200)^2+NORMSINV((100+95)/200)*SQRT(NORMSINV((100+95)/200)^2+4*E100*(1-G100)))/2/(F100+NORMSINV((100+95)/200)^2) -> 0.02339882825 | T100: =U100/F100 -> 0.0191680261 | U100: =INDEX('2013 ONS Birth Data'!$E$15:$E$474,MATCH($B100,'2013 ONS Birth Data'!$B$15:$B$474,0),1) -> 94
A101: E06000044 | B101: Portsmouth | C101: E12000008 | D101: 0.0193 | E101: =INDEX('2013 ONS Birth Data'!$E$15:$E$474,MATCH($B101,'2013 ONS Birth Data'!$B$15:$B$474,0),1) -> 132 | F101: =INDEX('2013 ONS Pop Data Females'!$E$4:$E$460,MATCH($B101,'2013 ONS Pop Data Females'!$B$4:$B$460,0),1) -> 6856 | G101: 0.0193 | H101: 0.01625959628 | I101: 0.02278525052 | T101: 0.01925320887 | U101: =INDEX('2013 ONS Birth Data'!$E$15:$E$474,MATCH($B101,'2013 ONS Birth Data'!$B$15:$B$474,0),1) -> 132
A102: E08000026 | B102: Coventry | C102: E12000005 | D102: 0.0193 | E102: =INDEX('2013 ONS Birth Data'!$E$15:$E$474,MATCH($B102,'2013 ONS Birth Data'!$B$15:$B$474,0),1) -> 218 | F102: =INDEX('2013 ONS Pop Data Females'!$E$4:$E$460,MATCH($B102,'2013 ONS Pop Data Females'!$B$4:$B$460,0),1) -> 11312 | G102: 0.0193 | H102: 0.01689653676 | I102: 0.02197299499 | T102: 0.01927157001 | U102: =INDEX('2013 ONS Birth Data'!$E$15:$E$474,MATCH($B102,'2013 ONS Birth Data'!$B$15:$B$474,0),1) -> 218
A103: E06000033 | B103: Southend-on-Sea | C103: E12000006 | D103: 0.0193 | E103: =INDEX('2013 ONS Birth Data'!$E$15:$E$474,MATCH($B103,'2013 ONS Birth Data'!$B$15:$B$474,0),1) -> 96 | F103: =INDEX('2013 ONS Pop Data Females'!$E$4:$E$460,MATCH($B103,'2013 ONS Pop Data Females'!$B$4:$B$460,0),1) -> 4979 | G103: 0.0193 | H103: 0.01581558479 | I103: 0.02348758398 | T103: 0.01928098012 | U103: =INDEX('2013 ONS Birth Data'!$E$15:$E$474,MATCH($B103,'2013 ONS Birth Data'!$B$15:$B$474,0),1) -> 96
A104: E08000034 | B104: Kirklees | C104: E12000003 | D104: 0.0195 | E104: =INDEX('2013 ONS Birth Data'!$E$15:$E$474,MATCH($B104,'2013 ONS Birth Data'!$B$15:$B$474,0),1) -> 259 | F104: =INDEX('2013 ONS Pop Data Females'!$E$4:$E$460,MATCH($B104,'2013 ONS Pop Data Females'!$B$4:$B$460,0),1) -> 13289 | G104: 0.0195 | H104: 0.01727457197 | I104: 0.02198275766 | T104: 0.0194898036 | U104: =INDEX('2013 ONS Birth Data'!$E$15:$E$474,MATCH($B104,'2013 ONS Birth Data'!$B$15:$B$474,0),1) -> 259
A105: E10000024 | B105: Nottinghamshire | C105: E12000004 | D105: 0.0197 | E105: =INDEX('2013 ONS Birth Data'!$E$15:$E$474,MATCH($B105,'2013 ONS Birth Data'!$B$15:$B$474,0),1) -> 449 | F105: =INDEX('2013 ONS Pop Data Females'!$E$4:$E$460,MATCH($B105,'2013 ONS Pop Data Females'!$B$4:$B$460,0),1) -> 22831 | G105: 0.0197 | H105: 0.01794433814 | I105: 0.02154975953 | T105: 0.01966624327 | U105: =INDEX('2013 ONS Birth Data'!$E$15:$E$474,MATCH($B105,'2013 ONS Birth Data'!$B$15:$B$474,0),1) -> 449
A106: E06000016 | B106: Leicester | C106: E12000004 | D106: 0.02 | E106: =INDEX('2013 ONS Birth Data'!$E$15:$E$474,MATCH($B106,'2013 ONS Birth Data'!$B$15:$B$474,0),1) -> 229 | F106: =INDEX('2013 ONS Pop Data Females'!$E$4:$E$460,MATCH($B106,'2013 ONS Pop Data Females'!$B$4:$B$460,0),1) -> 11455 | G106: 0.02 | H106: 0.0175843632 | I106: 0.02272001316 | T106: 0.01999127019 | U106: =INDEX('2013 ONS Birth Data'!$E$15:$E$474,MATCH($B106,'2013 ONS Birth Data'!$B$15:$B$474,0),1) -> 229
A107: E10000021 | B107: Northamptonshire | C107: E12000004 | D107: 0.0201 | E107: =INDEX('2013 ONS Birth Data'!$E$15:$E$474,MATCH($B107,'2013 ONS Birth Data'!$B$15:$B$474,0),1) -> 410 | F107: =INDEX('2013 ONS Pop Data Females'!$E$4:$E$460,MATCH($B107,'2013 ONS Pop Data Females'!$B$4:$B$460,0),1) -> 20435 | G107: 0.0201 | H107: 0.01822942997 | I107: 0.0220782098 | T107: 0.02006361634 | U107: =INDEX('2013 ONS Birth Data'!$E$15:$E$474,MATCH($B107,'2013 ONS Birth Data'!$B$15:$B$474,0),1) -> 410
A108: E08000015 | B108: Wirral | C108: E12000002 | D108: 0.0202 | E108: =INDEX('2013 ONS Birth Data'!$E$15:$E$474,MATCH($B108,'2013 ONS Birth Data'!$B$15:$B$474,0),1) -> 186 | F108: =INDEX('2013 ONS Pop Data Females'!$E$4:$E$460,MATCH($B108,'2013 ONS Pop Data Females'!$B$4:$B$460,0),1) -> 9221 | G108: 0.0202 | H108: 0.01749538083 | I108: 0.02324694092 | T108: 0.02017134801 | U108: =INDEX('2013 ONS Birth Data'!$E$15:$E$474,MATCH($B108,'2013 ONS Birth Data'!$B$15:$B$474,0),1) -> 186
A109: E06000018 | B109: Nottingham | C109: E12000004 | D109: 0.0203 | E109: =INDEX('2013 ONS Birth Data'!$E$15:$E$474,MATCH($B109,'2013 ONS Birth Data'!$B$15:$B$474,0),1) -> 252 | F109: =INDEX('2013 ONS Pop Data Females'!$E$4:$E$460,MATCH($B109,'2013 ONS Pop Data Females'!$B$4:$B$460,0),1) -> 12387 | G109: 0.0203 | H109: 0.01800239702 | I109: 0.0229828307 | T109: 0.02034390894 | U109: =INDEX('2013 ONS Birth Data'!$E$15:$E$474,MATCH($B109,'2013 ONS Birth Data'!$B$15:$B$474,0),1) -> 252
A110: E08000037 | B110: Gateshead | C110: E12000001 | D110: 0.0207 | E110: =INDEX('2013 ONS Birth Data'!$E$15:$E$474,MATCH($B110,'2013 ONS Birth Data'!$B$15:$B$474,0),1) -> 120 | F110: =INDEX('2013 ONS Pop Data Females'!$E$4:$E$460,MATCH($B110,'2013 ONS Pop Data Females'!$B$4:$B$460,0),1) -> 5795 | G110: 0.0207 | H110: 0.01734607504 | I110: 0.02470395522 | T110: 0.02070750647 | U110: =INDEX('2013 ONS Birth Data'!$E$15:$E$474,MATCH($B110,'2013 ONS Birth Data'!$B$15:$B$474,0),1) -> 120
A111: E06000030 | B111: Swindon | C111: E12000009 | D111: 0.021 | E111: =INDEX('2013 ONS Birth Data'!$E$15:$E$474,MATCH($B111,'2013 ONS Birth Data'!$B$15:$B$474,0),1) -> 130 | F111: =INDEX('2013 ONS Pop Data Females'!$E$4:$E$460,MATCH($B111,'2013 ONS Pop Data Females'!$B$4:$B$460,0),1) -> 6190 | G111: 0.021 | H111: 0.017715391 | I111: 0.02488199555 | T111: 0.02100161551 | U111: =INDEX('2013 ONS Birth Data'!$E$15:$E$474,MATCH($B111,'2013 ONS Birth Data'!$B$15:$B$474,0),1) -> 130
A112: E10000019 | B112: Lincolnshire | C112: E12000004 | D112: 0.0211 | E112: =INDEX('2013 ONS Birth Data'!$E$15:$E$474,MATCH($B112,'2013 ONS Birth Data'!$B$15:$B$474,0),1) -> 447 | F112: =INDEX('2013 ONS Pop Data Females'!$E$4:$E$460,MATCH($B112,'2013 ONS Pop Data Females'!$B$4:$B$460,0),1) -> 21155 | G112: 0.0211 | H112: 0.0192769049 | I112: 0.02315648922 | T112: 0.02112975656 | U112: =INDEX('2013 ONS Birth Data'!$E$15:$E$474,MATCH($B112,'2013 ONS Birth Data'!$B$15:$B$474,0),1) -> 447
A113: E08000032 | B113: Bradford | C113: E12000003 | D113: 0.0213 | E113: =INDEX('2013 ONS Birth Data'!$E$15:$E$474,MATCH($B113,'2013 ONS Birth Data'!$B$15:$B$474,0),1) -> 368 | F113: =INDEX('2013 ONS Pop Data Females'!$E$4:$E$460,MATCH($B113,'2013 ONS Pop Data Females'!$B$4:$B$460,0),1) -> 17281 | G113: 0.0213 | H113: 0.01924664015 | I113: 0.0235562667 | T113: 0.02129506394 | U113: =INDEX('2013 ONS Birth Data'!$E$15:$E$474,MATCH($B113,'2013 ONS Birth Data'!$B$15:$B$474,0),1) -> 368
A114: E08000003 | B114: Manchester | C114: E12000002 | D114: 0.0214 | E114: =INDEX('2013 ONS Birth Data'!$E$15:$E$474,MATCH($B114,'2013 ONS Birth Data'!$B$15:$B$474,0),1) -> 352 | F114: =INDEX('2013 ONS Pop Data Females'!$E$4:$E$460,MATCH($B114,'2013 ONS Pop Data Females'!$B$4:$B$460,0),1) -> 16482 | G114: 0.0214 | H114: 0.01925855368 | I114: 0.02367777205 | T114: 0.02135663148 | U114: =INDEX('2013 ONS Birth Data'!$E$15:$E$474,MATCH($B114,'2013 ONS Birth Data'!$B$15:$B$474,0),1) -> 352
A115: E08000001 | B115: Bolton | C115: E12000002 | D115: 0.0214 | E115: =INDEX('2013 ONS Birth Data'!$E$15:$E$474,MATCH($B115,'2013 ONS Birth Data'!$B$15:$B$474,0),1) -> 183 | F115: =INDEX('2013 ONS Pop Data Females'!$E$4:$E$460,MATCH($B115,'2013 ONS Pop Data Females'!$B$4:$B$460,0),1) -> 8556 | G115: 0.0214 | H115: 0.01853093053 | I115: 0.0246756476 | T115: 0.0213884993 | U115: =INDEX('2013 ONS Birth Data'!$E$15:$E$474,MATCH($B115,'2013 ONS Birth Data'!$B$15:$B$474,0),1) -> 183
A116: E06000047 | B116: County Durham | C116: E12000001 | D116: 0.0219 | E116: =INDEX('2013 ONS Birth Data'!$E$15:$E$474,MATCH($B116,'2013 ONS Birth Data'!$B$15:$B$474,0),1) -> 338 | F116: =INDEX('2013 ONS Pop Data Females'!$E$4:$E$460,MATCH($B116,'2013 ONS Pop Data Females'!$B$4:$B$460,0),1) -> 15407 | G116: 0.0219 | H116: 0.01974144359 | I116: 0.02437304948 | T116: 0.02193808009 | U116: =INDEX('2013 ONS Birth Data'!$E$15:$E$474,MATCH($B116,'2013 ONS Birth Data'!$B$15:$B$474,0),1) -> 338
A117: E08000010 | B117: Wigan | C117: E12000002 | D117: 0.0226 | E117: =INDEX('2013 ONS Birth Data'!$E$15:$E$474,MATCH($B117,'2013 ONS Birth Data'!$B$15:$B$474,0),1) -> 207 | F117: =INDEX('2013 ONS Pop Data Females'!$E$4:$E$460,MATCH($B117,'2013 ONS Pop Data Females'!$B$4:$B$460,0),1) -> 9167 | G117: 0.0226 | H117: 0.01973386423 | I117: 0.02582809 | T117: 0.02258099705 | U117: =INDEX('2013 ONS Birth Data'!$E$15:$E$474,MATCH($B117,'2013 ONS Birth Data'!$B$15:$B$474,0),1) -> 207
A118: E06000035 | B118: Medway | C118: E12000008 | D118: 0.0226 | E118: =INDEX('2013 ONS Birth Data'!$E$15:$E$474,MATCH($B118,'2013 ONS Birth Data'!$B$15:$B$474,0),1) -> 195 | F118: =INDEX('2013 ONS Pop Data Females'!$E$4:$E$460,MATCH($B118,'2013 ONS Pop Data Females'!$B$4:$B$460,0),1) -> 8620 | G118: 0.0226 | H118: 0.0196889378 | I118: 0.02597997445 | T118: 0.02262180974 | U118: =INDEX('2013 ONS Birth Data'!$E$15:$E$474,MATCH($B118,'2013 ONS Birth Data'!$B$15:$B$474,0),1) -> 195
A119: E06000026 | B119: Plymouth | C119: E12000009 | D119: 0.0227 | E119: =INDEX('2013 ONS Birth Data'!$E$15:$E$474,MATCH($B119,'2013 ONS Birth Data'!$B$15:$B$474,0),1) -> 189 | F119: =INDEX('2013 ONS Pop Data Females'!$E$4:$E$460,MATCH($B119,'2013 ONS Pop Data Females'!$B$4:$B$460,0),1) -> 8331 | G119: 0.0227 | H119: 0.01970212674 | I119: 0.02611055737 | T119: 0.02268635218 | U119: =INDEX('2013 ONS Birth Data'!$E$15:$E$474,MATCH($B119,'2013 ONS Birth Data'!$B$15:$B$474,0),1) -> 189
A120: E08000002 | B120: Bury | C120: E12000002 | D120: 0.0227 | E120: =INDEX('2013 ONS Birth Data'!$E$15:$E$474,MATCH($B120,'2013 ONS Birth Data'!$B$15:$B$474,0),1) -> 123 | F120: =INDEX('2013 ONS Pop Data Females'!$E$4:$E$460,MATCH($B120,'2013 ONS Pop Data Females'!$B$4:$B$460,0),1) -> 5411 | G120: 0.0227 | H120: 0.01908571857 | I120: 0.02705440588 | T120: 0.02273147293 | U120: =INDEX('2013 ONS Birth Data'!$E$15:$E$474,MATCH($B120,'2013 ONS Birth Data'!$B$15:$B$474,0),1) -> 123
A121: E06000015 | B121: Derby | C121: E12000004 | D121: 0.0227 | E121: =INDEX('2013 ONS Birth Data'!$E$15:$E$474,MATCH($B121,'2013 ONS Birth Data'!$B$15:$B$474,0),1) -> 173 | F121: =INDEX('2013 ONS Pop Data Females'!$E$4:$E$460,MATCH($B121,'2013 ONS Pop Data Females'!$B$4:$B$460,0),1) -> 7607 | G121: 0.0227 | H121: 0.01962508696 | I121: 0.0263411128 | T121: 0.02274221112 | U121: =INDEX('2013 ONS Birth Data'!$E$15:$E$474,MATCH($B121,'2013 ONS Birth Data'!$B$15:$B$474,0),1) -> 173
A122: E08000033 | B122: Calderdale | C122: E12000003 | D122: 0.0229 | E122: =INDEX('2013 ONS Birth Data'!$E$15:$E$474,MATCH($B122,'2013 ONS Birth Data'!$B$15:$B$474,0),1) -> 138 | F122: =INDEX('2013 ONS Pop Data Females'!$E$4:$E$460,MATCH($B122,'2013 ONS Pop Data Females'!$B$4:$B$460,0),1) -> 6034 | G122: 0.0229 | H122: 0.01939113799 | I122: 0.02695679293 | T122: 0.02287040106 | U122: =INDEX('2013 ONS Birth Data'!$E$15:$E$474,MATCH($B122,'2013 ONS Birth Data'!$B$15:$B$474,0),1) -> 138
A123: E08000004 | B123: Oldham | C123: E12000002 | D123: 0.0232 | E123: =INDEX('2013 ONS Birth Data'!$E$15:$E$474,MATCH($B123,'2013 ONS Birth Data'!$B$15:$B$474,0),1) -> 170 | F123: =INDEX('2013 ONS Pop Data Females'!$E$4:$E$460,MATCH($B123,'2013 ONS Pop Data Females'!$B$4:$B$460,0),1) -> 7341 | G123: 0.0232 | H123: 0.01995838476 | I123: 0.02685562215 | T123: 0.02315760796 | U123: =INDEX('2013 ONS Birth Data'!$E$15:$E$474,MATCH($B123,'2013 ONS Birth Data'!$B$15:$B$474,0),1) -> 170
A124: E08000005 | B124: Rochdale | C124: E12000002 | D124: 0.0234 | E124: =INDEX('2013 ONS Birth Data'!$E$15:$E$474,MATCH($B124,'2013 ONS Birth Data'!$B$15:$B$474,0),1) -> 159 | F124: =INDEX('2013 ONS Pop Data Females'!$E$4:$E$460,MATCH($B124,'2013 ONS Pop Data Females'!$B$4:$B$460,0),1) -> 6809 | G124: 0.0234 | H124: 0.02002424141 | I124: 0.02721617373 | T124: 0.02335144661 | U124: =INDEX('2013 ONS Birth Data'!$E$15:$E$474,MATCH($B124,'2013 ONS Birth Data'!$B$15:$B$474,0),1) -> 159
A125: E06000008 | B125: Blackburn with Darwen | C125: E12000002 | D125: 0.0235 | E125: =INDEX('2013 ONS Birth Data'!$E$15:$E$474,MATCH($B125,'2013 ONS Birth Data'!$B$15:$B$474,0),1) -> 116 | F125: =INDEX('2013 ONS Pop Data Females'!$E$4:$E$460,MATCH($B125,'2013 ONS Pop Data Females'!$B$4:$B$460,0),1) -> 4933 | G125: 0.0235 | H125: 0.0196426281 | I125: 0.02812910223 | T125: 0.02351510237 | U125: =INDEX('2013 ONS Birth Data'!$E$15:$E$474,MATCH($B125,'2013 ONS Birth Data'!$B$15:$B$474,0),1) -> 116
A126: E08000006 | B126: Salford | C126: E12000002 | D126: 0.0237 | E126: =INDEX('2013 ONS Birth Data'!$E$15:$E$474,MATCH($B126,'2013 ONS Birth Data'!$B$15:$B$474,0),1) -> 163 | F126: =INDEX('2013 ONS Pop Data Females'!$E$4:$E$460,MATCH($B126,'2013 ONS Pop Data Females'!$B$4:$B$460,0),1) -> 6872 | G126: 0.0237 | H126: 0.02037879939 | I126: 0.0275922687 | T126: 0.02371944121 | U126: =INDEX('2013 ONS Birth Data'!$E$15:$E$474,MATCH($B126,'2013 ONS Birth Data'!$B$15:$B$474,0),1) -> 163
A127: E08000018 | B127: Rotherham | C127: E12000003 | D127: 0.0239 | E127: =INDEX('2013 ONS Birth Data'!$E$15:$E$474,MATCH($B127,'2013 ONS Birth Data'!$B$15:$B$474,0),1) -> 182 | F127: =INDEX('2013 ONS Pop Data Females'!$E$4:$E$460,MATCH($B127,'2013 ONS Pop Data Females'!$B$4:$B$460,0),1) -> 7621 | G127: 0.0239 | H127: 0.02068590409 | I127: 0.02755660178 | T127: 0.0238813804 | U127: =INDEX('2013 ONS Birth Data'!$E$15:$E$474,MATCH($B127,'2013 ONS Birth Data'!$B$15:$B$474,0),1) -> 182
A128: E08000023 | B128: South Tyneside | C128: E12000001 | D128: 0.0242 | E128: =INDEX('2013 ONS Birth Data'!$E$15:$E$474,MATCH($B128,'2013 ONS Birth Data'!$B$15:$B$474,0),1) -> 107 | F128: =INDEX('2013 ONS Pop Data Females'!$E$4:$E$460,MATCH($B128,'2013 ONS Pop Data Females'!$B$4:$B$460,0),1) -> 4418 | G128: 0.0242 | H128: 0.02008249941 | I128: 0.0291823738 | T128: 0.02421910367 | U128: =INDEX('2013 ONS Birth Data'!$E$15:$E$474,MATCH($B128,'2013 ONS Birth Data'!$B$15:$B$474,0),1) -> 107
A129: E08000027 | B129: Dudley | C129: E12000005 | D129: 0.0247 | E129: =INDEX('2013 ONS Birth Data'!$E$15:$E$474,MATCH($B129,'2013 ONS Birth Data'!$B$15:$B$474,0),1) -> 231 | F129: =INDEX('2013 ONS Pop Data Females'!$E$4:$E$460,MATCH($B129,'2013 ONS Pop Data Females'!$B$4:$B$460,0),1) -> 9364 | G129: 0.0247 | H129: 0.02171678658 | I129: 0.02801094001 | T129: 0.0246689449 | U129: =INDEX('2013 ONS Birth Data'!$E$15:$E$474,MATCH($B129,'2013 ONS Birth Data'!$B$15:$B$474,0),1) -> 231
A130: E06000005 | B130: Darlington | C130: E12000001 | D130: 0.025 | E130: =INDEX('2013 ONS Birth Data'!$E$15:$E$474,MATCH($B130,'2013 ONS Birth Data'!$B$15:$B$474,0),1) -> 76 | F130: =INDEX('2013 ONS Pop Data Females'!$E$4:$E$460,MATCH($B130,'2013 ONS Pop Data Females'!$B$4:$B$460,0),1) -> 3036 | G130: 0.025 | H130: 0.02004713562 | I130: 0.03121917578 | T130: 0.02503293808 | U130: =INDEX('2013 ONS Birth Data'!$E$15:$E$474,MATCH($B130,'2013 ONS Birth Data'!$B$15:$B$474,0),1) -> 76
A131: E08000008 | B131: Tameside | C131: E12000002 | D131: 0.0251 | E131: =INDEX('2013 ONS Birth Data'!$E$15:$E$474,MATCH($B131,'2013 ONS Birth Data'!$B$15:$B$474,0),1) -> 162 | F131: =INDEX('2013 ONS Pop Data Females'!$E$4:$E$460,MATCH($B131,'2013 ONS Pop Data Females'!$B$4:$B$460,0),1) -> 6447 | G131: 0.0251 | H131: 0.02158086685 | I131: 0.0292406362 | T131: 0.0251279665 | U131: =INDEX('2013 ONS Birth Data'!$E$15:$E$474,MATCH($B131,'2013 ONS Birth Data'!$B$15:$B$474,0),1) -> 162
A132: E06000006 | B132: Halton | C132: E12000002 | D132: 0.0258 | E132: =INDEX('2013 ONS Birth Data'!$E$15:$E$474,MATCH($B132,'2013 ONS Birth Data'!$B$15:$B$474,0),1) -> 97 | F132: =INDEX('2013 ONS Pop Data Females'!$E$4:$E$460,MATCH($B132,'2013 ONS Pop Data Females'!$B$4:$B$460,0),1) -> 3756 | G132: 0.0258 | H132: =(2*E132+NORMSINV((100+95)/200)^2-NORMSINV((100+95)/200)*SQRT(NORMSINV((100+95)/200)^2+4*E132*(1-G132)))/2/(F132+NORMSINV((100+95)/200)^2) -> 0.02121669071 | I132: =(2*E132+NORMSINV((100+95)/200)^2+NORMSINV((100+95)/200)*SQRT(NORMSINV((100+95)/200)^2+4*E132*(1-G132)))/2/(F132+NORMSINV((100+95)/200)^2) -> 0.03140293727 | T132: =U132/F132 -> 0.02582534611 | U132: =INDEX('2013 ONS Birth Data'!$E$15:$E$474,MATCH($B132,'2013 ONS Birth Data'!$B$15:$B$474,0),1) -> 97
A133: E08000024 | B133: Sunderland | C133: E12000001 | D133: =ROUND(E133/F133,4) -> 0.0263 | E133: =INDEX('2013 ONS Birth Data'!$E$15:$E$474,MATCH($B133,'2013 ONS Birth Data'!$B$15:$B$474,0),1) -> 216 | F133: =INDEX('2013 ONS Pop Data Females'!$E$4:$E$460,MATCH($B133,'2013 ONS Pop Data Females'!$B$4:$B$460,0),1) -> 8222 | G133: =ROUND($E133/$F133,4) -> 0.0263 | H133: 0.02302886026 | I133: 0.02995556218 | T133: 0.0262709803 | U133: =INDEX('2013 ONS Birth Data'!$E$15:$E$474,MATCH($B133,'2013 ONS Birth Data'!$B$15:$B$474,0),1) -> 216
A134: E06000013 | B134: North Lincolnshire | C134: E12000003 | D134: 0.0268 | E134: =INDEX('2013 ONS Birth Data'!$E$15:$E$474,MATCH($B134,'2013 ONS Birth Data'!$B$15:$B$474,0),1) -> 127 | F134: =INDEX('2013 ONS Pop Data Females'!$E$4:$E$460,MATCH($B134,'2013 ONS Pop Data Females'!$B$4:$B$460,0),1) -> 4745 | G134: 0.0268 | H134: 0.02254161397 | I134: 0.03175404131 | T134: 0.02676501581 | U134: =INDEX('2013 ONS Birth Data'!$E$15:$E$474,MATCH($B134,'2013 ONS Birth Data'!$B$15:$B$474,0),1) -> 127
A135: E08000031 | B135: Wolverhampton | C135: E12000005 | D135: 0.0269 | E135: =INDEX('2013 ONS Birth Data'!$E$15:$E$474,MATCH($B135,'2013 ONS Birth Data'!$B$15:$B$474,0),1) -> 207 | F135: =INDEX('2013 ONS Pop Data Females'!$E$4:$E$460,MATCH($B135,'2013 ONS Pop Data Females'!$B$4:$B$460,0),1) -> 7709 | G135: 0.0269 | H135: 0.02347220386 | I135: 0.0307025722 | T135: 0.02685173174 | U135: =INDEX('2013 ONS Birth Data'!$E$15:$E$474,MATCH($B135,'2013 ONS Birth Data'!$B$15:$B$474,0),1) -> 207
A136: E08000036 | B136: Wakefield | C136: E12000003 | D136: 0.0269 | E136: =INDEX('2013 ONS Birth Data'!$E$15:$E$474,MATCH($B136,'2013 ONS Birth Data'!$B$15:$B$474,0),1) -> 253 | F136: =INDEX('2013 ONS Pop Data Females'!$E$4:$E$460,MATCH($B136,'2013 ONS Pop Data Females'!$B$4:$B$460,0),1) -> 9419 | G136: 0.0269 | H136: 0.02378346658 | I136: 0.03032350965 | T136: 0.02686060091 | U136: =INDEX('2013 ONS Birth Data'!$E$15:$E$474,MATCH($B136,'2013 ONS Birth Data'!$B$15:$B$474,0),1) -> 253
A137: E06000046 | B137: Isle of Wight | C137: E12000008 | D137: 0.0272 | E137: =INDEX('2013 ONS Birth Data'!$E$15:$E$474,MATCH($B137,'2013 ONS Birth Data'!$B$15:$B$474,0),1) -> 105 | F137: =INDEX('2013 ONS Pop Data Females'!$E$4:$E$460,MATCH($B137,'2013 ONS Pop Data Females'!$B$4:$B$460,0),1) -> 3862 | G137: 0.0272 | H137: 0.02250976752 | I137: 0.03280586327 | T137: 0.0271879855 | U137: =INDEX('2013 ONS Birth Data'!$E$15:$E$474,MATCH($B137,'2013 ONS Birth Data'!$B$15:$B$474,0),1) -> 105
A138: E06000003 | B138: Redcar and Cleveland | C138: E12000001 | D138: 0.0272 | E138: =INDEX('2013 ONS Birth Data'!$E$15:$E$474,MATCH($B138,'2013 ONS Birth Data'!$B$15:$B$474,0),1) -> 107 | F138: =INDEX('2013 ONS Pop Data Females'!$E$4:$E$460,MATCH($B138,'2013 ONS Pop Data Females'!$B$4:$B$460,0),1) -> 3932 | G138: 0.0272 | H138: 0.02257009029 | I138: 0.03277803821 | T138: 0.02721261445 | U138: =INDEX('2013 ONS Birth Data'!$E$15:$E$474,MATCH($B138,'2013 ONS Birth Data'!$B$15:$B$474,0),1) -> 107
A139: E06000027 | B139: Torbay | C139: E12000009 | D139: 0.0273 | E139: =INDEX('2013 ONS Birth Data'!$E$15:$E$474,MATCH($B139,'2013 ONS Birth Data'!$B$15:$B$474,0),1) -> 98 | F139: =INDEX('2013 ONS Pop Data Females'!$E$4:$E$460,MATCH($B139,'2013 ONS Pop Data Females'!$B$4:$B$460,0),1) -> 3588 | G139: 0.0273 | H139: 0.02246441077 | I139: 0.03317319493 | T139: 0.02731326644 | U139: =INDEX('2013 ONS Birth Data'!$E$15:$E$474,MATCH($B139,'2013 ONS Birth Data'!$B$15:$B$474,0),1) -> 98
A140: E06000020 | B140: Telford and Wrekin | C140: E12000005 | D140: 0.0274 | E140: =INDEX('2013 ONS Birth Data'!$E$15:$E$474,MATCH($B140,'2013 ONS Birth Data'!$B$15:$B$474,0),1) -> 153 | F140: =INDEX('2013 ONS Pop Data Females'!$E$4:$E$460,MATCH($B140,'2013 ONS Pop Data Females'!$B$4:$B$460,0),1) -> 5583 | G140: 0.0274 | H140: 0.02343627066 | I140: 0.03202287582 | T140: 0.02740462117 | U140: =INDEX('2013 ONS Birth Data'!$E$15:$E$474,MATCH($B140,'2013 ONS Birth Data'!$B$15:$B$474,0),1) -> 153
A141: E08000013 | B141: St Helens | C141: E12000002 | D141: 0.0283 | E141: =INDEX('2013 ONS Birth Data'!$E$15:$E$474,MATCH($B141,'2013 ONS Birth Data'!$B$15:$B$474,0),1) -> 142 | F141: =INDEX('2013 ONS Pop Data Females'!$E$4:$E$460,MATCH($B141,'2013 ONS Pop Data Females'!$B$4:$B$460,0),1) -> 5020 | G141: 0.0283 | H141: 0.02404891494 | I141: 0.03324617711 | T141: 0.02828685259 | U141: =INDEX('2013 ONS Birth Data'!$E$15:$E$474,MATCH($B141,'2013 ONS Birth Data'!$B$15:$B$474,0),1) -> 142
A142: E06000001 | B142: Hartlepool | C142: E12000001 | D142: 0.0288 | E142: =INDEX('2013 ONS Birth Data'!$E$15:$E$474,MATCH($B142,'2013 ONS Birth Data'!$B$15:$B$474,0),1) -> 84 | F142: =INDEX('2013 ONS Pop Data Females'!$E$4:$E$460,MATCH($B142,'2013 ONS Pop Data Females'!$B$4:$B$460,0),1) -> 2918 | G142: 0.0288 | H142: 0.02331202175 | I142: 0.03550070346 | T142: 0.0287868403 | U142: =INDEX('2013 ONS Birth Data'!$E$15:$E$474,MATCH($B142,'2013 ONS Birth Data'!$B$15:$B$474,0),1) -> 84
A143: E06000004 | B143: Stockton-on-Tees | C143: E12000001 | D143: 0.0289 | E143: =INDEX('2013 ONS Birth Data'!$E$15:$E$474,MATCH($B143,'2013 ONS Birth Data'!$B$15:$B$474,0),1) -> 164 | F143: =INDEX('2013 ONS Pop Data Females'!$E$4:$E$460,MATCH($B143,'2013 ONS Pop Data Females'!$B$4:$B$460,0),1) -> 5684 | G143: 0.0289 | H143: 0.02480938181 | I143: 0.03353286652 | T143: 0.02885292048 | U143: =INDEX('2013 ONS Birth Data'!$E$15:$E$474,MATCH($B143,'2013 ONS Birth Data'!$B$15:$B$474,0),1) -> 164
A144: E08000017 | B144: Doncaster | C144: E12000003 | D144: 0.0294 | E144: =INDEX('2013 ONS Birth Data'!$E$15:$E$474,MATCH($B144,'2013 ONS Birth Data'!$B$15:$B$474,0),1) -> 263 | F144: =INDEX('2013 ONS Pop Data Females'!$E$4:$E$460,MATCH($B144,'2013 ONS Pop Data Females'!$B$4:$B$460,0),1) -> 8956 | G144: 0.0294 | H144: 0.02606601188 | I144: 0.03306912586 | T144: 0.0293657883 | U144: =INDEX('2013 ONS Birth Data'!$E$15:$E$474,MATCH($B144,'2013 ONS Birth Data'!$B$15:$B$474,0),1) -> 263
A145: E08000016 | B145: Barnsley | C145: E12000003 | D145: 0.0304 | E145: =INDEX('2013 ONS Birth Data'!$E$15:$E$474,MATCH($B145,'2013 ONS Birth Data'!$B$15:$B$474,0),1) -> 214 | F145: =INDEX('2013 ONS Pop Data Females'!$E$4:$E$460,MATCH($B145,'2013 ONS Pop Data Females'!$B$4:$B$460,0),1) -> 7038 | G145: 0.0304 | H145: 0.02664400267 | I145: 0.03468107278 | T145: 0.03040636544 | U145: =INDEX('2013 ONS Birth Data'!$E$15:$E$474,MATCH($B145,'2013 ONS Birth Data'!$B$15:$B$474,0),1) -> 214
A146: E06000031 | B146: Peterborough | C146: E12000006 | D146: 0.0309 | E146: =INDEX('2013 ONS Birth Data'!$E$15:$E$474,MATCH($B146,'2013 ONS Birth Data'!$B$15:$B$474,0),1) -> 171 | F146: =INDEX('2013 ONS Pop Data Females'!$E$4:$E$460,MATCH($B146,'2013 ONS Pop Data Females'!$B$4:$B$460,0),1) -> 5534 | G146: 0.0309 | H146: 0.0266560465 | I146: 0.03579454213 | T146: 0.03089989158 | U146: =INDEX('2013 ONS Birth Data'!$E$15:$E$474,MATCH($B146,'2013 ONS Birth Data'!$B$15:$B$474,0),1) -> 171
A147: E06000009 | B147: Blackpool | C147: E12000002 | D147: 0.031 | E147: =INDEX('2013 ONS Birth Data'!$E$15:$E$474,MATCH($B147,'2013 ONS Birth Data'!$B$15:$B$474,0),1) -> 131 | F147: =INDEX('2013 ONS Pop Data Females'!$E$4:$E$460,MATCH($B147,'2013 ONS Pop Data Females'!$B$4:$B$460,0),1) -> 4223 | G147: 0.031 | H147: 0.02620277764 | I147: 0.03669086562 | T147: 0.03102060147 | U147: =INDEX('2013 ONS Birth Data'!$E$15:$E$474,MATCH($B147,'2013 ONS Birth Data'!$B$15:$B$474,0),1) -> 131
A148: E08000030 | B148: Walsall | C148: E12000005 | D148: 0.0314 | E148: =INDEX('2013 ONS Birth Data'!$E$15:$E$474,MATCH($B148,'2013 ONS Birth Data'!$B$15:$B$474,0),1) -> 270 | F148: =INDEX('2013 ONS Pop Data Females'!$E$4:$E$460,MATCH($B148,'2013 ONS Pop Data Females'!$B$4:$B$460,0),1) -> 8590 | G148: 0.0314 | H148: 0.02794637897 | I148: 0.0353363173 | T148: 0.03143189756 | U148: =INDEX('2013 ONS Birth Data'!$E$15:$E$474,MATCH($B148,'2013 ONS Birth Data'!$B$15:$B$474,0),1) -> 270
A149: E06000002 | B149: Middlesbrough | C149: E12000001 | D149: 0.0323 | E149: =INDEX('2013 ONS Birth Data'!$E$15:$E$474,MATCH($B149,'2013 ONS Birth Data'!$B$15:$B$474,0),1) -> 150 | F149: =INDEX('2013 ONS Pop Data Females'!$E$4:$E$460,MATCH($B149,'2013 ONS Pop Data Females'!$B$4:$B$460,0),1) -> 4651 | G149: 0.0323 | H149: 0.0275474559 | I149: 0.03772683142 | T149: 0.03225112879 | U149: =INDEX('2013 ONS Birth Data'!$E$15:$E$474,MATCH($B149,'2013 ONS Birth Data'!$B$15:$B$474,0),1) -> 150
A150: E08000028 | B150: Sandwell | C150: E12000005 | D150: 0.0323 | E150: =INDEX('2013 ONS Birth Data'!$E$15:$E$474,MATCH($B150,'2013 ONS Birth Data'!$B$15:$B$474,0),1) -> 313 | F150: =INDEX('2013 ONS Pop Data Females'!$E$4:$E$460,MATCH($B150,'2013 ONS Pop Data Females'!$B$4:$B$460,0),1) -> 9677 | G150: 0.0323 | H150: 0.02900119753 | I150: 0.03605941331 | T150: 0.03234473494 | U150: =INDEX('2013 ONS Birth Data'!$E$15:$E$474,MATCH($B150,'2013 ONS Birth Data'!$B$15:$B$474,0),1) -> 313
A151: E06000021 | B151: Stoke-on-Trent | C151: E12000005 | D151: 0.0332 | E151: =INDEX('2013 ONS Birth Data'!$E$15:$E$474,MATCH($B151,'2013 ONS Birth Data'!$B$15:$B$474,0),1) -> 246 | F151: =INDEX('2013 ONS Pop Data Females'!$E$4:$E$460,MATCH($B151,'2013 ONS Pop Data Females'!$B$4:$B$460,0),1) -> 7414 | G151: 0.0332 | H151: 0.0293392002 | I151: 0.03750523987 | T151: 0.03318046938 | U151: =INDEX('2013 ONS Birth Data'!$E$15:$E$474,MATCH($B151,'2013 ONS Birth Data'!$B$15:$B$474,0),1) -> 246
A152: E06000010 | B152: Kingston upon Hull | C152: E12000003 | D152: 0.0341 | E152: =INDEX('2013 ONS Birth Data'!$E$15:$E$474,MATCH($B152,'2013 ONS Birth Data'!$B$15:$B$474,0),1) -> 264 | F152: =INDEX('2013 ONS Pop Data Females'!$E$4:$E$460,MATCH($B152,'2013 ONS Pop Data Females'!$B$4:$B$460,0),1) -> 7738 | G152: 0.0341 | H152: 0.03029820252 | I152: 0.03839882023 | T152: 0.03411734298 | U152: =INDEX('2013 ONS Birth Data'!$E$15:$E$474,MATCH($B152,'2013 ONS Birth Data'!$B$15:$B$474,0),1) -> 264
A153: E06000012 | B153: North East Lincolnshire | C153: E12000003 | D153: 0.0374 | E153: =INDEX('2013 ONS Birth Data'!$E$15:$E$474,MATCH($B153,'2013 ONS Birth Data'!$B$15:$B$474,0),1) -> 178 | F153: =INDEX('2013 ONS Pop Data Females'!$E$4:$E$460,MATCH($B153,'2013 ONS Pop Data Females'!$B$4:$B$460,0),1) -> 4759 | G153: 0.0374 | H153: 0.03237424564 | I153: 0.04317759918 | T153: 0.03740281572 | U153: =INDEX('2013 ONS Birth Data'!$E$15:$E$474,MATCH($B153,'2013 ONS Birth Data'!$B$15:$B$474,0),1) -> 178

Sheet TOP
A1: Code | B1: Name | C1: Total | D1: CI | E1: Under 18 | F1: 18-19 | G1: 20-24 | H1: 25-29 | I1: 30-34 | J1: 35+
A2: E09000001 | B2: City of London | C2: 25 | D2: 16 - 37 | E2: - | F2: - | G2: 5 | H2: 6 | I2: - | J2: -
A3: E06000017 | B3: Rutland | C3: 53 | D3: 40 - 69 | E3: - | F3: - | G3: 10 | H3: 13 | I3: 10 | J3: 12
A4: E06000046 | B4: Isle of Wight | C4: 242 | D4: 212 - 274 | E4: 29 | F4: 26 | G4: 67 | H4: 51 | I4: 33 | J4: 36
A5: E06000005 | B5: Darlington | C5: 291 | D5: 259 - 326 | E5: 24 | F5: 32 | G5: 83 | H5: 61 | I5: 49 | J5: 42
A6: E06000001 | B6: Hartlepool | C6: 310 | D6: 276 - 347 | E6: 23 | F6: 32 | G6: 92 | H6: 85 | I6: 48 | J6: 30
A7: E06000003 | B7: Redcar and Cleveland | C7: 339 | D7: 304 - 377 | E7: 37 | F7: 35 | G7: 109 | H7: 75 | I7: 44 | J7: 39
A8: E06000041 | B8: Wokingham | C8: 357 | D8: 321 - 396 | E8: 18 | F8: 40 | G8: 79 | H8: 78 | I8: 59 | J8: 83
A9: E08000023 | B9: South Tyneside | C9: 361 | D9: 325 - 400 | E9: 32 | F9: 36 | G9: 121 | H9: 86 | I9: 55 | J9: 31
A10: E06000036 | B10: Bracknell Forest | C10: 376 | D10: 339 - 416 | E10: 21 | F10: 33 | G10: 95 | H10: 86 | I10: 72 | J10: 69
A11: E06000040 | B11: Windsor and Maidenhead | C11: 377 | D11: 340 - 417 | E11: - | F11: - | G11: 101 | H11: 83 | I11: 58 | J11: 79
A12: E06000022 | B12: Bath and North East Somerset | C12: 397 | D12: 359 - 438 | E12: 25 | F12: 55 | G12: 116 | H12: 87 | I12: 53 | J12: 61
A13: E06000019 | B13: Herefordshire | C13: 398 | D13: 360 - 439 | E13: 45 | F13: 31 | G13: 115 | H13: 71 | I13: 62 | J13: 74
A14: E06000037 | B14: West Berkshire | C14: 399 | D14: 361 - 440 | E14: - | F14: - | G14: 98 | H14: 79 | I14: 66 | J14: 79
A15: E06000029 | B15: Poole | C15: 405 | D15: 367 - 446 | E15: 27 | F15: 48 | G15: 120 | H15: 80 | I15: 79 | J15: 51
A16: E06000013 | B16: North Lincolnshire | C16: 411 | D16: 372 - 453 | E16: 39 | F16: 41 | G16: 129 | H16: 102 | I16: 56 | J16: 44
A17: E06000024 | B17: North Somerset | C17: 427 | D17: 387 - 469 | E17: 40 | F17: 49 | G17: 122 | H17: 81 | I17: 53 | J17: 82
A18: E06000027 | B18: Torbay | C18: 449 | D18: 408 - 493 | E18: 30 | F18: 79 | G18: 130 | H18: 86 | I18: 61 | J18: 63
A19: E08000037 | B19: Gateshead | C19: 457 | D19: 416 - 501 | E19: 42 | F19: 56 | G19: 132 | H19: 99 | I19: 86 | J19: 42
A20: E06000002 | B20: Middlesbrough | C20: 485 | D20: 443 - 530 | E20: 40 | F20: 51 | G20: 154 | H20: 118 | I20: 80 | J20: 42
A21: E06000033 | B21: Southend-on-Sea | C21: 488 | D21: 446 - 533 | E21: 29 | F21: 44 | G21: 135 | H21: 100 | I21: 95 | J21: 85
A22: E06000006 | B22: Halton | C22: 493 | D22: 450 - 539 | E22: 39 | F22: 54 | G22: 172 | H22: 115 | I22: 71 | J22: 42
A23: E06000008 | B23: Blackburn with Darwen | C23: 493 | D23: 450 - 539 | E23: 31 | F23: 45 | G23: 160 | H23: 134 | I23: 75 | J23: 48
A24: E06000012 | B24: North East Lincolnshire | C24: 501 | D24: 458 - 547 | E24: 42 | F24: 32 | G24: 162 | H24: 135 | I24: 71 | J24: 59
A25: E06000020 | B25: Telford and Wrekin | C25: 506 | D25: 463 - 552 | E25: 38 | F25: 67 | G25: 153 | H25: 101 | I25: 80 | J25: 67
A26: E06000055 | B26: Bedford | C26: 513 | D26: 470 - 559 | E26: - | F26: - | G26: 156 | H26: 122 | I26: 86 | J26: 68
A27: E06000009 | B27: Blackpool | C27: 527 | D27: 483 - 574 | E27: 44 | F27: 57 | G27: 182 | H27: 125 | I27: 69 | J27: 50
A28: E06000004 | B28: Stockton-on-Tees | C28: 527 | D28: 483 - 574 | E28: 55 | F28: 48 | G28: 162 | H28: 123 | I28: 77 | J28: 62
A29: E08000022 | B29: North Tyneside | C29: 539 | D29: 494 - 586 | E29: 37 | F29: 56 | G29: 149 | H29: 129 | I29: 90 | J29: 78
A30: E09000027 | B30: Richmond upon Thames | C30: 571 | D30: 525 - 620 | E30: 23 | F30: 47 | G30: 138 | H30: 123 | I30: 110 | J30: 130
A31: E08000013 | B31: St Helens | C31: 585 | D31: 539 - 634 | E31: 58 | F31: 70 | G31: 180 | H31: 133 | I31: 83 | J31: 61
A32: E06000011 | B32: East Riding of Yorkshire | C32: 593 | D32: 546 - 643 | E32: - | F32: - | G32: 169 | H32: 111 | I32: 80 | J32: 101
A33: E09000021 | B33: Kingston upon Thames | C33: 596 | D33: 549 - 646 | E33: 28 | F33: 45 | G33: 137 | H33: 138 | I33: 122 | J33: 126
A34: E06000025 | B34: South Gloucestershire | C34: 598 | D34: 551 - 648 | E34: 43 | F34: 77 | G34: 176 | H34: 123 | I34: 98 | J34: 81
A35: E08000002 | B35: Bury | C35: 600 | D35: 553 - 650 | E35: 45 | F35: 58 | G35: 181 | H35: 133 | I35: 91 | J35: 92
A36: E06000007 | B36: Warrington | C36: 606 | D36: 559 - 656 | E36: 46 | F36: 55 | G36: 165 | H36: 146 | I36: 89 | J36: 105
A37: E08000018 | B37: Rotherham | C37: 613 | D37: 565 - 664 | E37: 47 | F37: 57 | G37: 190 | H37: 136 | I37: 97 | J37: 86
A38: E06000051 | B38: Shropshire | C38: 626 | D38: 578 - 677 | E38: 55 | F38: 75 | G38: 178 | H38: 119 | I38: 100 | J38: 99
A39: E08000033 | B39: Calderdale | C39: 638 | D39: 589 - 689 | E39: 50 | F39: 53 | G39: 189 | H39: 154 | I39: 109 | J39: 83
A40: E08000029 | B40: Solihull | C40: 639 | D40: 590 - 691 | E40: 52 | F40: 68 | G40: 208 | H40: 127 | I40: 97 | J40: 87
A41: E06000057 | B41: Northumberland | C41: 652 | D41: 603 - 704 | E41: 56 | F41: 73 | G41: 186 | H41: 142 | I41: 115 | J41: 80
A42: E06000028 | B42: Bournemouth | C42: 674 | D42: 624 - 727 | E42: 28 | F42: 79 | G42: 245 | H42: 148 | I42: 92 | J42: 82
A43: E08000011 | B43: Knowsley | C43: 674 | D43: 624 - 727 | E43: 58 | F43: 77 | G43: 185 | H43: 169 | I43: 104 | J43: 81
A44: E08000016 | B44: Barnsley | C44: 682 | D44: 632 - 735 | E44: 62 | F44: 80 | G44: 200 | H44: 152 | I44: 85 | J44: 103
A45: E06000039 | B45: Slough | C45: 696 | D45: 645 - 750 | E45: 21 | F45: 50 | G45: 170 | H45: 193 | I45: 136 | J45: 126
A46: E06000030 | B46: Swindon | C46: 705 | D46: 654 - 759 | E46: 37 | F46: 85 | G46: 191 | H46: 138 | I46: 143 | J46: 111
A47: E09000020 | B47: Kensington and Chelsea | C47: 717 | D47: 665 - 771 | E47: - | F47: - | G47: 154 | H47: 195 | I47: - | J47: -
A48: E06000034 | B48: Thurrock | C48: 718 | D48: 666 - 772 | E48: 54 | F48: 68 | G48: 175 | H48: 156 | I48: 151 | J48: 114
A49: E06000056 | B49: Central Bedfordshire | C49: 733 | D49: 681 - 788 | E49: 57 | F49: 72 | G49: 209 | H49: 133 | I49: 136 | J49: 126
A50: E08000005 | B50: Rochdale | C50: 737 | D50: 685 - 792 | E50: 58 | F50: 73 | G50: 252 | H50: 195 | I50: 84 | J50: 75
A51: E09000029 | B51: Sutton | C51: 739 | D51: 687 - 794 | E51: 44 | F51: 70 | G51: 191 | H51: 164 | I51: 134 | J51: 136
A52: E06000010 | B52: Kingston upon Hull | C52: 743 | D52: 691 - 798 | E52: 58 | F52: 72 | G52: 251 | H52: 173 | I52: 115 | J52: 74
A53: E06000026 | B53: Plymouth | C53: 749 | D53: 696 - 805 | E53: 52 | F53: 85 | G53: 244 | H53: 172 | I53: 113 | J53: 83
A54: E06000038 | B54: Reading | C54: 752 | D54: 699 - 808 | E54: - | F54: - | G54: 215 | H54: 188 | I54: 137 | J54: 123
A55: E08000009 | B55: Trafford | C55: 757 | D55: 704 - 813 | E55: 40 | F55: 66 | G55: 238 | H55: 161 | I55: 134 | J55: 118
A56: E08000004 | B56: Oldham | C56: 761 | D56: 708 - 817 | E56: 64 | F56: 65 | G56: 241 | H56: 176 | I56: 117 | J56: 98
A57: E06000044 | B57: Portsmouth | C57: 766 | D57: 713 - 822 | E57: 36 | F57: 82 | G57: 255 | H57: 170 | I57: 133 | J57: 90
A58: E08000024 | B58: Sunderland | C58: 767 | D58: 714 - 823 | E58: 74 | F58: 66 | G58: 259 | H58: 181 | I58: 106 | J58: 81
A59: E06000031 | B59: Peterborough | C59: 768 | D59: 715 - 824 | E59: 49 | F59: 52 | G59: 219 | H59: 195 | I59: 141 | J59: 112
A60: E06000015 | B60: Derby | C60: 812 | D60: 757 - 870 | E60: 49 | F60: 80 | G60: 268 | H60: 182 | I60: 129 | J60: 104
A61: E08000014 | B61: Sefton | C61: 826 | D61: 771 - 884 | E61: 70 | F61: 84 | G61: 233 | H61: 206 | I61: 125 | J61: 108
A62: E08000008 | B62: Tameside | C62: 826 | D62: 771 - 884 | E62: 47 | F62: 86 | G62: 255 | H62: 220 | I62: 125 | J62: 93
A63: E06000050 | B63: Cheshire West and Chester | C63: 846 | D63: 790 - 905 | E63: 65 | F63: 89 | G63: 282 | H63: 169 | I63: 115 | J63: 126
A64: E10000009 | B64: Dorset | C64: 852 | D64: 796 - 911 | E64: 66 | F64: 104 | G64: 238 | H64: 176 | I64: 130 | J64: 138
A65: E06000045 | B65: Southampton | C65: 910 | D65: 852 - 971 | E65: 53 | F65: 71 | G65: 293 | H65: 250 | I65: 144 | J65: 99
A66: E08000036 | B66: Wakefield | C66: 920 | D66: 862 - 981 | E66: 66 | F66: 111 | G66: 289 | H66: 196 | I66: 133 | J66: 125
A67: E08000027 | B67: Dudley | C67: 923 | D67: 864 - 985 | E67: 65 | F67: 99 | G67: 298 | H67: 201 | I67: 141 | J67: 119
A68: E08000007 | B68: Stockport | C68: 926 | D68: 867 - 988 | E68: 70 | F68: 83 | G68: 271 | H68: 210 | I68: 133 | J68: 159
A69: E06000049 | B69: Cheshire East | C69: 926 | D69: 867 - 988 | E69: 69 | F69: 125 | G69: 250 | H69: 195 | I69: 142 | J69: 145
A70: E08000010 | B70: Wigan | C70: 927 | D70: 868 - 989 | E70: 72 | F70: 105 | G70: 306 | H70: 203 | I70: 132 | J70: 109
A71: E09000024 | B71: Merton | C71: 964 | D71: 904 - 1027 | E71: 35 | F71: 68 | G71: 263 | H71: 248 | I71: 180 | J71: 170
A72: E08000021 | B72: Newcastle upon Tyne | C72: 972 | D72: 912 - 1035 | E72: 41 | F72: 111 | G72: 358 | H72: 207 | I72: 149 | J72: 106
A73: E08000030 | B73: Walsall | C73: 979 | D73: 919 - 1042 | E73: 72 | F73: 105 | G73: 296 | H73: 257 | I73: 146 | J73: 103
A74: E08000001 | B74: Bolton | C74: 997 | D74: 936 - 1061 | E74: 65 | F74: 102 | G74: 284 | H74: 251 | I74: 159 | J74: 136
A75: E06000042 | B75: Milton Keynes | C75: 1004 | D75: 943 - 1068 | E75: 58 | F75: 78 | G75: 251 | H75: 243 | I75: 192 | J75: 182
A76: E09000013 | B76: Hammersmith and Fulham | C76: 1004 | D76: 943 - 1068 | E76: 29 | F76: 58 | G76: 268 | H76: 295 | I76: 179 | J76: 175
A77: E08000017 | B77: Doncaster | C77: 1010 | D77: 949 - 1074 | E77: 78 | F77: 104 | G77: 313 | H77: 240 | I77: 147 | J77: 128
A78: E06000054 | B78: Wiltshire | C78: 1012 | D78: 951 - 1076 | E78: 79 | F78: 115 | G78: 269 | H78: 211 | I78: 174 | J78: 164
A79: E06000021 | B79: Stoke-on-Trent | C79: 1020 | D79: 958 - 1085 | E79: 64 | F79: 99 | G79: 325 | H79: 270 | I79: 147 | J79: 115
A80: E09000033 | B80: Westminster | C80: 1030 | D80: 968 - 1095 | E80: - | F80: - | G80: 269 | H80: 291 | I80: 200 | J80: 191
A81: E08000006 | B81: Salford | C81: 1032 | D81: 970 - 1097 | E81: 47 | F81: 105 | G81: 328 | H81: 257 | I81: 169 | J81: 126
A82: E09000004 | B82: Bexley | C82: 1035 | D82: 973 - 1100 | E82: 63 | F82: 92 | G82: 308 | H82: 218 | I82: 195 | J82: 159
A83: E06000035 | B83: Medway | C83: 1036 | D83: 974 - 1101 | E83: 66 | F83: 104 | G83: 336 | H83: 209 | I83: 170 | J83: 151
A84: E09000016 | B84: Havering | C84: 1037 | D84: 975 - 1102 | E84: 76 | F84: 101 | G84: 299 | H84: 210 | I84: 193 | J84: 158
A85: E09000007 | B85: Camden | C85: 1050 | D85: 987 - 1115 | E85: 31 | F85: 54 | G85: 303 | H85: 268 | I85: 218 | J85: 176
A86: E10000006 | B86: Cumbria | C86: 1058 | D86: 995 - 1124 | E86: 85 | F86: 111 | G86: 326 | H86: 224 | I86: 179 | J86: 133
A87: E06000043 | B87: Brighton and Hove | C87: 1070 | D87: 1007 - 1136 | E87: 60 | F87: 86 | G87: 354 | H87: 223 | I87: 170 | J87: 177
A88: E06000032 | B88: Luton | C88: 1090 | D88: 1026 - 1157 | E88: 48 | F88: 119 | G88: 306 | H88: 280 | I88: 192 | J88: 145
A89: E06000047 | B89: County Durham | C89: 1132 | D89: 1067 - 1200 | E89: 119 | F89: 109 | G89: 332 | H89: 266 | I89: 176 | J89: 130
A90: E09000015 | B90: Harrow | C90: 1136 | D90: 1071 - 1204 | E90: 40 | F90: 75 | G90: 272 | H90: 309 | I90: 229 | J90: 211
A91: E08000015 | B91: Wirral | C91: 1139 | D91: 1074 - 1207 | E91: 100 | F91: 114 | G91: 331 | H91: 251 | I91: 197 | J91: 146
A92: E08000031 | B92: Wolverhampton | C92: 1147 | D92: 1082 - 1215 | E92: 50 | F92: 112 | G92: 365 | H92: 300 | I92: 178 | J92: 142
A93: E10000027 | B93: Somerset | C93: 1159 | D93: 1093 - 1228 | E93: 103 | F93: 127 | G93: 356 | H93: 250 | I93: 151 | J93: 172
A94: E08000028 | B94: Sandwell | C94: 1172 | D94: 1106 - 1241 | E94: 69 | F94: 105 | G94: 366 | H94: 262 | I94: 210 | J94: 160
A95: E10000034 | B95: Worcestershire | C95: 1221 | D95: 1153 - 1291 | E95: - | F95: - | G95: 341 | H95: 235 | I95: 212 | J95: 166
A96: E10000003 | B96: Cambridgeshire | C96: 1241 | D96: 1173 - 1312 | E96: 83 | F96: 123 | G96: 349 | H96: 273 | I96: 224 | J96: 189
A97: E06000018 | B97: Nottingham | C97: 1251 | D97: 1183 - 1322 | E97: 57 | F97: 122 | G97: 433 | H97: 313 | I97: 201 | J97: 125
A98: E09000019 | B98: Islington | C98: 1252 | D98: 1184 - 1323 | E98: 49 | F98: 87 | G98: 353 | H98: 356 | I98: 226 | J98: 181
A99: E06000016 | B99: Leicester | C99: 1253 | D99: 1185 - 1324 | E99: 69 | F99: 128 | G99: 366 | H99: 311 | I99: 211 | J99: 168
A100: E09000006 | B100: Bromley | C100: 1271 | D100: 1202 - 1343 | E100: 77 | F100: 118 | G100: 328 | H100: 288 | I100: 236 | J100: 224
A101: E10000011 | B101: East Sussex | C101: 1309 | D101: 1239 - 1382 | E101: 104 | F101: 154 | G101: 390 | H101: 281 | I101: 193 | J101: 187
A102: E10000013 | B102: Gloucestershire | C102: 1354 | D102: 1283 - 1428 | E102: 90 | F102: 147 | G102: 393 | H102: 282 | I102: 231 | J102: 211
A103: E08000034 | B103: Kirklees | C103: 1356 | D103: 1285 - 1430 | E103: 101 | F103: 120 | G103: 409 | H103: 328 | I103: 213 | J103: 185
A104: E09000002 | B104: Barking and Dagenham | C104: 1427 | D104: 1354 - 1503 | E104: 76 | F104: 90 | G104: 370 | H104: 356 | I104: 297 | J104: 238
A105: E10000029 | B105: Suffolk | C105: 1444 | D105: 1370 - 1520 | E105: 118 | F105: 124 | G105: 423 | H105: 339 | I105: 208 | J105: 232
A106: E09000017 | B106: Hillingdon | C106: 1462 | D106: 1388 - 1539 | E106: 69 | F106: 114 | G106: 370 | H106: 380 | I106: 273 | J106: 256
A107: E10000018 | B107: Leicestershire | C107: 1466 | D107: 1392 - 1543 | E107: 131 | F107: 155 | G107: 394 | H107: 270 | I107: 266 | J107: 250
A108: E10000008 | B108: Devon | C108: 1467 | D108: 1393 - 1544 | E108: 154 | F108: 172 | G108: 424 | H108: 269 | I108: 222 | J108: 226
A109: E10000007 | B109: Derbyshire | C109: 1473 | D109: 1399 - 1550 | E109: - | F109: - | G109: 421 | H109: 319 | I109: 204 | J109: 231
A110: E10000019 | B110: Lincolnshire | C110: 1530 | D110: 1454 - 1609 | E110: 132 | F110: 165 | G110: 486 | H110: 334 | I110: 214 | J110: 199
A111: E10000031 | B111: Warwickshire | C111: 1533 | D111: 1457 - 1612 | E111: 98 | F111: 159 | G111: 438 | H111: 341 | I111: 254 | J111: 243
A112: E06000023 | B112: Bristol | C112: 1545 | D112: 1469 - 1624 | E112: 75 | F112: 131 | G112: 483 | H112: 398 | I112: 260 | J112: 198
A113: E09000014 | B113: Haringey | C113: 1547 | D113: 1471 - 1626 | E113: 57 | F113: 106 | G113: 423 | H113: 401 | I113: 300 | J113: 260
A114: E09000018 | B114: Hounslow | C114: 1557 | D114: 1481 - 1636 | E114: 82 | F114: 95 | G114: 340 | H114: 428 | I114: 329 | J114: 283
A115: E09000026 | B115: Redbridge | C115: 1557 | D115: 1481 - 1636 | E115: 49 | F115: 111 | G115: 403 | H115: 383 | I115: 334 | J115: 277
A116: E08000019 | B116: Sheffield | C116: 1562 | D116: 1485 - 1641 | E116: 102 | F116: 167 | G116: 522 | H116: 346 | I116: 240 | J116: 185
A117: E09000030 | B117: Tower Hamlets | C117: 1566 | D117: 1489 - 1646 | E117: 53 | F117: 101 | G117: 468 | H117: 470 | I117: 278 | J117: 196
A118: E09000032 | B118: Wandsworth | C118: 1567 | D118: 1490 - 1647 | E118: 44 | F118: 85 | G118: 367 | H118: 455 | I118: 342 | J118: 274
A119: E09000003 | B119: Barnet | C119: 1624 | D119: 1546 - 1705 | E119: 49 | F119: 101 | G119: 411 | H119: 405 | I119: 340 | J119: 318
A120: E09000012 | B120: Hackney and City of London | C120: 1650 | D120: 1571 - 1732 | E120: 57 | F120: 96 | G120: 423 | H120: 508 | I120: 340 | J120: 226
A121: E09000031 | B121: Waltham Forest | C121: 1673 | D121: 1594 - 1755 | E121: 56 | F121: 123 | G121: 456 | H121: 437 | I121: 330 | J121: 271
A122: E09000010 | B122: Enfield | C122: 1711 | D122: 1631 - 1794 | E122: 66 | F122: 130 | G122: 449 | H122: 414 | I122: 340 | J122: 312
A123: E09000011 | B123: Greenwich | C123: 1729 | D123: 1648 - 1812 | E123: 60 | F123: 122 | G123: 467 | H123: 442 | I123: 343 | J123: 295
A124: E08000026 | B124: Coventry | C124: 1733 | D124: 1652 - 1817 | E124: 102 | F124: 179 | G124: 520 | H124: 430 | I124: 297 | J124: 205
A125: E08000032 | B125: Bradford | C125: 1787 | D125: 1705 - 1872 | E125: - | F125: - | G125: 537 | H125: 401 | I125: 305 | J125: 257
A126: E09000025 | B126: Newham | C126: 1804 | D126: 1722 - 1889 | E126: 66 | F126: 106 | G126: 501 | H126: 514 | I126: 362 | J126: 255
A127: E10000024 | B127: Nottinghamshire | C127: 1830 | D127: 1747 - 1916 | E127: 145 | F127: 189 | G127: 532 | H127: 434 | I127: 270 | J127: 260
A128: E10000020 | B128: Norfolk | C128: 1873 | D128: 1789 - 1960 | E128: 142 | F128: 202 | G128: 601 | H128: 423 | I128: 248 | J128: 257
A129: E10000032 | B129: West Sussex | C129: 1896 | D129: 1812 - 1983 | E129: - | F129: - | G129: 523 | H129: 410 | I129: 313 | J129: 319
A130: E09000009 | B130: Ealing | C130: 1940 | D130: 1855 - 2028 | E130: 55 | F130: 113 | G130: 488 | H130: 535 | I130: 402 | J130: 347
A131: E09000023 | B131: Lewisham | C131: 1952 | D131: 1866 - 2041 | E131: 88 | F131: 131 | G131: 512 | H131: 489 | I131: 404 | J131: 328
A132: E09000005 | B132: Brent | C132: 1959 | D132: 1873 - 2048 | E132: 63 | F132: 87 | G132: 480 | H132: 559 | I132: 404 | J132: 366
A133: E09000022 | B133: Lambeth | C133: 2149 | D133: 2059 - 2242 | E133: 78 | F133: 140 | G133: 540 | H133: 614 | I133: 436 | J133: 341
A134: E09000028 | B134: Southwark | C134: 2152 | D134: 2062 - 2245 | E134: 86 | F134: 151 | G134: 578 | H134: 564 | I134: 445 | J134: 328
A135: E10000021 | B135: Northamptonshire | C135: 2156 | D135: 2066 - 2249 | E135: - | F135: - | G135: 634 | H135: 498 | I135: 383 | J135: 306
A136: E09000008 | B136: Croydon | C136: 2199 | D136: 2108 - 2293 | E136: 131 | F136: 186 | G136: 572 | H136: 555 | I136: 397 | J136: 358
A137: E08000012 | B137: Liverpool | C137: 2239 | D137: 2147 - 2334 | E137: 149 | F137: 215 | G137: 754 | H137: 544 | I137: 313 | J137: 264
A138: E10000028 | B138: Staffordshire | C138: 2493 | D138: 2396 - 2593 | E138: - | F138: - | G138: 736 | H138: 513 | I138: 398 | J138: 314
A139: E08000035 | B139: Leeds | C139: 2879 | D139: 2775 - 2986 | E139: 187 | F139: 296 | G139: 988 | H139: 613 | I139: 440 | J139: 355
A140: E08000003 | B140: Manchester | C140: 2895 | D140: 2790 - 3002 | E140: 126 | F140: 263 | G140: 918 | H140: 778 | I140: 480 | J140: 330
A141: E10000030 | B141: Surrey | C141: 3033 | D141: 2926 - 3143 | E141: - | F141: - | G141: 829 | H141: 638 | I141: 510 | J141: 599
A142: E10000014 | B142: Hampshire | C142: 3117 | D142: 3009 - 3228 | E142: 236 | F142: 328 | G142: 869 | H142: 658 | I142: 548 | J142: 478
A143: E10000017 | B143: Lancashire | C143: 3454 | D143: 3340 - 3571 | E143: 269 | F143: 403 | G143: 1091 | H143: 757 | I143: 512 | J143: 422
A144: E10000015 | B144: Hertfordshire | C144: 3506 | D144: 3391 - 3624 | E144: - | F144: - | G144: 948 | H144: 812 | I144: 627 | J144: 604
A145: E10000012 | B145: Essex | C145: 3880 | D145: 3759 - 4004 | E145: 299 | F145: 392 | G145: 1111 | H145: 806 | I145: 655 | J145: 617
A146: E10000016 | B146: Kent | C146: 4343 | D146: 4215 - 4474 | E146: 296 | F146: 445 | G146: 1290 | H146: 943 | I146: 649 | J146: 720
A147: E08000025 | B147: Birmingham | C147: 4863 | D147: 4727 - 5002 | E147: 251 | F147: 435 | G147: 1499 | H147: 1222 | I147: 834 | J147: 622
B148: North East | C148: 6832 | D148: 6671 - 6996 | E148: 580 | F148: 705 | G148: 2137 | H148: 1572 | I148: 1075 | J148: 763
B149: East Midlands | C149: 11824 | D149: 11612 - 12039 | E149: 852 | F149: 1211 | G149: 3544 | H149: 2674 | I149: 1888 | J149: 1655
B150: South West | C150: 12926 | D150: 12704 - 13151 | E150: 936 | F150: 1488 | G150: 3853 | H150: 2739 | I150: 2019 | J150: 1891
B151: Yorkshire and the Humber | C151: 15240 | D151: 14999 - 15484 | E151: 1138 | F151: 1561 | G151: 4835 | H151: 3388 | I151: 2313 | J151: 2005
B152: East | C152: 16254 | D152: 16005 - 16506 | E152: 1102 | F152: 1569 | G152: 4632 | H152: 3639 | I152: 2763 | J152: 2549
B153: West Midlands | C153: 19253 | D153: 18982 - 19527 | E153: 1314 | F153: 1980 | G153: 5838 | H153: 4449 | I153: 3156 | J153: 2516
B154: North West | C154: 24324 | D154: 24019 - 24632 | E154: 1717 | F154: 2505 | G154: 7585 | H154: 5752 | I154: 3698 | J154: 3067
B155: South East | C155: 24711 | D155: 24404 - 25021 | E155: 1594 | F155: 2378 | G155: 7070 | H155: 5426 | I155: 4074 | J155: 4169
B156: London | C156: 45652 | D156: 45234 - 46073 | E156: 1829 | F156: 3106 | G156: 11906 | H156: 12018 | I156: 9078 | J156: 7715
B157: England | C157: 177016 | D157: 176192 - 177843 | E157: 11062 | F157: 16503 | G157: 51400 | H157: 41657 | I157: 30064 | J157: 26330
A158: E10000002 | B158: Buckinghamshire | C158: - | D158: - | E158: - | F158: - | G158: - | H158: - | I158: - | J158: -
A159: E06000052 | B159: Cornwall and Isles of Scilly | C159: - | D159: - | E159: - | F159: - | G159: - | H159: - | I159: - | J159: -
A160: E10000025 | B160: Oxfordshire | C160: - | D160: - | E160: - | F160: - | G160: - | H160: - | I160: - | J160: -
A161: E06000014 | B161: York | C161: - | D161: - | E161: - | F161: - | G161: - | H161: - | I161: - | J161: -
A162: E10000023 | B162: North Yorkshire | C162: - | D162: - | E162: - | F162: - | G162: - | H162: - | I162: - | J162: -
A163: E06000053 | B163: Isles of Scilly | C163: - | D163: - | E163: - | F163: - | G163: - | H163: - | I163: - | J163: -

Sheet SSATOD
A1: MinValue | B1: 0 | C1: First Record | D1: 4 | E1: ScrollBarValue | F1: =INDEX(INDIRECT("$D$"&D1&":$D$"&D2),MATCH(Settings!B2,INDIRECT("$A$"&D1&":$A$"&D2),0),1)*10000 -> 2164.334742 | G1: SmallChange | H1: 100 | I1: RAG | J1: 2 | K1: England WAY | L1: 0.08145833661
A2: MaxValue | B2: =INT(ROUNDUP((MAX(INDIRECT("$G$"&$D$1&":$G$"&$D$2))*10000),0)) -> 8746 | C2: LastRecord | D2: =D1+COUNTA(D4:D152) -> 153 | E2: Value | F2: =INDEX($D$4:$D$153,MATCH(Settings!$B$2,$A$4:$A$153,0),1)*INDEX('2013 ONS Birth Data'!$E$15:$E$474,MATCH(Settings!$C$2,'2013 ONS Birth Data'!$B$15:$B$474,0),1) -> 25.10628301 | G2: LargeChange | H2: 500 | I2: ScrollBarMax | J2: =ROUNDUP(B2/10000,5-LEN(B2))*10000 -> 9000 | K2: England SSATOD | L2: ='SSATOD PHOF 2013'!$G$163*3/100 -> 0.3598022611
A3: TTLA Code | B3: TTLA Name | C3: Region Code | D3: Percentage | E3: Numerator | F3: Denominator | G3: Indicator value | H3: National Minimum | I3: National 25th Percentile | J3: National Average | K3: National 75th Percentile | L3: National Maximum | O3: Regional best | P3: Regional Worst | Q3: Regional average | R3: 15-44 rate | S3: 15-19 rate | T3: 15-44 num | U3: 15-44 denom | V3: 15-19 num | W3: 15-19 denom | X3: WAY | Y3: WAY v England
A4: E09000026 | B4: Redbridge | C4: E12000007 | D4: =S4 -> 0.1590123484 | E4: =V4 -> 12.24395083 | F4: =W4 -> 77 | G4: =D4 -> 0.1590123484 | H4: =MIN($G$4:$G$153) -> 0.1590123484 | I4: =_xlfn.QUARTILE.INC($G$4:$G$153,1) -> 0.3456310073 | J4: =_xlfn.QUARTILE.INC($G$4:$G$153,2) -> 0.4262414339 | K4: =_xlfn.QUARTILE.INC($G$4:$G$153,3) -> 0.5167901323 | L4: =MAX($G$4:$G$153) -> 0.8745679162 | M4: E12000001 | N4: North East | O4: =MIN(IF($C$4:$C$153=$M4,$G$4:$G$153)) -> 0.3489437645 | P4: =MAX(IF($C$4:$C$153=$M4,$G$4:$G$153)) -> 0.6890535097 | Q4: =SUMIFS($G$4:$G$153,$C$4:$C$153,$M4)/COUNTIFS($C$4:$C$153,$M4) -> 0.5024348508 | R4: =INDEX('SSATOD PHOF 2013'!$G$2:$G$163,MATCH($A4,'SSATOD PHOF 2013'!$E$2:$E$163,0),1)/100 -> 0.0412979351 | S4: =Y4*$L$2 -> 0.1590123484 | T4: =U4*R4 -> 189.5988201 | U4: =INDEX('2013 ONS Birth Data'!$C$15:$C$474,MATCH($B4,'2013 ONS Birth Data'!$B$15:$B$474,0),1) -> 4591 | V4: =W4*S4 -> 12.24395083 | W4: =INDEX('2013 ONS Birth Data'!$E$15:$E$474,MATCH($B4,'2013 ONS Birth Data'!$B$15:$B$474,0),1) -> 77 | X4: =INDEX(WAY!$N$8:$N$157,MATCH(SSATOD!A4,WAY!$B$8:$B$157,0),1)/100 -> 0.036 | Y4: =X4/$L$1 -> 0.4419437162
A5: E09000025 | B5: Newham | C5: E12000007 | D5: =S5 -> 0.1678463678 | E5: =V5 -> 24.67341606 | F5: =W5 -> 147 | G5: 0.1678463678 | M5: E12000002 | N5: North West | O5: =MIN(IF($C$4:$C$153=$M5,$G$4:$G$153)) -> 0.2341015129 | P5: =MAX(IF($C$4:$C$153=$M5,$G$4:$G$153)) -> 0.7111385581 | Q5: =SUMIFS($G$4:$G$153,$C$4:$C$153,$M5)/COUNTIFS($C$4:$C$153,$M5) -> 0.4046364953 | R5: =INDEX('SSATOD PHOF 2013'!$G$2:$G$163,MATCH($A5,'SSATOD PHOF 2013'!$E$2:$E$163,0),1)/100 -> 0.02514013929 | S5: =Y5*$L$2 -> 0.1678463678 | T5: =U5*R5 -> 157.5532529 | U5: =INDEX('2013 ONS Birth Data'!$C$15:$C$474,MATCH($B5,'2013 ONS Birth Data'!$B$15:$B$474,0),1) -> 6267 | V5: =W5*S5 -> 24.67341606 | W5: =INDEX('2013 ONS Birth Data'!$E$15:$E$474,MATCH($B5,'2013 ONS Birth Data'!$B$15:$B$474,0),1) -> 147 | X5: =INDEX(WAY!$N$8:$N$157,MATCH(SSATOD!A5,WAY!$B$8:$B$157,0),1)/100 -> 0.038 | Y5: 0.4664961449
A6: E09000030 | B6: Tower Hamlets | C6: E12000007 | D6: 0.1810973968 | E6: 14.30669435 | F6: 79 | G6: 0.1810973968 | M6: E12000003 | N6: Yorkshire and the Humber | O6: =MIN(IF($C$4:$C$153=$M6,$G$4:$G$153)) -> 0.2694375903 | P6: =MAX(IF($C$4:$C$153=$M6,$G$4:$G$153)) -> 0.6493004226 | Q6: =SUMIFS($G$4:$G$153,$C$4:$C$153,$M6)/COUNTIFS($C$4:$C$153,$M6) -> 0.4676140912 | R6: =INDEX('SSATOD PHOF 2013'!$G$2:$G$163,MATCH($A6,'SSATOD PHOF 2013'!$E$2:$E$163,0),1)/100 -> 0.03182579564 | S6: 0.1810973968 | T6: 146.6532663 | U6: =INDEX('2013 ONS Birth Data'!$C$15:$C$474,MATCH($B6,'2013 ONS Birth Data'!$B$15:$B$474,0),1) -> 4608 | V6: 14.30669435 | W6: =INDEX('2013 ONS Birth Data'!$E$15:$E$474,MATCH($B6,'2013 ONS Birth Data'!$B$15:$B$474,0),1) -> 79 | X6: =INDEX(WAY!$N$8:$N$157,MATCH(SSATOD!A6,WAY!$B$8:$B$157,0),1)/100 -> 0.041 | Y6: 0.5033247879
A7: E06000036 | B7: Bracknell Forest | C7: E12000008 | D7: 0.1899314161 | E7: 6.077805317 | F7: 32 | G7: 0.1899314161 | M7: E12000004 | N7: East Midlands | O7: =MIN(IF($C$4:$C$153=$M7,$G$4:$G$153)) -> 0.2075994549 | P7: =MAX(IF($C$4:$C$153=$M7,$G$4:$G$153)) -> 0.5432921904 | Q7: =SUMIFS($G$4:$G$153,$C$4:$C$153,$M7)/COUNTIFS($C$4:$C$153,$M7) -> 0.4004755441 | R7: =INDEX('SSATOD PHOF 2013'!$G$2:$G$163,MATCH($A7,'SSATOD PHOF 2013'!$E$2:$E$163,0),1)/100 -> 0.09194630872 | S7: 0.1899314161 | T7: 134.9771812 | U7: =INDEX('2013 ONS Birth Data'!$C$15:$C$474,MATCH($B7,'2013 ONS Birth Data'!$B$15:$B$474,0),1) -> 1468 | V7: 6.077805317 | W7: =INDEX('2013 ONS Birth Data'!$E$15:$E$474,MATCH($B7,'2013 ONS Birth Data'!$B$15:$B$474,0),1) -> 32 | X7: =INDEX(WAY!$N$8:$N$157,MATCH(SSATOD!A7,WAY!$B$8:$B$157,0),1)/100 -> 0.043 | Y7: 0.5278772166
A8: E06000034 | B8: Thurrock | C8: E12000006 | D8: 0.1943484258 | E8: 17.68570675 | F8: 91 | G8: 0.1943484258 | M8: E12000005 | N8: West Midlands | O8: =MIN(IF($C$4:$C$153=$M8,$G$4:$G$153)) -> 0.2120164645 | P8: =MAX(IF($C$4:$C$153=$M8,$G$4:$G$153)) -> 0.6095473355 | Q8: =SUMIFS($G$4:$G$153,$C$4:$C$153,$M8)/COUNTIFS($C$4:$C$153,$M8) -> 0.3621947936 | R8: =INDEX('SSATOD PHOF 2013'!$G$2:$G$163,MATCH($A8,'SSATOD PHOF 2013'!$E$2:$E$163,0),1)/100 -> 0 | S8: 0.1943484258 | T8: 0 | U8: =INDEX('2013 ONS Birth Data'!$C$15:$C$474,MATCH($B8,'2013 ONS Birth Data'!$B$15:$B$474,0),1) -> 2326 | V8: 17.68570675 | W8: =INDEX('2013 ONS Birth Data'!$E$15:$E$474,MATCH($B8,'2013 ONS Birth Data'!$B$15:$B$474,0),1) -> 91 | X8: =INDEX(WAY!$N$8:$N$157,MATCH(SSATOD!A8,WAY!$B$8:$B$157,0),1)/100 -> 0.044 | Y8: 0.540153431
A9: E09000015 | B9: Harrow | C9: E12000007 | D9: 0.1987654355 | E9: 11.13086439 | F9: 56 | G9: 0.1987654355 | M9: E12000006 | N9: East of England | O9: =MIN(IF($C$4:$C$153=$M9,$G$4:$G$153)) -> 0.1943484258 | P9: =MAX(IF($C$4:$C$153=$M9,$G$4:$G$153)) -> 0.6934705194 | Q9: =SUMIFS($G$4:$G$153,$C$4:$C$153,$M9)/COUNTIFS($C$4:$C$153,$M9) -> 0.4332684948 | R9: =INDEX('SSATOD PHOF 2013'!$G$2:$G$163,MATCH($A9,'SSATOD PHOF 2013'!$E$2:$E$163,0),1)/100 -> 0.04624838292 | S9: 0.1987654355 | T9: 164.5979948 | U9: =INDEX('2013 ONS Birth Data'!$C$15:$C$474,MATCH($B9,'2013 ONS Birth Data'!$B$15:$B$474,0),1) -> 3559 | V9: 11.13086439 | W9: =INDEX('2013 ONS Birth Data'!$E$15:$E$474,MATCH($B9,'2013 ONS Birth Data'!$B$15:$B$474,0),1) -> 56 | X9: =INDEX(WAY!$N$8:$N$157,MATCH(SSATOD!A9,WAY!$B$8:$B$157,0),1)/100 -> 0.045 | Y9: 0.5524296453
A10: E06000016 | B10: Leicester | C10: E12000004 | D10: 0.2075994549 | E10: 47.54027516 | F10: 229 | G10: 0.2075994549 | M10: E12000007 | N10: London | O10: =MIN(IF($C$4:$C$153=$M10,$G$4:$G$153)) -> 0.1590123484 | P10: =MAX(IF($C$4:$C$153=$M10,$G$4:$G$153)) -> 0.8745679162 | Q10: =SUMIFS($G$4:$G$153,$C$4:$C$153,$M10)/COUNTIFS($C$4:$C$153,$M10) -> 0.3604003834 | R10: =INDEX('SSATOD PHOF 2013'!$G$2:$G$163,MATCH($A10,'SSATOD PHOF 2013'!$E$2:$E$163,0),1)/100 -> 0.1314013497 | S10: 0.2075994549 | T10: 669.6212783 | U10: =INDEX('2013 ONS Birth Data'!$C$15:$C$474,MATCH($B10,'2013 ONS Birth Data'!$B$15:$B$474,0),1) -> 5096 | V10: 47.54027516 | W10: =INDEX('2013 ONS Birth Data'!$E$15:$E$474,MATCH($B10,'2013 ONS Birth Data'!$B$15:$B$474,0),1) -> 229 | X10: =INDEX(WAY!$N$8:$N$157,MATCH(SSATOD!A10,WAY!$B$8:$B$157,0),1)/100 -> 0.047 | Y10: 0.576982074
A11: E08000028 | B11: Sandwell | C11: E12000005 | D11: 0.2120164645 | E11: 66.3611534 | F11: 313 | G11: 0.2120164645 | M11: E12000008 | N11: South East | O11: =MIN(IF($C$4:$C$153=$M11,$G$4:$G$153)) -> 0.1899314161 | P11: =MAX(IF($C$4:$C$153=$M11,$G$4:$G$153)) -> 0.7862277226 | Q11: =SUMIFS($G$4:$G$153,$C$4:$C$153,$M11)/COUNTIFS($C$4:$C$153,$M11) -> 0.4756422 | R11: =INDEX('SSATOD PHOF 2013'!$G$2:$G$163,MATCH($A11,'SSATOD PHOF 2013'!$E$2:$E$163,0),1)/100 -> 0.09677855983 | S11: 0.2120164645 | T11: 468.7953438 | U11: =INDEX('2013 ONS Birth Data'!$C$15:$C$474,MATCH($B11,'2013 ONS Birth Data'!$B$15:$B$474,0),1) -> 4844 | V11: 66.3611534 | W11: =INDEX('2013 ONS Birth Data'!$E$15:$E$474,MATCH($B11,'2013 ONS Birth Data'!$B$15:$B$474,0),1) -> 313 | X11: =INDEX(WAY!$N$8:$N$157,MATCH(SSATOD!A11,WAY!$B$8:$B$157,0),1)/100 -> 0.048 | Y11: 0.5892582883
A12: E09000028 | B12: Southwark | C12: E12000007 | D12: 0.2164334742 | E12: 21.42691395 | F12: 99 | G12: 0.2164334742 | M12: E12000009 | N12: South West | O12: =MIN(IF($C$4:$C$153=$M12,$G$4:$G$153)) -> 0.4682030258 | P12: =MAX(IF($C$4:$C$153=$M12,$G$4:$G$153)) -> 0.8436488485 | Q12: =SUMIFS($G$4:$G$153,$C$4:$C$153,$M12)/COUNTIFS($C$4:$C$153,$M12) -> 0.5659661734 | R12: =INDEX('SSATOD PHOF 2013'!$G$2:$G$163,MATCH($A12,'SSATOD PHOF 2013'!$E$2:$E$163,0),1)/100 -> 0.03846153846 | S12: 0.2164334742 | T12: 181 | U12: =INDEX('2013 ONS Birth Data'!$C$15:$C$474,MATCH($B12,'2013 ONS Birth Data'!$B$15:$B$474,0),1) -> 4706 | V12: 21.42691395 | W12: =INDEX('2013 ONS Birth Data'!$E$15:$E$474,MATCH($B12,'2013 ONS Birth Data'!$B$15:$B$474,0),1) -> 99 | X12: =INDEX(WAY!$N$8:$N$157,MATCH(SSATOD!A12,WAY!$B$8:$B$157,0),1)/100 -> 0.049 | Y12: 0.6015345027
A13: E09000002 | B13: Barking and Dagenham | C13: E12000007 | D13: 0.2164334742 | E13: 25.10628301 | F13: 116 | G13: 0.2164334742 | R13: =INDEX('SSATOD PHOF 2013'!$G$2:$G$163,MATCH($A13,'SSATOD PHOF 2013'!$E$2:$E$163,0),1)/100 -> 0.0995423341 | S13: 0.2164334742 | T13: 377.8627002 | U13: =INDEX('2013 ONS Birth Data'!$C$15:$C$474,MATCH($B13,'2013 ONS Birth Data'!$B$15:$B$474,0),1) -> 3796 | V13: 25.10628301 | W13: =INDEX('2013 ONS Birth Data'!$E$15:$E$474,MATCH($B13,'2013 ONS Birth Data'!$B$15:$B$474,0),1) -> 116 | X13: =INDEX(WAY!$N$8:$N$157,MATCH(SSATOD!A13,WAY!$B$8:$B$157,0),1)/100 -> 0.049 | Y13: 0.6015345027
A14: E08000025 | B14: Birmingham | C14: E12000005 | D14: 0.2208504839 | E14: 151.9451329 | F14: 688 | G14: 0.2208504839 | R14: =INDEX('SSATOD PHOF 2013'!$G$2:$G$163,MATCH($A14,'SSATOD PHOF 2013'!$E$2:$E$163,0),1)/100 -> 0.0931399371 | S14: 0.2208504839 | T14: 1622.590844 | U14: =INDEX('2013 ONS Birth Data'!$C$15:$C$474,MATCH($B14,'2013 ONS Birth Data'!$B$15:$B$474,0),1) -> 17421 | V14: 151.9451329 | W14: =INDEX('2013 ONS Birth Data'!$E$15:$E$474,MATCH($B14,'2013 ONS Birth Data'!$B$15:$B$474,0),1) -> 688 | X14: =INDEX(WAY!$N$8:$N$157,MATCH(SSATOD!A14,WAY!$B$8:$B$157,0),1)/100 -> 0.05 | Y14: 0.613810717
A15: E09000010 | B15: Enfield | C15: E12000007 | D15: 0.2252674936 | E15: 33.33958905 | F15: 148 | G15: 0.2252674936 | R15: =INDEX('SSATOD PHOF 2013'!$G$2:$G$163,MATCH($A15,'SSATOD PHOF 2013'!$E$2:$E$163,0),1)/100 -> 0.05481955231 | S15: 0.2252674936 | T15: 269.0543627 | U15: =INDEX('2013 ONS Birth Data'!$C$15:$C$474,MATCH($B15,'2013 ONS Birth Data'!$B$15:$B$474,0),1) -> 4908 | V15: 33.33958905 | W15: =INDEX('2013 ONS Birth Data'!$E$15:$E$474,MATCH($B15,'2013 ONS Birth Data'!$B$15:$B$474,0),1) -> 148 | X15: =INDEX(WAY!$N$8:$N$157,MATCH(SSATOD!A15,WAY!$B$8:$B$157,0),1)/100 -> 0.051 | Y15: 0.6260869313
A16: E09000005 | B16: Brent | C16: E12000007 | D16: 0.2252674936 | E16: 22.52674936 | F16: 100 | G16: 0.2252674936 | R16: =INDEX('SSATOD PHOF 2013'!$G$2:$G$163,MATCH($A16,'SSATOD PHOF 2013'!$E$2:$E$163,0),1)/100 -> 0.03200163066 | S16: 0.2252674936 | T16: 165.4484305 | U16: =INDEX('2013 ONS Birth Data'!$C$15:$C$474,MATCH($B16,'2013 ONS Birth Data'!$B$15:$B$474,0),1) -> 5170 | V16: 22.52674936 | W16: =INDEX('2013 ONS Birth Data'!$E$15:$E$474,MATCH($B16,'2013 ONS Birth Data'!$B$15:$B$474,0),1) -> 100 | X16: =INDEX(WAY!$N$8:$N$157,MATCH(SSATOD!A16,WAY!$B$8:$B$157,0),1)/100 -> 0.051 | Y16: 0.6260869313
A17: E08000029 | B17: Solihull | C17: E12000005 | D17: 0.2252674936 | E17: 21.85094688 | F17: 97 | G17: 0.2252674936 | R17: =INDEX('SSATOD PHOF 2013'!$G$2:$G$163,MATCH($A17,'SSATOD PHOF 2013'!$E$2:$E$163,0),1)/100 -> 0.124609375 | S17: 0.2252674936 | T17: 278.8757812 | U17: =INDEX('2013 ONS Birth Data'!$C$15:$C$474,MATCH($B17,'2013 ONS Birth Data'!$B$15:$B$474,0),1) -> 2238 | V17: 21.85094688 | W17: =INDEX('2013 ONS Birth Data'!$E$15:$E$474,MATCH($B17,'2013 ONS Birth Data'!$B$15:$B$474,0),1) -> 97 | X17: =INDEX(WAY!$N$8:$N$157,MATCH(SSATOD!A17,WAY!$B$8:$B$157,0),1)/100 -> 0.051 | Y17: 0.6260869313
A18: E06000041 | B18: Wokingham | C18: E12000008 | D18: 0.2252674936 | E18: 8.785432249 | F18: 39 | G18: 0.2252674936 | R18: =INDEX('SSATOD PHOF 2013'!$G$2:$G$163,MATCH($A18,'SSATOD PHOF 2013'!$E$2:$E$163,0),1)/100 -> 0.05894895863 | S18: 0.2252674936 | T18: 105.8133807 | U18: =INDEX('2013 ONS Birth Data'!$C$15:$C$474,MATCH($B18,'2013 ONS Birth Data'!$B$15:$B$474,0),1) -> 1795 | V18: 8.785432249 | W18: =INDEX('2013 ONS Birth Data'!$E$15:$E$474,MATCH($B18,'2013 ONS Birth Data'!$B$15:$B$474,0),1) -> 39 | X18: =INDEX(WAY!$N$8:$N$157,MATCH(SSATOD!A18,WAY!$B$8:$B$157,0),1)/100 -> 0.051 | Y18: 0.6260869313
A19: E06000050 | B19: Cheshire West and Chester | C19: E12000002 | D19: 0.2341015129 | E19: 35.81753148 | F19: 153 | G19: 0.2341015129 | R19: =INDEX('SSATOD PHOF 2013'!$G$2:$G$163,MATCH($A19,'SSATOD PHOF 2013'!$E$2:$E$163,0),1)/100 -> 0.1289342904 | S19: 0.2341015129 | T19: 461.1979569 | U19: =INDEX('2013 ONS Birth Data'!$C$15:$C$474,MATCH($B19,'2013 ONS Birth Data'!$B$15:$B$474,0),1) -> 3577 | V19: 35.81753148 | W19: =INDEX('2013 ONS Birth Data'!$E$15:$E$474,MATCH($B19,'2013 ONS Birth Data'!$B$15:$B$474,0),1) -> 153 | X19: =INDEX(WAY!$N$8:$N$157,MATCH(SSATOD!A19,WAY!$B$8:$B$157,0),1)/100 -> 0.053 | Y19: 0.65063936
A20: E06000032 | B20: Luton | C20: E12000006 | D20: 0.2385185226 | E20: 26.23703749 | F20: 110 | G20: 0.2385185226 | R20: =INDEX('SSATOD PHOF 2013'!$G$2:$G$163,MATCH($A20,'SSATOD PHOF 2013'!$E$2:$E$163,0),1)/100 -> 0.1213924427 | S20: 0.2385185226 | T20: 422.5670931 | U20: =INDEX('2013 ONS Birth Data'!$C$15:$C$474,MATCH($B20,'2013 ONS Birth Data'!$B$15:$B$474,0),1) -> 3481 | V20: 26.23703749 | W20: =INDEX('2013 ONS Birth Data'!$E$15:$E$474,MATCH($B20,'2013 ONS Birth Data'!$B$15:$B$474,0),1) -> 110 | X20: =INDEX(WAY!$N$8:$N$157,MATCH(SSATOD!A20,WAY!$B$8:$B$157,0),1)/100 -> 0.054 | Y20: 0.6629155744
A21: E09000013 | B21: Hammersmith and Fulham | C21: E12000007 | D21: 0.2561865613 | E21: 11.78458182 | F21: 46 | G21: 0.2561865613 | R21: =INDEX('SSATOD PHOF 2013'!$G$2:$G$163,MATCH($A21,'SSATOD PHOF 2013'!$E$2:$E$163,0),1)/100 -> 0.03144398993 | S21: 0.2561865613 | T21: 80.24506231 | U21: =INDEX('2013 ONS Birth Data'!$C$15:$C$474,MATCH($B21,'2013 ONS Birth Data'!$B$15:$B$474,0),1) -> 2552 | V21: 11.78458182 | W21: =INDEX('2013 ONS Birth Data'!$E$15:$E$474,MATCH($B21,'2013 ONS Birth Data'!$B$15:$B$474,0),1) -> 46 | X21: =INDEX(WAY!$N$8:$N$157,MATCH(SSATOD!A21,WAY!$B$8:$B$157,0),1)/100 -> 0.058 | Y21: 0.7120204317
A22: E10000002 | B22: Buckinghamshire | C22: E12000008 | D22: 0.260603571 | E22: 41.43596779 | F22: 159 | G22: 0.260603571 | R22: =INDEX('SSATOD PHOF 2013'!$G$2:$G$163,MATCH($A22,'SSATOD PHOF 2013'!$E$2:$E$163,0),1)/100 -> 0.07944899948 | S22: 0.260603571 | T22: 462.552075 | U22: =INDEX('2013 ONS Birth Data'!$C$15:$C$474,MATCH($B22,'2013 ONS Birth Data'!$B$15:$B$474,0),1) -> 5822 | V22: 41.43596779 | W22: =INDEX('2013 ONS Birth Data'!$E$15:$E$474,MATCH($B22,'2013 ONS Birth Data'!$B$15:$B$474,0),1) -> 159 | X22: =INDEX(WAY!$N$8:$N$157,MATCH(SSATOD!A22,WAY!$B$8:$B$157,0),1)/100 -> 0.059 | Y22: 0.7242966461
A23: E10000023 | B23: North Yorkshire | C23: E12000003 | D23: 0.2694375903 | E23: 62.24008337 | F23: 231 | G23: 0.2694375903 | R23: =INDEX('SSATOD PHOF 2013'!$G$2:$G$163,MATCH($A23,'SSATOD PHOF 2013'!$E$2:$E$163,0),1)/100 -> 0.129279468 | S23: 0.2694375903 | T23: 713.7519431 | U23: =INDEX('2013 ONS Birth Data'!$C$15:$C$474,MATCH($B23,'2013 ONS Birth Data'!$B$15:$B$474,0),1) -> 5521 | V23: 62.24008337 | W23: =INDEX('2013 ONS Birth Data'!$E$15:$E$474,MATCH($B23,'2013 ONS Birth Data'!$B$15:$B$474,0),1) -> 231 | X23: =INDEX(WAY!$N$8:$N$157,MATCH(SSATOD!A23,WAY!$B$8:$B$157,0),1)/100 -> 0.061 | Y23: 0.7488490747
A24: E06000039 | B24: Slough | C24: E12000008 | D24: 0.2782716097 | E24: 19.20074107 | F24: 69 | G24: 0.2782716097 | R24: =INDEX('SSATOD PHOF 2013'!$G$2:$G$163,MATCH($A24,'SSATOD PHOF 2013'!$E$2:$E$163,0),1)/100 -> 0.1035905902 | S24: 0.2782716097 | T24: 269.4391251 | U24: =INDEX('2013 ONS Birth Data'!$C$15:$C$474,MATCH($B24,'2013 ONS Birth Data'!$B$15:$B$474,0),1) -> 2601 | V24: 19.20074107 | W24: =INDEX('2013 ONS Birth Data'!$E$15:$E$474,MATCH($B24,'2013 ONS Birth Data'!$B$15:$B$474,0),1) -> 69 | X24: =INDEX(WAY!$N$8:$N$157,MATCH(SSATOD!A24,WAY!$B$8:$B$157,0),1)/100 -> 0.063 | Y24: 0.7734015034
A25: E09000003 | B25: Barnet | C25: E12000007 | D25: 0.2782716097 | E25: 18.92246946 | F25: 68 | G25: 0.2782716097 | R25: =INDEX('SSATOD PHOF 2013'!$G$2:$G$163,MATCH($A25,'SSATOD PHOF 2013'!$E$2:$E$163,0),1)/100 -> 0.04397862721 | S25: 0.2782716097 | T25: 228.1171393 | U25: =INDEX('2013 ONS Birth Data'!$C$15:$C$474,MATCH($B25,'2013 ONS Birth Data'!$B$15:$B$474,0),1) -> 5187 | V25: 18.92246946 | W25: =INDEX('2013 ONS Birth Data'!$E$15:$E$474,MATCH($B25,'2013 ONS Birth Data'!$B$15:$B$474,0),1) -> 68 | X25: =INDEX(WAY!$N$8:$N$157,MATCH(SSATOD!A25,WAY!$B$8:$B$157,0),1)/100 -> 0.063 | Y25: 0.7734015034
A26: E08000009 | B26: Trafford | C26: E12000002 | D26: 0.2782716097 | E26: 20.59209912 | F26: 74 | G26: 0.2782716097 | R26: =INDEX('SSATOD PHOF 2013'!$G$2:$G$163,MATCH($A26,'SSATOD PHOF 2013'!$E$2:$E$163,0),1)/100 -> 0.07250644093 | S26: 0.2782716097 | T26: 204.2506441 | U26: =INDEX('2013 ONS Birth Data'!$C$15:$C$474,MATCH($B26,'2013 ONS Birth Data'!$B$15:$B$474,0),1) -> 2817 | V26: 20.59209912 | W26: =INDEX('2013 ONS Birth Data'!$E$15:$E$474,MATCH($B26,'2013 ONS Birth Data'!$B$15:$B$474,0),1) -> 74 | X26: =INDEX(WAY!$N$8:$N$157,MATCH(SSATOD!A26,WAY!$B$8:$B$157,0),1)/100 -> 0.063 | Y26: 0.7734015034
A27: E08000012 | B27: Liverpool | C27: E12000002 | D27: 0.2826886194 | E27: 65.30107108 | F27: 231 | G27: 0.2826886194 | R27: =INDEX('SSATOD PHOF 2013'!$G$2:$G$163,MATCH($A27,'SSATOD PHOF 2013'!$E$2:$E$163,0),1)/100 -> 0.1697067239 | S27: 0.2826886194 | T27: 958.1641631 | U27: =INDEX('2013 ONS Birth Data'!$C$15:$C$474,MATCH($B27,'2013 ONS Birth Data'!$B$15:$B$474,0),1) -> 5646 | V27: 65.30107108 | W27: =INDEX('2013 ONS Birth Data'!$E$15:$E$474,MATCH($B27,'2013 ONS Birth Data'!$B$15:$B$474,0),1) -> 231 | X27: =INDEX(WAY!$N$8:$N$157,MATCH(SSATOD!A27,WAY!$B$8:$B$157,0),1)/100 -> 0.064 | Y27: 0.7856777178
A28: E09000009 | B28: Ealing | C28: E12000007 | D28: 0.2871056291 | E28: 25.83950662 | F28: 90 | G28: 0.2871056291 | R28: =INDEX('SSATOD PHOF 2013'!$G$2:$G$163,MATCH($A28,'SSATOD PHOF 2013'!$E$2:$E$163,0),1)/100 -> 0.03338924763 | S28: 0.2871056291 | T28: 180.134991 | U28: =INDEX('2013 ONS Birth Data'!$C$15:$C$474,MATCH($B28,'2013 ONS Birth Data'!$B$15:$B$474,0),1) -> 5395 | V28: 25.83950662 | W28: =INDEX('2013 ONS Birth Data'!$E$15:$E$474,MATCH($B28,'2013 ONS Birth Data'!$B$15:$B$474,0),1) -> 90 | X28: =INDEX(WAY!$N$8:$N$157,MATCH(SSATOD!A28,WAY!$B$8:$B$157,0),1)/100 -> 0.065 | Y28: 0.7979539321
A29: E06000019 | B29: Herefordshire | C29: E12000005 | D29: 0.2871056291 | E29: 22.39423907 | F29: 78 | G29: 0.2871056291 | R29: =INDEX('SSATOD PHOF 2013'!$G$2:$G$163,MATCH($A29,'SSATOD PHOF 2013'!$E$2:$E$163,0),1)/100 -> 0.1414309484 | S29: 0.2871056291 | T29: 259.2429285 | U29: =INDEX('2013 ONS Birth Data'!$C$15:$C$474,MATCH($B29,'2013 ONS Birth Data'!$B$15:$B$474,0),1) -> 1833 | V29: 22.39423907 | W29: =INDEX('2013 ONS Birth Data'!$E$15:$E$474,MATCH($B29,'2013 ONS Birth Data'!$B$15:$B$474,0),1) -> 78 | X29: =INDEX(WAY!$N$8:$N$157,MATCH(SSATOD!A29,WAY!$B$8:$B$157,0),1)/100 -> 0.065 | Y29: 0.7979539321
A30: E09000016 | B30: Havering | C30: E12000007 | D30: 0.2959396484 | E30: 26.04268906 | F30: 88 | G30: 0.2959396484 | R30: =INDEX('SSATOD PHOF 2013'!$G$2:$G$163,MATCH($A30,'SSATOD PHOF 2013'!$E$2:$E$163,0),1)/100 -> 0.114061968 | S30: 0.2959396484 | T30: 342.6421519 | U30: =INDEX('2013 ONS Birth Data'!$C$15:$C$474,MATCH($B30,'2013 ONS Birth Data'!$B$15:$B$474,0),1) -> 3004 | V30: 26.04268906 | W30: =INDEX('2013 ONS Birth Data'!$E$15:$E$474,MATCH($B30,'2013 ONS Birth Data'!$B$15:$B$474,0),1) -> 88 | X30: =INDEX(WAY!$N$8:$N$157,MATCH(SSATOD!A30,WAY!$B$8:$B$157,0),1)/100 -> 0.067 | Y30: 0.8225063608
A31: E06000056 | B31: Central Bedfordshire | C31: E12000006 | D31: 0.2959396484 | E31: 32.55336133 | F31: 110 | G31: 0.2959396484 | R31: =INDEX('SSATOD PHOF 2013'!$G$2:$G$163,MATCH($A31,'SSATOD PHOF 2013'!$E$2:$E$163,0),1)/100 -> 0.1261167671 | S31: 0.2959396484 | T31: 405.3392894 | U31: =INDEX('2013 ONS Birth Data'!$C$15:$C$474,MATCH($B31,'2013 ONS Birth Data'!$B$15:$B$474,0),1) -> 3214 | V31: 32.55336133 | W31: =INDEX('2013 ONS Birth Data'!$E$15:$E$474,MATCH($B31,'2013 ONS Birth Data'!$B$15:$B$474,0),1) -> 110 | X31: =INDEX(WAY!$N$8:$N$157,MATCH(SSATOD!A31,WAY!$B$8:$B$157,0),1)/100 -> 0.067 | Y31: 0.8225063608
A32: E09000031 | B32: Waltham Forest | C32: E12000007 | D32: 0.3003566581 | E32: 35.141729 | F32: 117 | G32: 0.3003566581 | R32: =INDEX('SSATOD PHOF 2013'!$G$2:$G$163,MATCH($A32,'SSATOD PHOF 2013'!$E$2:$E$163,0),1)/100 -> 0.04397039617 | S32: 0.3003566581 | T32: 207.5842403 | U32: =INDEX('2013 ONS Birth Data'!$C$15:$C$474,MATCH($B32,'2013 ONS Birth Data'!$B$15:$B$474,0),1) -> 4721 | V32: 35.141729 | W32: =INDEX('2013 ONS Birth Data'!$E$15:$E$474,MATCH($B32,'2013 ONS Birth Data'!$B$15:$B$474,0),1) -> 117 | X32: =INDEX(WAY!$N$8:$N$157,MATCH(SSATOD!A32,WAY!$B$8:$B$157,0),1)/100 -> 0.068 | Y32: 0.8347825751
A33: E08000004 | B33: Oldham | C33: E12000002 | D33: 0.3091906774 | E33: 52.56241517 | F33: 170 | G33: 0.3091906774 | R33: =INDEX('SSATOD PHOF 2013'!$G$2:$G$163,MATCH($A33,'SSATOD PHOF 2013'!$E$2:$E$163,0),1)/100 -> 0.1602484472 | S33: 0.3091906774 | T33: 524.6534161 | U33: =INDEX('2013 ONS Birth Data'!$C$15:$C$474,MATCH($B33,'2013 ONS Birth Data'!$B$15:$B$474,0),1) -> 3274 | V33: 52.56241517 | W33: =INDEX('2013 ONS Birth Data'!$E$15:$E$474,MATCH($B33,'2013 ONS Birth Data'!$B$15:$B$474,0),1) -> 170 | X33: =INDEX(WAY!$N$8:$N$157,MATCH(SSATOD!A33,WAY!$B$8:$B$157,0),1)/100 -> 0.07 | Y33: 0.8593350038
A34: E06000008 | B34: Blackburn with Darwen | C34: E12000002 | D34: 0.3091906774 | E34: 35.86611858 | F34: 116 | G34: 0.3091906774 | R34: =INDEX('SSATOD PHOF 2013'!$G$2:$G$163,MATCH($A34,'SSATOD PHOF 2013'!$E$2:$E$163,0),1)/100 -> 0.1552962298 | S34: 0.3091906774 | T34: 350.037702 | U34: =INDEX('2013 ONS Birth Data'!$C$15:$C$474,MATCH($B34,'2013 ONS Birth Data'!$B$15:$B$474,0),1) -> 2254 | V34: 35.86611858 | W34: =INDEX('2013 ONS Birth Data'!$E$15:$E$474,MATCH($B34,'2013 ONS Birth Data'!$B$15:$B$474,0),1) -> 116 | X34: =INDEX(WAY!$N$8:$N$157,MATCH(SSATOD!A34,WAY!$B$8:$B$157,0),1)/100 -> 0.07 | Y34: 0.8593350038
A35: E06000020 | B35: Telford and Wrekin | C35: E12000005 | D35: 0.3136076871 | E35: 47.98197613 | F35: 153 | G35: 0.3136076871 | R35: =INDEX('SSATOD PHOF 2013'!$G$2:$G$163,MATCH($A35,'SSATOD PHOF 2013'!$E$2:$E$163,0),1)/100 -> 0.2243925679 | S35: 0.3136076871 | T35: 491.6441162 | U35: =INDEX('2013 ONS Birth Data'!$C$15:$C$474,MATCH($B35,'2013 ONS Birth Data'!$B$15:$B$474,0),1) -> 2191 | V35: 47.98197613 | W35: =INDEX('2013 ONS Birth Data'!$E$15:$E$474,MATCH($B35,'2013 ONS Birth Data'!$B$15:$B$474,0),1) -> 153 | X35: =INDEX(WAY!$N$8:$N$157,MATCH(SSATOD!A35,WAY!$B$8:$B$157,0),1)/100 -> 0.071 | Y35: 0.8716112182
A36: E09000011 | B36: Greenwich | C36: E12000007 | D36: 0.3180246968 | E36: 40.0711118 | F36: 126 | G36: =D36 -> 0.3180246968 | R36: =INDEX('SSATOD PHOF 2013'!$G$2:$G$163,MATCH($A36,'SSATOD PHOF 2013'!$E$2:$E$163,0),1)/100 -> 0.08827085852 | S36: 0.3180246968 | T36: 392.0991536 | U36: =INDEX('2013 ONS Birth Data'!$C$15:$C$474,MATCH($B36,'2013 ONS Birth Data'!$B$15:$B$474,0),1) -> 4442 | V36: 40.0711118 | W36: =INDEX('2013 ONS Birth Data'!$E$15:$E$474,MATCH($B36,'2013 ONS Birth Data'!$B$15:$B$474,0),1) -> 126 | X36: =INDEX(WAY!$N$8:$N$157,MATCH(SSATOD!A36,WAY!$B$8:$B$157,0),1)/100 -> 0.072 | Y36: =X36/$L$1 -> 0.8838874325
A37: E08000031 | B37: Wolverhampton | C37: E12000005 | D37: 0.3224417065 | E37: 66.74543324 | F37: 207 | G37: 0.3224417065 | R37: =INDEX('SSATOD PHOF 2013'!$G$2:$G$163,MATCH($A37,'SSATOD PHOF 2013'!$E$2:$E$163,0),1)/100 -> 0.1871673566 | S37: 0.3224417065 | T37: 647.5990538 | U37: =INDEX('2013 ONS Birth Data'!$C$15:$C$474,MATCH($B37,'2013 ONS Birth Data'!$B$15:$B$474,0),1) -> 3460 | V37: 66.74543324 | W37: =INDEX('2013 ONS Birth Data'!$E$15:$E$474,MATCH($B37,'2013 ONS Birth Data'!$B$15:$B$474,0),1) -> 207 | X37: =INDEX(WAY!$N$8:$N$157,MATCH(SSATOD!A37,WAY!$B$8:$B$157,0),1)/100 -> 0.073 | Y37: 0.8961636468
A38: E10000030 | B38: Surrey | C38: E12000008 | D38: 0.3268587162 | E38: 94.13531025 | F38: 288 | G38: 0.3268587162 | R38: =INDEX('SSATOD PHOF 2013'!$G$2:$G$163,MATCH($A38,'SSATOD PHOF 2013'!$E$2:$E$163,0),1)/100 -> 0.06555069611 | S38: 0.3268587162 | T38: 889.4573955 | U38: =INDEX('2013 ONS Birth Data'!$C$15:$C$474,MATCH($B38,'2013 ONS Birth Data'!$B$15:$B$474,0),1) -> 13569 | V38: 94.13531025 | W38: =INDEX('2013 ONS Birth Data'!$E$15:$E$474,MATCH($B38,'2013 ONS Birth Data'!$B$15:$B$474,0),1) -> 288 | X38: =INDEX(WAY!$N$8:$N$157,MATCH(SSATOD!A38,WAY!$B$8:$B$157,0),1)/100 -> 0.074 | Y38: 0.9084398612
A39: E08000010 | B39: Wigan | C39: E12000002 | D39: 0.3312757258 | E39: 68.57407525 | F39: 207 | G39: 0.3312757258 | R39: =INDEX('SSATOD PHOF 2013'!$G$2:$G$163,MATCH($A39,'SSATOD PHOF 2013'!$E$2:$E$163,0),1)/100 -> 0.1678243957 | S39: 0.3312757258 | T39: 628.3345374 | U39: =INDEX('2013 ONS Birth Data'!$C$15:$C$474,MATCH($B39,'2013 ONS Birth Data'!$B$15:$B$474,0),1) -> 3744 | V39: 68.57407525 | W39: =INDEX('2013 ONS Birth Data'!$E$15:$E$474,MATCH($B39,'2013 ONS Birth Data'!$B$15:$B$474,0),1) -> 207 | X39: =INDEX(WAY!$N$8:$N$157,MATCH(SSATOD!A39,WAY!$B$8:$B$157,0),1)/100 -> 0.075 | Y39: 0.9207160755
A40: E08000014 | B40: Sefton | C40: E12000002 | D40: 0.3401097452 | E40: 44.21426687 | F40: 130 | G40: 0.3401097452 | R40: =INDEX('SSATOD PHOF 2013'!$G$2:$G$163,MATCH($A40,'SSATOD PHOF 2013'!$E$2:$E$163,0),1)/100 -> 0.1530837004 | S40: 0.3401097452 | T40: 435.3700441 | U40: =INDEX('2013 ONS Birth Data'!$C$15:$C$474,MATCH($B40,'2013 ONS Birth Data'!$B$15:$B$474,0),1) -> 2844 | V40: 44.21426687 | W40: =INDEX('2013 ONS Birth Data'!$E$15:$E$474,MATCH($B40,'2013 ONS Birth Data'!$B$15:$B$474,0),1) -> 130 | X40: =INDEX(WAY!$N$8:$N$157,MATCH(SSATOD!A40,WAY!$B$8:$B$157,0),1)/100 -> 0.077 | Y40: 0.9452685042
A41: E09000033 | B41: Westminster | C41: E12000007 | D41: 0.3445267549 | E41: 7.924115362 | F41: 23 | G41: 0.3445267549 | R41: =INDEX('SSATOD PHOF 2013'!$G$2:$G$163,MATCH($A41,'SSATOD PHOF 2013'!$E$2:$E$163,0),1)/100 -> 0.01896038459 | S41: 0.3445267549 | T41: 50.75694954 | U41: =INDEX('2013 ONS Birth Data'!$C$15:$C$474,MATCH($B41,'2013 ONS Birth Data'!$B$15:$B$474,0),1) -> 2677 | V41: 7.924115362 | W41: =INDEX('2013 ONS Birth Data'!$E$15:$E$474,MATCH($B41,'2013 ONS Birth Data'!$B$15:$B$474,0),1) -> 23 | X41: =INDEX(WAY!$N$8:$N$157,MATCH(SSATOD!A41,WAY!$B$8:$B$157,0),1)/100 -> 0.078 | Y41: 0.9575447185
A42: E09000012 | B42: Hackney and City of London | C42: E12000007 | D42: 0.3489437645 | E42: 34.89437645 | F42: 100 | G42: 0.3489437645 | R42: =INDEX('SSATOD PHOF 2013'!$G$2:$G$163,MATCH($A42,'SSATOD PHOF 2013'!$E$2:$E$163,0),1)/100 -> 0.04860022396 | S42: 0.3489437645 | T42: 218.7010078 | U42: =INDEX('2013 ONS Birth Data'!$C$15:$C$474,MATCH($B42,'2013 ONS Birth Data'!$B$15:$B$474,0),1) -> 4500 | V42: 34.89437645 | W42: =INDEX('2013 ONS Birth Data'!$E$15:$E$474,MATCH($B42,'2013 ONS Birth Data'!$B$15:$B$474,0),1) -> 100 | X42: =INDEX(WAY!$N$8:$N$157,MATCH(SSATOD!A42,WAY!$B$8:$B$157,0),1)/100 -> 0.079 | Y42: 0.9698209329
A43: E09000018 | B43: Hounslow | C43: E12000007 | D43: 0.3489437645 | E43: 36.63909528 | F43: 105 | G43: 0.3489437645 | R43: =INDEX('SSATOD PHOF 2013'!$G$2:$G$163,MATCH($A43,'SSATOD PHOF 2013'!$E$2:$E$163,0),1)/100 -> 0.03494623656 | S43: 0.3489437645 | T43: 155.266129 | U43: =INDEX('2013 ONS Birth Data'!$C$15:$C$474,MATCH($B43,'2013 ONS Birth Data'!$B$15:$B$474,0),1) -> 4443 | V43: 36.63909528 | W43: =INDEX('2013 ONS Birth Data'!$E$15:$E$474,MATCH($B43,'2013 ONS Birth Data'!$B$15:$B$474,0),1) -> 105 | X43: =INDEX(WAY!$N$8:$N$157,MATCH(SSATOD!A43,WAY!$B$8:$B$157,0),1)/100 -> 0.079 | Y43: 0.9698209329
A44: E08000023 | B44: South Tyneside | C44: E12000001 | D44: 0.3489437645 | E44: 37.33698281 | F44: 107 | G44: 0.3489437645 | R44: =INDEX('SSATOD PHOF 2013'!$G$2:$G$163,MATCH($A44,'SSATOD PHOF 2013'!$E$2:$E$163,0),1)/100 -> 0.2503128911 | S44: 0.3489437645 | T44: 407.7596996 | U44: =INDEX('2013 ONS Birth Data'!$C$15:$C$474,MATCH($B44,'2013 ONS Birth Data'!$B$15:$B$474,0),1) -> 1629 | V44: 37.33698281 | W44: =INDEX('2013 ONS Birth Data'!$E$15:$E$474,MATCH($B44,'2013 ONS Birth Data'!$B$15:$B$474,0),1) -> 107 | X44: =INDEX(WAY!$N$8:$N$157,MATCH(SSATOD!A44,WAY!$B$8:$B$157,0),1)/100 -> 0.079 | Y44: 0.9698209329
A45: E08000005 | B45: Rochdale | C45: E12000002 | D45: 0.3533607742 | E45: 56.1843631 | F45: 159 | G45: 0.3533607742 | R45: =INDEX('SSATOD PHOF 2013'!$G$2:$G$163,MATCH($A45,'SSATOD PHOF 2013'!$E$2:$E$163,0),1)/100 -> 0.1871324801 | S45: 0.3533607742 | T45: 569.6312695 | U45: =INDEX('2013 ONS Birth Data'!$C$15:$C$474,MATCH($B45,'2013 ONS Birth Data'!$B$15:$B$474,0),1) -> 3044 | V45: 56.1843631 | W45: =INDEX('2013 ONS Birth Data'!$E$15:$E$474,MATCH($B45,'2013 ONS Birth Data'!$B$15:$B$474,0),1) -> 159 | X45: =INDEX(WAY!$N$8:$N$157,MATCH(SSATOD!A45,WAY!$B$8:$B$157,0),1)/100 -> 0.08 | Y45: 0.9820971472
A46: E08000011 | B46: Knowsley | C46: E12000002 | D46: 0.3533607742 | E46: 30.74238736 | F46: 87 | G46: 0.3533607742 | R46: =INDEX('SSATOD PHOF 2013'!$G$2:$G$163,MATCH($A46,'SSATOD PHOF 2013'!$E$2:$E$163,0),1)/100 -> 0.2057823129 | S46: 0.3533607742 | T46: 373.7006803 | U46: =INDEX('2013 ONS Birth Data'!$C$15:$C$474,MATCH($B46,'2013 ONS Birth Data'!$B$15:$B$474,0),1) -> 1816 | V46: 30.74238736 | W46: =INDEX('2013 ONS Birth Data'!$E$15:$E$474,MATCH($B46,'2013 ONS Birth Data'!$B$15:$B$474,0),1) -> 87 | X46: =INDEX(WAY!$N$8:$N$157,MATCH(SSATOD!A46,WAY!$B$8:$B$157,0),1)/100 -> 0.08 | Y46: 0.9820971472
A47: E10000028 | B47: Staffordshire | C47: E12000005 | D47: 0.3533607742 | E47: 158.3056269 | F47: 448 | G47: 0.3533607742 | R47: =INDEX('SSATOD PHOF 2013'!$G$2:$G$163,MATCH($A47,'SSATOD PHOF 2013'!$E$2:$E$163,0),1)/100 -> 0.1303540114 | S47: 0.3533607742 | T47: 1118.437418 | U47: =INDEX('2013 ONS Birth Data'!$C$15:$C$474,MATCH($B47,'2013 ONS Birth Data'!$B$15:$B$474,0),1) -> 8580 | V47: 158.3056269 | W47: =INDEX('2013 ONS Birth Data'!$E$15:$E$474,MATCH($B47,'2013 ONS Birth Data'!$B$15:$B$474,0),1) -> 448 | X47: =INDEX(WAY!$N$8:$N$157,MATCH(SSATOD!A47,WAY!$B$8:$B$157,0),1)/100 -> 0.08 | Y47: 0.9820971472
A48: E06000037 | B48: West Berkshire | C48: E12000008 | D48: 0.3577777839 | E48: 21.10888925 | F48: 59 | G48: 0.3577777839 | R48: =INDEX('SSATOD PHOF 2013'!$G$2:$G$163,MATCH($A48,'SSATOD PHOF 2013'!$E$2:$E$163,0),1)/100 -> 0.08664308906 | S48: 0.3577777839 | T48: 151.1055473 | U48: =INDEX('2013 ONS Birth Data'!$C$15:$C$474,MATCH($B48,'2013 ONS Birth Data'!$B$15:$B$474,0),1) -> 1744 | V48: 21.10888925 | W48: =INDEX('2013 ONS Birth Data'!$E$15:$E$474,MATCH($B48,'2013 ONS Birth Data'!$B$15:$B$474,0),1) -> 59 | X48: =INDEX(WAY!$N$8:$N$157,MATCH(SSATOD!A48,WAY!$B$8:$B$157,0),1)/100 -> 0.081 | Y48: 0.9943733616
A49: E08000030 | B49: Walsall | C49: E12000005 | D49: 0.3577777839 | E49: 96.60000165 | F49: 270 | G49: 0.3577777839 | R49: =INDEX('SSATOD PHOF 2013'!$G$2:$G$163,MATCH($A49,'SSATOD PHOF 2013'!$E$2:$E$163,0),1)/100 -> 0.136913129 | S49: 0.3577777839 | T49: 508.6322744 | U49: =INDEX('2013 ONS Birth Data'!$C$15:$C$474,MATCH($B49,'2013 ONS Birth Data'!$B$15:$B$474,0),1) -> 3715 | V49: 96.60000165 | W49: =INDEX('2013 ONS Birth Data'!$E$15:$E$474,MATCH($B49,'2013 ONS Birth Data'!$B$15:$B$474,0),1) -> 270 | X49: =INDEX(WAY!$N$8:$N$157,MATCH(SSATOD!A49,WAY!$B$8:$B$157,0),1)/100 -> 0.081 | Y49: 0.9943733616
A50: E08000006 | B50: Salford | C50: E12000002 | D50: 0.3577777839 | E50: 58.31777878 | F50: 163 | G50: 0.3577777839 | R50: =INDEX('SSATOD PHOF 2013'!$G$2:$G$163,MATCH($A50,'SSATOD PHOF 2013'!$E$2:$E$163,0),1)/100 -> 0.1510582778 | S50: 0.3577777839 | T50: 535.3505364 | U50: =INDEX('2013 ONS Birth Data'!$C$15:$C$474,MATCH($B50,'2013 ONS Birth Data'!$B$15:$B$474,0),1) -> 3544 | V50: 58.31777878 | W50: =INDEX('2013 ONS Birth Data'!$E$15:$E$474,MATCH($B50,'2013 ONS Birth Data'!$B$15:$B$474,0),1) -> 163 | X50: =INDEX(WAY!$N$8:$N$157,MATCH(SSATOD!A50,WAY!$B$8:$B$157,0),1)/100 -> 0.081 | Y50: 0.9943733616
A51: E06000004 | B51: Stockton-on-Tees | C51: E12000001 | D51: 0.3621947936 | E51: 59.39994615 | F51: 164 | G51: 0.3621947936 | R51: =INDEX('SSATOD PHOF 2013'!$G$2:$G$163,MATCH($A51,'SSATOD PHOF 2013'!$E$2:$E$163,0),1)/100 -> 0.1824992508 | S51: 0.3621947936 | T51: 440.5531915 | U51: =INDEX('2013 ONS Birth Data'!$C$15:$C$474,MATCH($B51,'2013 ONS Birth Data'!$B$15:$B$474,0),1) -> 2414 | V51: 59.39994615 | W51: =INDEX('2013 ONS Birth Data'!$E$15:$E$474,MATCH($B51,'2013 ONS Birth Data'!$B$15:$B$474,0),1) -> 164 | X51: =INDEX(WAY!$N$8:$N$157,MATCH(SSATOD!A51,WAY!$B$8:$B$157,0),1)/100 -> 0.082 | Y51: 1.006649576
A52: E09000008 | B52: Croydon | C52: E12000007 | D52: 0.3621947936 | E52: 70.99017954 | F52: 196 | G52: 0.3621947936 | R52: =INDEX('SSATOD PHOF 2013'!$G$2:$G$163,MATCH($A52,'SSATOD PHOF 2013'!$E$2:$E$163,0),1)/100 -> 0.07349031523 | S52: 0.3621947936 | T52: 411.9132169 | U52: =INDEX('2013 ONS Birth Data'!$C$15:$C$474,MATCH($B52,'2013 ONS Birth Data'!$B$15:$B$474,0),1) -> 5605 | V52: 70.99017954 | W52: =INDEX('2013 ONS Birth Data'!$E$15:$E$474,MATCH($B52,'2013 ONS Birth Data'!$B$15:$B$474,0),1) -> 196 | X52: =INDEX(WAY!$N$8:$N$157,MATCH(SSATOD!A52,WAY!$B$8:$B$157,0),1)/100 -> 0.082 | Y52: 1.006649576
A53: E10000024 | B53: Nottinghamshire | C53: E12000004 | D53: 0.3666118033 | E53: 164.6086997 | F53: 449 | G53: 0.3666118033 | R53: =INDEX('SSATOD PHOF 2013'!$G$2:$G$163,MATCH($A53,'SSATOD PHOF 2013'!$E$2:$E$163,0),1)/100 -> 0.1668756269 | S53: 0.3666118033 | T53: 1471.509278 | U53: =INDEX('2013 ONS Birth Data'!$C$15:$C$474,MATCH($B53,'2013 ONS Birth Data'!$B$15:$B$474,0),1) -> 8818 | V53: 164.6086997 | W53: =INDEX('2013 ONS Birth Data'!$E$15:$E$474,MATCH($B53,'2013 ONS Birth Data'!$B$15:$B$474,0),1) -> 449 | X53: =INDEX(WAY!$N$8:$N$157,MATCH(SSATOD!A53,WAY!$B$8:$B$157,0),1)/100 -> 0.083 | Y53: 1.01892579
A54: E08000034 | B54: Kirklees | C54: E12000003 | D54: 0.3666118033 | E54: 94.95245704 | F54: 259 | G54: 0.3666118033 | R54: =INDEX('SSATOD PHOF 2013'!$G$2:$G$163,MATCH($A54,'SSATOD PHOF 2013'!$E$2:$E$163,0),1)/100 -> 0.1377733598 | S54: 0.3666118033 | T54: 779.52167 | U54: =INDEX('2013 ONS Birth Data'!$C$15:$C$474,MATCH($B54,'2013 ONS Birth Data'!$B$15:$B$474,0),1) -> 5658 | V54: 94.95245704 | W54: =INDEX('2013 ONS Birth Data'!$E$15:$E$474,MATCH($B54,'2013 ONS Birth Data'!$B$15:$B$474,0),1) -> 259 | X54: =INDEX(WAY!$N$8:$N$157,MATCH(SSATOD!A54,WAY!$B$8:$B$157,0),1)/100 -> 0.083 | Y54: 1.01892579
A55: E09000023 | B55: Lewisham | C55: E12000007 | D55: 0.3710288129 | E55: 51.94403381 | F55: 140 | G55: 0.3710288129 | R55: =INDEX('SSATOD PHOF 2013'!$G$2:$G$163,MATCH($A55,'SSATOD PHOF 2013'!$E$2:$E$163,0),1)/100 -> 0.05865554564 | S55: 0.3710288129 | T55: 283.1303188 | U55: =INDEX('2013 ONS Birth Data'!$C$15:$C$474,MATCH($B55,'2013 ONS Birth Data'!$B$15:$B$474,0),1) -> 4827 | V55: 51.94403381 | W55: =INDEX('2013 ONS Birth Data'!$E$15:$E$474,MATCH($B55,'2013 ONS Birth Data'!$B$15:$B$474,0),1) -> 140 | X55: =INDEX(WAY!$N$8:$N$157,MATCH(SSATOD!A55,WAY!$B$8:$B$157,0),1)/100 -> 0.084 | Y55: 1.031202005
A56: E10000018 | B56: Leicestershire | C56: E12000004 | D56: 0.3710288129 | E56: 85.33662697 | F56: 230 | G56: 0.3710288129 | R56: =INDEX('SSATOD PHOF 2013'!$G$2:$G$163,MATCH($A56,'SSATOD PHOF 2013'!$E$2:$E$163,0),1)/100 -> 0.1070460459 | S56: 0.3710288129 | T56: 706.6109488 | U56: =INDEX('2013 ONS Birth Data'!$C$15:$C$474,MATCH($B56,'2013 ONS Birth Data'!$B$15:$B$474,0),1) -> 6601 | V56: 85.33662697 | W56: =INDEX('2013 ONS Birth Data'!$E$15:$E$474,MATCH($B56,'2013 ONS Birth Data'!$B$15:$B$474,0),1) -> 230 | X56: =INDEX(WAY!$N$8:$N$157,MATCH(SSATOD!A56,WAY!$B$8:$B$157,0),1)/100 -> 0.084 | Y56: 1.031202005
A57: E06000011 | B57: East Riding of Yorkshire | C57: E12000003 | D57: 0.3710288129 | E57: 61.59078295 | F57: 166 | G57: 0.3710288129 | R57: =INDEX('SSATOD PHOF 2013'!$G$2:$G$163,MATCH($A57,'SSATOD PHOF 2013'!$E$2:$E$163,0),1)/100 -> 0.1369285118 | S57: 0.3710288129 | T57: 407.7731083 | U57: =INDEX('2013 ONS Birth Data'!$C$15:$C$474,MATCH($B57,'2013 ONS Birth Data'!$B$15:$B$474,0),1) -> 2978 | V57: 61.59078295 | W57: =INDEX('2013 ONS Birth Data'!$E$15:$E$474,MATCH($B57,'2013 ONS Birth Data'!$B$15:$B$474,0),1) -> 166 | X57: =INDEX(WAY!$N$8:$N$157,MATCH(SSATOD!A57,WAY!$B$8:$B$157,0),1)/100 -> 0.084 | Y57: 1.031202005
A58: E06000014 | B58: York | C58: E12000003 | D58: 0.3710288129 | E58: 34.13465079 | F58: 92 | G58: 0.3710288129 | R58: =INDEX('SSATOD PHOF 2013'!$G$2:$G$163,MATCH($A58,'SSATOD PHOF 2013'!$E$2:$E$163,0),1)/100 -> 0.1062686567 | S58: 0.3710288129 | T58: 217.319403 | U58: =INDEX('2013 ONS Birth Data'!$C$15:$C$474,MATCH($B58,'2013 ONS Birth Data'!$B$15:$B$474,0),1) -> 2045 | V58: 34.13465079 | W58: =INDEX('2013 ONS Birth Data'!$E$15:$E$474,MATCH($B58,'2013 ONS Birth Data'!$B$15:$B$474,0),1) -> 92 | X58: =INDEX(WAY!$N$8:$N$157,MATCH(SSATOD!A58,WAY!$B$8:$B$157,0),1)/100 -> 0.084 | Y58: 1.031202005
A59: E06000015 | B59: Derby | C59: E12000004 | D59: 0.3754458226 | E59: 64.95212731 | F59: 173 | G59: 0.3754458226 | R59: =INDEX('SSATOD PHOF 2013'!$G$2:$G$163,MATCH($A59,'SSATOD PHOF 2013'!$E$2:$E$163,0),1)/100 -> 0.1512297227 | S59: 0.3754458226 | T59: 507.9806384 | U59: =INDEX('2013 ONS Birth Data'!$C$15:$C$474,MATCH($B59,'2013 ONS Birth Data'!$B$15:$B$474,0),1) -> 3359 | V59: 64.95212731 | W59: =INDEX('2013 ONS Birth Data'!$E$15:$E$474,MATCH($B59,'2013 ONS Birth Data'!$B$15:$B$474,0),1) -> 173 | X59: =INDEX(WAY!$N$8:$N$157,MATCH(SSATOD!A59,WAY!$B$8:$B$157,0),1)/100 -> 0.085 | Y59: 1.043478219
A60: E06000002 | B60: Middlesbrough | C60: E12000001 | D60: 0.3754458226 | E60: 56.31687339 | F60: 150 | G60: 0.3754458226 | R60: =INDEX('SSATOD PHOF 2013'!$G$2:$G$163,MATCH($A60,'SSATOD PHOF 2013'!$E$2:$E$163,0),1)/100 -> 0.239149432 | S60: 0.3754458226 | T60: 466.5805418 | U60: =INDEX('2013 ONS Birth Data'!$C$15:$C$474,MATCH($B60,'2013 ONS Birth Data'!$B$15:$B$474,0),1) -> 1951 | V60: 56.31687339 | W60: =INDEX('2013 ONS Birth Data'!$E$15:$E$474,MATCH($B60,'2013 ONS Birth Data'!$B$15:$B$474,0),1) -> 150 | X60: =INDEX(WAY!$N$8:$N$157,MATCH(SSATOD!A60,WAY!$B$8:$B$157,0),1)/100 -> 0.085 | Y60: 1.043478219
A61: E08000015 | B61: Wirral | C61: E12000002 | D61: 0.3798628323 | E61: 70.65448681 | F61: 186 | G61: 0.3798628323 | R61: =INDEX('SSATOD PHOF 2013'!$G$2:$G$163,MATCH($A61,'SSATOD PHOF 2013'!$E$2:$E$163,0),1)/100 -> 0 | S61: 0.3798628323 | T61: 0 | U61: =INDEX('2013 ONS Birth Data'!$C$15:$C$474,MATCH($B61,'2013 ONS Birth Data'!$B$15:$B$474,0),1) -> 3560 | V61: 70.65448681 | W61: =INDEX('2013 ONS Birth Data'!$E$15:$E$474,MATCH($B61,'2013 ONS Birth Data'!$B$15:$B$474,0),1) -> 186 | X61: =INDEX(WAY!$N$8:$N$157,MATCH(SSATOD!A61,WAY!$B$8:$B$157,0),1)/100 -> 0.086 | Y61: 1.055754433
A62: E09000022 | B62: Lambeth | C62: E12000007 | D62: 0.384279842 | E62: 41.88650277 | F62: 109 | G62: 0.384279842 | R62: =INDEX('SSATOD PHOF 2013'!$G$2:$G$163,MATCH($A62,'SSATOD PHOF 2013'!$E$2:$E$163,0),1)/100 -> 0.04354354354 | S62: 0.384279842 | T62: 199.8213213 | U62: =INDEX('2013 ONS Birth Data'!$C$15:$C$474,MATCH($B62,'2013 ONS Birth Data'!$B$15:$B$474,0),1) -> 4589 | V62: 41.88650277 | W62: =INDEX('2013 ONS Birth Data'!$E$15:$E$474,MATCH($B62,'2013 ONS Birth Data'!$B$15:$B$474,0),1) -> 109 | X62: =INDEX(WAY!$N$8:$N$157,MATCH(SSATOD!A62,WAY!$B$8:$B$157,0),1)/100 -> 0.087 | Y62: 1.068030648
A63: E08000026 | B63: Coventry | C63: E12000005 | D63: 0.384279842 | E63: 83.77300555 | F63: 218 | G63: 0.384279842 | R63: =INDEX('SSATOD PHOF 2013'!$G$2:$G$163,MATCH($A63,'SSATOD PHOF 2013'!$E$2:$E$163,0),1)/100 -> 0.1295346281 | S63: 0.384279842 | T63: 582.2581532 | U63: =INDEX('2013 ONS Birth Data'!$C$15:$C$474,MATCH($B63,'2013 ONS Birth Data'!$B$15:$B$474,0),1) -> 4495 | V63: 83.77300555 | W63: =INDEX('2013 ONS Birth Data'!$E$15:$E$474,MATCH($B63,'2013 ONS Birth Data'!$B$15:$B$474,0),1) -> 218 | X63: =INDEX(WAY!$N$8:$N$157,MATCH(SSATOD!A63,WAY!$B$8:$B$157,0),1)/100 -> 0.087 | Y63: 1.068030648
A64: E09000020 | B64: Kensington and Chelsea | C64: E12000007 | D64: 0.3931138613 | E64: 8.255391088 | F64: 21 | G64: 0.3931138613 | R64: =INDEX('SSATOD PHOF 2013'!$G$2:$G$163,MATCH($A64,'SSATOD PHOF 2013'!$E$2:$E$163,0),1)/100 -> 0.01953818828 | S64: 0.3931138613 | T64: 35.22735346 | U64: =INDEX('2013 ONS Birth Data'!$C$15:$C$474,MATCH($B64,'2013 ONS Birth Data'!$B$15:$B$474,0),1) -> 1803 | V64: 8.255391088 | W64: =INDEX('2013 ONS Birth Data'!$E$15:$E$474,MATCH($B64,'2013 ONS Birth Data'!$B$15:$B$474,0),1) -> 21 | X64: =INDEX(WAY!$N$8:$N$157,MATCH(SSATOD!A64,WAY!$B$8:$B$157,0),1)/100 -> 0.089 | Y64: 1.092583076
A65: E06000051 | B65: Shropshire | C65: E12000005 | D65: 0.3931138613 | E65: 48.7461188 | F65: 124 | G65: 0.3931138613 | R65: =INDEX('SSATOD PHOF 2013'!$G$2:$G$163,MATCH($A65,'SSATOD PHOF 2013'!$E$2:$E$163,0),1)/100 -> 0.1496710526 | S65: 0.3931138613 | T65: 425.5148026 | U65: =INDEX('2013 ONS Birth Data'!$C$15:$C$474,MATCH($B65,'2013 ONS Birth Data'!$B$15:$B$474,0),1) -> 2843 | V65: 48.7461188 | W65: =INDEX('2013 ONS Birth Data'!$E$15:$E$474,MATCH($B65,'2013 ONS Birth Data'!$B$15:$B$474,0),1) -> 124 | X65: =INDEX(WAY!$N$8:$N$157,MATCH(SSATOD!A65,WAY!$B$8:$B$157,0),1)/100 -> 0.089 | Y65: 1.092583076
A66: E08000007 | B66: Stockport | C66: E12000002 | D66: 0.4063648904 | E66: 48.76378684 | F66: 120 | G66: 0.4063648904 | R66: =INDEX('SSATOD PHOF 2013'!$G$2:$G$163,MATCH($A66,'SSATOD PHOF 2013'!$E$2:$E$163,0),1)/100 -> 0.1219651528 | S66: 0.4063648904 | T66: 419.1942302 | U66: =INDEX('2013 ONS Birth Data'!$C$15:$C$474,MATCH($B66,'2013 ONS Birth Data'!$B$15:$B$474,0),1) -> 3437 | V66: 48.76378684 | W66: =INDEX('2013 ONS Birth Data'!$E$15:$E$474,MATCH($B66,'2013 ONS Birth Data'!$B$15:$B$474,0),1) -> 120 | X66: =INDEX(WAY!$N$8:$N$157,MATCH(SSATOD!A66,WAY!$B$8:$B$157,0),1)/100 -> 0.092 | Y66: 1.129411719
A67: E06000010 | B67: Kingston upon Hull | C67: E12000003 | D67: 0.4063648904 | E67: 107.2803311 | F67: 264 | G67: 0.4063648904 | R67: =INDEX('SSATOD PHOF 2013'!$G$2:$G$163,MATCH($A67,'SSATOD PHOF 2013'!$E$2:$E$163,0),1)/100 -> 0.2162601626 | S67: 0.4063648904 | T67: 799.5138211 | U67: =INDEX('2013 ONS Birth Data'!$C$15:$C$474,MATCH($B67,'2013 ONS Birth Data'!$B$15:$B$474,0),1) -> 3697 | V67: 107.2803311 | W67: =INDEX('2013 ONS Birth Data'!$E$15:$E$474,MATCH($B67,'2013 ONS Birth Data'!$B$15:$B$474,0),1) -> 264 | X67: =INDEX(WAY!$N$8:$N$157,MATCH(SSATOD!A67,WAY!$B$8:$B$157,0),1)/100 -> 0.092 | Y67: 1.129411719
A68: E10000017 | B68: Lancashire | C68: E12000002 | D68: 0.4063648904 | E68: 259.6671649 | F68: 639 | G68: =D68 -> 0.4063648904 | R68: =INDEX('SSATOD PHOF 2013'!$G$2:$G$163,MATCH($A68,'SSATOD PHOF 2013'!$E$2:$E$163,0),1)/100 -> 0 | S68: 0.4063648904 | T68: 0 | U68: =INDEX('2013 ONS Birth Data'!$C$15:$C$474,MATCH($B68,'2013 ONS Birth Data'!$B$15:$B$474,0),1) -> 13317 | V68: 259.6671649 | W68: =INDEX('2013 ONS Birth Data'!$E$15:$E$474,MATCH($B68,'2013 ONS Birth Data'!$B$15:$B$474,0),1) -> 639 | X68: =INDEX(WAY!$N$8:$N$157,MATCH(SSATOD!A68,WAY!$B$8:$B$157,0),1)/100 -> 0.092 | Y68: =X68/$L$1 -> 1.129411719
A69: E06000005 | B69: Darlington | C69: E12000001 | D69: =S69 -> 0.4063648904 | E69: =V69 -> 30.88373167 | F69: =W69 -> 76 | G69: 0.4063648904 | R69: =INDEX('SSATOD PHOF 2013'!$G$2:$G$163,MATCH($A69,'SSATOD PHOF 2013'!$E$2:$E$163,0),1)/100 -> 0.2039151713 | S69: =Y69*$L$2 -> 0.4063648904 | T69: =U69*R69 -> 250.2039152 | U69: =INDEX('2013 ONS Birth Data'!$C$15:$C$474,MATCH($B69,'2013 ONS Birth Data'!$B$15:$B$474,0),1) -> 1227 | V69: =W69*S69 -> 30.88373167 | W69: =INDEX('2013 ONS Birth Data'!$E$15:$E$474,MATCH($B69,'2013 ONS Birth Data'!$B$15:$B$474,0),1) -> 76 | X69: =INDEX(WAY!$N$8:$N$157,MATCH(SSATOD!A69,WAY!$B$8:$B$157,0),1)/100 -> 0.092 | Y69: 1.129411719
A70: E10000015 | B70: Hertfordshire | C70: E12000006 | D70: 0.4107819 | E70: 126.9316071 | F70: 309 | G70: 0.4107819 | R70: =INDEX('SSATOD PHOF 2013'!$G$2:$G$163,MATCH($A70,'SSATOD PHOF 2013'!$E$2:$E$163,0),1)/100 -> 0.0732289159 | S70: 0.4107819 | T70: 1062.038967 | U70: =INDEX('2013 ONS Birth Data'!$C$15:$C$474,MATCH($B70,'2013 ONS Birth Data'!$B$15:$B$474,0),1) -> 14503 | V70: 126.9316071 | W70: =INDEX('2013 ONS Birth Data'!$E$15:$E$474,MATCH($B70,'2013 ONS Birth Data'!$B$15:$B$474,0),1) -> 309 | X70: =INDEX(WAY!$N$8:$N$157,MATCH(SSATOD!A70,WAY!$B$8:$B$157,0),1)/100 -> 0.093 | Y70: 1.141687934
A71: E10000006 | B71: Cumbria | C71: E12000002 | D71: 0.4107819 | E71: 97.35531031 | F71: 237 | G71: 0.4107819 | R71: =INDEX('SSATOD PHOF 2013'!$G$2:$G$163,MATCH($A71,'SSATOD PHOF 2013'!$E$2:$E$163,0),1)/100 -> 0.1379958246 | S71: 0.4107819 | T71: 664.3118998 | U71: =INDEX('2013 ONS Birth Data'!$C$15:$C$474,MATCH($B71,'2013 ONS Birth Data'!$B$15:$B$474,0),1) -> 4814 | V71: 97.35531031 | W71: =INDEX('2013 ONS Birth Data'!$E$15:$E$474,MATCH($B71,'2013 ONS Birth Data'!$B$15:$B$474,0),1) -> 237 | X71: =INDEX(WAY!$N$8:$N$157,MATCH(SSATOD!A71,WAY!$B$8:$B$157,0),1)/100 -> 0.093 | Y71: 1.141687934
A72: E06000049 | B72: Cheshire East | C72: E12000002 | D72: 0.4107819 | E72: 59.5633755 | F72: 145 | G72: 0.4107819 | R72: =INDEX('SSATOD PHOF 2013'!$G$2:$G$163,MATCH($A72,'SSATOD PHOF 2013'!$E$2:$E$163,0),1)/100 -> 0.132842335 | S72: 0.4107819 | T72: 500.8156028 | U72: =INDEX('2013 ONS Birth Data'!$C$15:$C$474,MATCH($B72,'2013 ONS Birth Data'!$B$15:$B$474,0),1) -> 3770 | V72: 59.5633755 | W72: =INDEX('2013 ONS Birth Data'!$E$15:$E$474,MATCH($B72,'2013 ONS Birth Data'!$B$15:$B$474,0),1) -> 145 | X72: =INDEX(WAY!$N$8:$N$157,MATCH(SSATOD!A72,WAY!$B$8:$B$157,0),1)/100 -> 0.093 | Y72: 1.141687934
A73: E06000018 | B73: Nottingham | C73: E12000004 | D73: 0.4107819 | E73: 103.5170388 | F73: 252 | G73: 0.4107819 | R73: =INDEX('SSATOD PHOF 2013'!$G$2:$G$163,MATCH($A73,'SSATOD PHOF 2013'!$E$2:$E$163,0),1)/100 -> 0.1846971798 | S73: 0.4107819 | T73: 793.828479 | U73: =INDEX('2013 ONS Birth Data'!$C$15:$C$474,MATCH($B73,'2013 ONS Birth Data'!$B$15:$B$474,0),1) -> 4298 | V73: 103.5170388 | W73: =INDEX('2013 ONS Birth Data'!$E$15:$E$474,MATCH($B73,'2013 ONS Birth Data'!$B$15:$B$474,0),1) -> 252 | X73: =INDEX(WAY!$N$8:$N$157,MATCH(SSATOD!A73,WAY!$B$8:$B$157,0),1)/100 -> 0.093 | Y73: 1.141687934
A74: E10000021 | B74: Northamptonshire | C74: E12000004 | D74: 0.4107819 | E74: 168.420579 | F74: 410 | G74: 0.4107819 | R74: =INDEX('SSATOD PHOF 2013'!$G$2:$G$163,MATCH($A74,'SSATOD PHOF 2013'!$E$2:$E$163,0),1)/100 -> 0.1558655015 | S74: 0.4107819 | T74: 1402.010186 | U74: =INDEX('2013 ONS Birth Data'!$C$15:$C$474,MATCH($B74,'2013 ONS Birth Data'!$B$15:$B$474,0),1) -> 8995 | V74: 168.420579 | W74: =INDEX('2013 ONS Birth Data'!$E$15:$E$474,MATCH($B74,'2013 ONS Birth Data'!$B$15:$B$474,0),1) -> 410 | X74: =INDEX(WAY!$N$8:$N$157,MATCH(SSATOD!A74,WAY!$B$8:$B$157,0),1)/100 -> 0.093 | Y74: 1.141687934
A75: E08000032 | B75: Bradford | C75: E12000003 | D75: 0.4107819 | E75: 151.1677392 | F75: 368 | G75: 0.4107819 | R75: =INDEX('SSATOD PHOF 2013'!$G$2:$G$163,MATCH($A75,'SSATOD PHOF 2013'!$E$2:$E$163,0),1)/100 -> 0.158442304 | S75: 0.4107819 | T75: 1273.717682 | U75: =INDEX('2013 ONS Birth Data'!$C$15:$C$474,MATCH($B75,'2013 ONS Birth Data'!$B$15:$B$474,0),1) -> 8039 | V75: 151.1677392 | W75: =INDEX('2013 ONS Birth Data'!$E$15:$E$474,MATCH($B75,'2013 ONS Birth Data'!$B$15:$B$474,0),1) -> 368 | X75: =INDEX(WAY!$N$8:$N$157,MATCH(SSATOD!A75,WAY!$B$8:$B$157,0),1)/100 -> 0.093 | Y75: 1.141687934
